Workbook

Sheet Титул
C21: Финансовая модель оценки проектов модернизации в целях предоставления финансовой поддержки за счет средств Фонда ЖКХ
C28: для проектов, реализуемых в сфере теплоснабжения
C31: Дата | D31: 2019-11-06
C32: Версия | D32: v5.2
F53: 2019

Sheet Содержание
B1: Содержание
B3: Лист | C3: Назначение | D3: Комментарий для пользователя
B5: Исходные данные | C5: Вводные данные для расчетов | D5: ЛИСТ ДЛЯ ВВОДА ИСХОДНЫХ ДАННЫХ
B7: Макро | C7: Макроэкономические показатели | D7: ЗАПОЛНЕНИЕ НЕ ТРЕБУЕТСЯ. АВТОМАТИЧЕСКИЙ РАСЧЕТ
B9: Капзатраты_Выручка | C9: Расчет капитальных затрат, Расчет НВВ | D9: ЗАПОЛНЕНИЕ НЕ ТРЕБУЕТСЯ. АВТОМАТИЧЕСКИЙ РАСЧЕТ
B11: Расчет_С_Фондом | C11: Расчеты проекта со средствами Фонда | D11: ЗАПОЛНЕНИЕ НЕ ТРЕБУЕТСЯ. АВТОМАТИЧЕСКИЙ РАСЧЕТ
B12: Расчет_БЕЗ_Фонда | C12: Расчеты проекта без средств Фонда | D12: ЗАПОЛНЕНИЕ НЕ ТРЕБУЕТСЯ. АВТОМАТИЧЕСКИЙ РАСЧЕТ
B14: Бюджет_Эффективность | C14: Расчет бюджетной эффективности | D14: ЗАПОЛНЕНИЕ НЕ ТРЕБУЕТСЯ. АВТОМАТИЧЕСКИЙ РАСЧЕТ
B16: Результаты | C16: Результаты расчетов показателей эффективности | D16: ЗАПОЛНЕНИЕ НЕ ТРЕБУЕТСЯ. АВТОМАТИЧЕСКИЙ РАСЧЕТ
B19: Приложения
B20: МЭР РФ - Индексы_2018-2036 | C20: Индексы инфляции - Прогноз МЭР РФ до 2036 г. | D20: ЗАПОЛНЕНИЕ НЕ ТРЕБУЕТСЯ
B21: МЭР РФ - Дефляторы 2035 баз. | C21: Дефляторы - Прогноз МЭР РФ до 2036 г. | D21: ЗАПОЛНЕНИЕ НЕ ТРЕБУЕТСЯ

Sheet Макро
A1: Содержание | C1: ЗАПОЛНЕНИЕ НЕ ТРЕБУЕТСЯ. АВТОМАТИЧЕСКИЙ РАСЧЕТ
A2: Проверка корректности модели | B2: =Результаты!$C$27 -> OK
C3: 2017 | D3: 2018 | E3: 2019 | F3: 2020 | G3: 2021 | H3: 2022 | I3: 2023 | J3: 2024 | K3: 2025 | L3: 2026 | M3: 2027 | N3: 2028 | O3: 2029 | P3: 2030 | Q3: 2031 | R3: 2032 | S3: 2033 | T3: 2034 | U3: 2035 | V3: 2036 | W3: 2037 | X3: 2038 | Y3: 2039 | Z3: 2040 | AA3: 2041 | AB3: 2042 | AC3: 2043 | AD3: 2044 | AE3: 2045 | AF3: 2046 | AG3: 2047 | AH3: 2048 | AI3: 2049 | AJ3: 2050 | AK3: 2051 | AL3: 2052 | AM3: 2053 | AN3: 2054 | AO3: 2055
A4: Инфляция
A5: Индексы инфляции | C5: http://economy.gov.ru/minec/about/structure/depmacro/201828113
A6: Индекс реальных цен | B6: ИРЦ | C6: 0 | D6: 0 | E6: 0 | F6: 0 | G6: 0 | H6: 0 | I6: 0 | J6: 0 | K6: 0 | L6: 0 | M6: 0 | N6: 0 | O6: 0 | P6: 0 | Q6: 0 | R6: 0 | S6: 0 | T6: 0 | U6: 0 | V6: 0 | W6: =V6 -> 0 | X6: 0 | Y6: 0 | Z6: 0 | AA6: 0 | AB6: 0 | AC6: 0 | AD6: 0 | AE6: 0 | AF6: 0 | AG6: 0 | AH6: 0 | AI6: 0 | AJ6: 0 | AK6: 0 | AL6: 0 | AM6: 0 | AN6: 0 | AO6: 0
A7: ИПЦ | B7: ИПЦ | C7: ='МЭР РФ - Индексы_2018-2036'!C10/100-1 -> 0.0368 | D7: ='МЭР РФ - Индексы_2018-2036'!D10/100-1 -> 0.02727 | E7: ='МЭР РФ - Индексы_2018-2036'!E10/100-1 -> 0.04645 | F7: ='МЭР РФ - Индексы_2018-2036'!F10/100-1 -> 0.03421 | G7: ='МЭР РФ - Индексы_2018-2036'!G10/100-1 -> 0.04011 | H7: ='МЭР РФ - Индексы_2018-2036'!H10/100-1 -> 0.03995 | I7: ='МЭР РФ - Индексы_2018-2036'!I10/100-1 -> 0.0398 | J7: ='МЭР РФ - Индексы_2018-2036'!J10/100-1 -> 0.03989 | K7: ='МЭР РФ - Индексы_2018-2036'!K10/100-1 -> 0.03992 | L7: ='МЭР РФ - Индексы_2018-2036'!L10/100-1 -> 0.03987 | M7: ='МЭР РФ - Индексы_2018-2036'!M10/100-1 -> 0.03975 | N7: ='МЭР РФ - Индексы_2018-2036'!N10/100-1 -> 0.03963 | O7: ='МЭР РФ - Индексы_2018-2036'!O10/100-1 -> 0.03955 | P7: ='МЭР РФ - Индексы_2018-2036'!P10/100-1 -> 0.03951 | Q7: ='МЭР РФ - Индексы_2018-2036'!Q10/100-1 -> 0.03955 | R7: ='МЭР РФ - Индексы_2018-2036'!R10/100-1 -> 0.03964 | S7: ='МЭР РФ - Индексы_2018-2036'!S10/100-1 -> 0.0397 | T7: ='МЭР РФ - Индексы_2018-2036'!T10/100-1 -> 0.03982 | U7: ='МЭР РФ - Индексы_2018-2036'!U10/100-1 -> 0.03993 | V7: ='МЭР РФ - Индексы_2018-2036'!V10/100-1 -> 0.04001 | W7: =V7 -> 0.04001 | X7: 0.04001 | Y7: 0.04001 | Z7: 0.04001 | AA7: 0.04001 | AB7: 0.04001 | AC7: 0.04001 | AD7: 0.04001 | AE7: 0.04001 | AF7: 0.04001 | AG7: 0.04001 | AH7: 0.04001 | AI7: 0.04001 | AJ7: 0.04001 | AK7: 0.04001 | AL7: 0.04001 | AM7: 0.04001 | AN7: 0.04001 | AO7: 0.04001
A8: Индекс цен на водоснабжение и водоотведение | B8: ИЦП | C8: ='МЭР РФ - Дефляторы 2035 баз.'!B25/100-1 -> 0.1415788308 | D8: ='МЭР РФ - Дефляторы 2035 баз.'!C25/100-1 -> 0.1206858877 | E8: ='МЭР РФ - Дефляторы 2035 баз.'!D25/100-1 -> 0.04948252121 | F8: ='МЭР РФ - Дефляторы 2035 баз.'!E25/100-1 -> 0.0400647154 | G8: ='МЭР РФ - Дефляторы 2035 баз.'!F25/100-1 -> 0.04044080266 | H8: ='МЭР РФ - Дефляторы 2035 баз.'!G25/100-1 -> 0.04044179109 | I8: ='МЭР РФ - Дефляторы 2035 баз.'!H25/100-1 -> 0.0397920104 | J8: ='МЭР РФ - Дефляторы 2035 баз.'!I25/100-1 -> 0.04046754156 | K8: ='МЭР РФ - Дефляторы 2035 баз.'!J25/100-1 -> 0.03992389066 | L8: ='МЭР РФ - Дефляторы 2035 баз.'!K25/100-1 -> 0.03987173858 | M8: ='МЭР РФ - Дефляторы 2035 баз.'!L25/100-1 -> 0.03975186753 | N8: ='МЭР РФ - Дефляторы 2035 баз.'!M25/100-1 -> 0.03963190179 | O8: ='МЭР РФ - Дефляторы 2035 баз.'!N25/100-1 -> 0.03954386209 | P8: ='МЭР РФ - Дефляторы 2035 баз.'!O25/100-1 -> 0.03950825283 | Q8: ='МЭР РФ - Дефляторы 2035 баз.'!P25/100-1 -> 0.03955411688 | R8: ='МЭР РФ - Дефляторы 2035 баз.'!Q25/100-1 -> 0.03963570678 | S8: ='МЭР РФ - Дефляторы 2035 баз.'!R25/100-1 -> 0.03970249708 | T8: ='МЭР РФ - Дефляторы 2035 баз.'!S25/100-1 -> 0.03981831827 | U8: ='МЭР РФ - Дефляторы 2035 баз.'!T25/100-1 -> 0.03993397913 | V8: ='МЭР РФ - Дефляторы 2035 баз.'!U25/100-1 -> 0.03993397913 | W8: =V8 -> 0.03993397913 | X8: 0.03993397913 | Y8: 0.03993397913 | Z8: 0.03993397913 | AA8: 0.03993397913 | AB8: 0.03993397913 | AC8: 0.03993397913 | AD8: 0.03993397913 | AE8: 0.03993397913 | AF8: 0.03993397913 | AG8: 0.03993397913 | AH8: 0.03993397913 | AI8: 0.03993397913 | AJ8: 0.03993397913 | AK8: 0.03993397913 | AL8: 0.03993397913 | AM8: 0.03993397913 | AN8: 0.03993397913 | AO8: 0.03993397913
A9: Индекс цен на электрическую энергию, газ и пар | B9: ИКУ | C9: ='МЭР РФ - Дефляторы 2035 баз.'!B24/100-1 -> 0.0704189996 | D9: ='МЭР РФ - Дефляторы 2035 баз.'!C24/100-1 -> 0.04728301175 | E9: ='МЭР РФ - Дефляторы 2035 баз.'!D24/100-1 -> 0.06146391418 | F9: ='МЭР РФ - Дефляторы 2035 баз.'!E24/100-1 -> 0.04210858844 | G9: ='МЭР РФ - Дефляторы 2035 баз.'!F24/100-1 -> 0.04033685761 | H9: ='МЭР РФ - Дефляторы 2035 баз.'!G24/100-1 -> 0.04033221352 | I9: ='МЭР РФ - Дефляторы 2035 баз.'!H24/100-1 -> 0.03931432038 | J9: ='МЭР РФ - Дефляторы 2035 баз.'!I24/100-1 -> 0.03945998815 | K9: ='МЭР РФ - Дефляторы 2035 баз.'!J24/100-1 -> 0.0395001512 | L9: ='МЭР РФ - Дефляторы 2035 баз.'!K24/100-1 -> 0.03952271564 | M9: ='МЭР РФ - Дефляторы 2035 баз.'!L24/100-1 -> 0.03948833652 | N9: ='МЭР РФ - Дефляторы 2035 баз.'!M24/100-1 -> 0.03940931646 | O9: ='МЭР РФ - Дефляторы 2035 баз.'!N24/100-1 -> 0.03933023397 | P9: ='МЭР РФ - Дефляторы 2035 баз.'!O24/100-1 -> 0.03927219741 | Q9: ='МЭР РФ - Дефляторы 2035 баз.'!P24/100-1 -> 0.03924872347 | R9: ='МЭР РФ - Дефляторы 2035 баз.'!Q24/100-1 -> 0.03927895746 | S9: ='МЭР РФ - Дефляторы 2035 баз.'!R24/100-1 -> 0.03933274225 | T9: ='МЭР РФ - Дефляторы 2035 баз.'!S24/100-1 -> 0.03937677102 | U9: ='МЭР РФ - Дефляторы 2035 баз.'!T24/100-1 -> 0.03945312138 | V9: ='МЭР РФ - Дефляторы 2035 баз.'!U24/100-1 -> 0.03945312138 | W9: 0.03945312138 | X9: 0.03945312138 | Y9: 0.03945312138 | Z9: 0.03945312138 | AA9: 0.03945312138 | AB9: 0.03945312138 | AC9: 0.03945312138 | AD9: 0.03945312138 | AE9: 0.03945312138 | AF9: 0.03945312138 | AG9: 0.03945312138 | AH9: 0.03945312138 | AI9: 0.03945312138 | AJ9: 0.03945312138 | AK9: 0.03945312138 | AL9: 0.03945312138 | AM9: 0.03945312138 | AN9: 0.03945312138 | AO9: 0.03945312138
A10: Индекс-дефлятор инвестиций | B10: ИКВ | C10: ='МЭР РФ - Индексы_2018-2036'!C25/100-1 -> 0.03694985604 | D10: ='МЭР РФ - Индексы_2018-2036'!D25/100-1 -> 0.0493430352 | E10: ='МЭР РФ - Индексы_2018-2036'!E25/100-1 -> 0.05042905387 | F10: ='МЭР РФ - Индексы_2018-2036'!F25/100-1 -> 0.04355921585 | G10: ='МЭР РФ - Индексы_2018-2036'!G25/100-1 -> 0.04237711683 | H10: ='МЭР РФ - Индексы_2018-2036'!H25/100-1 -> 0.04320055155 | I10: ='МЭР РФ - Индексы_2018-2036'!I25/100-1 -> 0.04390092185 | J10: ='МЭР РФ - Индексы_2018-2036'!J25/100-1 -> 0.04430064627 | K10: ='МЭР РФ - Индексы_2018-2036'!K25/100-1 -> 0.04330064627 | L10: ='МЭР РФ - Индексы_2018-2036'!L25/100-1 -> 0.04230064627 | M10: ='МЭР РФ - Индексы_2018-2036'!M25/100-1 -> 0.04130064627 | N10: ='МЭР РФ - Индексы_2018-2036'!N25/100-1 -> 0.04030064627 | O10: ='МЭР РФ - Индексы_2018-2036'!O25/100-1 -> 0.04030064627 | P10: ='МЭР РФ - Индексы_2018-2036'!P25/100-1 -> 0.04030064627 | Q10: ='МЭР РФ - Индексы_2018-2036'!Q25/100-1 -> 0.04030064627 | R10: ='МЭР РФ - Индексы_2018-2036'!R25/100-1 -> 0.04030064627 | S10: ='МЭР РФ - Индексы_2018-2036'!S25/100-1 -> 0.04030064627 | T10: ='МЭР РФ - Индексы_2018-2036'!T25/100-1 -> 0.04030064627 | U10: ='МЭР РФ - Индексы_2018-2036'!U25/100-1 -> 0.04030064627 | V10: ='МЭР РФ - Индексы_2018-2036'!V25/100-1 -> 0.04030064627 | W10: 0.04030064627 | X10: 0.04030064627 | Y10: 0.04030064627 | Z10: 0.04030064627 | AA10: 0.04030064627 | AB10: 0.04030064627 | AC10: 0.04030064627 | AD10: 0.04030064627 | AE10: 0.04030064627 | AF10: 0.04030064627 | AG10: 0.04030064627 | AH10: 0.04030064627 | AI10: 0.04030064627 | AJ10: 0.04030064627 | AK10: 0.04030064627 | AL10: 0.04030064627 | AM10: 0.04030064627 | AN10: 0.04030064627 | AO10: 0.04030064627
A15: Налоги и страховые взносы
A16: Налоги | B16: Бюджет
A17: Налог на имущество | B17: РБ | C17: 0.022 | D17: 0.022 | E17: 0.022 | F17: 0.022 | G17: 0.022 | H17: 0.022 | I17: 0.022 | J17: 0.022 | K17: 0.022 | L17: 0.022 | M17: 0.022 | N17: 0.022 | O17: 0.022 | P17: 0.022 | Q17: 0.022 | R17: 0.022 | S17: 0.022 | T17: 0.022 | U17: 0.022 | V17: 0.022 | W17: =V17 -> 0.022 | X17: 0.022 | Y17: 0.022 | Z17: 0.022 | AA17: 0.022 | AB17: 0.022 | AC17: 0.022 | AD17: 0.022 | AE17: 0.022 | AF17: 0.022 | AG17: 0.022 | AH17: 0.022 | AI17: 0.022 | AJ17: 0.022 | AK17: 0.022 | AL17: 0.022 | AM17: 0.022 | AN17: 0.022 | AO17: 0.022
A18: НДС | B18: ФБ | C18: 0.18 | D18: 0.18 | E18: 0.2 | F18: 0.2 | G18: 0.2 | H18: 0.2 | I18: 0.2 | J18: 0.2 | K18: 0.2 | L18: 0.2 | M18: 0.2 | N18: 0.2 | O18: 0.2 | P18: 0.2 | Q18: 0.2 | R18: 0.2 | S18: 0.2 | T18: 0.2 | U18: 0.2 | V18: 0.2 | W18: =V18 -> 0.2 | X18: 0.2 | Y18: 0.2 | Z18: 0.2 | AA18: 0.2 | AB18: 0.2 | AC18: 0.2 | AD18: 0.2 | AE18: 0.2 | AF18: 0.2 | AG18: 0.2 | AH18: 0.2 | AI18: 0.2 | AJ18: 0.2 | AK18: 0.2 | AL18: 0.2 | AM18: 0.2 | AN18: 0.2 | AO18: 0.2
A19: Налог на прибыль | C19: 0.2 | D19: 0.2 | E19: 0.2 | F19: 0.2 | G19: 0.2 | H19: 0.2 | I19: 0.2 | J19: 0.2 | K19: 0.2 | L19: 0.2 | M19: 0.2 | N19: 0.2 | O19: 0.2 | P19: 0.2 | Q19: 0.2 | R19: 0.2 | S19: 0.2 | T19: 0.2 | U19: 0.2 | V19: 0.2 | W19: 0.2 | X19: 0.2 | Y19: 0.2 | Z19: 0.2 | AA19: 0.2 | AB19: 0.2 | AC19: 0.2 | AD19: 0.2 | AE19: 0.2 | AF19: 0.2 | AG19: 0.2 | AH19: 0.2 | AI19: 0.2 | AJ19: 0.2 | AK19: 0.2 | AL19: 0.2 | AM19: 0.2 | AN19: 0.2 | AO19: 0.2
A20: Часть бюджета Субъекта РФ | B20: РБ | C20: 0.18 | D20: 0.18 | E20: 0.18 | F20: 0.18 | G20: 0.18 | H20: 0.18 | I20: 0.18 | J20: 0.18 | K20: 0.18 | L20: 0.18 | M20: 0.18 | N20: 0.18 | O20: 0.18 | P20: 0.18 | Q20: 0.18 | R20: 0.18 | S20: 0.18 | T20: 0.18 | U20: 0.18 | V20: 0.18 | W20: 0.18 | X20: 0.18 | Y20: 0.18 | Z20: 0.18 | AA20: 0.18 | AB20: 0.18 | AC20: 0.18 | AD20: 0.18 | AE20: 0.18 | AF20: 0.18 | AG20: 0.18 | AH20: 0.18 | AI20: 0.18 | AJ20: 0.18 | AK20: 0.18 | AL20: 0.18 | AM20: 0.18 | AN20: 0.18 | AO20: 0.18
A21: Часть федерального бюджета | B21: ФБ | C21: 0.02 | D21: 0.02 | E21: 0.02 | F21: 0.02 | G21: 0.02 | H21: 0.02 | I21: 0.02 | J21: 0.02 | K21: 0.02 | L21: 0.02 | M21: 0.02 | N21: 0.02 | O21: 0.02 | P21: 0.02 | Q21: 0.02 | R21: 0.02 | S21: 0.02 | T21: 0.02 | U21: 0.02 | V21: 0.02 | W21: 0.02 | X21: 0.02 | Y21: 0.02 | Z21: 0.02 | AA21: 0.02 | AB21: 0.02 | AC21: 0.02 | AD21: 0.02 | AE21: 0.02 | AF21: 0.02 | AG21: 0.02 | AH21: 0.02 | AI21: 0.02 | AJ21: 0.02 | AK21: 0.02 | AL21: 0.02 | AM21: 0.02 | AN21: 0.02 | AO21: 0.02
A22: НДФЛ | B22: РБ | C22: 0.13 | D22: 0.13 | E22: 0.13 | F22: 0.13 | G22: 0.13 | H22: 0.13 | I22: 0.13 | J22: 0.13 | K22: 0.13 | L22: 0.13 | M22: 0.13 | N22: 0.13 | O22: 0.13 | P22: 0.13 | Q22: 0.13 | R22: 0.13 | S22: 0.13 | T22: 0.13 | U22: 0.13 | V22: 0.13 | W22: 0.13 | X22: 0.13 | Y22: 0.13 | Z22: 0.13 | AA22: 0.13 | AB22: 0.13 | AC22: 0.13 | AD22: 0.13 | AE22: 0.13 | AF22: 0.13 | AG22: 0.13 | AH22: 0.13 | AI22: 0.13 | AJ22: 0.13 | AK22: 0.13 | AL22: 0.13 | AM22: 0.13 | AN22: 0.13 | AO22: 0.13
A24: Страховые взносы
A25: Пенсионный фонд РФ | C25: 0.22 | D25: 0.22 | E25: 0.22 | F25: 0.22 | G25: 0.22 | H25: 0.22 | I25: 0.22 | J25: 0.22 | K25: 0.22 | L25: 0.22 | M25: 0.22 | N25: 0.22 | O25: 0.22 | P25: 0.22 | Q25: 0.22 | R25: 0.22 | S25: 0.22 | T25: 0.22 | U25: 0.22 | V25: 0.22 | W25: =V25 -> 0.22 | X25: 0.22 | Y25: 0.22 | Z25: 0.22 | AA25: 0.22 | AB25: 0.22 | AC25: 0.22 | AD25: 0.22 | AE25: 0.22 | AF25: 0.22 | AG25: 0.22 | AH25: 0.22 | AI25: 0.22 | AJ25: 0.22 | AK25: 0.22 | AL25: 0.22 | AM25: 0.22 | AN25: 0.22 | AO25: 0.22
A26: Фонд социального страхования РФ | C26: 0.029 | D26: 0.029 | E26: 0.029 | F26: 0.029 | G26: 0.029 | H26: 0.029 | I26: 0.029 | J26: 0.029 | K26: 0.029 | L26: 0.029 | M26: 0.029 | N26: 0.029 | O26: 0.029 | P26: 0.029 | Q26: 0.029 | R26: 0.029 | S26: 0.029 | T26: 0.029 | U26: 0.029 | V26: 0.029 | W26: =V26 -> 0.029 | X26: 0.029 | Y26: 0.029 | Z26: 0.029 | AA26: 0.029 | AB26: 0.029 | AC26: 0.029 | AD26: 0.029 | AE26: 0.029 | AF26: 0.029 | AG26: 0.029 | AH26: 0.029 | AI26: 0.029 | AJ26: 0.029 | AK26: 0.029 | AL26: 0.029 | AM26: 0.029 | AN26: 0.029 | AO26: 0.029
A27: Федеральный фонд ОМС | C27: 0.051 | D27: 0.051 | E27: 0.051 | F27: 0.051 | G27: 0.051 | H27: 0.051 | I27: 0.051 | J27: 0.051 | K27: 0.051 | L27: 0.051 | M27: 0.051 | N27: 0.051 | O27: 0.051 | P27: 0.051 | Q27: 0.051 | R27: 0.051 | S27: 0.051 | T27: 0.051 | U27: 0.051 | V27: 0.051 | W27: 0.051 | X27: 0.051 | Y27: 0.051 | Z27: 0.051 | AA27: 0.051 | AB27: 0.051 | AC27: 0.051 | AD27: 0.051 | AE27: 0.051 | AF27: 0.051 | AG27: 0.051 | AH27: 0.051 | AI27: 0.051 | AJ27: 0.051 | AK27: 0.051 | AL27: 0.051 | AM27: 0.051 | AN27: 0.051 | AO27: 0.051

Sheet Исходные данные
A1: Содержание
A2: Проверка корректности модели | B2: =Результаты!$C$27 -> OK
A3: Наименование Проекта
B5: Наименование Проекта
B6: Субъект РФ/муниципальное образование
A8: Сроки и даты
A10: Год начала проекта | C10: 2019 | E10: =DATE(C10,1,1) -> 2019-01-01 | F10: Дата начала Расчетного периода
E11: =E10 -> 2019-01-01 | F11: Дата начала Инвестиционной стадии
A12: Длительность Инвестиционной стадии (определяется по Графику капзатрат) | B12: лет | C12: =B116-C10+1 -> 2 | E12: =DATE(B116,12,31) -> 2020-12-31 | F12: Дата окончания Инвестиционной стадии (определяется по Графику капитальных затрат)
A13: Год начала Эксплуатационной стадии | C13: 2021 | E13: =DATE(C13,1,1) -> 2021-01-01 | F13: Дата начала Эксплуатационной стадии
A14: Год окончания Расчетного периода | C14: =C10+10 -> 2029 | E14: =DATE(C14,12,31) -> 2029-12-31 | F14: Дата окончания Расчетного периода
A16: Финансирование
A18: Заемные средства
A19: Ставка по кредиту | B19: % | C19: 0.11 | E19: =E11 -> 2019-01-01 | F19: Дата предоставления кредита | J19: ='Исходные данные'!E12 -> 2020-12-31 | K19: Окончание выборки кредита
A20: Срок погашения кредита | B20: лет | C20: 9 | E20: =EDATE(E19,C21*12) -> 2021-01-01 | F20: Начало погашения кредита | J20: =EDATE(E19,12*(C20+C21))-1 -> 2029-12-31 | K20: Окончание погашения кредита
A21: Отсрочка выплаты кредита | B21: лет | C21: =C12 -> 2 | E21: 0 | F21: Схема погашения кредита (аннуитет/дифференцированные)
A22: Стоимость капитала
A23: Ключевая ставка ЦБ РФ | B23: % | C23: 0.065
A24: Стоимость собственного капитала | B24: % | C24: =C23+6% -> 0.125
A25: Требуемая доходность средств Фонда и бюджетоа субъекта РФ и местного | B25: % | C25: =C23/2 -> 0.0325
A28: Долгосрочные параметры регулирования | F28: =Расчет_С_Фондом!E$4 -> 2019 | G28: =Расчет_С_Фондом!F$4 -> 2020 | H28: =Расчет_С_Фондом!G$4 -> 2021 | I28: =Расчет_С_Фондом!H$4 -> 2022 | J28: =Расчет_С_Фондом!I$4 -> 2023 | K28: =Расчет_С_Фондом!J$4 -> 2024 | L28: =Расчет_С_Фондом!K$4 -> 2025 | M28: =Расчет_С_Фондом!L$4 -> 2026 | N28: =Расчет_С_Фондом!M$4 -> 2027 | O28: =Расчет_С_Фондом!N$4 -> 2028 | P28: =Расчет_С_Фондом!O$4 -> 2029 | Q28: =Расчет_С_Фондом!P$4 -> 2030 | R28: =Расчет_С_Фондом!Q$4 -> 2031 | S28: =Расчет_С_Фондом!R$4 -> 2032 | T28: =Расчет_С_Фондом!S$4 -> 2033 | U28: =Расчет_С_Фондом!T$4 -> 2034 | V28: =Расчет_С_Фондом!U$4 -> 2035 | W28: =Расчет_С_Фондом!V$4 -> 2036 | X28: =Расчет_С_Фондом!W$4 -> 2037 | Y28: =Расчет_С_Фондом!X$4 -> 2038 | Z28: =Расчет_С_Фондом!Y$4 -> 2039 | AA28: =Расчет_С_Фондом!Z$4 -> 2040
A29: Базовый уровень операционных расходов | D29: тыс. руб./год | F29: 300000
A31: Коэффициент эластичности активов | F31: 0.75
A32: Индекс изменения количества активов | F32: 0 | G32: 0 | H32: 0 | I32: 0 | J32: 0 | K32: 0 | L32: 0 | M32: 0 | N32: 0 | O32: 0 | P32: 0 | Q32: 0 | R32: 0 | S32: 0 | T32: 0 | U32: 0 | V32: 0 | W32: 0 | X32: 0 | Y32: 0 | Z32: 0 | AA32: 0
A33: Индекс эффективности расходов | D33: % | F33: 0.01 | G33: 0.01 | H33: 0.01 | I33: 0.01 | J33: 0.01 | K33: 0.01 | L33: 0.01 | M33: 0.01 | N33: 0.01 | O33: 0.01 | P33: 0.01 | Q33: 0.01 | R33: 0.01 | S33: 0.01 | T33: 0.01 | U33: 0.01 | V33: 0.01 | W33: 0.01 | X33: 0.01 | Y33: 0.01 | Z33: 0.01 | AA33: 0.01
A35: Неподконтрольные расходы | D35: тыс. руб./год | F35: 70000 | G35: 75000 | H35: 80000 | I35: 85000 | J35: 90000 | K35: 95000 | L35: 100000 | M35: 105000 | N35: 110000 | O35: 115000 | P35: 120000 | Q35: 125000 | R35: 130000 | S35: 135000 | T35: 140000 | U35: 145000 | V35: 150000 | W35: 155000 | X35: 160000 | Y35: 165000 | Z35: 165000 | AA35: 165000
A37: Объем полезного отпуска тепловой энергии | D37: Гкал | F37: 400000 | G37: 400000 | H37: 400000 | I37: 400000 | J37: 400000 | K37: 400000 | L37: 400000 | M37: 400000 | N37: 400000 | O37: 400000 | P37: 400000 | Q37: 400000 | R37: 400000 | S37: 400000 | T37: 400000 | U37: 400000 | V37: 400000 | W37: 400000 | X37: 400000 | Y37: 400000 | Z37: 400000 | AA37: 400000
A38: Собственные нужды котельных | D38: Гкал
A39: Уровень потерь тепловой энергии | D39: Гкал | F39: 100000 | G39: 100000 | H39: 100000 | I39: 100000 | J39: 100000 | K39: 100000 | L39: 100000 | M39: 100000 | N39: 100000 | O39: 100000 | P39: 100000 | Q39: 100000 | R39: 100000 | S39: 100000 | T39: 100000 | U39: 100000 | V39: 100000 | W39: 100000 | X39: 100000 | Y39: 100000 | Z39: 100000 | AA39: 100000
A41: Доля топлива в производстве тепловой энергии
A42: уголь | D42: % | F42: 1 | G42: 1 | H42: 1 | I42: 1 | J42: 1 | K42: 1 | L42: 1 | M42: 1 | N42: 1 | O42: 1 | P42: 1 | Q42: 1 | R42: 1 | S42: 1 | T42: 1 | U42: 1 | V42: 1 | W42: 1 | X42: 1 | Y42: 1 | Z42: 1 | AA42: 1
A43: газ | D43: %
A44: дизельное топливо | D44: %
A45: биотопливо | D45: %
A46: другое топливо | D46: %
A48: Расходы на покупку топлива, энергетических ресурсов, воды
A49: Удельный расход условного топлива (уголь) | D49: тут/Гкал | F49: 0.2 | G49: 0.2 | H49: 0.2 | I49: 0.2 | J49: 0.2 | K49: 0.2 | L49: 0.2 | M49: 0.2 | N49: 0.2 | O49: 0.2 | P49: 0.2 | Q49: 0.2 | R49: 0.2 | S49: 0.2 | T49: 0.2 | U49: 0.2 | V49: 0.2 | W49: 0.2 | X49: 0.2 | Y49: 0.2 | Z49: 0.2 | AA49: 0.2
A50: Удельный расход условного топлива (газ) | D50: тут/Гкал
A51: Удельный расход условного топлива (дизельное топливо) | D51: тут/Гкал
A52: Удельный расход условного топлива (биотопливо) | D52: тут/Гкал
A53: Удельный расход условного топлива (другое топливо) | D53: тут/Гкал
A55: Удельное потребление электроэнергии | D55: кВт*ч/Гкал | F55: 40 | G55: 40 | H55: 40 | I55: 40 | J55: 40 | K55: 40 | L55: 40 | M55: 40 | N55: 40 | O55: 40 | P55: 40 | Q55: 40 | R55: 40 | S55: 40 | T55: 40 | U55: 40 | V55: 40 | W55: 40 | X55: 40 | Y55: 40 | Z55: 40 | AA55: 40
A56: Удельный расход воды | D56: куб.м./Гкал | F56: 0.4 | G56: 0.4 | H56: 0.4 | I56: 0.4 | J56: 0.4 | K56: 0.4 | L56: 0.4 | M56: 0.4 | N56: 0.4 | O56: 0.4 | P56: 0.4 | Q56: 0.4 | R56: 0.4 | S56: 0.4 | T56: 0.4 | U56: 0.4 | V56: 0.4 | W56: 0.4 | X56: 0.4 | Y56: 0.4 | Z56: 0.4 | AA56: 0.4
A58: Цена на условное топливо (уголь) | D58: тыс.руб./тут | F58: 3 | G58: =F58*(1+G67) -> 3.198 | H58: 3.409068 | I58: 3.634066488 | J58: 3.873914876 | K58: 4.129593258 | L58: 4.402146413 | M58: 4.692688076 | N58: 5.002405489 | O58: 5.332564252 | P58: 5.684513492 | Q58: 6.059691383 | R58: 6.459631014 | S58: 6.885966661 | T58: 7.340440461 | U58: 7.824909531 | V58: 8.34135356 | W58: 8.891882895 | X58: 9.478747166 | Y58: 10.10434448 | Z58: 10.77123121 | AA58: 11.48213247
A59: Цена на условное топливо (газ) | D59: тыс.руб./тут | F59: 4.4 | G59: =F59*(1+G68) -> 4.5364 | H59: 4.6770284 | I59: 4.82201628 | J59: 4.971498785 | K59: 5.125615247 | L59: 5.28450932 | M59: 5.448329109 | N59: 5.617227311 | O59: 5.791361358 | P59: 5.97089356 | Q59: 6.155991261 | R59: 6.34682699 | S59: 6.543578626 | T59: 6.746429564 | U59: 6.95556888 | V59: 7.171191515 | W59: 7.393498452 | X59: 7.622696904 | Y59: 7.859000508 | Z59: 8.102629524 | AA59: 8.35381104
A60: Цена на условное топливо (дизельное топливо) | D60: тыс.руб./тут | G60: =F60*(1+G69) -> 0 | H60: =G60*(1+H69) -> 0 | I60: =H60*(1+I69) -> 0 | J60: =I60*(1+J69) -> 0 | K60: =J60*(1+K69) -> 0 | L60: =K60*(1+L69) -> 0 | M60: =L60*(1+M69) -> 0 | N60: =M60*(1+N69) -> 0 | O60: =N60*(1+O69) -> 0 | P60: =O60*(1+P69) -> 0 | Q60: =P60*(1+Q69) -> 0 | R60: =Q60*(1+R69) -> 0 | S60: =R60*(1+S69) -> 0 | T60: =S60*(1+T69) -> 0 | U60: =T60*(1+U69) -> 0 | V60: =U60*(1+V69) -> 0 | W60: =V60*(1+W69) -> 0 | X60: =W60*(1+X69) -> 0 | Y60: =X60*(1+Y69) -> 0 | Z60: =Y60*(1+Z69) -> 0 | AA60: =Z60*(1+AA69) -> 0
A61: Цена на условное топливо (биотопливо) | D61: тыс.руб./тут | G61: 0 | H61: 0 | I61: 0 | J61: 0 | K61: 0 | L61: 0 | M61: 0 | N61: 0 | O61: 0 | P61: 0 | Q61: 0 | R61: 0 | S61: 0 | T61: 0 | U61: 0 | V61: 0 | W61: 0 | X61: 0 | Y61: 0 | Z61: 0 | AA61: 0
A62: Цена на условное топливо (другое топливо) | D62: тыс.руб./тут | G62: 0 | H62: 0 | I62: 0 | J62: 0 | K62: 0 | L62: 0 | M62: 0 | N62: 0 | O62: 0 | P62: 0 | Q62: 0 | R62: 0 | S62: 0 | T62: 0 | U62: 0 | V62: 0 | W62: 0 | X62: 0 | Y62: 0 | Z62: 0 | AA62: =Z62*(1+AA71) -> 0
A64: Цена на электроэнергию | D64: тыс.руб./кВт*ч | F64: 0.004 | G64: =F64*(1+G73) -> 0.004252 | H64: =G64*(1+H73) -> 0.004519876 | I64: 0.004804628188 | J64: 0.005107319764 | K64: 0.005429080909 | L64: 0.005771113006 | M64: 0.006134693126 | N64: 0.006521178793 | O64: 0.006932013056 | P64: 0.007368729879 | Q64: 0.007832959861 | R64: 0.008326436333 | S64: 0.008851001822 | T64: 0.009408614936 | U64: 0.01000135768 | V64: 0.01063144321 | W64: 0.01130122413 | X64: 0.01201320125 | Y64: 0.01277003293 | Z64: 0.01357454501 | AA64: 0.01442974134
A65: Цена на воду | D65: тыс.руб./куб.м. | F65: 0.03 | G65: =F65*(1+G74) -> 0.03165 | H65: =G65*(1+H74) -> 0.03339075 | I65: 0.03522724125 | J65: 0.03716473952 | K65: 0.03920880019 | L65: 0.0413652842 | M65: 0.04364037483 | N65: 0.04604059545 | O65: 0.0485728282 | P65: 0.05124433375 | Q65: 0.05406277211 | R65: 0.05703622457 | S65: 0.06017321692 | T65: 0.06348274386 | U65: 0.06697429477 | V65: 0.07065788098 | W65: 0.07454406443 | X65: 0.07864398798 | Y65: 0.08296940732 | Z65: 0.08753272472 | AA65: 0.09234702458
A67: Индекс цен на уголь | D67: % | F67: 0.066 | G67: 0.066 | H67: 0.066 | I67: 0.066 | J67: 0.066 | K67: 0.066 | L67: 0.066 | M67: 0.066 | N67: 0.066 | O67: 0.066 | P67: 0.066 | Q67: 0.066 | R67: 0.066 | S67: 0.066 | T67: 0.066 | U67: 0.066 | V67: 0.066 | W67: 0.066 | X67: 0.066 | Y67: 0.066 | Z67: 0.066 | AA67: 0.066
A68: Индекс цен на газ | D68: % | F68: 0.031 | G68: 0.031 | H68: 0.031 | I68: 0.031 | J68: 0.031 | K68: 0.031 | L68: 0.031 | M68: 0.031 | N68: 0.031 | O68: 0.031 | P68: 0.031 | Q68: 0.031 | R68: 0.031 | S68: 0.031 | T68: 0.031 | U68: 0.031 | V68: 0.031 | W68: 0.031 | X68: 0.031 | Y68: 0.031 | Z68: 0.031 | AA68: 0.031
A69: Индекс цен на дизельное топливо | D69: %
A70: Индекс цен на биотопливо | D70: %
A71: Индекс цен на другое топливо | D71: %
A73: Индекс цен на электроэнергию | D73: % | F73: 0.063 | G73: 0.063 | H73: 0.063 | I73: 0.063 | J73: 0.063 | K73: 0.063 | L73: 0.063 | M73: 0.063 | N73: 0.063 | O73: 0.063 | P73: 0.063 | Q73: 0.063 | R73: 0.063 | S73: 0.063 | T73: 0.063 | U73: 0.063 | V73: 0.063 | W73: 0.063 | X73: 0.063 | Y73: 0.063 | Z73: 0.063 | AA73: 0.063
A74: Индекс цен на воду | D74: % | F74: 0.055 | G74: 0.055 | H74: 0.055 | I74: 0.055 | J74: 0.055 | K74: 0.055 | L74: 0.055 | M74: 0.055 | N74: 0.055 | O74: 0.055 | P74: 0.055 | Q74: 0.055 | R74: 0.055 | S74: 0.055 | T74: 0.055 | U74: 0.055 | V74: 0.055 | W74: 0.055 | X74: 0.055 | Y74: 0.055 | Z74: 0.055 | AA74: 0.055
A76: Нормативная прибыль (нормативный уровень прибыли) | D76: % | F76: 0.02 | G76: 0.02 | H76: 0.02 | I76: 0.02 | J76: 0.02 | K76: 0.02 | L76: 0.02 | M76: 0.02 | N76: 0.02 | O76: 0.02 | P76: 0.02 | Q76: 0.02 | R76: 0.02 | S76: 0.02 | T76: 0.02 | U76: 0.02 | V76: 0.02 | W76: 0.02 | X76: 0.02 | Y76: 0.02 | Z76: 0.02 | AA76: 0.02
A78: Предпринимательская прибыль | D78: % | F78: 0.05 | G78: 0.05 | H78: 0.05 | I78: 0.05 | J78: 0.05 | K78: 0.05 | L78: 0.05 | M78: 0.05 | N78: 0.05 | O78: 0.05 | P78: 0.05 | Q78: 0.05 | R78: 0.05 | S78: 0.05 | T78: 0.05 | U78: 0.05 | V78: 0.05 | W78: 0.05 | X78: 0.05 | Y78: 0.05 | Z78: 0.05 | AA78: 0.05
A80: Амортизация учтена в тарифе только в части инвестиций инвестора? | C80: 1
A82: Выбор тарифа для расчетов в модели | C82: Экономически обоснованный тариф
A84: Согласованный тариф | D84: тыс. руб./Гкал | F84: 1.9 | G84: 2 | H84: 2.1 | I84: 2.2 | J84: 2.3 | K84: 2.4 | L84: 2.5 | M84: 2.6 | N84: 2.7 | O84: 2.8 | P84: 2.9 | Q84: 3 | R84: 3.1 | S84: 3.2 | T84: 3.3 | U84: 3.4 | V84: 3.5 | W84: 3.6 | X84: 3.7 | Y84: 3.8 | Z84: 3.9 | AA84: 4
A85: Дополнительные источники доходов (без учета НДС) | D85: тыс. руб./год | F85: 27000 | G85: 32000 | H85: 37000 | I85: 42000 | J85: 47000 | K85: 52000 | L85: 57000 | M85: 62000 | N85: 67000 | O85: 72000 | P85: 77000 | Q85: 82000 | R85: 87000 | S85: 92000 | T85: 97000 | U85: 102000 | V85: 107000 | W85: 112000 | X85: 117000 | Y85: 122000 | Z85: 127000 | AA85: 132000
A87: Тариф для окупаемости без Фонда | D87: тыс. руб./Гкал | F87: 2.052463251 | G87: 2.153167187 | H87: 2.263681227 | I87: 2.379466647 | J87: 2.500846517 | K87: 2.628375952 | L87: 2.762373659 | M87: 2.903155857 | N87: 3.051064471 | O87: 3.206531438 | P87: 3.370058564 | Q87: 3.542181809 | R87: 3.723518465 | S87: 3.914695124 | T87: 4.116286056 | U87: 4.280216723 | V87: 4.454875031 | W87: 4.640952231 | X87: 4.839184836 | Y87: 5.050357579 | Z87: 5.261475727 | AA87: 5.487260953
A89: Прочие расходы на Эксплуатационной стадии, в ценах безового года, без НДС | C89: НДС облагается? | E89: тыс. руб./год
A90: статья 1 прочих расходов - указать наименование | C90: 0
A91: статья 2 прочих расходов | C91: 0
A92: статья 3 прочих расходов | C92: 1
A93: статья 4 прочих расходов | C93: 1
A94: статья 5 прочих расходов | C94: 1
A97: График капитальных затрат (в %) | F97: =Расчет_С_Фондом!E$4 -> 2019 | G97: =Расчет_С_Фондом!F$4 -> 2020 | H97: =Расчет_С_Фондом!G$4 -> 2021 | I97: =Расчет_С_Фондом!H$4 -> 2022 | J97: =Расчет_С_Фондом!I$4 -> 2023 | K97: =Расчет_С_Фондом!J$4 -> 2024 | L97: =Расчет_С_Фондом!K$4 -> 2025 | M97: =Расчет_С_Фондом!L$4 -> 2026 | N97: =Расчет_С_Фондом!M$4 -> 2027 | O97: =Расчет_С_Фондом!N$4 -> 2028 | P97: =Расчет_С_Фондом!O$4 -> 2029 | Q97: =Расчет_С_Фондом!P$4 -> 2030 | R97: =Расчет_С_Фондом!Q$4 -> 2031 | S97: =Расчет_С_Фондом!R$4 -> 2032 | T97: =Расчет_С_Фондом!S$4 -> 2033 | U97: =Расчет_С_Фондом!T$4 -> 2034 | V97: =Расчет_С_Фондом!U$4 -> 2035 | W97: =Расчет_С_Фондом!V$4 -> 2036 | X97: =Расчет_С_Фондом!W$4 -> 2037 | Y97: =Расчет_С_Фондом!X$4 -> 2038 | Z97: =Расчет_С_Фондом!Y$4 -> 2039 | AA97: =Расчет_С_Фондом!Z$4 -> 2040
A99: Капитальные затраты в ценах соответствующих лет, без НДС | B99: Год ввода в эксплуатацию | C99: НДС | D99: Срок амортизации, лет | E99: Стоимость, тыс. руб. без НДС
A100: Реконструкция Объекта №1 | C100: 1 | D100: 30 | E100: 610000 | F100: 0.5 | G100: 0.5
A101: - | C101: 1 | D101: 30 | E101: 0
A102: - | C102: 1 | D102: 30 | E102: 0
A103: - | C103: 1 | D103: 30 | E103: 0
A104: - | C104: 1 | D104: 30 | E104: 0
A105: - | C105: 1 | D105: 30 | E105: 0
A106: - | C106: 1 | D106: 30 | E106: 0
A107: - | C107: 1 | D107: 30 | E107: 0
A108: - | C108: 1 | D108: 30 | E108: 0
A109: - | C109: 1 | D109: 30 | E109: 0
A110: - | C110: 1 | D110: 30 | E110: 0
A111: - | C111: 1 | D111: 30 | E111: 0
A112: - | C112: 1 | D112: 30 | E112: 0
A113: - | C113: 1 | D113: 30 | E113: 0
A114: - | C114: 1 | D114: 30 | E114: 0
A115: - | C115: 1 | D115: 30 | E115: 0
B116: =MAX(--(F116:AA116)*--(F97:AA97)) -> 2020 | F116: =1*(SUMPRODUCT($E100:$E115,F100:F115)>0) -> 1 | G116: =1*(SUMPRODUCT($E100:$E115,G100:G115)>0) -> 1 | H116: =1*(SUMPRODUCT($E100:$E115,H100:H115)>0) -> 0 | I116: =1*(SUMPRODUCT($E100:$E115,I100:I115)>0) -> 0 | J116: =1*(SUMPRODUCT($E100:$E115,J100:J115)>0) -> 0 | K116: =1*(SUMPRODUCT($E100:$E115,K100:K115)>0) -> 0 | L116: =1*(SUMPRODUCT($E100:$E115,L100:L115)>0) -> 0 | M116: =1*(SUMPRODUCT($E100:$E115,M100:M115)>0) -> 0 | N116: =1*(SUMPRODUCT($E100:$E115,N100:N115)>0) -> 0 | O116: =1*(SUMPRODUCT($E100:$E115,O100:O115)>0) -> 0 | P116: =1*(SUMPRODUCT($E100:$E115,P100:P115)>0) -> 0 | Q116: =1*(SUMPRODUCT($E100:$E115,Q100:Q115)>0) -> 0 | R116: =1*(SUMPRODUCT($E100:$E115,R100:R115)>0) -> 0 | S116: =1*(SUMPRODUCT($E100:$E115,S100:S115)>0) -> 0 | T116: =1*(SUMPRODUCT($E100:$E115,T100:T115)>0) -> 0 | U116: =1*(SUMPRODUCT($E100:$E115,U100:U115)>0) -> 0 | V116: =1*(SUMPRODUCT($E100:$E115,V100:V115)>0) -> 0 | W116: =1*(SUMPRODUCT($E100:$E115,W100:W115)>0) -> 0 | X116: =1*(SUMPRODUCT($E100:$E115,X100:X115)>0) -> 0 | Y116: =1*(SUMPRODUCT($E100:$E115,Y100:Y115)>0) -> 0 | Z116: =1*(SUMPRODUCT($E100:$E115,Z100:Z115)>0) -> 0 | AA116: =1*(SUMPRODUCT($E100:$E115,AA100:AA115)>0) -> 0
A117: Источники финансирования капитальных затрат | F117: =Расчет_С_Фондом!E$4 -> 2019 | G117: =Расчет_С_Фондом!F$4 -> 2020 | H117: =Расчет_С_Фондом!G$4 -> 2021 | I117: =Расчет_С_Фондом!H$4 -> 2022 | J117: =Расчет_С_Фондом!I$4 -> 2023 | K117: =Расчет_С_Фондом!J$4 -> 2024 | L117: =Расчет_С_Фондом!K$4 -> 2025 | M117: =Расчет_С_Фондом!L$4 -> 2026 | N117: =Расчет_С_Фондом!M$4 -> 2027 | O117: =Расчет_С_Фондом!N$4 -> 2028 | P117: =Расчет_С_Фондом!O$4 -> 2029 | Q117: =Расчет_С_Фондом!P$4 -> 2030 | R117: =Расчет_С_Фондом!Q$4 -> 2031 | S117: =Расчет_С_Фондом!R$4 -> 2032 | T117: =Расчет_С_Фондом!S$4 -> 2033 | U117: =Расчет_С_Фондом!T$4 -> 2034 | V117: =Расчет_С_Фондом!U$4 -> 2035 | W117: =Расчет_С_Фондом!V$4 -> 2036 | X117: =Расчет_С_Фондом!W$4 -> 2037 | Y117: =Расчет_С_Фондом!X$4 -> 2038 | Z117: =Расчет_С_Фондом!Y$4 -> 2039 | AA117: =Расчет_С_Фондом!Z$4 -> 2040
A118: С финансовой поддержкой за счет средств Фонда
A119: Собственные средства | F119: =IF(SUM(F$100:F$115)>0,1-SUM(F120:F123),0) -> 0.2 | G119: =IF(SUM(G$100:G$115)>0,1-SUM(G120:G123),0) -> 0.2 | H119: 0 | I119: 0
A120: Заемные средства | F120: 0.2 | G120: 0.2
A121: Средства бюджета субъекта РФ | F121: 0.1 | G121: 0.1
A122: Средства местного бюджета
A123: Средства Фонда | F123: 0.5 | G123: 0.5
A125: БЕЗ финансовой поддержки за счет средств Фонда
A126: Собственные средства | F126: =IF(SUM(F$100:F$115)>0,1-SUM(F127:F130),0) -> 0.2 | G126: =IF(SUM(G$100:G$115)>0,1-SUM(G127:G130),0) -> 0.2 | H126: 0 | I126: 0
A127: Заемные средства | F127: 0.7 | G127: 0.7
A128: Средства бюджета субъекта РФ | F128: 0.1 | G128: 0.1
A129: Средства местного бюджета
A130: Средства Фонда
A133: Прочие затраты на Инвестиционной стадии | B133: Индекс | C133: НДС облагается? | E133: тыс. руб. в год, , в ценах базового года, без НДС
A134: статья 1 прочих расходов - указать наименование | B134: ИРЦ | C134: 0
A135: статья 2 прочих расходов | B135: ИРЦ | C135: 1
A136: статья 3 прочих расходов | B136: ИРЦ | C136: 1
A137: статья 4 прочих расходов | B137: ИРЦ | C137: 1
A138: статья 5 прочих расходов | B138: ИРЦ | C138: 1
A139: статья 6 прочих расходов | B139: ИРЦ | C139: 1
A142: Для расчета бюджетной эффективности
A144: Доля ФОТ в операционных расходах | D144: % | F144: 0.2

Sheet Результаты
A1: Содержание | C1: ЗАПОЛНЕНИЕ НЕ ТРЕБУЕТСЯ. АВТОМАТИЧЕСКИЙ РАСЧЕТ
A4: Показатели эффективности Проекта | C4: Со средствами Фонда | E4: Без средств Фонда
B6: =Расчет_С_Фондом!C533 -> NPV (T1) = | C6: =Расчет_С_Фондом!D533 -> -14139.10353 | E6: =Расчет_БЕЗ_Фонда!D533 -> -261982.5975
B7: =Расчет_С_Фондом!C534 -> NPV (T2) = | C7: =Расчет_С_Фондом!D534 -> -81073.19733 | E7: =Расчет_БЕЗ_Фонда!D534 -> -339890.9952
B8: =Расчет_С_Фондом!C535 -> NPV (T3) = | C8: =Расчет_С_Фондом!D535 -> 79460.12029 | E8: =Расчет_БЕЗ_Фонда!D535 -> -167899.4396
B10: =Расчет_С_Фондом!C537 -> IRR (T1) = | C10: =Расчет_С_Фондом!D537 -> 0.04680858816 | E10: =Расчет_БЕЗ_Фонда!D537 -> -0.06942858713
B11: =Расчет_С_Фондом!C538 -> IRR (T2) = | C11: =Расчет_С_Фондом!D538 -> -0.0681115495 | E11: =Расчет_БЕЗ_Фонда!D538 -> -0.1985335374
B12: =Расчет_С_Фондом!C539 -> IRR (T3) = | C12: =Расчет_С_Фондом!D539 -> 0.1229150691 | E12: =Расчет_БЕЗ_Фонда!D539 -> 0.01919561458
B14: =Расчет_С_Фондом!C541 -> WACC (T1) = | C14: =Расчет_С_Фондом!D541 -> 0.06249425613 | E14: =Расчет_БЕЗ_Фонда!D541 -> 0.09286383681
B15: =Расчет_С_Фондом!C542 -> WACC (T2) = | C15: =Расчет_С_Фондом!D542 -> 0.06289234674 | E15: =Расчет_БЕЗ_Фонда!D542 -> 0.09252978473
B16: =Расчет_С_Фондом!C543 -> WACC (T3) = | C16: =Расчет_С_Фондом!D543 -> 0.06176574505 | E16: =Расчет_БЕЗ_Фонда!D543 -> 0.09351371052
B18: =Расчет_С_Фондом!C545 -> PBP, лет | C18: =Расчет_С_Фондом!D545 -> 6.001733086 | E18: =Расчет_БЕЗ_Фонда!D545 -> 9.102435092
B19: =Расчет_С_Фондом!C546 -> DPBP, лет | C19: =Расчет_С_Фондом!D546 -> 7.441021812 | E19: =Расчет_БЕЗ_Фонда!D546 -> 0
B21: =Бюджет_Эффективность!A111 -> BI - Индекс бюджетной эффективности | C21: =Бюджет_Эффективность!D111 -> 2.218569326
C23: =Расчет_С_Фондом!B88 -> OK | E23: =Расчет_С_Фондом!A88 -> Проверка - средства инвестора не менее 20%
C24: =Расчет_С_Фондом!B89 -> OK | E24: =Расчет_С_Фондом!A89 -> Проверка - средства инвестора и бюджета (регионального/местного) не менее 40%
C25: =Расчет_С_Фондом!B77 -> OK | E25: =Расчет_С_Фондом!A77 -> Проверка - совпадение источников и направления финансирования
C27: =IF(SUMPRODUCT(--(C23:C25="ERROR"))=0,"OK","ERROR") -> OK | E27: Проверка корректности модели

Sheet Капзатраты_Выручка
A1: Содержание | E1: =Расчет_С_Фондом!E1 -> 2019-01-01 | F1: =Расчет_С_Фондом!F1 -> 2020-01-01 | G1: =Расчет_С_Фондом!G1 -> 2021-01-01 | H1: =Расчет_С_Фондом!H1 -> 2022-01-01 | I1: =Расчет_С_Фондом!I1 -> 2023-01-01 | J1: =Расчет_С_Фондом!J1 -> 2024-01-01 | K1: =Расчет_С_Фондом!K1 -> 2025-01-01 | L1: =Расчет_С_Фондом!L1 -> 2026-01-01 | M1: =Расчет_С_Фондом!M1 -> 2027-01-01 | N1: =Расчет_С_Фондом!N1 -> 2028-01-01 | O1: =Расчет_С_Фондом!O1 -> 2029-01-01 | P1: =Расчет_С_Фондом!P1 -> 2030-01-01 | Q1: =Расчет_С_Фондом!Q1 -> 2031-01-01 | R1: =Расчет_С_Фондом!R1 -> 2032-01-01 | S1: =Расчет_С_Фондом!S1 -> 2033-01-01 | T1: =Расчет_С_Фондом!T1 -> 2034-01-01 | U1: =Расчет_С_Фондом!U1 -> 2035-01-01 | V1: =Расчет_С_Фондом!V1 -> 2036-01-01 | W1: =Расчет_С_Фондом!W1 -> 2037-01-01 | X1: =Расчет_С_Фондом!X1 -> 2038-01-01 | Y1: =Расчет_С_Фондом!Y1 -> 2039-01-01 | Z1: =Расчет_С_Фондом!Z1 -> 2040-01-01 | AA1: =Расчет_С_Фондом!AA1 -> 2041-01-01 | AB1: =Расчет_С_Фондом!AB1 -> 2042-01-01 | AC1: =Расчет_С_Фондом!AC1 -> 2043-01-01 | AD1: =Расчет_С_Фондом!AD1 -> 2044-01-01 | AE1: =Расчет_С_Фондом!AE1 -> 2045-01-01 | AF1: =Расчет_С_Фондом!AF1 -> 2046-01-01 | AG1: =Расчет_С_Фондом!AG1 -> 2047-01-01 | AH1: =Расчет_С_Фондом!AH1 -> 2048-01-01 | AI1: =Расчет_С_Фондом!AI1 -> 2049-01-01 | AJ1: =Расчет_С_Фондом!AJ1 -> 2050-01-01
A2: ЗАПОЛНЕНИЕ НЕ ТРЕБУЕТСЯ. АВТОМАТИЧЕСКИЙ РАСЧЕТ | E2: =Расчет_С_Фондом!E2 -> 2019-12-31 | F2: =Расчет_С_Фондом!F2 -> 2020-12-31 | G2: =Расчет_С_Фондом!G2 -> 2021-12-31 | H2: =Расчет_С_Фондом!H2 -> 2022-12-31 | I2: =Расчет_С_Фондом!I2 -> 2023-12-31 | J2: =Расчет_С_Фондом!J2 -> 2024-12-31 | K2: =Расчет_С_Фондом!K2 -> 2025-12-31 | L2: =Расчет_С_Фондом!L2 -> 2026-12-31 | M2: =Расчет_С_Фондом!M2 -> 2027-12-31 | N2: =Расчет_С_Фондом!N2 -> 2028-12-31 | O2: =Расчет_С_Фондом!O2 -> 2029-12-31 | P2: =Расчет_С_Фондом!P2 -> 2030-12-31 | Q2: =Расчет_С_Фондом!Q2 -> 2031-12-31 | R2: =Расчет_С_Фондом!R2 -> 2032-12-31 | S2: =Расчет_С_Фондом!S2 -> 2033-12-31 | T2: =Расчет_С_Фондом!T2 -> 2034-12-31 | U2: =Расчет_С_Фондом!U2 -> 2035-12-31 | V2: =Расчет_С_Фондом!V2 -> 2036-12-31 | W2: =Расчет_С_Фондом!W2 -> 2037-12-31 | X2: =Расчет_С_Фондом!X2 -> 2038-12-31 | Y2: =Расчет_С_Фондом!Y2 -> 2039-12-31 | Z2: =Расчет_С_Фондом!Z2 -> 2040-12-31 | AA2: =Расчет_С_Фондом!AA2 -> 2041-12-31 | AB2: =Расчет_С_Фондом!AB2 -> 2042-12-31 | AC2: =Расчет_С_Фондом!AC2 -> 2043-12-31 | AD2: =Расчет_С_Фондом!AD2 -> 2044-12-31 | AE2: =Расчет_С_Фондом!AE2 -> 2045-12-31 | AF2: =Расчет_С_Фондом!AF2 -> 2046-12-31 | AG2: =Расчет_С_Фондом!AG2 -> 2047-12-31 | AH2: =Расчет_С_Фондом!AH2 -> 2048-12-31 | AI2: =Расчет_С_Фондом!AI2 -> 2049-12-31 | AJ2: =Расчет_С_Фондом!AJ2 -> 2050-12-31
A3: Проверка корректности модели | B3: =Результаты!C27 -> OK | E3: =Расчет_С_Фондом!E3 -> 4 | F3: =Расчет_С_Фондом!F3 -> 4 | G3: =Расчет_С_Фондом!G3 -> 4 | H3: =Расчет_С_Фондом!H3 -> 4 | I3: =Расчет_С_Фондом!I3 -> 4 | J3: =Расчет_С_Фондом!J3 -> 4 | K3: =Расчет_С_Фондом!K3 -> 4 | L3: =Расчет_С_Фондом!L3 -> 4 | M3: =Расчет_С_Фондом!M3 -> 4 | N3: =Расчет_С_Фондом!N3 -> 4 | O3: =Расчет_С_Фондом!O3 -> 4 | P3: =Расчет_С_Фондом!P3 -> 4 | Q3: =Расчет_С_Фондом!Q3 -> 4 | R3: =Расчет_С_Фондом!R3 -> 4 | S3: =Расчет_С_Фондом!S3 -> 4 | T3: =Расчет_С_Фондом!T3 -> 4 | U3: =Расчет_С_Фондом!U3 -> 4 | V3: =Расчет_С_Фондом!V3 -> 4 | W3: =Расчет_С_Фондом!W3 -> 4 | X3: =Расчет_С_Фондом!X3 -> 4 | Y3: =Расчет_С_Фондом!Y3 -> 4 | Z3: =Расчет_С_Фондом!Z3 -> 4 | AA3: =Расчет_С_Фондом!AA3 -> 4 | AB3: =Расчет_С_Фондом!AB3 -> 4 | AC3: =Расчет_С_Фондом!AC3 -> 4 | AD3: =Расчет_С_Фондом!AD3 -> 4 | AE3: =Расчет_С_Фондом!AE3 -> 4 | AF3: =Расчет_С_Фондом!AF3 -> 4 | AG3: =Расчет_С_Фондом!AG3 -> 4 | AH3: =Расчет_С_Фондом!AH3 -> 4 | AI3: =Расчет_С_Фондом!AI3 -> 4 | AJ3: =Расчет_С_Фондом!AJ3 -> 4
E4: =Расчет_С_Фондом!E4 -> 2019 | F4: =Расчет_С_Фондом!F4 -> 2020 | G4: =Расчет_С_Фондом!G4 -> 2021 | H4: =Расчет_С_Фондом!H4 -> 2022 | I4: =Расчет_С_Фондом!I4 -> 2023 | J4: =Расчет_С_Фондом!J4 -> 2024 | K4: =Расчет_С_Фондом!K4 -> 2025 | L4: =Расчет_С_Фондом!L4 -> 2026 | M4: =Расчет_С_Фондом!M4 -> 2027 | N4: =Расчет_С_Фондом!N4 -> 2028 | O4: =Расчет_С_Фондом!O4 -> 2029 | P4: =Расчет_С_Фондом!P4 -> 2030 | Q4: =Расчет_С_Фондом!Q4 -> 2031 | R4: =Расчет_С_Фондом!R4 -> 2032 | S4: =Расчет_С_Фондом!S4 -> 2033 | T4: =Расчет_С_Фондом!T4 -> 2034 | U4: =Расчет_С_Фондом!U4 -> 2035 | V4: =Расчет_С_Фондом!V4 -> 2036 | W4: =Расчет_С_Фондом!W4 -> 2037 | X4: =Расчет_С_Фондом!X4 -> 2038 | Y4: =Расчет_С_Фондом!Y4 -> 2039 | Z4: =Расчет_С_Фондом!Z4 -> 2040 | AA4: =Расчет_С_Фондом!AA4 -> 2041 | AB4: =Расчет_С_Фондом!AB4 -> 2042 | AC4: =Расчет_С_Фондом!AC4 -> 2043 | AD4: =Расчет_С_Фондом!AD4 -> 2044 | AE4: =Расчет_С_Фондом!AE4 -> 2045 | AF4: =Расчет_С_Фондом!AF4 -> 2046 | AG4: =Расчет_С_Фондом!AG4 -> 2047 | AH4: =Расчет_С_Фондом!AH4 -> 2048 | AI4: =Расчет_С_Фондом!AI4 -> 2049 | AJ4: =Расчет_С_Фондом!AJ4 -> 2050
A5: Инфляция
A6: Инфляция
A7: =Макро!A6 -> Индекс реальных цен | B7: =Макро!B6 -> ИРЦ | E7: =Расчет_С_Фондом!E8 -> 0 | F7: =Расчет_С_Фондом!F8 -> 0 | G7: =Расчет_С_Фондом!G8 -> 0 | H7: =Расчет_С_Фондом!H8 -> 0 | I7: =Расчет_С_Фондом!I8 -> 0 | J7: =Расчет_С_Фондом!J8 -> 0 | K7: =Расчет_С_Фондом!K8 -> 0 | L7: =Расчет_С_Фондом!L8 -> 0 | M7: =Расчет_С_Фондом!M8 -> 0 | N7: =Расчет_С_Фондом!N8 -> 0 | O7: =Расчет_С_Фондом!O8 -> 0 | P7: =Расчет_С_Фондом!P8 -> 0 | Q7: =Расчет_С_Фондом!Q8 -> 0 | R7: =Расчет_С_Фондом!R8 -> 0 | S7: =Расчет_С_Фондом!S8 -> 0 | T7: =Расчет_С_Фондом!T8 -> 0 | U7: =Расчет_С_Фондом!U8 -> 0 | V7: =Расчет_С_Фондом!V8 -> 0 | W7: =Расчет_С_Фондом!W8 -> 0 | X7: =Расчет_С_Фондом!X8 -> 0 | Y7: =Расчет_С_Фондом!Y8 -> 0 | Z7: =Расчет_С_Фондом!Z8 -> 0 | AA7: =Расчет_С_Фондом!AA8 -> 0 | AB7: =Расчет_С_Фондом!AB8 -> 0 | AC7: =Расчет_С_Фондом!AC8 -> 0 | AD7: =Расчет_С_Фондом!AD8 -> 0 | AE7: =Расчет_С_Фондом!AE8 -> 0 | AF7: =Расчет_С_Фондом!AF8 -> 0 | AG7: =Расчет_С_Фондом!AG8 -> 0 | AH7: =Расчет_С_Фондом!AH8 -> 0 | AI7: =Расчет_С_Фондом!AI8 -> 0 | AJ7: =Расчет_С_Фондом!AJ8 -> 0
A8: =Макро!A7 -> ИПЦ | B8: =Макро!B7 -> ИПЦ | E8: =Расчет_С_Фондом!E9 -> 0.04645 | F8: =Расчет_С_Фондом!F9 -> 0.03421 | G8: =Расчет_С_Фондом!G9 -> 0.04011 | H8: =Расчет_С_Фондом!H9 -> 0.03995 | I8: =Расчет_С_Фондом!I9 -> 0.0398 | J8: =Расчет_С_Фондом!J9 -> 0.03989 | K8: =Расчет_С_Фондом!K9 -> 0.03992 | L8: =Расчет_С_Фондом!L9 -> 0.03987 | M8: =Расчет_С_Фондом!M9 -> 0.03975 | N8: =Расчет_С_Фондом!N9 -> 0.03963 | O8: =Расчет_С_Фондом!O9 -> 0.03955 | P8: =Расчет_С_Фондом!P9 -> 0 | Q8: =Расчет_С_Фондом!Q9 -> 0 | R8: =Расчет_С_Фондом!R9 -> 0 | S8: =Расчет_С_Фондом!S9 -> 0 | T8: =Расчет_С_Фондом!T9 -> 0 | U8: =Расчет_С_Фондом!U9 -> 0 | V8: =Расчет_С_Фондом!V9 -> 0 | W8: =Расчет_С_Фондом!W9 -> 0 | X8: =Расчет_С_Фондом!X9 -> 0 | Y8: =Расчет_С_Фондом!Y9 -> 0 | Z8: =Расчет_С_Фондом!Z9 -> 0 | AA8: =Расчет_С_Фондом!AA9 -> 0 | AB8: =Расчет_С_Фондом!AB9 -> 0 | AC8: =Расчет_С_Фондом!AC9 -> 0 | AD8: =Расчет_С_Фондом!AD9 -> 0 | AE8: =Расчет_С_Фондом!AE9 -> 0 | AF8: =Расчет_С_Фондом!AF9 -> 0 | AG8: =Расчет_С_Фондом!AG9 -> 0 | AH8: =Расчет_С_Фондом!AH9 -> 0 | AI8: =Расчет_С_Фондом!AI9 -> 0 | AJ8: =Расчет_С_Фондом!AJ9 -> 0
A9: =Макро!A8 -> Индекс цен на водоснабжение и водоотведение | B9: =Макро!B8 -> ИЦП | E9: =Расчет_С_Фондом!E10 -> 0.04948252121 | F9: =Расчет_С_Фондом!F10 -> 0.0400647154 | G9: =Расчет_С_Фондом!G10 -> 0.04044080266 | H9: =Расчет_С_Фондом!H10 -> 0.04044179109 | I9: =Расчет_С_Фондом!I10 -> 0.0397920104 | J9: =Расчет_С_Фондом!J10 -> 0.04046754156 | K9: =Расчет_С_Фондом!K10 -> 0.03992389066 | L9: =Расчет_С_Фондом!L10 -> 0.03987173858 | M9: =Расчет_С_Фондом!M10 -> 0.03975186753 | N9: =Расчет_С_Фондом!N10 -> 0.03963190179 | O9: =Расчет_С_Фондом!O10 -> 0.03954386209 | P9: =Расчет_С_Фондом!P10 -> 0 | Q9: =Расчет_С_Фондом!Q10 -> 0 | R9: =Расчет_С_Фондом!R10 -> 0 | S9: =Расчет_С_Фондом!S10 -> 0 | T9: =Расчет_С_Фондом!T10 -> 0 | U9: =Расчет_С_Фондом!U10 -> 0 | V9: =Расчет_С_Фондом!V10 -> 0 | W9: =Расчет_С_Фондом!W10 -> 0 | X9: =Расчет_С_Фондом!X10 -> 0 | Y9: =Расчет_С_Фондом!Y10 -> 0 | Z9: =Расчет_С_Фондом!Z10 -> 0 | AA9: =Расчет_С_Фондом!AA10 -> 0 | AB9: =Расчет_С_Фондом!AB10 -> 0 | AC9: =Расчет_С_Фондом!AC10 -> 0 | AD9: =Расчет_С_Фондом!AD10 -> 0 | AE9: =Расчет_С_Фондом!AE10 -> 0 | AF9: =Расчет_С_Фондом!AF10 -> 0 | AG9: =Расчет_С_Фондом!AG10 -> 0 | AH9: =Расчет_С_Фондом!AH10 -> 0 | AI9: =Расчет_С_Фондом!AI10 -> 0 | AJ9: =Расчет_С_Фондом!AJ10 -> 0
A10: =Макро!A9 -> Индекс цен на электрическую энергию, газ и пар | B10: =Макро!B9 -> ИКУ | E10: =Расчет_С_Фондом!E11 -> 0.06146391418 | F10: =Расчет_С_Фондом!F11 -> 0.04210858844 | G10: =Расчет_С_Фондом!G11 -> 0.04033685761 | H10: =Расчет_С_Фондом!H11 -> 0.04033221352 | I10: =Расчет_С_Фондом!I11 -> 0.03931432038 | J10: =Расчет_С_Фондом!J11 -> 0.03945998815 | K10: =Расчет_С_Фондом!K11 -> 0.0395001512 | L10: =Расчет_С_Фондом!L11 -> 0.03952271564 | M10: =Расчет_С_Фондом!M11 -> 0.03948833652 | N10: =Расчет_С_Фондом!N11 -> 0.03940931646 | O10: =Расчет_С_Фондом!O11 -> 0.03933023397 | P10: =Расчет_С_Фондом!P11 -> 0 | Q10: =Расчет_С_Фондом!Q11 -> 0 | R10: =Расчет_С_Фондом!R11 -> 0 | S10: =Расчет_С_Фондом!S11 -> 0 | T10: =Расчет_С_Фондом!T11 -> 0 | U10: =Расчет_С_Фондом!U11 -> 0 | V10: =Расчет_С_Фондом!V11 -> 0 | W10: =Расчет_С_Фондом!W11 -> 0 | X10: =Расчет_С_Фондом!X11 -> 0 | Y10: =Расчет_С_Фондом!Y11 -> 0 | Z10: =Расчет_С_Фондом!Z11 -> 0 | AA10: =Расчет_С_Фондом!AA11 -> 0 | AB10: =Расчет_С_Фондом!AB11 -> 0 | AC10: =Расчет_С_Фондом!AC11 -> 0 | AD10: =Расчет_С_Фондом!AD11 -> 0 | AE10: =Расчет_С_Фондом!AE11 -> 0 | AF10: =Расчет_С_Фондом!AF11 -> 0 | AG10: =Расчет_С_Фондом!AG11 -> 0 | AH10: =Расчет_С_Фондом!AH11 -> 0 | AI10: =Расчет_С_Фондом!AI11 -> 0 | AJ10: =Расчет_С_Фондом!AJ11 -> 0
A11: =Макро!A10 -> Индекс-дефлятор инвестиций | B11: =Макро!B10 -> ИКВ | E11: =Расчет_С_Фондом!E12 -> 0.05042905387 | F11: =Расчет_С_Фондом!F12 -> 0.04355921585 | G11: =Расчет_С_Фондом!G12 -> 0.04237711683 | H11: =Расчет_С_Фондом!H12 -> 0.04320055155 | I11: =Расчет_С_Фондом!I12 -> 0.04390092185 | J11: =Расчет_С_Фондом!J12 -> 0.04430064627 | K11: =Расчет_С_Фондом!K12 -> 0.04330064627 | L11: =Расчет_С_Фондом!L12 -> 0.04230064627 | M11: =Расчет_С_Фондом!M12 -> 0.04130064627 | N11: =Расчет_С_Фондом!N12 -> 0.04030064627 | O11: =Расчет_С_Фондом!O12 -> 0.04030064627 | P11: =Расчет_С_Фондом!P12 -> 0 | Q11: =Расчет_С_Фондом!Q12 -> 0 | R11: =Расчет_С_Фондом!R12 -> 0 | S11: =Расчет_С_Фондом!S12 -> 0 | T11: =Расчет_С_Фондом!T12 -> 0 | U11: =Расчет_С_Фондом!U12 -> 0 | V11: =Расчет_С_Фондом!V12 -> 0 | W11: =Расчет_С_Фондом!W12 -> 0 | X11: =Расчет_С_Фондом!X12 -> 0 | Y11: =Расчет_С_Фондом!Y12 -> 0 | Z11: =Расчет_С_Фондом!Z12 -> 0 | AA11: =Расчет_С_Фондом!AA12 -> 0 | AB11: =Расчет_С_Фондом!AB12 -> 0 | AC11: =Расчет_С_Фондом!AC12 -> 0 | AD11: =Расчет_С_Фондом!AD12 -> 0 | AE11: =Расчет_С_Фондом!AE12 -> 0 | AF11: =Расчет_С_Фондом!AF12 -> 0 | AG11: =Расчет_С_Фондом!AG12 -> 0 | AH11: =Расчет_С_Фондом!AH12 -> 0 | AI11: =Расчет_С_Фондом!AI12 -> 0 | AJ11: =Расчет_С_Фондом!AJ12 -> 0
A12: Индексация
A13: Индекс реальных цен | B13: =Макро!B6 -> ИРЦ | D13: =Расчет_С_Фондом!D14 -> 1 | E13: =Расчет_С_Фондом!E14 -> 1 | F13: =Расчет_С_Фондом!F14 -> 1 | G13: =Расчет_С_Фондом!G14 -> 1 | H13: =Расчет_С_Фондом!H14 -> 1 | I13: =Расчет_С_Фондом!I14 -> 1 | J13: =Расчет_С_Фондом!J14 -> 1 | K13: =Расчет_С_Фондом!K14 -> 1 | L13: =Расчет_С_Фондом!L14 -> 1 | M13: =Расчет_С_Фондом!M14 -> 1 | N13: =Расчет_С_Фондом!N14 -> 1 | O13: =Расчет_С_Фондом!O14 -> 1 | P13: =Расчет_С_Фондом!P14 -> 1 | Q13: =Расчет_С_Фондом!Q14 -> 1 | R13: =Расчет_С_Фондом!R14 -> 1 | S13: =Расчет_С_Фондом!S14 -> 1 | T13: =Расчет_С_Фондом!T14 -> 1 | U13: =Расчет_С_Фондом!U14 -> 1 | V13: =Расчет_С_Фондом!V14 -> 1 | W13: =Расчет_С_Фондом!W14 -> 1 | X13: =Расчет_С_Фондом!X14 -> 1 | Y13: =Расчет_С_Фондом!Y14 -> 1 | Z13: =Расчет_С_Фондом!Z14 -> 1 | AA13: =Расчет_С_Фондом!AA14 -> 1 | AB13: =Расчет_С_Фондом!AB14 -> 1 | AC13: =Расчет_С_Фондом!AC14 -> 1 | AD13: =Расчет_С_Фондом!AD14 -> 1 | AE13: =Расчет_С_Фондом!AE14 -> 1 | AF13: =Расчет_С_Фондом!AF14 -> 1 | AG13: =Расчет_С_Фондом!AG14 -> 1 | AH13: =Расчет_С_Фондом!AH14 -> 1 | AI13: =Расчет_С_Фондом!AI14 -> 1 | AJ13: =Расчет_С_Фондом!AJ14 -> 1
A14: =A8 -> ИПЦ | B14: =Макро!B7 -> ИПЦ | D14: =Расчет_С_Фондом!D15 -> 1 | E14: =Расчет_С_Фондом!E15 -> 1 | F14: =Расчет_С_Фондом!F15 -> 1.03421 | G14: =Расчет_С_Фондом!G15 -> 1.075692163 | H14: =Расчет_С_Фондом!H15 -> 1.118666065 | I14: =Расчет_С_Фондом!I15 -> 1.163188974 | J14: =Расчет_С_Фондом!J15 -> 1.209588583 | K14: =Расчет_С_Фондом!K15 -> 1.257875359 | L14: =Расчет_С_Фондом!L15 -> 1.308026849 | M14: =Расчет_С_Фондом!M15 -> 1.360020917 | N14: =Расчет_С_Фондом!N15 -> 1.413918546 | O14: =Расчет_С_Фондом!O15 -> 1.469839024 | P14: =Расчет_С_Фондом!P15 -> 1.469839024 | Q14: =Расчет_С_Фондом!Q15 -> 1.469839024 | R14: =Расчет_С_Фондом!R15 -> 1.469839024 | S14: =Расчет_С_Фондом!S15 -> 1.469839024 | T14: =Расчет_С_Фондом!T15 -> 1.469839024 | U14: =Расчет_С_Фондом!U15 -> 1.469839024 | V14: =Расчет_С_Фондом!V15 -> 1.469839024 | W14: =Расчет_С_Фондом!W15 -> 1.469839024 | X14: =Расчет_С_Фондом!X15 -> 1.469839024 | Y14: =Расчет_С_Фондом!Y15 -> 1.469839024 | Z14: =Расчет_С_Фондом!Z15 -> 1.469839024 | AA14: =Расчет_С_Фондом!AA15 -> 1.469839024 | AB14: =Расчет_С_Фондом!AB15 -> 1.469839024 | AC14: =Расчет_С_Фондом!AC15 -> 1.469839024 | AD14: =Расчет_С_Фондом!AD15 -> 1.469839024 | AE14: =Расчет_С_Фондом!AE15 -> 1.469839024 | AF14: =Расчет_С_Фондом!AF15 -> 1.469839024 | AG14: =Расчет_С_Фондом!AG15 -> 1.469839024 | AH14: =Расчет_С_Фондом!AH15 -> 1.469839024 | AI14: =Расчет_С_Фондом!AI15 -> 1.469839024 | AJ14: =Расчет_С_Фондом!AJ15 -> 1.469839024
A15: =A9 -> Индекс цен на водоснабжение и водоотведение | B15: =Макро!B8 -> ИЦП | D15: =Расчет_С_Фондом!D16 -> 1 | E15: =Расчет_С_Фондом!E16 -> 1 | F15: =Расчет_С_Фондом!F16 -> 1.040064715 | G15: =Расчет_С_Фондом!G16 -> 1.082125767 | H15: =Расчет_С_Фондом!H16 -> 1.125888872 | I15: =Расчет_С_Фондом!I16 -> 1.170690253 | J15: =Расчет_С_Фондом!J16 -> 1.21806521 | K15: =Расчет_С_Фондом!K16 -> 1.266695112 | L15: =Расчет_С_Фондом!L16 -> 1.317200448 | M15: =Расчет_С_Фондом!M16 -> 1.369561626 | N15: =Расчет_С_Фондом!N16 -> 1.423839958 | O15: =Расчет_С_Фондом!O16 -> 1.480144089 | P15: =Расчет_С_Фондом!P16 -> 1.480144089 | Q15: =Расчет_С_Фондом!Q16 -> 1.480144089 | R15: =Расчет_С_Фондом!R16 -> 1.480144089 | S15: =Расчет_С_Фондом!S16 -> 1.480144089 | T15: =Расчет_С_Фондом!T16 -> 1.480144089 | U15: =Расчет_С_Фондом!U16 -> 1.480144089 | V15: =Расчет_С_Фондом!V16 -> 1.480144089 | W15: =Расчет_С_Фондом!W16 -> 1.480144089 | X15: =Расчет_С_Фондом!X16 -> 1.480144089 | Y15: =Расчет_С_Фондом!Y16 -> 1.480144089 | Z15: =Расчет_С_Фондом!Z16 -> 1.480144089 | AA15: =Расчет_С_Фондом!AA16 -> 1.480144089 | AB15: =Расчет_С_Фондом!AB16 -> 1.480144089 | AC15: =Расчет_С_Фондом!AC16 -> 1.480144089 | AD15: =Расчет_С_Фондом!AD16 -> 1.480144089 | AE15: =Расчет_С_Фондом!AE16 -> 1.480144089 | AF15: =Расчет_С_Фондом!AF16 -> 1.480144089 | AG15: =Расчет_С_Фондом!AG16 -> 1.480144089 | AH15: =Расчет_С_Фондом!AH16 -> 1.480144089 | AI15: =Расчет_С_Фондом!AI16 -> 1.480144089 | AJ15: =Расчет_С_Фондом!AJ16 -> 1.480144089
A16: =A10 -> Индекс цен на электрическую энергию, газ и пар | B16: =Макро!B9 -> ИКУ | D16: =Расчет_С_Фондом!D17 -> 1 | E16: =Расчет_С_Фондом!E17 -> 1 | F16: =Расчет_С_Фондом!F17 -> 1.042108588 | G16: =Расчет_С_Фондом!G17 -> 1.084143974 | H16: =Расчет_С_Фондом!H17 -> 1.1278699 | I16: =Расчет_С_Фондом!I17 -> 1.172211339 | J16: =Расчет_С_Фондом!J17 -> 1.218466785 | K16: =Расчет_С_Фондом!K17 -> 1.266596407 | L16: =Расчет_С_Фондом!L17 -> 1.316655736 | M16: =Расчет_С_Фондом!M17 -> 1.368648281 | N16: =Расчет_С_Фондом!N17 -> 1.422585774 | O16: =Расчет_С_Фондом!O17 -> 1.478536406 | P16: =Расчет_С_Фондом!P17 -> 1.478536406 | Q16: =Расчет_С_Фондом!Q17 -> 1.478536406 | R16: =Расчет_С_Фондом!R17 -> 1.478536406 | S16: =Расчет_С_Фондом!S17 -> 1.478536406 | T16: =Расчет_С_Фондом!T17 -> 1.478536406 | U16: =Расчет_С_Фондом!U17 -> 1.478536406 | V16: =Расчет_С_Фондом!V17 -> 1.478536406 | W16: =Расчет_С_Фондом!W17 -> 1.478536406 | X16: =Расчет_С_Фондом!X17 -> 1.478536406 | Y16: =Расчет_С_Фондом!Y17 -> 1.478536406 | Z16: =Расчет_С_Фондом!Z17 -> 1.478536406 | AA16: =Расчет_С_Фондом!AA17 -> 1.478536406 | AB16: =Расчет_С_Фондом!AB17 -> 1.478536406 | AC16: =Расчет_С_Фондом!AC17 -> 1.478536406 | AD16: =Расчет_С_Фондом!AD17 -> 1.478536406 | AE16: =Расчет_С_Фондом!AE17 -> 1.478536406 | AF16: =Расчет_С_Фондом!AF17 -> 1.478536406 | AG16: =Расчет_С_Фондом!AG17 -> 1.478536406 | AH16: =Расчет_С_Фондом!AH17 -> 1.478536406 | AI16: =Расчет_С_Фондом!AI17 -> 1.478536406 | AJ16: =Расчет_С_Фондом!AJ17 -> 1.478536406
A17: =A11 -> Индекс-дефлятор инвестиций | B17: =Макро!B10 -> ИКВ | D17: =Расчет_С_Фондом!D18 -> 1 | E17: =Расчет_С_Фондом!E18 -> 1 | F17: =Расчет_С_Фондом!F18 -> 1.043559216 | G17: =Расчет_С_Фондом!G18 -> 1.087782247 | H17: =Расчет_С_Фондом!H18 -> 1.13477504 | I17: =Расчет_С_Фондом!I18 -> 1.18459271 | J17: =Расчет_С_Фондом!J18 -> 1.237070933 | K17: =Расчет_С_Фондом!K18 -> 1.290636904 | L17: =Расчет_С_Фондом!L18 -> 1.345231679 | M17: =Расчет_С_Фондом!M18 -> 1.400790616 | N17: =Расчет_С_Фондом!N18 -> 1.457243383 | O17: =Расчет_С_Фондом!O18 -> 1.515971234 | P17: =Расчет_С_Фондом!P18 -> 1.515971234 | Q17: =Расчет_С_Фондом!Q18 -> 1.515971234 | R17: =Расчет_С_Фондом!R18 -> 1.515971234 | S17: =Расчет_С_Фондом!S18 -> 1.515971234 | T17: =Расчет_С_Фондом!T18 -> 1.515971234 | U17: =Расчет_С_Фондом!U18 -> 1.515971234 | V17: =Расчет_С_Фондом!V18 -> 1.515971234 | W17: =Расчет_С_Фондом!W18 -> 1.515971234 | X17: =Расчет_С_Фондом!X18 -> 1.515971234 | Y17: =Расчет_С_Фондом!Y18 -> 1.515971234 | Z17: =Расчет_С_Фондом!Z18 -> 1.515971234 | AA17: =Расчет_С_Фондом!AA18 -> 1.515971234 | AB17: =Расчет_С_Фондом!AB18 -> 1.515971234 | AC17: =Расчет_С_Фондом!AC18 -> 1.515971234 | AD17: =Расчет_С_Фондом!AD18 -> 1.515971234 | AE17: =Расчет_С_Фондом!AE18 -> 1.515971234 | AF17: =Расчет_С_Фондом!AF18 -> 1.515971234 | AG17: =Расчет_С_Фондом!AG18 -> 1.515971234 | AH17: =Расчет_С_Фондом!AH18 -> 1.515971234 | AI17: =Расчет_С_Фондом!AI18 -> 1.515971234 | AJ17: =Расчет_С_Фондом!AJ18 -> 1.515971234
A19: Сроки
A20: Расчетный период | B20: ='Исходные данные'!E10 -> 2019-01-01 | C20: ='Исходные данные'!E14 -> 2029-12-31 | E20: =MAX(0,1+MIN(E$2,$C20)-MAX(E$1,$B20))/(1+E$2-E$1) -> 1 | F20: 1 | G20: 1 | H20: 1 | I20: 1 | J20: 1 | K20: 1 | L20: 1 | M20: 1 | N20: 1 | O20: =MAX(0,1+MIN(O$2,$C20)-MAX(O$1,$B20))/(1+O$2-O$1) -> 1 | P20: 0 | Q20: 0 | R20: 0 | S20: 0 | T20: 0 | U20: 0 | V20: 0 | W20: 0 | X20: 0 | Y20: =MAX(0,1+MIN(Y$2,$C20)-MAX(Y$1,$B20))/(1+Y$2-Y$1) -> 0 | Z20: 0 | AA20: 0 | AB20: 0 | AC20: 0 | AD20: 0 | AE20: 0 | AF20: 0 | AG20: 0 | AH20: 0 | AI20: =MAX(0,1+MIN(AI$2,$C20)-MAX(AI$1,$B20))/(1+AI$2-AI$1) -> 0 | AJ20: 0
A21: Инвестиционная стадия | B21: ='Исходные данные'!E11 -> 2019-01-01 | C21: ='Исходные данные'!E12 -> 2020-12-31 | E21: 1 | F21: 1 | G21: 0 | H21: 0 | I21: 0 | J21: 0 | K21: 0 | L21: 0 | M21: 0 | N21: 0 | O21: 0 | P21: 0 | Q21: 0 | R21: 0 | S21: 0 | T21: 0 | U21: 0 | V21: 0 | W21: 0 | X21: 0 | Y21: 0 | Z21: 0 | AA21: 0 | AB21: 0 | AC21: 0 | AD21: 0 | AE21: 0 | AF21: 0 | AG21: 0 | AH21: 0 | AI21: 0 | AJ21: 0
A22: Эксплуатационная стадия | B22: ='Исходные данные'!E13 -> 2021-01-01 | C22: ='Исходные данные'!E14 -> 2029-12-31 | E22: 0 | F22: 0 | G22: 1 | H22: 1 | I22: 1 | J22: 1 | K22: 1 | L22: 1 | M22: 1 | N22: 1 | O22: 1 | P22: 0 | Q22: 0 | R22: 0 | S22: 0 | T22: 0 | U22: 0 | V22: 0 | W22: 0 | X22: 0 | Y22: 0 | Z22: 0 | AA22: 0 | AB22: 0 | AC22: 0 | AD22: 0 | AE22: 0 | AF22: 0 | AG22: 0 | AH22: 0 | AI22: 0 | AJ22: 0
A26: Капитальные затраты по проекту (для расчетов), без НДС, в ценах соответствующих лет
A27: Капитальные затраты
A28: ='Исходные данные'!A100 -> Реконструкция Объекта №1 | D28: ='Исходные данные'!E100 -> 610000 | E28: =$D28*'Исходные данные'!F100*(1+Чувствительность!$B$4) -> 305000 | F28: =$D28*'Исходные данные'!G100*(1+Чувствительность!$B$4) -> 305000 | G28: =$D28*'Исходные данные'!H100*(1+Чувствительность!$B$4) -> 0 | H28: =$D28*'Исходные данные'!I100*(1+Чувствительность!$B$4) -> 0 | I28: =$D28*'Исходные данные'!J100*(1+Чувствительность!$B$4) -> 0 | J28: =$D28*'Исходные данные'!K100*(1+Чувствительность!$B$4) -> 0 | K28: =$D28*'Исходные данные'!L100*(1+Чувствительность!$B$4) -> 0 | L28: =$D28*'Исходные данные'!M100*(1+Чувствительность!$B$4) -> 0 | M28: =$D28*'Исходные данные'!N100*(1+Чувствительность!$B$4) -> 0 | N28: =$D28*'Исходные данные'!O100*(1+Чувствительность!$B$4) -> 0 | O28: =$D28*'Исходные данные'!P100*(1+Чувствительность!$B$4) -> 0 | P28: =$D28*'Исходные данные'!Q100*(1+Чувствительность!$B$4) -> 0 | Q28: =$D28*'Исходные данные'!R100*(1+Чувствительность!$B$4) -> 0 | R28: =$D28*'Исходные данные'!S100*(1+Чувствительность!$B$4) -> 0 | S28: =$D28*'Исходные данные'!T100*(1+Чувствительность!$B$4) -> 0 | T28: =$D28*'Исходные данные'!U100*(1+Чувствительность!$B$4) -> 0 | U28: =$D28*'Исходные данные'!V100*(1+Чувствительность!$B$4) -> 0 | V28: =$D28*'Исходные данные'!W100*(1+Чувствительность!$B$4) -> 0 | W28: =$D28*'Исходные данные'!X100*(1+Чувствительность!$B$4) -> 0 | X28: =$D28*'Исходные данные'!Y100*(1+Чувствительность!$B$4) -> 0 | Y28: =$D28*'Исходные данные'!Z100*(1+Чувствительность!$B$4) -> 0 | Z28: =$D28*'Исходные данные'!AA100*(1+Чувствительность!$B$4) -> 0 | AA28: =$D28*'Исходные данные'!AB100*(1+Чувствительность!$B$4) -> 0 | AB28: =$D28*'Исходные данные'!AC100*(1+Чувствительность!$B$4) -> 0 | AC28: =$D28*'Исходные данные'!AD100*(1+Чувствительность!$B$4) -> 0 | AD28: =$D28*'Исходные данные'!AE100*(1+Чувствительность!$B$4) -> 0 | AE28: =$D28*'Исходные данные'!AF100*(1+Чувствительность!$B$4) -> 0 | AF28: =$D28*'Исходные данные'!AG100*(1+Чувствительность!$B$4) -> 0 | AG28: =$D28*'Исходные данные'!AH100*(1+Чувствительность!$B$4) -> 0 | AH28: =$D28*'Исходные данные'!AI100*(1+Чувствительность!$B$4) -> 0 | AI28: =$D28*'Исходные данные'!AJ100*(1+Чувствительность!$B$4) -> 0 | AJ28: =$D28*'Исходные данные'!AK100*(1+Чувствительность!$B$4) -> 0
A29: ='Исходные данные'!A101 -> - | D29: ='Исходные данные'!E101 -> 0 | E29: =$D29*'Исходные данные'!F101*(1+Чувствительность!$B$4) -> 0 | F29: =$D29*'Исходные данные'!G101*(1+Чувствительность!$B$4) -> 0 | G29: =$D29*'Исходные данные'!H101*(1+Чувствительность!$B$4) -> 0 | H29: =$D29*'Исходные данные'!I101*(1+Чувствительность!$B$4) -> 0 | I29: =$D29*'Исходные данные'!J101*(1+Чувствительность!$B$4) -> 0 | J29: =$D29*'Исходные данные'!K101*(1+Чувствительность!$B$4) -> 0 | K29: =$D29*'Исходные данные'!L101*(1+Чувствительность!$B$4) -> 0 | L29: =$D29*'Исходные данные'!M101*(1+Чувствительность!$B$4) -> 0 | M29: =$D29*'Исходные данные'!N101*(1+Чувствительность!$B$4) -> 0 | N29: =$D29*'Исходные данные'!O101*(1+Чувствительность!$B$4) -> 0 | O29: =$D29*'Исходные данные'!P101*(1+Чувствительность!$B$4) -> 0 | P29: =$D29*'Исходные данные'!Q101*(1+Чувствительность!$B$4) -> 0 | Q29: =$D29*'Исходные данные'!R101*(1+Чувствительность!$B$4) -> 0 | R29: =$D29*'Исходные данные'!S101*(1+Чувствительность!$B$4) -> 0 | S29: =$D29*'Исходные данные'!T101*(1+Чувствительность!$B$4) -> 0 | T29: =$D29*'Исходные данные'!U101*(1+Чувствительность!$B$4) -> 0 | U29: =$D29*'Исходные данные'!V101*(1+Чувствительность!$B$4) -> 0 | V29: =$D29*'Исходные данные'!W101*(1+Чувствительность!$B$4) -> 0 | W29: =$D29*'Исходные данные'!X101*(1+Чувствительность!$B$4) -> 0 | X29: =$D29*'Исходные данные'!Y101*(1+Чувствительность!$B$4) -> 0 | Y29: =$D29*'Исходные данные'!Z101*(1+Чувствительность!$B$4) -> 0 | Z29: =$D29*'Исходные данные'!AA101*(1+Чувствительность!$B$4) -> 0 | AA29: =$D29*'Исходные данные'!AB101*(1+Чувствительность!$B$4) -> 0 | AB29: =$D29*'Исходные данные'!AC101*(1+Чувствительность!$B$4) -> 0 | AC29: =$D29*'Исходные данные'!AD101*(1+Чувствительность!$B$4) -> 0 | AD29: =$D29*'Исходные данные'!AE101*(1+Чувствительность!$B$4) -> 0 | AE29: =$D29*'Исходные данные'!AF101*(1+Чувствительность!$B$4) -> 0 | AF29: =$D29*'Исходные данные'!AG101*(1+Чувствительность!$B$4) -> 0 | AG29: =$D29*'Исходные данные'!AH101*(1+Чувствительность!$B$4) -> 0 | AH29: =$D29*'Исходные данные'!AI101*(1+Чувствительность!$B$4) -> 0 | AI29: =$D29*'Исходные данные'!AJ101*(1+Чувствительность!$B$4) -> 0 | AJ29: =$D29*'Исходные данные'!AK101*(1+Чувствительность!$B$4) -> 0
A30: ='Исходные данные'!A102 -> - | D30: ='Исходные данные'!E102 -> 0 | E30: =$D30*'Исходные данные'!F102*(1+Чувствительность!$B$4) -> 0 | F30: =$D30*'Исходные данные'!G102*(1+Чувствительность!$B$4) -> 0 | G30: =$D30*'Исходные данные'!H102*(1+Чувствительность!$B$4) -> 0 | H30: =$D30*'Исходные данные'!I102*(1+Чувствительность!$B$4) -> 0 | I30: =$D30*'Исходные данные'!J102*(1+Чувствительность!$B$4) -> 0 | J30: =$D30*'Исходные данные'!K102*(1+Чувствительность!$B$4) -> 0 | K30: =$D30*'Исходные данные'!L102*(1+Чувствительность!$B$4) -> 0 | L30: =$D30*'Исходные данные'!M102*(1+Чувствительность!$B$4) -> 0 | M30: =$D30*'Исходные данные'!N102*(1+Чувствительность!$B$4) -> 0 | N30: =$D30*'Исходные данные'!O102*(1+Чувствительность!$B$4) -> 0 | O30: =$D30*'Исходные данные'!P102*(1+Чувствительность!$B$4) -> 0 | P30: =$D30*'Исходные данные'!Q102*(1+Чувствительность!$B$4) -> 0 | Q30: =$D30*'Исходные данные'!R102*(1+Чувствительность!$B$4) -> 0 | R30: =$D30*'Исходные данные'!S102*(1+Чувствительность!$B$4) -> 0 | S30: =$D30*'Исходные данные'!T102*(1+Чувствительность!$B$4) -> 0 | T30: =$D30*'Исходные данные'!U102*(1+Чувствительность!$B$4) -> 0 | U30: =$D30*'Исходные данные'!V102*(1+Чувствительность!$B$4) -> 0 | V30: =$D30*'Исходные данные'!W102*(1+Чувствительность!$B$4) -> 0 | W30: =$D30*'Исходные данные'!X102*(1+Чувствительность!$B$4) -> 0 | X30: =$D30*'Исходные данные'!Y102*(1+Чувствительность!$B$4) -> 0 | Y30: =$D30*'Исходные данные'!Z102*(1+Чувствительность!$B$4) -> 0 | Z30: =$D30*'Исходные данные'!AA102*(1+Чувствительность!$B$4) -> 0 | AA30: =$D30*'Исходные данные'!AB102*(1+Чувствительность!$B$4) -> 0 | AB30: =$D30*'Исходные данные'!AC102*(1+Чувствительность!$B$4) -> 0 | AC30: =$D30*'Исходные данные'!AD102*(1+Чувствительность!$B$4) -> 0 | AD30: =$D30*'Исходные данные'!AE102*(1+Чувствительность!$B$4) -> 0 | AE30: =$D30*'Исходные данные'!AF102*(1+Чувствительность!$B$4) -> 0 | AF30: =$D30*'Исходные данные'!AG102*(1+Чувствительность!$B$4) -> 0 | AG30: =$D30*'Исходные данные'!AH102*(1+Чувствительность!$B$4) -> 0 | AH30: =$D30*'Исходные данные'!AI102*(1+Чувствительность!$B$4) -> 0 | AI30: =$D30*'Исходные данные'!AJ102*(1+Чувствительность!$B$4) -> 0 | AJ30: =$D30*'Исходные данные'!AK102*(1+Чувствительность!$B$4) -> 0
A31: ='Исходные данные'!A103 -> - | D31: ='Исходные данные'!E103 -> 0 | E31: =$D31*'Исходные данные'!F103*(1+Чувствительность!$B$4) -> 0 | F31: =$D31*'Исходные данные'!G103*(1+Чувствительность!$B$4) -> 0 | G31: =$D31*'Исходные данные'!H103*(1+Чувствительность!$B$4) -> 0 | H31: =$D31*'Исходные данные'!I103*(1+Чувствительность!$B$4) -> 0 | I31: =$D31*'Исходные данные'!J103*(1+Чувствительность!$B$4) -> 0 | J31: =$D31*'Исходные данные'!K103*(1+Чувствительность!$B$4) -> 0 | K31: =$D31*'Исходные данные'!L103*(1+Чувствительность!$B$4) -> 0 | L31: =$D31*'Исходные данные'!M103*(1+Чувствительность!$B$4) -> 0 | M31: =$D31*'Исходные данные'!N103*(1+Чувствительность!$B$4) -> 0 | N31: =$D31*'Исходные данные'!O103*(1+Чувствительность!$B$4) -> 0 | O31: =$D31*'Исходные данные'!P103*(1+Чувствительность!$B$4) -> 0 | P31: =$D31*'Исходные данные'!Q103*(1+Чувствительность!$B$4) -> 0 | Q31: =$D31*'Исходные данные'!R103*(1+Чувствительность!$B$4) -> 0 | R31: =$D31*'Исходные данные'!S103*(1+Чувствительность!$B$4) -> 0 | S31: =$D31*'Исходные данные'!T103*(1+Чувствительность!$B$4) -> 0 | T31: =$D31*'Исходные данные'!U103*(1+Чувствительность!$B$4) -> 0 | U31: =$D31*'Исходные данные'!V103*(1+Чувствительность!$B$4) -> 0 | V31: =$D31*'Исходные данные'!W103*(1+Чувствительность!$B$4) -> 0 | W31: =$D31*'Исходные данные'!X103*(1+Чувствительность!$B$4) -> 0 | X31: =$D31*'Исходные данные'!Y103*(1+Чувствительность!$B$4) -> 0 | Y31: =$D31*'Исходные данные'!Z103*(1+Чувствительность!$B$4) -> 0 | Z31: =$D31*'Исходные данные'!AA103*(1+Чувствительность!$B$4) -> 0 | AA31: =$D31*'Исходные данные'!AB103*(1+Чувствительность!$B$4) -> 0 | AB31: =$D31*'Исходные данные'!AC103*(1+Чувствительность!$B$4) -> 0 | AC31: =$D31*'Исходные данные'!AD103*(1+Чувствительность!$B$4) -> 0 | AD31: =$D31*'Исходные данные'!AE103*(1+Чувствительность!$B$4) -> 0 | AE31: =$D31*'Исходные данные'!AF103*(1+Чувствительность!$B$4) -> 0 | AF31: =$D31*'Исходные данные'!AG103*(1+Чувствительность!$B$4) -> 0 | AG31: =$D31*'Исходные данные'!AH103*(1+Чувствительность!$B$4) -> 0 | AH31: =$D31*'Исходные данные'!AI103*(1+Чувствительность!$B$4) -> 0 | AI31: =$D31*'Исходные данные'!AJ103*(1+Чувствительность!$B$4) -> 0 | AJ31: =$D31*'Исходные данные'!AK103*(1+Чувствительность!$B$4) -> 0
A32: ='Исходные данные'!A104 -> - | D32: ='Исходные данные'!E104 -> 0 | E32: =$D32*'Исходные данные'!F104*(1+Чувствительность!$B$4) -> 0 | F32: =$D32*'Исходные данные'!G104*(1+Чувствительность!$B$4) -> 0 | G32: =$D32*'Исходные данные'!H104*(1+Чувствительность!$B$4) -> 0 | H32: =$D32*'Исходные данные'!I104*(1+Чувствительность!$B$4) -> 0 | I32: =$D32*'Исходные данные'!J104*(1+Чувствительность!$B$4) -> 0 | J32: =$D32*'Исходные данные'!K104*(1+Чувствительность!$B$4) -> 0 | K32: =$D32*'Исходные данные'!L104*(1+Чувствительность!$B$4) -> 0 | L32: =$D32*'Исходные данные'!M104*(1+Чувствительность!$B$4) -> 0 | M32: =$D32*'Исходные данные'!N104*(1+Чувствительность!$B$4) -> 0 | N32: =$D32*'Исходные данные'!O104*(1+Чувствительность!$B$4) -> 0 | O32: =$D32*'Исходные данные'!P104*(1+Чувствительность!$B$4) -> 0 | P32: =$D32*'Исходные данные'!Q104*(1+Чувствительность!$B$4) -> 0 | Q32: =$D32*'Исходные данные'!R104*(1+Чувствительность!$B$4) -> 0 | R32: =$D32*'Исходные данные'!S104*(1+Чувствительность!$B$4) -> 0 | S32: =$D32*'Исходные данные'!T104*(1+Чувствительность!$B$4) -> 0 | T32: =$D32*'Исходные данные'!U104*(1+Чувствительность!$B$4) -> 0 | U32: =$D32*'Исходные данные'!V104*(1+Чувствительность!$B$4) -> 0 | V32: =$D32*'Исходные данные'!W104*(1+Чувствительность!$B$4) -> 0 | W32: =$D32*'Исходные данные'!X104*(1+Чувствительность!$B$4) -> 0 | X32: =$D32*'Исходные данные'!Y104*(1+Чувствительность!$B$4) -> 0 | Y32: =$D32*'Исходные данные'!Z104*(1+Чувствительность!$B$4) -> 0 | Z32: =$D32*'Исходные данные'!AA104*(1+Чувствительность!$B$4) -> 0 | AA32: =$D32*'Исходные данные'!AB104*(1+Чувствительность!$B$4) -> 0 | AB32: =$D32*'Исходные данные'!AC104*(1+Чувствительность!$B$4) -> 0 | AC32: =$D32*'Исходные данные'!AD104*(1+Чувствительность!$B$4) -> 0 | AD32: =$D32*'Исходные данные'!AE104*(1+Чувствительность!$B$4) -> 0 | AE32: =$D32*'Исходные данные'!AF104*(1+Чувствительность!$B$4) -> 0 | AF32: =$D32*'Исходные данные'!AG104*(1+Чувствительность!$B$4) -> 0 | AG32: =$D32*'Исходные данные'!AH104*(1+Чувствительность!$B$4) -> 0 | AH32: =$D32*'Исходные данные'!AI104*(1+Чувствительность!$B$4) -> 0 | AI32: =$D32*'Исходные данные'!AJ104*(1+Чувствительность!$B$4) -> 0 | AJ32: =$D32*'Исходные данные'!AK104*(1+Чувствительность!$B$4) -> 0
A33: ='Исходные данные'!A105 -> - | D33: ='Исходные данные'!E105 -> 0 | E33: =$D33*'Исходные данные'!F105*(1+Чувствительность!$B$4) -> 0 | F33: =$D33*'Исходные данные'!G105*(1+Чувствительность!$B$4) -> 0 | G33: =$D33*'Исходные данные'!H105*(1+Чувствительность!$B$4) -> 0 | H33: =$D33*'Исходные данные'!I105*(1+Чувствительность!$B$4) -> 0 | I33: =$D33*'Исходные данные'!J105*(1+Чувствительность!$B$4) -> 0 | J33: =$D33*'Исходные данные'!K105*(1+Чувствительность!$B$4) -> 0 | K33: =$D33*'Исходные данные'!L105*(1+Чувствительность!$B$4) -> 0 | L33: =$D33*'Исходные данные'!M105*(1+Чувствительность!$B$4) -> 0 | M33: =$D33*'Исходные данные'!N105*(1+Чувствительность!$B$4) -> 0 | N33: =$D33*'Исходные данные'!O105*(1+Чувствительность!$B$4) -> 0 | O33: =$D33*'Исходные данные'!P105*(1+Чувствительность!$B$4) -> 0 | P33: =$D33*'Исходные данные'!Q105*(1+Чувствительность!$B$4) -> 0 | Q33: =$D33*'Исходные данные'!R105*(1+Чувствительность!$B$4) -> 0 | R33: =$D33*'Исходные данные'!S105*(1+Чувствительность!$B$4) -> 0 | S33: =$D33*'Исходные данные'!T105*(1+Чувствительность!$B$4) -> 0 | T33: =$D33*'Исходные данные'!U105*(1+Чувствительность!$B$4) -> 0 | U33: =$D33*'Исходные данные'!V105*(1+Чувствительность!$B$4) -> 0 | V33: =$D33*'Исходные данные'!W105*(1+Чувствительность!$B$4) -> 0 | W33: =$D33*'Исходные данные'!X105*(1+Чувствительность!$B$4) -> 0 | X33: =$D33*'Исходные данные'!Y105*(1+Чувствительность!$B$4) -> 0 | Y33: =$D33*'Исходные данные'!Z105*(1+Чувствительность!$B$4) -> 0 | Z33: =$D33*'Исходные данные'!AA105*(1+Чувствительность!$B$4) -> 0 | AA33: =$D33*'Исходные данные'!AB105*(1+Чувствительность!$B$4) -> 0 | AB33: =$D33*'Исходные данные'!AC105*(1+Чувствительность!$B$4) -> 0 | AC33: =$D33*'Исходные данные'!AD105*(1+Чувствительность!$B$4) -> 0 | AD33: =$D33*'Исходные данные'!AE105*(1+Чувствительность!$B$4) -> 0 | AE33: =$D33*'Исходные данные'!AF105*(1+Чувствительность!$B$4) -> 0 | AF33: =$D33*'Исходные данные'!AG105*(1+Чувствительность!$B$4) -> 0 | AG33: =$D33*'Исходные данные'!AH105*(1+Чувствительность!$B$4) -> 0 | AH33: =$D33*'Исходные данные'!AI105*(1+Чувствительность!$B$4) -> 0 | AI33: =$D33*'Исходные данные'!AJ105*(1+Чувствительность!$B$4) -> 0 | AJ33: =$D33*'Исходные данные'!AK105*(1+Чувствительность!$B$4) -> 0
A34: ='Исходные данные'!A106 -> - | D34: ='Исходные данные'!E106 -> 0 | E34: =$D34*'Исходные данные'!F106*(1+Чувствительность!$B$4) -> 0 | F34: =$D34*'Исходные данные'!G106*(1+Чувствительность!$B$4) -> 0 | G34: =$D34*'Исходные данные'!H106*(1+Чувствительность!$B$4) -> 0 | H34: =$D34*'Исходные данные'!I106*(1+Чувствительность!$B$4) -> 0 | I34: =$D34*'Исходные данные'!J106*(1+Чувствительность!$B$4) -> 0 | J34: =$D34*'Исходные данные'!K106*(1+Чувствительность!$B$4) -> 0 | K34: =$D34*'Исходные данные'!L106*(1+Чувствительность!$B$4) -> 0 | L34: =$D34*'Исходные данные'!M106*(1+Чувствительность!$B$4) -> 0 | M34: =$D34*'Исходные данные'!N106*(1+Чувствительность!$B$4) -> 0 | N34: =$D34*'Исходные данные'!O106*(1+Чувствительность!$B$4) -> 0 | O34: =$D34*'Исходные данные'!P106*(1+Чувствительность!$B$4) -> 0 | P34: =$D34*'Исходные данные'!Q106*(1+Чувствительность!$B$4) -> 0 | Q34: =$D34*'Исходные данные'!R106*(1+Чувствительность!$B$4) -> 0 | R34: =$D34*'Исходные данные'!S106*(1+Чувствительность!$B$4) -> 0 | S34: =$D34*'Исходные данные'!T106*(1+Чувствительность!$B$4) -> 0 | T34: =$D34*'Исходные данные'!U106*(1+Чувствительность!$B$4) -> 0 | U34: =$D34*'Исходные данные'!V106*(1+Чувствительность!$B$4) -> 0 | V34: =$D34*'Исходные данные'!W106*(1+Чувствительность!$B$4) -> 0 | W34: =$D34*'Исходные данные'!X106*(1+Чувствительность!$B$4) -> 0 | X34: =$D34*'Исходные данные'!Y106*(1+Чувствительность!$B$4) -> 0 | Y34: =$D34*'Исходные данные'!Z106*(1+Чувствительность!$B$4) -> 0 | Z34: =$D34*'Исходные данные'!AA106*(1+Чувствительность!$B$4) -> 0 | AA34: =$D34*'Исходные данные'!AB106*(1+Чувствительность!$B$4) -> 0 | AB34: =$D34*'Исходные данные'!AC106*(1+Чувствительность!$B$4) -> 0 | AC34: =$D34*'Исходные данные'!AD106*(1+Чувствительность!$B$4) -> 0 | AD34: =$D34*'Исходные данные'!AE106*(1+Чувствительность!$B$4) -> 0 | AE34: =$D34*'Исходные данные'!AF106*(1+Чувствительность!$B$4) -> 0 | AF34: =$D34*'Исходные данные'!AG106*(1+Чувствительность!$B$4) -> 0 | AG34: =$D34*'Исходные данные'!AH106*(1+Чувствительность!$B$4) -> 0 | AH34: =$D34*'Исходные данные'!AI106*(1+Чувствительность!$B$4) -> 0 | AI34: =$D34*'Исходные данные'!AJ106*(1+Чувствительность!$B$4) -> 0 | AJ34: =$D34*'Исходные данные'!AK106*(1+Чувствительность!$B$4) -> 0
A35: ='Исходные данные'!A107 -> - | D35: ='Исходные данные'!E107 -> 0 | E35: =$D35*'Исходные данные'!F107*(1+Чувствительность!$B$4) -> 0 | F35: =$D35*'Исходные данные'!G107*(1+Чувствительность!$B$4) -> 0 | G35: =$D35*'Исходные данные'!H107*(1+Чувствительность!$B$4) -> 0 | H35: =$D35*'Исходные данные'!I107*(1+Чувствительность!$B$4) -> 0 | I35: =$D35*'Исходные данные'!J107*(1+Чувствительность!$B$4) -> 0 | J35: =$D35*'Исходные данные'!K107*(1+Чувствительность!$B$4) -> 0 | K35: =$D35*'Исходные данные'!L107*(1+Чувствительность!$B$4) -> 0 | L35: =$D35*'Исходные данные'!M107*(1+Чувствительность!$B$4) -> 0 | M35: =$D35*'Исходные данные'!N107*(1+Чувствительность!$B$4) -> 0 | N35: =$D35*'Исходные данные'!O107*(1+Чувствительность!$B$4) -> 0 | O35: =$D35*'Исходные данные'!P107*(1+Чувствительность!$B$4) -> 0 | P35: =$D35*'Исходные данные'!Q107*(1+Чувствительность!$B$4) -> 0 | Q35: =$D35*'Исходные данные'!R107*(1+Чувствительность!$B$4) -> 0 | R35: =$D35*'Исходные данные'!S107*(1+Чувствительность!$B$4) -> 0 | S35: =$D35*'Исходные данные'!T107*(1+Чувствительность!$B$4) -> 0 | T35: =$D35*'Исходные данные'!U107*(1+Чувствительность!$B$4) -> 0 | U35: =$D35*'Исходные данные'!V107*(1+Чувствительность!$B$4) -> 0 | V35: =$D35*'Исходные данные'!W107*(1+Чувствительность!$B$4) -> 0 | W35: =$D35*'Исходные данные'!X107*(1+Чувствительность!$B$4) -> 0 | X35: =$D35*'Исходные данные'!Y107*(1+Чувствительность!$B$4) -> 0 | Y35: =$D35*'Исходные данные'!Z107*(1+Чувствительность!$B$4) -> 0 | Z35: =$D35*'Исходные данные'!AA107*(1+Чувствительность!$B$4) -> 0 | AA35: =$D35*'Исходные данные'!AB107*(1+Чувствительность!$B$4) -> 0 | AB35: =$D35*'Исходные данные'!AC107*(1+Чувствительность!$B$4) -> 0 | AC35: =$D35*'Исходные данные'!AD107*(1+Чувствительность!$B$4) -> 0 | AD35: =$D35*'Исходные данные'!AE107*(1+Чувствительность!$B$4) -> 0 | AE35: =$D35*'Исходные данные'!AF107*(1+Чувствительность!$B$4) -> 0 | AF35: =$D35*'Исходные данные'!AG107*(1+Чувствительность!$B$4) -> 0 | AG35: =$D35*'Исходные данные'!AH107*(1+Чувствительность!$B$4) -> 0 | AH35: =$D35*'Исходные данные'!AI107*(1+Чувствительность!$B$4) -> 0 | AI35: =$D35*'Исходные данные'!AJ107*(1+Чувствительность!$B$4) -> 0 | AJ35: =$D35*'Исходные данные'!AK107*(1+Чувствительность!$B$4) -> 0
A36: ='Исходные данные'!A108 -> - | D36: ='Исходные данные'!E108 -> 0 | E36: =$D36*'Исходные данные'!F108*(1+Чувствительность!$B$4) -> 0 | F36: =$D36*'Исходные данные'!G108*(1+Чувствительность!$B$4) -> 0 | G36: =$D36*'Исходные данные'!H108*(1+Чувствительность!$B$4) -> 0 | H36: =$D36*'Исходные данные'!I108*(1+Чувствительность!$B$4) -> 0 | I36: =$D36*'Исходные данные'!J108*(1+Чувствительность!$B$4) -> 0 | J36: =$D36*'Исходные данные'!K108*(1+Чувствительность!$B$4) -> 0 | K36: =$D36*'Исходные данные'!L108*(1+Чувствительность!$B$4) -> 0 | L36: =$D36*'Исходные данные'!M108*(1+Чувствительность!$B$4) -> 0 | M36: =$D36*'Исходные данные'!N108*(1+Чувствительность!$B$4) -> 0 | N36: =$D36*'Исходные данные'!O108*(1+Чувствительность!$B$4) -> 0 | O36: =$D36*'Исходные данные'!P108*(1+Чувствительность!$B$4) -> 0 | P36: =$D36*'Исходные данные'!Q108*(1+Чувствительность!$B$4) -> 0 | Q36: =$D36*'Исходные данные'!R108*(1+Чувствительность!$B$4) -> 0 | R36: =$D36*'Исходные данные'!S108*(1+Чувствительность!$B$4) -> 0 | S36: =$D36*'Исходные данные'!T108*(1+Чувствительность!$B$4) -> 0 | T36: =$D36*'Исходные данные'!U108*(1+Чувствительность!$B$4) -> 0 | U36: =$D36*'Исходные данные'!V108*(1+Чувствительность!$B$4) -> 0 | V36: =$D36*'Исходные данные'!W108*(1+Чувствительность!$B$4) -> 0 | W36: =$D36*'Исходные данные'!X108*(1+Чувствительность!$B$4) -> 0 | X36: =$D36*'Исходные данные'!Y108*(1+Чувствительность!$B$4) -> 0 | Y36: =$D36*'Исходные данные'!Z108*(1+Чувствительность!$B$4) -> 0 | Z36: =$D36*'Исходные данные'!AA108*(1+Чувствительность!$B$4) -> 0 | AA36: =$D36*'Исходные данные'!AB108*(1+Чувствительность!$B$4) -> 0 | AB36: =$D36*'Исходные данные'!AC108*(1+Чувствительность!$B$4) -> 0 | AC36: =$D36*'Исходные данные'!AD108*(1+Чувствительность!$B$4) -> 0 | AD36: =$D36*'Исходные данные'!AE108*(1+Чувствительность!$B$4) -> 0 | AE36: =$D36*'Исходные данные'!AF108*(1+Чувствительность!$B$4) -> 0 | AF36: =$D36*'Исходные данные'!AG108*(1+Чувствительность!$B$4) -> 0 | AG36: =$D36*'Исходные данные'!AH108*(1+Чувствительность!$B$4) -> 0 | AH36: =$D36*'Исходные данные'!AI108*(1+Чувствительность!$B$4) -> 0 | AI36: =$D36*'Исходные данные'!AJ108*(1+Чувствительность!$B$4) -> 0 | AJ36: =$D36*'Исходные данные'!AK108*(1+Чувствительность!$B$4) -> 0
A37: ='Исходные данные'!A109 -> - | D37: ='Исходные данные'!E109 -> 0 | E37: =$D37*'Исходные данные'!F109*(1+Чувствительность!$B$4) -> 0 | F37: =$D37*'Исходные данные'!G109*(1+Чувствительность!$B$4) -> 0 | G37: =$D37*'Исходные данные'!H109*(1+Чувствительность!$B$4) -> 0 | H37: =$D37*'Исходные данные'!I109*(1+Чувствительность!$B$4) -> 0 | I37: =$D37*'Исходные данные'!J109*(1+Чувствительность!$B$4) -> 0 | J37: =$D37*'Исходные данные'!K109*(1+Чувствительность!$B$4) -> 0 | K37: =$D37*'Исходные данные'!L109*(1+Чувствительность!$B$4) -> 0 | L37: =$D37*'Исходные данные'!M109*(1+Чувствительность!$B$4) -> 0 | M37: =$D37*'Исходные данные'!N109*(1+Чувствительность!$B$4) -> 0 | N37: =$D37*'Исходные данные'!O109*(1+Чувствительность!$B$4) -> 0 | O37: =$D37*'Исходные данные'!P109*(1+Чувствительность!$B$4) -> 0 | P37: =$D37*'Исходные данные'!Q109*(1+Чувствительность!$B$4) -> 0 | Q37: =$D37*'Исходные данные'!R109*(1+Чувствительность!$B$4) -> 0 | R37: =$D37*'Исходные данные'!S109*(1+Чувствительность!$B$4) -> 0 | S37: =$D37*'Исходные данные'!T109*(1+Чувствительность!$B$4) -> 0 | T37: =$D37*'Исходные данные'!U109*(1+Чувствительность!$B$4) -> 0 | U37: =$D37*'Исходные данные'!V109*(1+Чувствительность!$B$4) -> 0 | V37: =$D37*'Исходные данные'!W109*(1+Чувствительность!$B$4) -> 0 | W37: =$D37*'Исходные данные'!X109*(1+Чувствительность!$B$4) -> 0 | X37: =$D37*'Исходные данные'!Y109*(1+Чувствительность!$B$4) -> 0 | Y37: =$D37*'Исходные данные'!Z109*(1+Чувствительность!$B$4) -> 0 | Z37: =$D37*'Исходные данные'!AA109*(1+Чувствительность!$B$4) -> 0 | AA37: =$D37*'Исходные данные'!AB109*(1+Чувствительность!$B$4) -> 0 | AB37: =$D37*'Исходные данные'!AC109*(1+Чувствительность!$B$4) -> 0 | AC37: =$D37*'Исходные данные'!AD109*(1+Чувствительность!$B$4) -> 0 | AD37: =$D37*'Исходные данные'!AE109*(1+Чувствительность!$B$4) -> 0 | AE37: =$D37*'Исходные данные'!AF109*(1+Чувствительность!$B$4) -> 0 | AF37: =$D37*'Исходные данные'!AG109*(1+Чувствительность!$B$4) -> 0 | AG37: =$D37*'Исходные данные'!AH109*(1+Чувствительность!$B$4) -> 0 | AH37: =$D37*'Исходные данные'!AI109*(1+Чувствительность!$B$4) -> 0 | AI37: =$D37*'Исходные данные'!AJ109*(1+Чувствительность!$B$4) -> 0 | AJ37: =$D37*'Исходные данные'!AK109*(1+Чувствительность!$B$4) -> 0
A38: ='Исходные данные'!A110 -> - | D38: ='Исходные данные'!E110 -> 0 | E38: =$D38*'Исходные данные'!F110*(1+Чувствительность!$B$4) -> 0 | F38: =$D38*'Исходные данные'!G110*(1+Чувствительность!$B$4) -> 0 | G38: =$D38*'Исходные данные'!H110*(1+Чувствительность!$B$4) -> 0 | H38: =$D38*'Исходные данные'!I110*(1+Чувствительность!$B$4) -> 0 | I38: =$D38*'Исходные данные'!J110*(1+Чувствительность!$B$4) -> 0 | J38: =$D38*'Исходные данные'!K110*(1+Чувствительность!$B$4) -> 0 | K38: =$D38*'Исходные данные'!L110*(1+Чувствительность!$B$4) -> 0 | L38: =$D38*'Исходные данные'!M110*(1+Чувствительность!$B$4) -> 0 | M38: =$D38*'Исходные данные'!N110*(1+Чувствительность!$B$4) -> 0 | N38: =$D38*'Исходные данные'!O110*(1+Чувствительность!$B$4) -> 0 | O38: =$D38*'Исходные данные'!P110*(1+Чувствительность!$B$4) -> 0 | P38: =$D38*'Исходные данные'!Q110*(1+Чувствительность!$B$4) -> 0 | Q38: =$D38*'Исходные данные'!R110*(1+Чувствительность!$B$4) -> 0 | R38: =$D38*'Исходные данные'!S110*(1+Чувствительность!$B$4) -> 0 | S38: =$D38*'Исходные данные'!T110*(1+Чувствительность!$B$4) -> 0 | T38: =$D38*'Исходные данные'!U110*(1+Чувствительность!$B$4) -> 0 | U38: =$D38*'Исходные данные'!V110*(1+Чувствительность!$B$4) -> 0 | V38: =$D38*'Исходные данные'!W110*(1+Чувствительность!$B$4) -> 0 | W38: =$D38*'Исходные данные'!X110*(1+Чувствительность!$B$4) -> 0 | X38: =$D38*'Исходные данные'!Y110*(1+Чувствительность!$B$4) -> 0 | Y38: =$D38*'Исходные данные'!Z110*(1+Чувствительность!$B$4) -> 0 | Z38: =$D38*'Исходные данные'!AA110*(1+Чувствительность!$B$4) -> 0 | AA38: =$D38*'Исходные данные'!AB110*(1+Чувствительность!$B$4) -> 0 | AB38: =$D38*'Исходные данные'!AC110*(1+Чувствительность!$B$4) -> 0 | AC38: =$D38*'Исходные данные'!AD110*(1+Чувствительность!$B$4) -> 0 | AD38: =$D38*'Исходные данные'!AE110*(1+Чувствительность!$B$4) -> 0 | AE38: =$D38*'Исходные данные'!AF110*(1+Чувствительность!$B$4) -> 0 | AF38: =$D38*'Исходные данные'!AG110*(1+Чувствительность!$B$4) -> 0 | AG38: =$D38*'Исходные данные'!AH110*(1+Чувствительность!$B$4) -> 0 | AH38: =$D38*'Исходные данные'!AI110*(1+Чувствительность!$B$4) -> 0 | AI38: =$D38*'Исходные данные'!AJ110*(1+Чувствительность!$B$4) -> 0 | AJ38: =$D38*'Исходные данные'!AK110*(1+Чувствительность!$B$4) -> 0
A39: ='Исходные данные'!A111 -> - | D39: ='Исходные данные'!E111 -> 0 | E39: =$D39*'Исходные данные'!F111*(1+Чувствительность!$B$4) -> 0 | F39: =$D39*'Исходные данные'!G111*(1+Чувствительность!$B$4) -> 0 | G39: =$D39*'Исходные данные'!H111*(1+Чувствительность!$B$4) -> 0 | H39: =$D39*'Исходные данные'!I111*(1+Чувствительность!$B$4) -> 0 | I39: =$D39*'Исходные данные'!J111*(1+Чувствительность!$B$4) -> 0 | J39: =$D39*'Исходные данные'!K111*(1+Чувствительность!$B$4) -> 0 | K39: =$D39*'Исходные данные'!L111*(1+Чувствительность!$B$4) -> 0 | L39: =$D39*'Исходные данные'!M111*(1+Чувствительность!$B$4) -> 0 | M39: =$D39*'Исходные данные'!N111*(1+Чувствительность!$B$4) -> 0 | N39: =$D39*'Исходные данные'!O111*(1+Чувствительность!$B$4) -> 0 | O39: =$D39*'Исходные данные'!P111*(1+Чувствительность!$B$4) -> 0 | P39: =$D39*'Исходные данные'!Q111*(1+Чувствительность!$B$4) -> 0 | Q39: =$D39*'Исходные данные'!R111*(1+Чувствительность!$B$4) -> 0 | R39: =$D39*'Исходные данные'!S111*(1+Чувствительность!$B$4) -> 0 | S39: =$D39*'Исходные данные'!T111*(1+Чувствительность!$B$4) -> 0 | T39: =$D39*'Исходные данные'!U111*(1+Чувствительность!$B$4) -> 0 | U39: =$D39*'Исходные данные'!V111*(1+Чувствительность!$B$4) -> 0 | V39: =$D39*'Исходные данные'!W111*(1+Чувствительность!$B$4) -> 0 | W39: =$D39*'Исходные данные'!X111*(1+Чувствительность!$B$4) -> 0 | X39: =$D39*'Исходные данные'!Y111*(1+Чувствительность!$B$4) -> 0 | Y39: =$D39*'Исходные данные'!Z111*(1+Чувствительность!$B$4) -> 0 | Z39: =$D39*'Исходные данные'!AA111*(1+Чувствительность!$B$4) -> 0 | AA39: =$D39*'Исходные данные'!AB111*(1+Чувствительность!$B$4) -> 0 | AB39: =$D39*'Исходные данные'!AC111*(1+Чувствительность!$B$4) -> 0 | AC39: =$D39*'Исходные данные'!AD111*(1+Чувствительность!$B$4) -> 0 | AD39: =$D39*'Исходные данные'!AE111*(1+Чувствительность!$B$4) -> 0 | AE39: =$D39*'Исходные данные'!AF111*(1+Чувствительность!$B$4) -> 0 | AF39: =$D39*'Исходные данные'!AG111*(1+Чувствительность!$B$4) -> 0 | AG39: =$D39*'Исходные данные'!AH111*(1+Чувствительность!$B$4) -> 0 | AH39: =$D39*'Исходные данные'!AI111*(1+Чувствительность!$B$4) -> 0 | AI39: =$D39*'Исходные данные'!AJ111*(1+Чувствительность!$B$4) -> 0 | AJ39: =$D39*'Исходные данные'!AK111*(1+Чувствительность!$B$4) -> 0
A40: ='Исходные данные'!A112 -> - | D40: ='Исходные данные'!E112 -> 0 | E40: =$D40*'Исходные данные'!F112*(1+Чувствительность!$B$4) -> 0 | F40: =$D40*'Исходные данные'!G112*(1+Чувствительность!$B$4) -> 0 | G40: =$D40*'Исходные данные'!H112*(1+Чувствительность!$B$4) -> 0 | H40: =$D40*'Исходные данные'!I112*(1+Чувствительность!$B$4) -> 0 | I40: =$D40*'Исходные данные'!J112*(1+Чувствительность!$B$4) -> 0 | J40: =$D40*'Исходные данные'!K112*(1+Чувствительность!$B$4) -> 0 | K40: =$D40*'Исходные данные'!L112*(1+Чувствительность!$B$4) -> 0 | L40: =$D40*'Исходные данные'!M112*(1+Чувствительность!$B$4) -> 0 | M40: =$D40*'Исходные данные'!N112*(1+Чувствительность!$B$4) -> 0 | N40: =$D40*'Исходные данные'!O112*(1+Чувствительность!$B$4) -> 0 | O40: =$D40*'Исходные данные'!P112*(1+Чувствительность!$B$4) -> 0 | P40: =$D40*'Исходные данные'!Q112*(1+Чувствительность!$B$4) -> 0 | Q40: =$D40*'Исходные данные'!R112*(1+Чувствительность!$B$4) -> 0 | R40: =$D40*'Исходные данные'!S112*(1+Чувствительность!$B$4) -> 0 | S40: =$D40*'Исходные данные'!T112*(1+Чувствительность!$B$4) -> 0 | T40: =$D40*'Исходные данные'!U112*(1+Чувствительность!$B$4) -> 0 | U40: =$D40*'Исходные данные'!V112*(1+Чувствительность!$B$4) -> 0 | V40: =$D40*'Исходные данные'!W112*(1+Чувствительность!$B$4) -> 0 | W40: =$D40*'Исходные данные'!X112*(1+Чувствительность!$B$4) -> 0 | X40: =$D40*'Исходные данные'!Y112*(1+Чувствительность!$B$4) -> 0 | Y40: =$D40*'Исходные данные'!Z112*(1+Чувствительность!$B$4) -> 0 | Z40: =$D40*'Исходные данные'!AA112*(1+Чувствительность!$B$4) -> 0 | AA40: =$D40*'Исходные данные'!AB112*(1+Чувствительность!$B$4) -> 0 | AB40: =$D40*'Исходные данные'!AC112*(1+Чувствительность!$B$4) -> 0 | AC40: =$D40*'Исходные данные'!AD112*(1+Чувствительность!$B$4) -> 0 | AD40: =$D40*'Исходные данные'!AE112*(1+Чувствительность!$B$4) -> 0 | AE40: =$D40*'Исходные данные'!AF112*(1+Чувствительность!$B$4) -> 0 | AF40: =$D40*'Исходные данные'!AG112*(1+Чувствительность!$B$4) -> 0 | AG40: =$D40*'Исходные данные'!AH112*(1+Чувствительность!$B$4) -> 0 | AH40: =$D40*'Исходные данные'!AI112*(1+Чувствительность!$B$4) -> 0 | AI40: =$D40*'Исходные данные'!AJ112*(1+Чувствительность!$B$4) -> 0 | AJ40: =$D40*'Исходные данные'!AK112*(1+Чувствительность!$B$4) -> 0
A41: ='Исходные данные'!A113 -> - | D41: ='Исходные данные'!E113 -> 0 | E41: =$D41*'Исходные данные'!F113*(1+Чувствительность!$B$4) -> 0 | F41: =$D41*'Исходные данные'!G113*(1+Чувствительность!$B$4) -> 0 | G41: =$D41*'Исходные данные'!H113*(1+Чувствительность!$B$4) -> 0 | H41: =$D41*'Исходные данные'!I113*(1+Чувствительность!$B$4) -> 0 | I41: =$D41*'Исходные данные'!J113*(1+Чувствительность!$B$4) -> 0 | J41: =$D41*'Исходные данные'!K113*(1+Чувствительность!$B$4) -> 0 | K41: =$D41*'Исходные данные'!L113*(1+Чувствительность!$B$4) -> 0 | L41: =$D41*'Исходные данные'!M113*(1+Чувствительность!$B$4) -> 0 | M41: =$D41*'Исходные данные'!N113*(1+Чувствительность!$B$4) -> 0 | N41: =$D41*'Исходные данные'!O113*(1+Чувствительность!$B$4) -> 0 | O41: =$D41*'Исходные данные'!P113*(1+Чувствительность!$B$4) -> 0 | P41: =$D41*'Исходные данные'!Q113*(1+Чувствительность!$B$4) -> 0 | Q41: =$D41*'Исходные данные'!R113*(1+Чувствительность!$B$4) -> 0 | R41: =$D41*'Исходные данные'!S113*(1+Чувствительность!$B$4) -> 0 | S41: =$D41*'Исходные данные'!T113*(1+Чувствительность!$B$4) -> 0 | T41: =$D41*'Исходные данные'!U113*(1+Чувствительность!$B$4) -> 0 | U41: =$D41*'Исходные данные'!V113*(1+Чувствительность!$B$4) -> 0 | V41: =$D41*'Исходные данные'!W113*(1+Чувствительность!$B$4) -> 0 | W41: =$D41*'Исходные данные'!X113*(1+Чувствительность!$B$4) -> 0 | X41: =$D41*'Исходные данные'!Y113*(1+Чувствительность!$B$4) -> 0 | Y41: =$D41*'Исходные данные'!Z113*(1+Чувствительность!$B$4) -> 0 | Z41: =$D41*'Исходные данные'!AA113*(1+Чувствительность!$B$4) -> 0 | AA41: =$D41*'Исходные данные'!AB113*(1+Чувствительность!$B$4) -> 0 | AB41: =$D41*'Исходные данные'!AC113*(1+Чувствительность!$B$4) -> 0 | AC41: =$D41*'Исходные данные'!AD113*(1+Чувствительность!$B$4) -> 0 | AD41: =$D41*'Исходные данные'!AE113*(1+Чувствительность!$B$4) -> 0 | AE41: =$D41*'Исходные данные'!AF113*(1+Чувствительность!$B$4) -> 0 | AF41: =$D41*'Исходные данные'!AG113*(1+Чувствительность!$B$4) -> 0 | AG41: =$D41*'Исходные данные'!AH113*(1+Чувствительность!$B$4) -> 0 | AH41: =$D41*'Исходные данные'!AI113*(1+Чувствительность!$B$4) -> 0 | AI41: =$D41*'Исходные данные'!AJ113*(1+Чувствительность!$B$4) -> 0 | AJ41: =$D41*'Исходные данные'!AK113*(1+Чувствительность!$B$4) -> 0
A42: ='Исходные данные'!A114 -> - | D42: ='Исходные данные'!E114 -> 0 | E42: =$D42*'Исходные данные'!F114*(1+Чувствительность!$B$4) -> 0 | F42: =$D42*'Исходные данные'!G114*(1+Чувствительность!$B$4) -> 0 | G42: =$D42*'Исходные данные'!H114*(1+Чувствительность!$B$4) -> 0 | H42: =$D42*'Исходные данные'!I114*(1+Чувствительность!$B$4) -> 0 | I42: =$D42*'Исходные данные'!J114*(1+Чувствительность!$B$4) -> 0 | J42: =$D42*'Исходные данные'!K114*(1+Чувствительность!$B$4) -> 0 | K42: =$D42*'Исходные данные'!L114*(1+Чувствительность!$B$4) -> 0 | L42: =$D42*'Исходные данные'!M114*(1+Чувствительность!$B$4) -> 0 | M42: =$D42*'Исходные данные'!N114*(1+Чувствительность!$B$4) -> 0 | N42: =$D42*'Исходные данные'!O114*(1+Чувствительность!$B$4) -> 0 | O42: =$D42*'Исходные данные'!P114*(1+Чувствительность!$B$4) -> 0 | P42: =$D42*'Исходные данные'!Q114*(1+Чувствительность!$B$4) -> 0 | Q42: =$D42*'Исходные данные'!R114*(1+Чувствительность!$B$4) -> 0 | R42: =$D42*'Исходные данные'!S114*(1+Чувствительность!$B$4) -> 0 | S42: =$D42*'Исходные данные'!T114*(1+Чувствительность!$B$4) -> 0 | T42: =$D42*'Исходные данные'!U114*(1+Чувствительность!$B$4) -> 0 | U42: =$D42*'Исходные данные'!V114*(1+Чувствительность!$B$4) -> 0 | V42: =$D42*'Исходные данные'!W114*(1+Чувствительность!$B$4) -> 0 | W42: =$D42*'Исходные данные'!X114*(1+Чувствительность!$B$4) -> 0 | X42: =$D42*'Исходные данные'!Y114*(1+Чувствительность!$B$4) -> 0 | Y42: =$D42*'Исходные данные'!Z114*(1+Чувствительность!$B$4) -> 0 | Z42: =$D42*'Исходные данные'!AA114*(1+Чувствительность!$B$4) -> 0 | AA42: =$D42*'Исходные данные'!AB114*(1+Чувствительность!$B$4) -> 0 | AB42: =$D42*'Исходные данные'!AC114*(1+Чувствительность!$B$4) -> 0 | AC42: =$D42*'Исходные данные'!AD114*(1+Чувствительность!$B$4) -> 0 | AD42: =$D42*'Исходные данные'!AE114*(1+Чувствительность!$B$4) -> 0 | AE42: =$D42*'Исходные данные'!AF114*(1+Чувствительность!$B$4) -> 0 | AF42: =$D42*'Исходные данные'!AG114*(1+Чувствительность!$B$4) -> 0 | AG42: =$D42*'Исходные данные'!AH114*(1+Чувствительность!$B$4) -> 0 | AH42: =$D42*'Исходные данные'!AI114*(1+Чувствительность!$B$4) -> 0 | AI42: =$D42*'Исходные данные'!AJ114*(1+Чувствительность!$B$4) -> 0 | AJ42: =$D42*'Исходные данные'!AK114*(1+Чувствительность!$B$4) -> 0
A43: ='Исходные данные'!A115 -> - | D43: ='Исходные данные'!E115 -> 0 | E43: =$D43*'Исходные данные'!F115*(1+Чувствительность!$B$4) -> 0 | F43: =$D43*'Исходные данные'!G115*(1+Чувствительность!$B$4) -> 0 | G43: =$D43*'Исходные данные'!H115*(1+Чувствительность!$B$4) -> 0 | H43: =$D43*'Исходные данные'!I115*(1+Чувствительность!$B$4) -> 0 | I43: =$D43*'Исходные данные'!J115*(1+Чувствительность!$B$4) -> 0 | J43: =$D43*'Исходные данные'!K115*(1+Чувствительность!$B$4) -> 0 | K43: =$D43*'Исходные данные'!L115*(1+Чувствительность!$B$4) -> 0 | L43: =$D43*'Исходные данные'!M115*(1+Чувствительность!$B$4) -> 0 | M43: =$D43*'Исходные данные'!N115*(1+Чувствительность!$B$4) -> 0 | N43: =$D43*'Исходные данные'!O115*(1+Чувствительность!$B$4) -> 0 | O43: =$D43*'Исходные данные'!P115*(1+Чувствительность!$B$4) -> 0 | P43: =$D43*'Исходные данные'!Q115*(1+Чувствительность!$B$4) -> 0 | Q43: =$D43*'Исходные данные'!R115*(1+Чувствительность!$B$4) -> 0 | R43: =$D43*'Исходные данные'!S115*(1+Чувствительность!$B$4) -> 0 | S43: =$D43*'Исходные данные'!T115*(1+Чувствительность!$B$4) -> 0 | T43: =$D43*'Исходные данные'!U115*(1+Чувствительность!$B$4) -> 0 | U43: =$D43*'Исходные данные'!V115*(1+Чувствительность!$B$4) -> 0 | V43: =$D43*'Исходные данные'!W115*(1+Чувствительность!$B$4) -> 0 | W43: =$D43*'Исходные данные'!X115*(1+Чувствительность!$B$4) -> 0 | X43: =$D43*'Исходные данные'!Y115*(1+Чувствительность!$B$4) -> 0 | Y43: =$D43*'Исходные данные'!Z115*(1+Чувствительность!$B$4) -> 0 | Z43: =$D43*'Исходные данные'!AA115*(1+Чувствительность!$B$4) -> 0 | AA43: =$D43*'Исходные данные'!AB115*(1+Чувствительность!$B$4) -> 0 | AB43: =$D43*'Исходные данные'!AC115*(1+Чувствительность!$B$4) -> 0 | AC43: =$D43*'Исходные данные'!AD115*(1+Чувствительность!$B$4) -> 0 | AD43: =$D43*'Исходные данные'!AE115*(1+Чувствительность!$B$4) -> 0 | AE43: =$D43*'Исходные данные'!AF115*(1+Чувствительность!$B$4) -> 0 | AF43: =$D43*'Исходные данные'!AG115*(1+Чувствительность!$B$4) -> 0 | AG43: =$D43*'Исходные данные'!AH115*(1+Чувствительность!$B$4) -> 0 | AH43: =$D43*'Исходные данные'!AI115*(1+Чувствительность!$B$4) -> 0 | AI43: =$D43*'Исходные данные'!AJ115*(1+Чувствительность!$B$4) -> 0 | AJ43: =$D43*'Исходные данные'!AK115*(1+Чувствительность!$B$4) -> 0
A44: ИТОГО | D44: =SUM(D28:D43) -> 610000 | E44: 305000 | F44: 305000 | G44: 0 | H44: 0 | I44: 0 | J44: 0 | K44: 0 | L44: 0 | M44: 0 | N44: 0 | O44: 0 | P44: 0 | Q44: 0 | R44: 0 | S44: 0 | T44: 0 | U44: 0 | V44: 0 | W44: 0 | X44: 0 | Y44: 0 | Z44: 0 | AA44: 0 | AB44: 0 | AC44: 0 | AD44: =SUM(AD28:AD43) -> 0 | AE44: 0 | AF44: 0 | AG44: 0 | AH44: 0 | AI44: 0 | AJ44: 0
A46: Прочие затраты на Инвестиционной стадии
B47: Начало | C47: Окончание | D47: Годовые затраты, тыс.руб.
A48: ='Исходные данные'!A134 -> статья 1 прочих расходов - указать наименование | B48: ='Исходные данные'!$E$11 -> 2019-01-01 | C48: ='Исходные данные'!$E$12 -> 2020-12-31 | D48: ='Исходные данные'!E134 -> 0 | E48: =MAX(0,1+MIN(Капзатраты_Выручка!E$2,$C48)-MAX(Капзатраты_Выручка!E$1,$B48))/IF(MOD(Капзатраты_Выручка!E$4,4)=0,366,365)*$D48*(1+Чувствительность!$B$5) -> 0 | F48: =MAX(0,1+MIN(Капзатраты_Выручка!F$2,$C48)-MAX(Капзатраты_Выручка!F$1,$B48))/IF(MOD(Капзатраты_Выручка!F$4,4)=0,366,365)*$D48*(1+Чувствительность!$B$5) -> 0 | G48: =MAX(0,1+MIN(Капзатраты_Выручка!G$2,$C48)-MAX(Капзатраты_Выручка!G$1,$B48))/IF(MOD(Капзатраты_Выручка!G$4,4)=0,366,365)*$D48*(1+Чувствительность!$B$5) -> 0 | H48: =MAX(0,1+MIN(Капзатраты_Выручка!H$2,$C48)-MAX(Капзатраты_Выручка!H$1,$B48))/IF(MOD(Капзатраты_Выручка!H$4,4)=0,366,365)*$D48*(1+Чувствительность!$B$5) -> 0 | I48: =MAX(0,1+MIN(Капзатраты_Выручка!I$2,$C48)-MAX(Капзатраты_Выручка!I$1,$B48))/IF(MOD(Капзатраты_Выручка!I$4,4)=0,366,365)*$D48*(1+Чувствительность!$B$5) -> 0 | J48: =MAX(0,1+MIN(Капзатраты_Выручка!J$2,$C48)-MAX(Капзатраты_Выручка!J$1,$B48))/IF(MOD(Капзатраты_Выручка!J$4,4)=0,366,365)*$D48*(1+Чувствительность!$B$5) -> 0 | K48: =MAX(0,1+MIN(Капзатраты_Выручка!K$2,$C48)-MAX(Капзатраты_Выручка!K$1,$B48))/IF(MOD(Капзатраты_Выручка!K$4,4)=0,366,365)*$D48*(1+Чувствительность!$B$5) -> 0 | L48: =MAX(0,1+MIN(Капзатраты_Выручка!L$2,$C48)-MAX(Капзатраты_Выручка!L$1,$B48))/IF(MOD(Капзатраты_Выручка!L$4,4)=0,366,365)*$D48*(1+Чувствительность!$B$5) -> 0 | M48: =MAX(0,1+MIN(Капзатраты_Выручка!M$2,$C48)-MAX(Капзатраты_Выручка!M$1,$B48))/IF(MOD(Капзатраты_Выручка!M$4,4)=0,366,365)*$D48*(1+Чувствительность!$B$5) -> 0 | N48: =MAX(0,1+MIN(Капзатраты_Выручка!N$2,$C48)-MAX(Капзатраты_Выручка!N$1,$B48))/IF(MOD(Капзатраты_Выручка!N$4,4)=0,366,365)*$D48*(1+Чувствительность!$B$5) -> 0 | O48: =MAX(0,1+MIN(Капзатраты_Выручка!O$2,$C48)-MAX(Капзатраты_Выручка!O$1,$B48))/IF(MOD(Капзатраты_Выручка!O$4,4)=0,366,365)*$D48*(1+Чувствительность!$B$5) -> 0 | P48: =MAX(0,1+MIN(Капзатраты_Выручка!P$2,$C48)-MAX(Капзатраты_Выручка!P$1,$B48))/IF(MOD(Капзатраты_Выручка!P$4,4)=0,366,365)*$D48*(1+Чувствительность!$B$5) -> 0 | Q48: =MAX(0,1+MIN(Капзатраты_Выручка!Q$2,$C48)-MAX(Капзатраты_Выручка!Q$1,$B48))/IF(MOD(Капзатраты_Выручка!Q$4,4)=0,366,365)*$D48*(1+Чувствительность!$B$5) -> 0 | R48: =MAX(0,1+MIN(Капзатраты_Выручка!R$2,$C48)-MAX(Капзатраты_Выручка!R$1,$B48))/IF(MOD(Капзатраты_Выручка!R$4,4)=0,366,365)*$D48*(1+Чувствительность!$B$5) -> 0 | S48: =MAX(0,1+MIN(Капзатраты_Выручка!S$2,$C48)-MAX(Капзатраты_Выручка!S$1,$B48))/IF(MOD(Капзатраты_Выручка!S$4,4)=0,366,365)*$D48*(1+Чувствительность!$B$5) -> 0 | T48: =MAX(0,1+MIN(Капзатраты_Выручка!T$2,$C48)-MAX(Капзатраты_Выручка!T$1,$B48))/IF(MOD(Капзатраты_Выручка!T$4,4)=0,366,365)*$D48*(1+Чувствительность!$B$5) -> 0 | U48: =MAX(0,1+MIN(Капзатраты_Выручка!U$2,$C48)-MAX(Капзатраты_Выручка!U$1,$B48))/IF(MOD(Капзатраты_Выручка!U$4,4)=0,366,365)*$D48*(1+Чувствительность!$B$5) -> 0 | V48: =MAX(0,1+MIN(Капзатраты_Выручка!V$2,$C48)-MAX(Капзатраты_Выручка!V$1,$B48))/IF(MOD(Капзатраты_Выручка!V$4,4)=0,366,365)*$D48*(1+Чувствительность!$B$5) -> 0 | W48: =MAX(0,1+MIN(Капзатраты_Выручка!W$2,$C48)-MAX(Капзатраты_Выручка!W$1,$B48))/IF(MOD(Капзатраты_Выручка!W$4,4)=0,366,365)*$D48*(1+Чувствительность!$B$5) -> 0 | X48: =MAX(0,1+MIN(Капзатраты_Выручка!X$2,$C48)-MAX(Капзатраты_Выручка!X$1,$B48))/IF(MOD(Капзатраты_Выручка!X$4,4)=0,366,365)*$D48*(1+Чувствительность!$B$5) -> 0 | Y48: =MAX(0,1+MIN(Капзатраты_Выручка!Y$2,$C48)-MAX(Капзатраты_Выручка!Y$1,$B48))/IF(MOD(Капзатраты_Выручка!Y$4,4)=0,366,365)*$D48*(1+Чувствительность!$B$5) -> 0 | Z48: =MAX(0,1+MIN(Капзатраты_Выручка!Z$2,$C48)-MAX(Капзатраты_Выручка!Z$1,$B48))/IF(MOD(Капзатраты_Выручка!Z$4,4)=0,366,365)*$D48*(1+Чувствительность!$B$5) -> 0 | AA48: =MAX(0,1+MIN(Капзатраты_Выручка!AA$2,$C48)-MAX(Капзатраты_Выручка!AA$1,$B48))/IF(MOD(Капзатраты_Выручка!AA$4,4)=0,366,365)*$D48*(1+Чувствительность!$B$5) -> 0 | AB48: =MAX(0,1+MIN(Капзатраты_Выручка!AB$2,$C48)-MAX(Капзатраты_Выручка!AB$1,$B48))/IF(MOD(Капзатраты_Выручка!AB$4,4)=0,366,365)*$D48*(1+Чувствительность!$B$5) -> 0 | AC48: =MAX(0,1+MIN(Капзатраты_Выручка!AC$2,$C48)-MAX(Капзатраты_Выручка!AC$1,$B48))/IF(MOD(Капзатраты_Выручка!AC$4,4)=0,366,365)*$D48*(1+Чувствительность!$B$5) -> 0 | AD48: =MAX(0,1+MIN(Капзатраты_Выручка!AD$2,$C48)-MAX(Капзатраты_Выручка!AD$1,$B48))/IF(MOD(Капзатраты_Выручка!AD$4,4)=0,366,365)*$D48*(1+Чувствительность!$B$5) -> 0 | AE48: =MAX(0,1+MIN(Капзатраты_Выручка!AE$2,$C48)-MAX(Капзатраты_Выручка!AE$1,$B48))/IF(MOD(Капзатраты_Выручка!AE$4,4)=0,366,365)*$D48*(1+Чувствительность!$B$5) -> 0 | AF48: =MAX(0,1+MIN(Капзатраты_Выручка!AF$2,$C48)-MAX(Капзатраты_Выручка!AF$1,$B48))/IF(MOD(Капзатраты_Выручка!AF$4,4)=0,366,365)*$D48*(1+Чувствительность!$B$5) -> 0 | AG48: =MAX(0,1+MIN(Капзатраты_Выручка!AG$2,$C48)-MAX(Капзатраты_Выручка!AG$1,$B48))/IF(MOD(Капзатраты_Выручка!AG$4,4)=0,366,365)*$D48*(1+Чувствительность!$B$5) -> 0 | AH48: =MAX(0,1+MIN(Капзатраты_Выручка!AH$2,$C48)-MAX(Капзатраты_Выручка!AH$1,$B48))/IF(MOD(Капзатраты_Выручка!AH$4,4)=0,366,365)*$D48*(1+Чувствительность!$B$5) -> 0 | AI48: =MAX(0,1+MIN(Капзатраты_Выручка!AI$2,$C48)-MAX(Капзатраты_Выручка!AI$1,$B48))/IF(MOD(Капзатраты_Выручка!AI$4,4)=0,366,365)*$D48*(1+Чувствительность!$B$5) -> 0 | AJ48: =MAX(0,1+MIN(Капзатраты_Выручка!AJ$2,$C48)-MAX(Капзатраты_Выручка!AJ$1,$B48))/IF(MOD(Капзатраты_Выручка!AJ$4,4)=0,366,365)*$D48*(1+Чувствительность!$B$5) -> 0
A49: ='Исходные данные'!A135 -> статья 2 прочих расходов | B49: ='Исходные данные'!$E$11 -> 2019-01-01 | C49: ='Исходные данные'!$E$12 -> 2020-12-31 | D49: ='Исходные данные'!E135 -> 0 | E49: =MAX(0,1+MIN(Капзатраты_Выручка!E$2,$C49)-MAX(Капзатраты_Выручка!E$1,$B49))/IF(MOD(Капзатраты_Выручка!E$4,4)=0,366,365)*$D49*(1+Чувствительность!$B$5) -> 0 | F49: =MAX(0,1+MIN(Капзатраты_Выручка!F$2,$C49)-MAX(Капзатраты_Выручка!F$1,$B49))/IF(MOD(Капзатраты_Выручка!F$4,4)=0,366,365)*$D49*(1+Чувствительность!$B$5) -> 0 | G49: =MAX(0,1+MIN(Капзатраты_Выручка!G$2,$C49)-MAX(Капзатраты_Выручка!G$1,$B49))/IF(MOD(Капзатраты_Выручка!G$4,4)=0,366,365)*$D49*(1+Чувствительность!$B$5) -> 0 | H49: =MAX(0,1+MIN(Капзатраты_Выручка!H$2,$C49)-MAX(Капзатраты_Выручка!H$1,$B49))/IF(MOD(Капзатраты_Выручка!H$4,4)=0,366,365)*$D49*(1+Чувствительность!$B$5) -> 0 | I49: =MAX(0,1+MIN(Капзатраты_Выручка!I$2,$C49)-MAX(Капзатраты_Выручка!I$1,$B49))/IF(MOD(Капзатраты_Выручка!I$4,4)=0,366,365)*$D49*(1+Чувствительность!$B$5) -> 0 | J49: =MAX(0,1+MIN(Капзатраты_Выручка!J$2,$C49)-MAX(Капзатраты_Выручка!J$1,$B49))/IF(MOD(Капзатраты_Выручка!J$4,4)=0,366,365)*$D49*(1+Чувствительность!$B$5) -> 0 | K49: =MAX(0,1+MIN(Капзатраты_Выручка!K$2,$C49)-MAX(Капзатраты_Выручка!K$1,$B49))/IF(MOD(Капзатраты_Выручка!K$4,4)=0,366,365)*$D49*(1+Чувствительность!$B$5) -> 0 | L49: =MAX(0,1+MIN(Капзатраты_Выручка!L$2,$C49)-MAX(Капзатраты_Выручка!L$1,$B49))/IF(MOD(Капзатраты_Выручка!L$4,4)=0,366,365)*$D49*(1+Чувствительность!$B$5) -> 0 | M49: =MAX(0,1+MIN(Капзатраты_Выручка!M$2,$C49)-MAX(Капзатраты_Выручка!M$1,$B49))/IF(MOD(Капзатраты_Выручка!M$4,4)=0,366,365)*$D49*(1+Чувствительность!$B$5) -> 0 | N49: =MAX(0,1+MIN(Капзатраты_Выручка!N$2,$C49)-MAX(Капзатраты_Выручка!N$1,$B49))/IF(MOD(Капзатраты_Выручка!N$4,4)=0,366,365)*$D49*(1+Чувствительность!$B$5) -> 0 | O49: =MAX(0,1+MIN(Капзатраты_Выручка!O$2,$C49)-MAX(Капзатраты_Выручка!O$1,$B49))/IF(MOD(Капзатраты_Выручка!O$4,4)=0,366,365)*$D49*(1+Чувствительность!$B$5) -> 0 | P49: =MAX(0,1+MIN(Капзатраты_Выручка!P$2,$C49)-MAX(Капзатраты_Выручка!P$1,$B49))/IF(MOD(Капзатраты_Выручка!P$4,4)=0,366,365)*$D49*(1+Чувствительность!$B$5) -> 0 | Q49: =MAX(0,1+MIN(Капзатраты_Выручка!Q$2,$C49)-MAX(Капзатраты_Выручка!Q$1,$B49))/IF(MOD(Капзатраты_Выручка!Q$4,4)=0,366,365)*$D49*(1+Чувствительность!$B$5) -> 0 | R49: =MAX(0,1+MIN(Капзатраты_Выручка!R$2,$C49)-MAX(Капзатраты_Выручка!R$1,$B49))/IF(MOD(Капзатраты_Выручка!R$4,4)=0,366,365)*$D49*(1+Чувствительность!$B$5) -> 0 | S49: =MAX(0,1+MIN(Капзатраты_Выручка!S$2,$C49)-MAX(Капзатраты_Выручка!S$1,$B49))/IF(MOD(Капзатраты_Выручка!S$4,4)=0,366,365)*$D49*(1+Чувствительность!$B$5) -> 0 | T49: =MAX(0,1+MIN(Капзатраты_Выручка!T$2,$C49)-MAX(Капзатраты_Выручка!T$1,$B49))/IF(MOD(Капзатраты_Выручка!T$4,4)=0,366,365)*$D49*(1+Чувствительность!$B$5) -> 0 | U49: =MAX(0,1+MIN(Капзатраты_Выручка!U$2,$C49)-MAX(Капзатраты_Выручка!U$1,$B49))/IF(MOD(Капзатраты_Выручка!U$4,4)=0,366,365)*$D49*(1+Чувствительность!$B$5) -> 0 | V49: =MAX(0,1+MIN(Капзатраты_Выручка!V$2,$C49)-MAX(Капзатраты_Выручка!V$1,$B49))/IF(MOD(Капзатраты_Выручка!V$4,4)=0,366,365)*$D49*(1+Чувствительность!$B$5) -> 0 | W49: =MAX(0,1+MIN(Капзатраты_Выручка!W$2,$C49)-MAX(Капзатраты_Выручка!W$1,$B49))/IF(MOD(Капзатраты_Выручка!W$4,4)=0,366,365)*$D49*(1+Чувствительность!$B$5) -> 0 | X49: =MAX(0,1+MIN(Капзатраты_Выручка!X$2,$C49)-MAX(Капзатраты_Выручка!X$1,$B49))/IF(MOD(Капзатраты_Выручка!X$4,4)=0,366,365)*$D49*(1+Чувствительность!$B$5) -> 0 | Y49: =MAX(0,1+MIN(Капзатраты_Выручка!Y$2,$C49)-MAX(Капзатраты_Выручка!Y$1,$B49))/IF(MOD(Капзатраты_Выручка!Y$4,4)=0,366,365)*$D49*(1+Чувствительность!$B$5) -> 0 | Z49: =MAX(0,1+MIN(Капзатраты_Выручка!Z$2,$C49)-MAX(Капзатраты_Выручка!Z$1,$B49))/IF(MOD(Капзатраты_Выручка!Z$4,4)=0,366,365)*$D49*(1+Чувствительность!$B$5) -> 0 | AA49: =MAX(0,1+MIN(Капзатраты_Выручка!AA$2,$C49)-MAX(Капзатраты_Выручка!AA$1,$B49))/IF(MOD(Капзатраты_Выручка!AA$4,4)=0,366,365)*$D49*(1+Чувствительность!$B$5) -> 0 | AB49: =MAX(0,1+MIN(Капзатраты_Выручка!AB$2,$C49)-MAX(Капзатраты_Выручка!AB$1,$B49))/IF(MOD(Капзатраты_Выручка!AB$4,4)=0,366,365)*$D49*(1+Чувствительность!$B$5) -> 0 | AC49: =MAX(0,1+MIN(Капзатраты_Выручка!AC$2,$C49)-MAX(Капзатраты_Выручка!AC$1,$B49))/IF(MOD(Капзатраты_Выручка!AC$4,4)=0,366,365)*$D49*(1+Чувствительность!$B$5) -> 0 | AD49: =MAX(0,1+MIN(Капзатраты_Выручка!AD$2,$C49)-MAX(Капзатраты_Выручка!AD$1,$B49))/IF(MOD(Капзатраты_Выручка!AD$4,4)=0,366,365)*$D49*(1+Чувствительность!$B$5) -> 0 | AE49: =MAX(0,1+MIN(Капзатраты_Выручка!AE$2,$C49)-MAX(Капзатраты_Выручка!AE$1,$B49))/IF(MOD(Капзатраты_Выручка!AE$4,4)=0,366,365)*$D49*(1+Чувствительность!$B$5) -> 0 | AF49: =MAX(0,1+MIN(Капзатраты_Выручка!AF$2,$C49)-MAX(Капзатраты_Выручка!AF$1,$B49))/IF(MOD(Капзатраты_Выручка!AF$4,4)=0,366,365)*$D49*(1+Чувствительность!$B$5) -> 0 | AG49: =MAX(0,1+MIN(Капзатраты_Выручка!AG$2,$C49)-MAX(Капзатраты_Выручка!AG$1,$B49))/IF(MOD(Капзатраты_Выручка!AG$4,4)=0,366,365)*$D49*(1+Чувствительность!$B$5) -> 0 | AH49: =MAX(0,1+MIN(Капзатраты_Выручка!AH$2,$C49)-MAX(Капзатраты_Выручка!AH$1,$B49))/IF(MOD(Капзатраты_Выручка!AH$4,4)=0,366,365)*$D49*(1+Чувствительность!$B$5) -> 0 | AI49: =MAX(0,1+MIN(Капзатраты_Выручка!AI$2,$C49)-MAX(Капзатраты_Выручка!AI$1,$B49))/IF(MOD(Капзатраты_Выручка!AI$4,4)=0,366,365)*$D49*(1+Чувствительность!$B$5) -> 0 | AJ49: =MAX(0,1+MIN(Капзатраты_Выручка!AJ$2,$C49)-MAX(Капзатраты_Выручка!AJ$1,$B49))/IF(MOD(Капзатраты_Выручка!AJ$4,4)=0,366,365)*$D49*(1+Чувствительность!$B$5) -> 0
A50: ='Исходные данные'!A136 -> статья 3 прочих расходов | B50: ='Исходные данные'!$E$11 -> 2019-01-01 | C50: ='Исходные данные'!$E$12 -> 2020-12-31 | D50: ='Исходные данные'!E136 -> 0 | E50: =MAX(0,1+MIN(Капзатраты_Выручка!E$2,$C50)-MAX(Капзатраты_Выручка!E$1,$B50))/IF(MOD(Капзатраты_Выручка!E$4,4)=0,366,365)*$D50*(1+Чувствительность!$B$5) -> 0 | F50: =MAX(0,1+MIN(Капзатраты_Выручка!F$2,$C50)-MAX(Капзатраты_Выручка!F$1,$B50))/IF(MOD(Капзатраты_Выручка!F$4,4)=0,366,365)*$D50*(1+Чувствительность!$B$5) -> 0 | G50: =MAX(0,1+MIN(Капзатраты_Выручка!G$2,$C50)-MAX(Капзатраты_Выручка!G$1,$B50))/IF(MOD(Капзатраты_Выручка!G$4,4)=0,366,365)*$D50*(1+Чувствительность!$B$5) -> 0 | H50: =MAX(0,1+MIN(Капзатраты_Выручка!H$2,$C50)-MAX(Капзатраты_Выручка!H$1,$B50))/IF(MOD(Капзатраты_Выручка!H$4,4)=0,366,365)*$D50*(1+Чувствительность!$B$5) -> 0 | I50: =MAX(0,1+MIN(Капзатраты_Выручка!I$2,$C50)-MAX(Капзатраты_Выручка!I$1,$B50))/IF(MOD(Капзатраты_Выручка!I$4,4)=0,366,365)*$D50*(1+Чувствительность!$B$5) -> 0 | J50: =MAX(0,1+MIN(Капзатраты_Выручка!J$2,$C50)-MAX(Капзатраты_Выручка!J$1,$B50))/IF(MOD(Капзатраты_Выручка!J$4,4)=0,366,365)*$D50*(1+Чувствительность!$B$5) -> 0 | K50: =MAX(0,1+MIN(Капзатраты_Выручка!K$2,$C50)-MAX(Капзатраты_Выручка!K$1,$B50))/IF(MOD(Капзатраты_Выручка!K$4,4)=0,366,365)*$D50*(1+Чувствительность!$B$5) -> 0 | L50: =MAX(0,1+MIN(Капзатраты_Выручка!L$2,$C50)-MAX(Капзатраты_Выручка!L$1,$B50))/IF(MOD(Капзатраты_Выручка!L$4,4)=0,366,365)*$D50*(1+Чувствительность!$B$5) -> 0 | M50: =MAX(0,1+MIN(Капзатраты_Выручка!M$2,$C50)-MAX(Капзатраты_Выручка!M$1,$B50))/IF(MOD(Капзатраты_Выручка!M$4,4)=0,366,365)*$D50*(1+Чувствительность!$B$5) -> 0 | N50: =MAX(0,1+MIN(Капзатраты_Выручка!N$2,$C50)-MAX(Капзатраты_Выручка!N$1,$B50))/IF(MOD(Капзатраты_Выручка!N$4,4)=0,366,365)*$D50*(1+Чувствительность!$B$5) -> 0 | O50: =MAX(0,1+MIN(Капзатраты_Выручка!O$2,$C50)-MAX(Капзатраты_Выручка!O$1,$B50))/IF(MOD(Капзатраты_Выручка!O$4,4)=0,366,365)*$D50*(1+Чувствительность!$B$5) -> 0 | P50: =MAX(0,1+MIN(Капзатраты_Выручка!P$2,$C50)-MAX(Капзатраты_Выручка!P$1,$B50))/IF(MOD(Капзатраты_Выручка!P$4,4)=0,366,365)*$D50*(1+Чувствительность!$B$5) -> 0 | Q50: =MAX(0,1+MIN(Капзатраты_Выручка!Q$2,$C50)-MAX(Капзатраты_Выручка!Q$1,$B50))/IF(MOD(Капзатраты_Выручка!Q$4,4)=0,366,365)*$D50*(1+Чувствительность!$B$5) -> 0 | R50: =MAX(0,1+MIN(Капзатраты_Выручка!R$2,$C50)-MAX(Капзатраты_Выручка!R$1,$B50))/IF(MOD(Капзатраты_Выручка!R$4,4)=0,366,365)*$D50*(1+Чувствительность!$B$5) -> 0 | S50: =MAX(0,1+MIN(Капзатраты_Выручка!S$2,$C50)-MAX(Капзатраты_Выручка!S$1,$B50))/IF(MOD(Капзатраты_Выручка!S$4,4)=0,366,365)*$D50*(1+Чувствительность!$B$5) -> 0 | T50: =MAX(0,1+MIN(Капзатраты_Выручка!T$2,$C50)-MAX(Капзатраты_Выручка!T$1,$B50))/IF(MOD(Капзатраты_Выручка!T$4,4)=0,366,365)*$D50*(1+Чувствительность!$B$5) -> 0 | U50: =MAX(0,1+MIN(Капзатраты_Выручка!U$2,$C50)-MAX(Капзатраты_Выручка!U$1,$B50))/IF(MOD(Капзатраты_Выручка!U$4,4)=0,366,365)*$D50*(1+Чувствительность!$B$5) -> 0 | V50: =MAX(0,1+MIN(Капзатраты_Выручка!V$2,$C50)-MAX(Капзатраты_Выручка!V$1,$B50))/IF(MOD(Капзатраты_Выручка!V$4,4)=0,366,365)*$D50*(1+Чувствительность!$B$5) -> 0 | W50: =MAX(0,1+MIN(Капзатраты_Выручка!W$2,$C50)-MAX(Капзатраты_Выручка!W$1,$B50))/IF(MOD(Капзатраты_Выручка!W$4,4)=0,366,365)*$D50*(1+Чувствительность!$B$5) -> 0 | X50: =MAX(0,1+MIN(Капзатраты_Выручка!X$2,$C50)-MAX(Капзатраты_Выручка!X$1,$B50))/IF(MOD(Капзатраты_Выручка!X$4,4)=0,366,365)*$D50*(1+Чувствительность!$B$5) -> 0 | Y50: =MAX(0,1+MIN(Капзатраты_Выручка!Y$2,$C50)-MAX(Капзатраты_Выручка!Y$1,$B50))/IF(MOD(Капзатраты_Выручка!Y$4,4)=0,366,365)*$D50*(1+Чувствительность!$B$5) -> 0 | Z50: =MAX(0,1+MIN(Капзатраты_Выручка!Z$2,$C50)-MAX(Капзатраты_Выручка!Z$1,$B50))/IF(MOD(Капзатраты_Выручка!Z$4,4)=0,366,365)*$D50*(1+Чувствительность!$B$5) -> 0 | AA50: =MAX(0,1+MIN(Капзатраты_Выручка!AA$2,$C50)-MAX(Капзатраты_Выручка!AA$1,$B50))/IF(MOD(Капзатраты_Выручка!AA$4,4)=0,366,365)*$D50*(1+Чувствительность!$B$5) -> 0 | AB50: =MAX(0,1+MIN(Капзатраты_Выручка!AB$2,$C50)-MAX(Капзатраты_Выручка!AB$1,$B50))/IF(MOD(Капзатраты_Выручка!AB$4,4)=0,366,365)*$D50*(1+Чувствительность!$B$5) -> 0 | AC50: =MAX(0,1+MIN(Капзатраты_Выручка!AC$2,$C50)-MAX(Капзатраты_Выручка!AC$1,$B50))/IF(MOD(Капзатраты_Выручка!AC$4,4)=0,366,365)*$D50*(1+Чувствительность!$B$5) -> 0 | AD50: =MAX(0,1+MIN(Капзатраты_Выручка!AD$2,$C50)-MAX(Капзатраты_Выручка!AD$1,$B50))/IF(MOD(Капзатраты_Выручка!AD$4,4)=0,366,365)*$D50*(1+Чувствительность!$B$5) -> 0 | AE50: =MAX(0,1+MIN(Капзатраты_Выручка!AE$2,$C50)-MAX(Капзатраты_Выручка!AE$1,$B50))/IF(MOD(Капзатраты_Выручка!AE$4,4)=0,366,365)*$D50*(1+Чувствительность!$B$5) -> 0 | AF50: =MAX(0,1+MIN(Капзатраты_Выручка!AF$2,$C50)-MAX(Капзатраты_Выручка!AF$1,$B50))/IF(MOD(Капзатраты_Выручка!AF$4,4)=0,366,365)*$D50*(1+Чувствительность!$B$5) -> 0 | AG50: =MAX(0,1+MIN(Капзатраты_Выручка!AG$2,$C50)-MAX(Капзатраты_Выручка!AG$1,$B50))/IF(MOD(Капзатраты_Выручка!AG$4,4)=0,366,365)*$D50*(1+Чувствительность!$B$5) -> 0 | AH50: =MAX(0,1+MIN(Капзатраты_Выручка!AH$2,$C50)-MAX(Капзатраты_Выручка!AH$1,$B50))/IF(MOD(Капзатраты_Выручка!AH$4,4)=0,366,365)*$D50*(1+Чувствительность!$B$5) -> 0 | AI50: =MAX(0,1+MIN(Капзатраты_Выручка!AI$2,$C50)-MAX(Капзатраты_Выручка!AI$1,$B50))/IF(MOD(Капзатраты_Выручка!AI$4,4)=0,366,365)*$D50*(1+Чувствительность!$B$5) -> 0 | AJ50: =MAX(0,1+MIN(Капзатраты_Выручка!AJ$2,$C50)-MAX(Капзатраты_Выручка!AJ$1,$B50))/IF(MOD(Капзатраты_Выручка!AJ$4,4)=0,366,365)*$D50*(1+Чувствительность!$B$5) -> 0
A51: ='Исходные данные'!A137 -> статья 4 прочих расходов | B51: ='Исходные данные'!$E$11 -> 2019-01-01 | C51: ='Исходные данные'!$E$12 -> 2020-12-31 | D51: ='Исходные данные'!E137 -> 0 | E51: =MAX(0,1+MIN(Капзатраты_Выручка!E$2,$C51)-MAX(Капзатраты_Выручка!E$1,$B51))/IF(MOD(Капзатраты_Выручка!E$4,4)=0,366,365)*$D51*(1+Чувствительность!$B$5) -> 0 | F51: =MAX(0,1+MIN(Капзатраты_Выручка!F$2,$C51)-MAX(Капзатраты_Выручка!F$1,$B51))/IF(MOD(Капзатраты_Выручка!F$4,4)=0,366,365)*$D51*(1+Чувствительность!$B$5) -> 0 | G51: =MAX(0,1+MIN(Капзатраты_Выручка!G$2,$C51)-MAX(Капзатраты_Выручка!G$1,$B51))/IF(MOD(Капзатраты_Выручка!G$4,4)=0,366,365)*$D51*(1+Чувствительность!$B$5) -> 0 | H51: =MAX(0,1+MIN(Капзатраты_Выручка!H$2,$C51)-MAX(Капзатраты_Выручка!H$1,$B51))/IF(MOD(Капзатраты_Выручка!H$4,4)=0,366,365)*$D51*(1+Чувствительность!$B$5) -> 0 | I51: =MAX(0,1+MIN(Капзатраты_Выручка!I$2,$C51)-MAX(Капзатраты_Выручка!I$1,$B51))/IF(MOD(Капзатраты_Выручка!I$4,4)=0,366,365)*$D51*(1+Чувствительность!$B$5) -> 0 | J51: =MAX(0,1+MIN(Капзатраты_Выручка!J$2,$C51)-MAX(Капзатраты_Выручка!J$1,$B51))/IF(MOD(Капзатраты_Выручка!J$4,4)=0,366,365)*$D51*(1+Чувствительность!$B$5) -> 0 | K51: =MAX(0,1+MIN(Капзатраты_Выручка!K$2,$C51)-MAX(Капзатраты_Выручка!K$1,$B51))/IF(MOD(Капзатраты_Выручка!K$4,4)=0,366,365)*$D51*(1+Чувствительность!$B$5) -> 0 | L51: =MAX(0,1+MIN(Капзатраты_Выручка!L$2,$C51)-MAX(Капзатраты_Выручка!L$1,$B51))/IF(MOD(Капзатраты_Выручка!L$4,4)=0,366,365)*$D51*(1+Чувствительность!$B$5) -> 0 | M51: =MAX(0,1+MIN(Капзатраты_Выручка!M$2,$C51)-MAX(Капзатраты_Выручка!M$1,$B51))/IF(MOD(Капзатраты_Выручка!M$4,4)=0,366,365)*$D51*(1+Чувствительность!$B$5) -> 0 | N51: =MAX(0,1+MIN(Капзатраты_Выручка!N$2,$C51)-MAX(Капзатраты_Выручка!N$1,$B51))/IF(MOD(Капзатраты_Выручка!N$4,4)=0,366,365)*$D51*(1+Чувствительность!$B$5) -> 0 | O51: =MAX(0,1+MIN(Капзатраты_Выручка!O$2,$C51)-MAX(Капзатраты_Выручка!O$1,$B51))/IF(MOD(Капзатраты_Выручка!O$4,4)=0,366,365)*$D51*(1+Чувствительность!$B$5) -> 0 | P51: =MAX(0,1+MIN(Капзатраты_Выручка!P$2,$C51)-MAX(Капзатраты_Выручка!P$1,$B51))/IF(MOD(Капзатраты_Выручка!P$4,4)=0,366,365)*$D51*(1+Чувствительность!$B$5) -> 0 | Q51: =MAX(0,1+MIN(Капзатраты_Выручка!Q$2,$C51)-MAX(Капзатраты_Выручка!Q$1,$B51))/IF(MOD(Капзатраты_Выручка!Q$4,4)=0,366,365)*$D51*(1+Чувствительность!$B$5) -> 0 | R51: =MAX(0,1+MIN(Капзатраты_Выручка!R$2,$C51)-MAX(Капзатраты_Выручка!R$1,$B51))/IF(MOD(Капзатраты_Выручка!R$4,4)=0,366,365)*$D51*(1+Чувствительность!$B$5) -> 0 | S51: =MAX(0,1+MIN(Капзатраты_Выручка!S$2,$C51)-MAX(Капзатраты_Выручка!S$1,$B51))/IF(MOD(Капзатраты_Выручка!S$4,4)=0,366,365)*$D51*(1+Чувствительность!$B$5) -> 0 | T51: =MAX(0,1+MIN(Капзатраты_Выручка!T$2,$C51)-MAX(Капзатраты_Выручка!T$1,$B51))/IF(MOD(Капзатраты_Выручка!T$4,4)=0,366,365)*$D51*(1+Чувствительность!$B$5) -> 0 | U51: =MAX(0,1+MIN(Капзатраты_Выручка!U$2,$C51)-MAX(Капзатраты_Выручка!U$1,$B51))/IF(MOD(Капзатраты_Выручка!U$4,4)=0,366,365)*$D51*(1+Чувствительность!$B$5) -> 0 | V51: =MAX(0,1+MIN(Капзатраты_Выручка!V$2,$C51)-MAX(Капзатраты_Выручка!V$1,$B51))/IF(MOD(Капзатраты_Выручка!V$4,4)=0,366,365)*$D51*(1+Чувствительность!$B$5) -> 0 | W51: =MAX(0,1+MIN(Капзатраты_Выручка!W$2,$C51)-MAX(Капзатраты_Выручка!W$1,$B51))/IF(MOD(Капзатраты_Выручка!W$4,4)=0,366,365)*$D51*(1+Чувствительность!$B$5) -> 0 | X51: =MAX(0,1+MIN(Капзатраты_Выручка!X$2,$C51)-MAX(Капзатраты_Выручка!X$1,$B51))/IF(MOD(Капзатраты_Выручка!X$4,4)=0,366,365)*$D51*(1+Чувствительность!$B$5) -> 0 | Y51: =MAX(0,1+MIN(Капзатраты_Выручка!Y$2,$C51)-MAX(Капзатраты_Выручка!Y$1,$B51))/IF(MOD(Капзатраты_Выручка!Y$4,4)=0,366,365)*$D51*(1+Чувствительность!$B$5) -> 0 | Z51: =MAX(0,1+MIN(Капзатраты_Выручка!Z$2,$C51)-MAX(Капзатраты_Выручка!Z$1,$B51))/IF(MOD(Капзатраты_Выручка!Z$4,4)=0,366,365)*$D51*(1+Чувствительность!$B$5) -> 0 | AA51: =MAX(0,1+MIN(Капзатраты_Выручка!AA$2,$C51)-MAX(Капзатраты_Выручка!AA$1,$B51))/IF(MOD(Капзатраты_Выручка!AA$4,4)=0,366,365)*$D51*(1+Чувствительность!$B$5) -> 0 | AB51: =MAX(0,1+MIN(Капзатраты_Выручка!AB$2,$C51)-MAX(Капзатраты_Выручка!AB$1,$B51))/IF(MOD(Капзатраты_Выручка!AB$4,4)=0,366,365)*$D51*(1+Чувствительность!$B$5) -> 0 | AC51: =MAX(0,1+MIN(Капзатраты_Выручка!AC$2,$C51)-MAX(Капзатраты_Выручка!AC$1,$B51))/IF(MOD(Капзатраты_Выручка!AC$4,4)=0,366,365)*$D51*(1+Чувствительность!$B$5) -> 0 | AD51: =MAX(0,1+MIN(Капзатраты_Выручка!AD$2,$C51)-MAX(Капзатраты_Выручка!AD$1,$B51))/IF(MOD(Капзатраты_Выручка!AD$4,4)=0,366,365)*$D51*(1+Чувствительность!$B$5) -> 0 | AE51: =MAX(0,1+MIN(Капзатраты_Выручка!AE$2,$C51)-MAX(Капзатраты_Выручка!AE$1,$B51))/IF(MOD(Капзатраты_Выручка!AE$4,4)=0,366,365)*$D51*(1+Чувствительность!$B$5) -> 0 | AF51: =MAX(0,1+MIN(Капзатраты_Выручка!AF$2,$C51)-MAX(Капзатраты_Выручка!AF$1,$B51))/IF(MOD(Капзатраты_Выручка!AF$4,4)=0,366,365)*$D51*(1+Чувствительность!$B$5) -> 0 | AG51: =MAX(0,1+MIN(Капзатраты_Выручка!AG$2,$C51)-MAX(Капзатраты_Выручка!AG$1,$B51))/IF(MOD(Капзатраты_Выручка!AG$4,4)=0,366,365)*$D51*(1+Чувствительность!$B$5) -> 0 | AH51: =MAX(0,1+MIN(Капзатраты_Выручка!AH$2,$C51)-MAX(Капзатраты_Выручка!AH$1,$B51))/IF(MOD(Капзатраты_Выручка!AH$4,4)=0,366,365)*$D51*(1+Чувствительность!$B$5) -> 0 | AI51: =MAX(0,1+MIN(Капзатраты_Выручка!AI$2,$C51)-MAX(Капзатраты_Выручка!AI$1,$B51))/IF(MOD(Капзатраты_Выручка!AI$4,4)=0,366,365)*$D51*(1+Чувствительность!$B$5) -> 0 | AJ51: =MAX(0,1+MIN(Капзатраты_Выручка!AJ$2,$C51)-MAX(Капзатраты_Выручка!AJ$1,$B51))/IF(MOD(Капзатраты_Выручка!AJ$4,4)=0,366,365)*$D51*(1+Чувствительность!$B$5) -> 0
A52: ='Исходные данные'!A138 -> статья 5 прочих расходов | B52: ='Исходные данные'!$E$11 -> 2019-01-01 | C52: ='Исходные данные'!$E$12 -> 2020-12-31 | D52: ='Исходные данные'!E138 -> 0 | E52: =MAX(0,1+MIN(Капзатраты_Выручка!E$2,$C52)-MAX(Капзатраты_Выручка!E$1,$B52))/IF(MOD(Капзатраты_Выручка!E$4,4)=0,366,365)*$D52*(1+Чувствительность!$B$5) -> 0 | F52: =MAX(0,1+MIN(Капзатраты_Выручка!F$2,$C52)-MAX(Капзатраты_Выручка!F$1,$B52))/IF(MOD(Капзатраты_Выручка!F$4,4)=0,366,365)*$D52*(1+Чувствительность!$B$5) -> 0 | G52: =MAX(0,1+MIN(Капзатраты_Выручка!G$2,$C52)-MAX(Капзатраты_Выручка!G$1,$B52))/IF(MOD(Капзатраты_Выручка!G$4,4)=0,366,365)*$D52*(1+Чувствительность!$B$5) -> 0 | H52: =MAX(0,1+MIN(Капзатраты_Выручка!H$2,$C52)-MAX(Капзатраты_Выручка!H$1,$B52))/IF(MOD(Капзатраты_Выручка!H$4,4)=0,366,365)*$D52*(1+Чувствительность!$B$5) -> 0 | I52: =MAX(0,1+MIN(Капзатраты_Выручка!I$2,$C52)-MAX(Капзатраты_Выручка!I$1,$B52))/IF(MOD(Капзатраты_Выручка!I$4,4)=0,366,365)*$D52*(1+Чувствительность!$B$5) -> 0 | J52: =MAX(0,1+MIN(Капзатраты_Выручка!J$2,$C52)-MAX(Капзатраты_Выручка!J$1,$B52))/IF(MOD(Капзатраты_Выручка!J$4,4)=0,366,365)*$D52*(1+Чувствительность!$B$5) -> 0 | K52: =MAX(0,1+MIN(Капзатраты_Выручка!K$2,$C52)-MAX(Капзатраты_Выручка!K$1,$B52))/IF(MOD(Капзатраты_Выручка!K$4,4)=0,366,365)*$D52*(1+Чувствительность!$B$5) -> 0 | L52: =MAX(0,1+MIN(Капзатраты_Выручка!L$2,$C52)-MAX(Капзатраты_Выручка!L$1,$B52))/IF(MOD(Капзатраты_Выручка!L$4,4)=0,366,365)*$D52*(1+Чувствительность!$B$5) -> 0 | M52: =MAX(0,1+MIN(Капзатраты_Выручка!M$2,$C52)-MAX(Капзатраты_Выручка!M$1,$B52))/IF(MOD(Капзатраты_Выручка!M$4,4)=0,366,365)*$D52*(1+Чувствительность!$B$5) -> 0 | N52: =MAX(0,1+MIN(Капзатраты_Выручка!N$2,$C52)-MAX(Капзатраты_Выручка!N$1,$B52))/IF(MOD(Капзатраты_Выручка!N$4,4)=0,366,365)*$D52*(1+Чувствительность!$B$5) -> 0 | O52: =MAX(0,1+MIN(Капзатраты_Выручка!O$2,$C52)-MAX(Капзатраты_Выручка!O$1,$B52))/IF(MOD(Капзатраты_Выручка!O$4,4)=0,366,365)*$D52*(1+Чувствительность!$B$5) -> 0 | P52: =MAX(0,1+MIN(Капзатраты_Выручка!P$2,$C52)-MAX(Капзатраты_Выручка!P$1,$B52))/IF(MOD(Капзатраты_Выручка!P$4,4)=0,366,365)*$D52*(1+Чувствительность!$B$5) -> 0 | Q52: =MAX(0,1+MIN(Капзатраты_Выручка!Q$2,$C52)-MAX(Капзатраты_Выручка!Q$1,$B52))/IF(MOD(Капзатраты_Выручка!Q$4,4)=0,366,365)*$D52*(1+Чувствительность!$B$5) -> 0 | R52: =MAX(0,1+MIN(Капзатраты_Выручка!R$2,$C52)-MAX(Капзатраты_Выручка!R$1,$B52))/IF(MOD(Капзатраты_Выручка!R$4,4)=0,366,365)*$D52*(1+Чувствительность!$B$5) -> 0 | S52: =MAX(0,1+MIN(Капзатраты_Выручка!S$2,$C52)-MAX(Капзатраты_Выручка!S$1,$B52))/IF(MOD(Капзатраты_Выручка!S$4,4)=0,366,365)*$D52*(1+Чувствительность!$B$5) -> 0 | T52: =MAX(0,1+MIN(Капзатраты_Выручка!T$2,$C52)-MAX(Капзатраты_Выручка!T$1,$B52))/IF(MOD(Капзатраты_Выручка!T$4,4)=0,366,365)*$D52*(1+Чувствительность!$B$5) -> 0 | U52: =MAX(0,1+MIN(Капзатраты_Выручка!U$2,$C52)-MAX(Капзатраты_Выручка!U$1,$B52))/IF(MOD(Капзатраты_Выручка!U$4,4)=0,366,365)*$D52*(1+Чувствительность!$B$5) -> 0 | V52: =MAX(0,1+MIN(Капзатраты_Выручка!V$2,$C52)-MAX(Капзатраты_Выручка!V$1,$B52))/IF(MOD(Капзатраты_Выручка!V$4,4)=0,366,365)*$D52*(1+Чувствительность!$B$5) -> 0 | W52: =MAX(0,1+MIN(Капзатраты_Выручка!W$2,$C52)-MAX(Капзатраты_Выручка!W$1,$B52))/IF(MOD(Капзатраты_Выручка!W$4,4)=0,366,365)*$D52*(1+Чувствительность!$B$5) -> 0 | X52: =MAX(0,1+MIN(Капзатраты_Выручка!X$2,$C52)-MAX(Капзатраты_Выручка!X$1,$B52))/IF(MOD(Капзатраты_Выручка!X$4,4)=0,366,365)*$D52*(1+Чувствительность!$B$5) -> 0 | Y52: =MAX(0,1+MIN(Капзатраты_Выручка!Y$2,$C52)-MAX(Капзатраты_Выручка!Y$1,$B52))/IF(MOD(Капзатраты_Выручка!Y$4,4)=0,366,365)*$D52*(1+Чувствительность!$B$5) -> 0 | Z52: =MAX(0,1+MIN(Капзатраты_Выручка!Z$2,$C52)-MAX(Капзатраты_Выручка!Z$1,$B52))/IF(MOD(Капзатраты_Выручка!Z$4,4)=0,366,365)*$D52*(1+Чувствительность!$B$5) -> 0 | AA52: =MAX(0,1+MIN(Капзатраты_Выручка!AA$2,$C52)-MAX(Капзатраты_Выручка!AA$1,$B52))/IF(MOD(Капзатраты_Выручка!AA$4,4)=0,366,365)*$D52*(1+Чувствительность!$B$5) -> 0 | AB52: =MAX(0,1+MIN(Капзатраты_Выручка!AB$2,$C52)-MAX(Капзатраты_Выручка!AB$1,$B52))/IF(MOD(Капзатраты_Выручка!AB$4,4)=0,366,365)*$D52*(1+Чувствительность!$B$5) -> 0 | AC52: =MAX(0,1+MIN(Капзатраты_Выручка!AC$2,$C52)-MAX(Капзатраты_Выручка!AC$1,$B52))/IF(MOD(Капзатраты_Выручка!AC$4,4)=0,366,365)*$D52*(1+Чувствительность!$B$5) -> 0 | AD52: =MAX(0,1+MIN(Капзатраты_Выручка!AD$2,$C52)-MAX(Капзатраты_Выручка!AD$1,$B52))/IF(MOD(Капзатраты_Выручка!AD$4,4)=0,366,365)*$D52*(1+Чувствительность!$B$5) -> 0 | AE52: =MAX(0,1+MIN(Капзатраты_Выручка!AE$2,$C52)-MAX(Капзатраты_Выручка!AE$1,$B52))/IF(MOD(Капзатраты_Выручка!AE$4,4)=0,366,365)*$D52*(1+Чувствительность!$B$5) -> 0 | AF52: =MAX(0,1+MIN(Капзатраты_Выручка!AF$2,$C52)-MAX(Капзатраты_Выручка!AF$1,$B52))/IF(MOD(Капзатраты_Выручка!AF$4,4)=0,366,365)*$D52*(1+Чувствительность!$B$5) -> 0 | AG52: =MAX(0,1+MIN(Капзатраты_Выручка!AG$2,$C52)-MAX(Капзатраты_Выручка!AG$1,$B52))/IF(MOD(Капзатраты_Выручка!AG$4,4)=0,366,365)*$D52*(1+Чувствительность!$B$5) -> 0 | AH52: =MAX(0,1+MIN(Капзатраты_Выручка!AH$2,$C52)-MAX(Капзатраты_Выручка!AH$1,$B52))/IF(MOD(Капзатраты_Выручка!AH$4,4)=0,366,365)*$D52*(1+Чувствительность!$B$5) -> 0 | AI52: =MAX(0,1+MIN(Капзатраты_Выручка!AI$2,$C52)-MAX(Капзатраты_Выручка!AI$1,$B52))/IF(MOD(Капзатраты_Выручка!AI$4,4)=0,366,365)*$D52*(1+Чувствительность!$B$5) -> 0 | AJ52: =MAX(0,1+MIN(Капзатраты_Выручка!AJ$2,$C52)-MAX(Капзатраты_Выручка!AJ$1,$B52))/IF(MOD(Капзатраты_Выручка!AJ$4,4)=0,366,365)*$D52*(1+Чувствительность!$B$5) -> 0
A53: ='Исходные данные'!A139 -> статья 6 прочих расходов | B53: ='Исходные данные'!$E$11 -> 2019-01-01 | C53: ='Исходные данные'!$E$12 -> 2020-12-31 | D53: ='Исходные данные'!E139 -> 0 | E53: =MAX(0,1+MIN(Капзатраты_Выручка!E$2,$C53)-MAX(Капзатраты_Выручка!E$1,$B53))/IF(MOD(Капзатраты_Выручка!E$4,4)=0,366,365)*$D53*(1+Чувствительность!$B$5) -> 0 | F53: =MAX(0,1+MIN(Капзатраты_Выручка!F$2,$C53)-MAX(Капзатраты_Выручка!F$1,$B53))/IF(MOD(Капзатраты_Выручка!F$4,4)=0,366,365)*$D53*(1+Чувствительность!$B$5) -> 0 | G53: =MAX(0,1+MIN(Капзатраты_Выручка!G$2,$C53)-MAX(Капзатраты_Выручка!G$1,$B53))/IF(MOD(Капзатраты_Выручка!G$4,4)=0,366,365)*$D53*(1+Чувствительность!$B$5) -> 0 | H53: =MAX(0,1+MIN(Капзатраты_Выручка!H$2,$C53)-MAX(Капзатраты_Выручка!H$1,$B53))/IF(MOD(Капзатраты_Выручка!H$4,4)=0,366,365)*$D53*(1+Чувствительность!$B$5) -> 0 | I53: =MAX(0,1+MIN(Капзатраты_Выручка!I$2,$C53)-MAX(Капзатраты_Выручка!I$1,$B53))/IF(MOD(Капзатраты_Выручка!I$4,4)=0,366,365)*$D53*(1+Чувствительность!$B$5) -> 0 | J53: =MAX(0,1+MIN(Капзатраты_Выручка!J$2,$C53)-MAX(Капзатраты_Выручка!J$1,$B53))/IF(MOD(Капзатраты_Выручка!J$4,4)=0,366,365)*$D53*(1+Чувствительность!$B$5) -> 0 | K53: =MAX(0,1+MIN(Капзатраты_Выручка!K$2,$C53)-MAX(Капзатраты_Выручка!K$1,$B53))/IF(MOD(Капзатраты_Выручка!K$4,4)=0,366,365)*$D53*(1+Чувствительность!$B$5) -> 0 | L53: =MAX(0,1+MIN(Капзатраты_Выручка!L$2,$C53)-MAX(Капзатраты_Выручка!L$1,$B53))/IF(MOD(Капзатраты_Выручка!L$4,4)=0,366,365)*$D53*(1+Чувствительность!$B$5) -> 0 | M53: =MAX(0,1+MIN(Капзатраты_Выручка!M$2,$C53)-MAX(Капзатраты_Выручка!M$1,$B53))/IF(MOD(Капзатраты_Выручка!M$4,4)=0,366,365)*$D53*(1+Чувствительность!$B$5) -> 0 | N53: =MAX(0,1+MIN(Капзатраты_Выручка!N$2,$C53)-MAX(Капзатраты_Выручка!N$1,$B53))/IF(MOD(Капзатраты_Выручка!N$4,4)=0,366,365)*$D53*(1+Чувствительность!$B$5) -> 0 | O53: =MAX(0,1+MIN(Капзатраты_Выручка!O$2,$C53)-MAX(Капзатраты_Выручка!O$1,$B53))/IF(MOD(Капзатраты_Выручка!O$4,4)=0,366,365)*$D53*(1+Чувствительность!$B$5) -> 0 | P53: =MAX(0,1+MIN(Капзатраты_Выручка!P$2,$C53)-MAX(Капзатраты_Выручка!P$1,$B53))/IF(MOD(Капзатраты_Выручка!P$4,4)=0,366,365)*$D53*(1+Чувствительность!$B$5) -> 0 | Q53: =MAX(0,1+MIN(Капзатраты_Выручка!Q$2,$C53)-MAX(Капзатраты_Выручка!Q$1,$B53))/IF(MOD(Капзатраты_Выручка!Q$4,4)=0,366,365)*$D53*(1+Чувствительность!$B$5) -> 0 | R53: =MAX(0,1+MIN(Капзатраты_Выручка!R$2,$C53)-MAX(Капзатраты_Выручка!R$1,$B53))/IF(MOD(Капзатраты_Выручка!R$4,4)=0,366,365)*$D53*(1+Чувствительность!$B$5) -> 0 | S53: =MAX(0,1+MIN(Капзатраты_Выручка!S$2,$C53)-MAX(Капзатраты_Выручка!S$1,$B53))/IF(MOD(Капзатраты_Выручка!S$4,4)=0,366,365)*$D53*(1+Чувствительность!$B$5) -> 0 | T53: =MAX(0,1+MIN(Капзатраты_Выручка!T$2,$C53)-MAX(Капзатраты_Выручка!T$1,$B53))/IF(MOD(Капзатраты_Выручка!T$4,4)=0,366,365)*$D53*(1+Чувствительность!$B$5) -> 0 | U53: =MAX(0,1+MIN(Капзатраты_Выручка!U$2,$C53)-MAX(Капзатраты_Выручка!U$1,$B53))/IF(MOD(Капзатраты_Выручка!U$4,4)=0,366,365)*$D53*(1+Чувствительность!$B$5) -> 0 | V53: =MAX(0,1+MIN(Капзатраты_Выручка!V$2,$C53)-MAX(Капзатраты_Выручка!V$1,$B53))/IF(MOD(Капзатраты_Выручка!V$4,4)=0,366,365)*$D53*(1+Чувствительность!$B$5) -> 0 | W53: =MAX(0,1+MIN(Капзатраты_Выручка!W$2,$C53)-MAX(Капзатраты_Выручка!W$1,$B53))/IF(MOD(Капзатраты_Выручка!W$4,4)=0,366,365)*$D53*(1+Чувствительность!$B$5) -> 0 | X53: =MAX(0,1+MIN(Капзатраты_Выручка!X$2,$C53)-MAX(Капзатраты_Выручка!X$1,$B53))/IF(MOD(Капзатраты_Выручка!X$4,4)=0,366,365)*$D53*(1+Чувствительность!$B$5) -> 0 | Y53: =MAX(0,1+MIN(Капзатраты_Выручка!Y$2,$C53)-MAX(Капзатраты_Выручка!Y$1,$B53))/IF(MOD(Капзатраты_Выручка!Y$4,4)=0,366,365)*$D53*(1+Чувствительность!$B$5) -> 0 | Z53: =MAX(0,1+MIN(Капзатраты_Выручка!Z$2,$C53)-MAX(Капзатраты_Выручка!Z$1,$B53))/IF(MOD(Капзатраты_Выручка!Z$4,4)=0,366,365)*$D53*(1+Чувствительность!$B$5) -> 0 | AA53: =MAX(0,1+MIN(Капзатраты_Выручка!AA$2,$C53)-MAX(Капзатраты_Выручка!AA$1,$B53))/IF(MOD(Капзатраты_Выручка!AA$4,4)=0,366,365)*$D53*(1+Чувствительность!$B$5) -> 0 | AB53: =MAX(0,1+MIN(Капзатраты_Выручка!AB$2,$C53)-MAX(Капзатраты_Выручка!AB$1,$B53))/IF(MOD(Капзатраты_Выручка!AB$4,4)=0,366,365)*$D53*(1+Чувствительность!$B$5) -> 0 | AC53: =MAX(0,1+MIN(Капзатраты_Выручка!AC$2,$C53)-MAX(Капзатраты_Выручка!AC$1,$B53))/IF(MOD(Капзатраты_Выручка!AC$4,4)=0,366,365)*$D53*(1+Чувствительность!$B$5) -> 0 | AD53: =MAX(0,1+MIN(Капзатраты_Выручка!AD$2,$C53)-MAX(Капзатраты_Выручка!AD$1,$B53))/IF(MOD(Капзатраты_Выручка!AD$4,4)=0,366,365)*$D53*(1+Чувствительность!$B$5) -> 0 | AE53: =MAX(0,1+MIN(Капзатраты_Выручка!AE$2,$C53)-MAX(Капзатраты_Выручка!AE$1,$B53))/IF(MOD(Капзатраты_Выручка!AE$4,4)=0,366,365)*$D53*(1+Чувствительность!$B$5) -> 0 | AF53: =MAX(0,1+MIN(Капзатраты_Выручка!AF$2,$C53)-MAX(Капзатраты_Выручка!AF$1,$B53))/IF(MOD(Капзатраты_Выручка!AF$4,4)=0,366,365)*$D53*(1+Чувствительность!$B$5) -> 0 | AG53: =MAX(0,1+MIN(Капзатраты_Выручка!AG$2,$C53)-MAX(Капзатраты_Выручка!AG$1,$B53))/IF(MOD(Капзатраты_Выручка!AG$4,4)=0,366,365)*$D53*(1+Чувствительность!$B$5) -> 0 | AH53: =MAX(0,1+MIN(Капзатраты_Выручка!AH$2,$C53)-MAX(Капзатраты_Выручка!AH$1,$B53))/IF(MOD(Капзатраты_Выручка!AH$4,4)=0,366,365)*$D53*(1+Чувствительность!$B$5) -> 0 | AI53: =MAX(0,1+MIN(Капзатраты_Выручка!AI$2,$C53)-MAX(Капзатраты_Выручка!AI$1,$B53))/IF(MOD(Капзатраты_Выручка!AI$4,4)=0,366,365)*$D53*(1+Чувствительность!$B$5) -> 0 | AJ53: =MAX(0,1+MIN(Капзатраты_Выручка!AJ$2,$C53)-MAX(Капзатраты_Выручка!AJ$1,$B53))/IF(MOD(Капзатраты_Выручка!AJ$4,4)=0,366,365)*$D53*(1+Чувствительность!$B$5) -> 0
A56: Расчет НВВ
A57: Текущие расходы
A58: Операционные расходы | D58: =SUM(E58:DT58) -> 11515736.55 | E58: ='Исходные данные'!$F$29 -> 300000 | F58: =E58*(1-'Исходные данные'!G33)*(1+Капзатраты_Выручка!F8)*(1+'Исходные данные'!$F$31*'Исходные данные'!G32) -> 307160.37 | G58: =F58*(1-'Исходные данные'!H33)*(1+Капзатраты_Выручка!G8)*(1+'Исходные данные'!$F$31*'Исходные данные'!H32) -> 316285.7667 | H58: =G58*(1-'Исходные данные'!I33)*(1+Капзатраты_Выручка!H8)*(1+'Исходные данные'!$F$31*'Исходные данные'!I32) -> 325632.1693 | I58: =H58*(1-'Исходные данные'!J33)*(1+Капзатраты_Выручка!I8)*(1+'Исходные данные'!$F$31*'Исходные данные'!J32) -> 335206.4063 | J58: =I58*(1-'Исходные данные'!K33)*(1+Капзатраты_Выручка!J8)*(1+'Исходные данные'!$F$31*'Исходные данные'!K32) -> 345092.012 | K58: =J58*(1-'Исходные данные'!L33)*(1+Капзатраты_Выручка!K8)*(1+'Исходные данные'!$F$31*'Исходные данные'!L32) -> 355279.4042 | L58: =K58*(1-'Исходные данные'!M33)*(1+Капзатраты_Выручка!L8)*(1+'Исходные данные'!$F$31*'Исходные данные'!M32) -> 365749.9501 | M58: =L58*(1-'Исходные данные'!N33)*(1+Капзатраты_Выручка!M8)*(1+'Исходные данные'!$F$31*'Исходные данные'!N32) -> 376485.6255 | N58: =M58*(1-'Исходные данные'!O33)*(1+Капзатраты_Выручка!N8)*(1+'Исходные данные'!$F$31*'Исходные данные'!O32) -> 387491.6934 | O58: =N58*(1-'Исходные данные'!P33)*(1+Капзатраты_Выручка!O8)*(1+'Исходные данные'!$F$31*'Исходные данные'!P32) -> 398788.8199 | P58: =O58*(1-'Исходные данные'!Q33)*(1+Капзатраты_Выручка!P8)*(1+'Исходные данные'!$F$31*'Исходные данные'!Q32) -> 394800.9317 | Q58: =P58*(1-'Исходные данные'!R33)*(1+Капзатраты_Выручка!Q8)*(1+'Исходные данные'!$F$31*'Исходные данные'!R32) -> 390852.9224 | R58: =Q58*(1-'Исходные данные'!S33)*(1+Капзатраты_Выручка!R8)*(1+'Исходные данные'!$F$31*'Исходные данные'!S32) -> 386944.3932 | S58: =R58*(1-'Исходные данные'!T33)*(1+Капзатраты_Выручка!S8)*(1+'Исходные данные'!$F$31*'Исходные данные'!T32) -> 383074.9493 | T58: =S58*(1-'Исходные данные'!U33)*(1+Капзатраты_Выручка!T8)*(1+'Исходные данные'!$F$31*'Исходные данные'!U32) -> 379244.1998 | U58: =T58*(1-'Исходные данные'!V33)*(1+Капзатраты_Выручка!U8)*(1+'Исходные данные'!$F$31*'Исходные данные'!V32) -> 375451.7578 | V58: =U58*(1-'Исходные данные'!W33)*(1+Капзатраты_Выручка!V8)*(1+'Исходные данные'!$F$31*'Исходные данные'!W32) -> 371697.2402 | W58: =V58*(1-'Исходные данные'!X33)*(1+Капзатраты_Выручка!W8)*(1+'Исходные данные'!$F$31*'Исходные данные'!X32) -> 367980.2678 | X58: =W58*(1-'Исходные данные'!Y33)*(1+Капзатраты_Выручка!X8)*(1+'Исходные данные'!$F$31*'Исходные данные'!Y32) -> 364300.4651 | Y58: =X58*(1-'Исходные данные'!Z33)*(1+Капзатраты_Выручка!Y8)*(1+'Исходные данные'!$F$31*'Исходные данные'!Z32) -> 360657.4605 | Z58: =Y58*(1-'Исходные данные'!AA33)*(1+Капзатраты_Выручка!Z8)*(1+'Исходные данные'!$F$31*'Исходные данные'!AA32) -> 357050.8859 | AA58: =Z58*(1-'Исходные данные'!AB33)*(1+Капзатраты_Выручка!AA8)*(1+'Исходные данные'!$F$31*'Исходные данные'!AB32) -> 357050.8859 | AB58: =AA58*(1-'Исходные данные'!AC33)*(1+Капзатраты_Выручка!AB8)*(1+'Исходные данные'!$F$31*'Исходные данные'!AC32) -> 357050.8859 | AC58: =AB58*(1-'Исходные данные'!AD33)*(1+Капзатраты_Выручка!AC8)*(1+'Исходные данные'!$F$31*'Исходные данные'!AD32) -> 357050.8859 | AD58: =AC58*(1-'Исходные данные'!AE33)*(1+Капзатраты_Выручка!AD8)*(1+'Исходные данные'!$F$31*'Исходные данные'!AE32) -> 357050.8859 | AE58: =AD58*(1-'Исходные данные'!AF33)*(1+Капзатраты_Выручка!AE8)*(1+'Исходные данные'!$F$31*'Исходные данные'!AF32) -> 357050.8859 | AF58: =AE58*(1-'Исходные данные'!AG33)*(1+Капзатраты_Выручка!AF8)*(1+'Исходные данные'!$F$31*'Исходные данные'!AG32) -> 357050.8859 | AG58: =AF58*(1-'Исходные данные'!AH33)*(1+Капзатраты_Выручка!AG8)*(1+'Исходные данные'!$F$31*'Исходные данные'!AH32) -> 357050.8859 | AH58: =AG58*(1-'Исходные данные'!AI33)*(1+Капзатраты_Выручка!AH8)*(1+'Исходные данные'!$F$31*'Исходные данные'!AI32) -> 357050.8859 | AI58: =AH58*(1-'Исходные данные'!AJ33)*(1+Капзатраты_Выручка!AI8)*(1+'Исходные данные'!$F$31*'Исходные данные'!AJ32) -> 357050.8859 | AJ58: =AI58*(1-'Исходные данные'!AK33)*(1+Капзатраты_Выручка!AJ8)*(1+'Исходные данные'!$F$31*'Исходные данные'!AK32) -> 357050.8859
A59: Неподконтрольные расходы | D59: =SUM(E59:DT59) -> 2680000 | E59: ='Исходные данные'!F35 -> 70000 | F59: ='Исходные данные'!G35 -> 75000 | G59: ='Исходные данные'!H35 -> 80000 | H59: ='Исходные данные'!I35 -> 85000 | I59: ='Исходные данные'!J35 -> 90000 | J59: ='Исходные данные'!K35 -> 95000 | K59: ='Исходные данные'!L35 -> 100000 | L59: ='Исходные данные'!M35 -> 105000 | M59: ='Исходные данные'!N35 -> 110000 | N59: ='Исходные данные'!O35 -> 115000 | O59: ='Исходные данные'!P35 -> 120000 | P59: ='Исходные данные'!Q35 -> 125000 | Q59: ='Исходные данные'!R35 -> 130000 | R59: ='Исходные данные'!S35 -> 135000 | S59: ='Исходные данные'!T35 -> 140000 | T59: ='Исходные данные'!U35 -> 145000 | U59: ='Исходные данные'!V35 -> 150000 | V59: ='Исходные данные'!W35 -> 155000 | W59: ='Исходные данные'!X35 -> 160000 | X59: ='Исходные данные'!Y35 -> 165000 | Y59: ='Исходные данные'!Z35 -> 165000 | Z59: ='Исходные данные'!AA35 -> 165000 | AA59: ='Исходные данные'!AB35 -> 0 | AB59: ='Исходные данные'!AC35 -> 0 | AC59: ='Исходные данные'!AD35 -> 0 | AD59: ='Исходные данные'!AE35 -> 0 | AE59: ='Исходные данные'!AF35 -> 0 | AF59: ='Исходные данные'!AG35 -> 0 | AG59: ='Исходные данные'!AH35 -> 0 | AH59: ='Исходные данные'!AI35 -> 0 | AI59: ='Исходные данные'!AJ35 -> 0 | AJ59: ='Исходные данные'!AK35 -> 0
A60: Расходы на топливо | D60: 13999929.12 | E60: =(SUM('Исходные данные'!F$37:'Исходные данные'!F$39))*(SUMPRODUCT('Исходные данные'!F49:F53,'Исходные данные'!F58:F62,'Исходные данные'!F42:F46)) -> 300000 | F60: =(SUM('Исходные данные'!G$37:'Исходные данные'!G$39))*(SUMPRODUCT('Исходные данные'!G49:G53,'Исходные данные'!G58:G62,'Исходные данные'!G42:G46)) -> 319800 | G60: =(SUM('Исходные данные'!H$37:'Исходные данные'!H$39))*(SUMPRODUCT('Исходные данные'!H49:H53,'Исходные данные'!H58:H62,'Исходные данные'!H42:H46)) -> 340906.8 | H60: =(SUM('Исходные данные'!I$37:'Исходные данные'!I$39))*(SUMPRODUCT('Исходные данные'!I49:I53,'Исходные данные'!I58:I62,'Исходные данные'!I42:I46)) -> 363406.6488 | I60: =(SUM('Исходные данные'!J$37:'Исходные данные'!J$39))*(SUMPRODUCT('Исходные данные'!J49:J53,'Исходные данные'!J58:J62,'Исходные данные'!J42:J46)) -> 387391.4876 | J60: =(SUM('Исходные данные'!K$37:'Исходные данные'!K$39))*(SUMPRODUCT('Исходные данные'!K49:K53,'Исходные данные'!K58:K62,'Исходные данные'!K42:K46)) -> 412959.3258 | K60: =(SUM('Исходные данные'!L$37:'Исходные данные'!L$39))*(SUMPRODUCT('Исходные данные'!L49:L53,'Исходные данные'!L58:L62,'Исходные данные'!L42:L46)) -> 440214.6413 | L60: =(SUM('Исходные данные'!M$37:'Исходные данные'!M$39))*(SUMPRODUCT('Исходные данные'!M49:M53,'Исходные данные'!M58:M62,'Исходные данные'!M42:M46)) -> 469268.8076 | M60: =(SUM('Исходные данные'!N$37:'Исходные данные'!N$39))*(SUMPRODUCT('Исходные данные'!N49:N53,'Исходные данные'!N58:N62,'Исходные данные'!N42:N46)) -> 500240.5489 | N60: =(SUM('Исходные данные'!O$37:'Исходные данные'!O$39))*(SUMPRODUCT('Исходные данные'!O49:O53,'Исходные данные'!O58:O62,'Исходные данные'!O42:O46)) -> 533256.4252 | O60: =(SUM('Исходные данные'!P$37:'Исходные данные'!P$39))*(SUMPRODUCT('Исходные данные'!P49:P53,'Исходные данные'!P58:P62,'Исходные данные'!P42:P46)) -> 568451.3492 | P60: =(SUM('Исходные данные'!Q$37:'Исходные данные'!Q$39))*(SUMPRODUCT('Исходные данные'!Q49:Q53,'Исходные данные'!Q58:Q62,'Исходные данные'!Q42:Q46)) -> 605969.1383 | Q60: =(SUM('Исходные данные'!R$37:'Исходные данные'!R$39))*(SUMPRODUCT('Исходные данные'!R49:R53,'Исходные данные'!R58:R62,'Исходные данные'!R42:R46)) -> 645963.1014 | R60: =(SUM('Исходные данные'!S$37:'Исходные данные'!S$39))*(SUMPRODUCT('Исходные данные'!S49:S53,'Исходные данные'!S58:S62,'Исходные данные'!S42:S46)) -> 688596.6661 | S60: =(SUM('Исходные данные'!T$37:'Исходные данные'!T$39))*(SUMPRODUCT('Исходные данные'!T49:T53,'Исходные данные'!T58:T62,'Исходные данные'!T42:T46)) -> 734044.0461 | T60: =(SUM('Исходные данные'!U$37:'Исходные данные'!U$39))*(SUMPRODUCT('Исходные данные'!U49:U53,'Исходные данные'!U58:U62,'Исходные данные'!U42:U46)) -> 782490.9531 | U60: =(SUM('Исходные данные'!V$37:'Исходные данные'!V$39))*(SUMPRODUCT('Исходные данные'!V49:V53,'Исходные данные'!V58:V62,'Исходные данные'!V42:V46)) -> 834135.356 | V60: =(SUM('Исходные данные'!W$37:'Исходные данные'!W$39))*(SUMPRODUCT('Исходные данные'!W49:W53,'Исходные данные'!W58:W62,'Исходные данные'!W42:W46)) -> 889188.2895 | W60: =(SUM('Исходные данные'!X$37:'Исходные данные'!X$39))*(SUMPRODUCT('Исходные данные'!X49:X53,'Исходные данные'!X58:X62,'Исходные данные'!X42:X46)) -> 947874.7166 | X60: =(SUM('Исходные данные'!Y$37:'Исходные данные'!Y$39))*(SUMPRODUCT('Исходные данные'!Y49:Y53,'Исходные данные'!Y58:Y62,'Исходные данные'!Y42:Y46)) -> 1010434.448 | Y60: =(SUM('Исходные данные'!Z$37:'Исходные данные'!Z$39))*(SUMPRODUCT('Исходные данные'!Z49:Z53,'Исходные данные'!Z58:Z62,'Исходные данные'!Z42:Z46)) -> 1077123.121 | Z60: =(SUM('Исходные данные'!AA$37:'Исходные данные'!AA$39))*(SUMPRODUCT('Исходные данные'!AA49:AA53,'Исходные данные'!AA58:AA62,'Исходные данные'!AA42:AA46)) -> 1148213.247 | AA60: =(SUM('Исходные данные'!AB$37:'Исходные данные'!AB$39))*(SUMPRODUCT('Исходные данные'!AB49:AB53,'Исходные данные'!AB58:AB62,'Исходные данные'!AB42:AB46)) -> 0 | AB60: =(SUM('Исходные данные'!AC$37:'Исходные данные'!AC$39))*(SUMPRODUCT('Исходные данные'!AC49:AC53,'Исходные данные'!AC58:AC62,'Исходные данные'!AC42:AC46)) -> 0 | AC60: =(SUM('Исходные данные'!AD$37:'Исходные данные'!AD$39))*(SUMPRODUCT('Исходные данные'!AD49:AD53,'Исходные данные'!AD58:AD62,'Исходные данные'!AD42:AD46)) -> 0 | AD60: =(SUM('Исходные данные'!AE$37:'Исходные данные'!AE$39))*(SUMPRODUCT('Исходные данные'!AE49:AE53,'Исходные данные'!AE58:AE62,'Исходные данные'!AE42:AE46)) -> 0 | AE60: =(SUM('Исходные данные'!AF$37:'Исходные данные'!AF$39))*(SUMPRODUCT('Исходные данные'!AF49:AF53,'Исходные данные'!AF58:AF62,'Исходные данные'!AF42:AF46)) -> 0 | AF60: =(SUM('Исходные данные'!AG$37:'Исходные данные'!AG$39))*(SUMPRODUCT('Исходные данные'!AG49:AG53,'Исходные данные'!AG58:AG62,'Исходные данные'!AG42:AG46)) -> 0 | AG60: =(SUM('Исходные данные'!AH$37:'Исходные данные'!AH$39))*(SUMPRODUCT('Исходные данные'!AH49:AH53,'Исходные данные'!AH58:AH62,'Исходные данные'!AH42:AH46)) -> 0 | AH60: =(SUM('Исходные данные'!AI$37:'Исходные данные'!AI$39))*(SUMPRODUCT('Исходные данные'!AI49:AI53,'Исходные данные'!AI58:AI62,'Исходные данные'!AI42:AI46)) -> 0 | AI60: =(SUM('Исходные данные'!AJ$37:'Исходные данные'!AJ$39))*(SUMPRODUCT('Исходные данные'!AJ49:AJ53,'Исходные данные'!AJ58:AJ62,'Исходные данные'!AJ42:AJ46)) -> 0 | AJ60: =(SUM('Исходные данные'!AK$37:'Исходные данные'!AK$39))*(SUMPRODUCT('Исходные данные'!AK49:AK53,'Исходные данные'!AK58:AK62,'Исходные данные'!AK42:AK46)) -> 0
A61: Расходы на электроэнергию и воду | D61: 3844809.683 | E61: =(SUM('Исходные данные'!F$37:'Исходные данные'!F$39))*('Исходные данные'!F$55*'Исходные данные'!F$64+'Исходные данные'!F$56*'Исходные данные'!F$65) -> 86000 | F61: =(SUM('Исходные данные'!G$37:'Исходные данные'!G$39))*('Исходные данные'!G$55*'Исходные данные'!G$64+'Исходные данные'!G$56*'Исходные данные'!G$65) -> 91370 | G61: =(SUM('Исходные данные'!H$37:'Исходные данные'!H$39))*('Исходные данные'!H$55*'Исходные данные'!H$64+'Исходные данные'!H$56*'Исходные данные'!H$65) -> 97075.67 | H61: =(SUM('Исходные данные'!I$37:'Исходные данные'!I$39))*('Исходные данные'!I$55*'Исходные данные'!I$64+'Исходные данные'!I$56*'Исходные данные'!I$65) -> 103138.012 | I61: =(SUM('Исходные данные'!J$37:'Исходные данные'!J$39))*('Исходные данные'!J$55*'Исходные данные'!J$64+'Исходные данные'!J$56*'Исходные данные'!J$65) -> 109579.3432 | J61: =(SUM('Исходные данные'!K$37:'Исходные данные'!K$39))*('Исходные данные'!K$55*'Исходные данные'!K$64+'Исходные данные'!K$56*'Исходные данные'!K$65) -> 116423.3782 | K61: =(SUM('Исходные данные'!L$37:'Исходные данные'!L$39))*('Исходные данные'!L$55*'Исходные данные'!L$64+'Исходные данные'!L$56*'Исходные данные'!L$65) -> 123695.317 | L61: =(SUM('Исходные данные'!M$37:'Исходные данные'!M$39))*('Исходные данные'!M$55*'Исходные данные'!M$64+'Исходные данные'!M$56*'Исходные данные'!M$65) -> 131421.9375 | M61: =(SUM('Исходные данные'!N$37:'Исходные данные'!N$39))*('Исходные данные'!N$55*'Исходные данные'!N$64+'Исходные данные'!N$56*'Исходные данные'!N$65) -> 139631.6949 | N61: =(SUM('Исходные данные'!O$37:'Исходные данные'!O$39))*('Исходные данные'!O$55*'Исходные данные'!O$64+'Исходные данные'!O$56*'Исходные данные'!O$65) -> 148354.8268 | O61: =(SUM('Исходные данные'!P$37:'Исходные данные'!P$39))*('Исходные данные'!P$55*'Исходные данные'!P$64+'Исходные данные'!P$56*'Исходные данные'!P$65) -> 157623.4643 | P61: =(SUM('Исходные данные'!Q$37:'Исходные данные'!Q$39))*('Исходные данные'!Q$55*'Исходные данные'!Q$64+'Исходные данные'!Q$56*'Исходные данные'!Q$65) -> 167471.7516 | Q61: =(SUM('Исходные данные'!R$37:'Исходные данные'!R$39))*('Исходные данные'!R$55*'Исходные данные'!R$64+'Исходные данные'!R$56*'Исходные данные'!R$65) -> 177935.9716 | R61: =(SUM('Исходные данные'!S$37:'Исходные данные'!S$39))*('Исходные данные'!S$55*'Исходные данные'!S$64+'Исходные данные'!S$56*'Исходные данные'!S$65) -> 189054.6798 | S61: =(SUM('Исходные данные'!T$37:'Исходные данные'!T$39))*('Исходные данные'!T$55*'Исходные данные'!T$64+'Исходные данные'!T$56*'Исходные данные'!T$65) -> 200868.8475 | T61: =(SUM('Исходные данные'!U$37:'Исходные данные'!U$39))*('Исходные данные'!U$55*'Исходные данные'!U$64+'Исходные данные'!U$56*'Исходные данные'!U$65) -> 213422.0125 | U61: =(SUM('Исходные данные'!V$37:'Исходные данные'!V$39))*('Исходные данные'!V$55*'Исходные данные'!V$64+'Исходные данные'!V$56*'Исходные данные'!V$65) -> 226760.4404 | V61: =(SUM('Исходные данные'!W$37:'Исходные данные'!W$39))*('Исходные данные'!W$55*'Исходные данные'!W$64+'Исходные данные'!W$56*'Исходные данные'!W$65) -> 240933.2956 | W61: =(SUM('Исходные данные'!X$37:'Исходные данные'!X$39))*('Исходные данные'!X$55*'Исходные данные'!X$64+'Исходные данные'!X$56*'Исходные данные'!X$65) -> 255992.8227 | X61: =(SUM('Исходные данные'!Y$37:'Исходные данные'!Y$39))*('Исходные данные'!Y$55*'Исходные данные'!Y$64+'Исходные данные'!Y$56*'Исходные данные'!Y$65) -> 271994.5401 | Y61: =(SUM('Исходные данные'!Z$37:'Исходные данные'!Z$39))*('Исходные данные'!Z$55*'Исходные данные'!Z$64+'Исходные данные'!Z$56*'Исходные данные'!Z$65) -> 288997.4451 | Z61: =(SUM('Исходные данные'!AA$37:'Исходные данные'!AA$39))*('Исходные данные'!AA$55*'Исходные данные'!AA$64+'Исходные данные'!AA$56*'Исходные данные'!AA$65) -> 307064.2318 | AA61: =(SUM('Исходные данные'!AB$37:'Исходные данные'!AB$39))*('Исходные данные'!AB$55*'Исходные данные'!AB$64+'Исходные данные'!AB$56*'Исходные данные'!AB$65) -> 0 | AB61: =(SUM('Исходные данные'!AC$37:'Исходные данные'!AC$39))*('Исходные данные'!AC$55*'Исходные данные'!AC$64+'Исходные данные'!AC$56*'Исходные данные'!AC$65) -> 0 | AC61: =(SUM('Исходные данные'!AD$37:'Исходные данные'!AD$39))*('Исходные данные'!AD$55*'Исходные данные'!AD$64+'Исходные данные'!AD$56*'Исходные данные'!AD$65) -> 0 | AD61: =(SUM('Исходные данные'!AE$37:'Исходные данные'!AE$39))*('Исходные данные'!AE$55*'Исходные данные'!AE$64+'Исходные данные'!AE$56*'Исходные данные'!AE$65) -> 0 | AE61: =(SUM('Исходные данные'!AF$37:'Исходные данные'!AF$39))*('Исходные данные'!AF$55*'Исходные данные'!AF$64+'Исходные данные'!AF$56*'Исходные данные'!AF$65) -> 0 | AF61: =(SUM('Исходные данные'!AG$37:'Исходные данные'!AG$39))*('Исходные данные'!AG$55*'Исходные данные'!AG$64+'Исходные данные'!AG$56*'Исходные данные'!AG$65) -> 0 | AG61: =(SUM('Исходные данные'!AH$37:'Исходные данные'!AH$39))*('Исходные данные'!AH$55*'Исходные данные'!AH$64+'Исходные данные'!AH$56*'Исходные данные'!AH$65) -> 0 | AH61: =(SUM('Исходные данные'!AI$37:'Исходные данные'!AI$39))*('Исходные данные'!AI$55*'Исходные данные'!AI$64+'Исходные данные'!AI$56*'Исходные данные'!AI$65) -> 0 | AI61: =(SUM('Исходные данные'!AJ$37:'Исходные данные'!AJ$39))*('Исходные данные'!AJ$55*'Исходные данные'!AJ$64+'Исходные данные'!AJ$56*'Исходные данные'!AJ$65) -> 0 | AJ61: =(SUM('Исходные данные'!AK$37:'Исходные данные'!AK$39))*('Исходные данные'!AK$55*'Исходные данные'!AK$64+'Исходные данные'!AK$56*'Исходные данные'!AK$65) -> 0
A63: Нормативная прибыль | D63: 583999.3127 | E63: ='Исходные данные'!F76*SUM(Капзатраты_Выручка!E58:E61)/(1-'Исходные данные'!F76/(1-Расчет_С_Фондом!E24)) -> 15507.69231 | F63: ='Исходные данные'!G76*SUM(Капзатраты_Выручка!F58:F61)/(1-'Исходные данные'!G76/(1-Расчет_С_Фондом!F24)) -> 16273.44349 | G63: ='Исходные данные'!H76*SUM(Капзатраты_Выручка!G58:G61)/(1-'Исходные данные'!H76/(1-Расчет_С_Фондом!G24)) -> 17113.1946 | H63: ='Исходные данные'!I76*SUM(Капзатраты_Выручка!H58:H61)/(1-'Исходные данные'!I76/(1-Расчет_С_Фондом!H24)) -> 17993.37087 | I63: ='Исходные данные'!J76*SUM(Капзатраты_Выручка!I58:I61)/(1-'Исходные данные'!J76/(1-Расчет_С_Фондом!I24)) -> 18916.45615 | J63: ='Исходные данные'!K76*SUM(Капзатраты_Выручка!J58:J61)/(1-'Исходные данные'!K76/(1-Расчет_С_Фондом!J24)) -> 19886.66084 | K63: ='Исходные данные'!L76*SUM(Капзатраты_Выручка!K58:K61)/(1-'Исходные данные'!L76/(1-Расчет_С_Фондом!K24)) -> 20906.44846 | L63: ='Исходные данные'!M76*SUM(Капзатраты_Выручка!L58:L61)/(1-'Исходные данные'!M76/(1-Расчет_С_Фондом!L24)) -> 21978.27067 | M63: ='Исходные данные'!N76*SUM(Капзатраты_Выручка!M58:M61)/(1-'Исходные данные'!N76/(1-Расчет_С_Фондом!M24)) -> 23104.77681 | N63: ='Исходные данные'!O76*SUM(Капзатраты_Выручка!N58:N61)/(1-'Исходные данные'!O76/(1-Расчет_С_Фондом!N24)) -> 24289.29119 | O63: ='Исходные данные'!P76*SUM(Капзатраты_Выручка!O58:O61)/(1-'Исходные данные'!P76/(1-Расчет_С_Фондом!O24)) -> 25535.66428 | P63: ='Исходные данные'!Q76*SUM(Капзатраты_Выручка!P58:P61)/(1-'Исходные данные'!Q76/(1-Расчет_С_Фондом!P24)) -> 26528.03737 | Q63: ='Исходные данные'!R76*SUM(Капзатраты_Выручка!Q58:Q61)/(1-'Исходные данные'!R76/(1-Расчет_С_Фондом!Q24)) -> 27584.65632 | R63: ='Исходные данные'!S76*SUM(Капзатраты_Выручка!R58:R61)/(1-'Исходные данные'!S76/(1-Расчет_С_Фондом!R24)) -> 28709.65619 | S63: ='Исходные данные'!T76*SUM(Капзатраты_Выручка!S58:S61)/(1-'Исходные данные'!T76/(1-Расчет_С_Фондом!S24)) -> 29907.44293 | T63: ='Исходные данные'!U76*SUM(Капзатраты_Выручка!T58:T61)/(1-'Исходные данные'!U76/(1-Расчет_С_Фондом!T24)) -> 31182.71108 | U63: ='Исходные данные'!V76*SUM(Капзатраты_Выручка!U58:U61)/(1-'Исходные данные'!V76/(1-Расчет_С_Фондом!U24)) -> 32540.46265 | V63: ='Исходные данные'!W76*SUM(Капзатраты_Выручка!V58:V61)/(1-'Исходные данные'!W76/(1-Расчет_С_Фондом!V24)) -> 33986.02718 | W63: ='Исходные данные'!X76*SUM(Капзатраты_Выручка!W58:W61)/(1-'Исходные данные'!X76/(1-Расчет_С_Фондом!W24)) -> 35525.08322 | X63: ='Исходные данные'!Y76*SUM(Капзатраты_Выручка!X58:X61)/(1-'Исходные данные'!Y76/(1-Расчет_С_Фондом!X24)) -> 37163.68109 | Y63: ='Исходные данные'!Z76*SUM(Капзатраты_Выручка!Y58:Y61)/(1-'Исходные данные'!Z76/(1-Расчет_С_Фондом!Y24)) -> 38805.70312 | Z63: ='Исходные данные'!AA76*SUM(Капзатраты_Выручка!Z58:Z61)/(1-'Исходные данные'!AA76/(1-Расчет_С_Фондом!Z24)) -> 40560.58185 | AA63: ='Исходные данные'!AB76*SUM(Капзатраты_Выручка!AA58:AA61)/(1-'Исходные данные'!AB76/(1-Расчет_С_Фондом!AA24)) -> 0 | AB63: ='Исходные данные'!AC76*SUM(Капзатраты_Выручка!AB58:AB61)/(1-'Исходные данные'!AC76/(1-Расчет_С_Фондом!AB24)) -> 0 | AC63: ='Исходные данные'!AD76*SUM(Капзатраты_Выручка!AC58:AC61)/(1-'Исходные данные'!AD76/(1-Расчет_С_Фондом!AC24)) -> 0 | AD63: ='Исходные данные'!AE76*SUM(Капзатраты_Выручка!AD58:AD61)/(1-'Исходные данные'!AE76/(1-Расчет_С_Фондом!AD24)) -> 0 | AE63: ='Исходные данные'!AF76*SUM(Капзатраты_Выручка!AE58:AE61)/(1-'Исходные данные'!AF76/(1-Расчет_С_Фондом!AE24)) -> 0 | AF63: ='Исходные данные'!AG76*SUM(Капзатраты_Выручка!AF58:AF61)/(1-'Исходные данные'!AG76/(1-Расчет_С_Фондом!AF24)) -> 0 | AG63: ='Исходные данные'!AH76*SUM(Капзатраты_Выручка!AG58:AG61)/(1-'Исходные данные'!AH76/(1-Расчет_С_Фондом!AG24)) -> 0 | AH63: ='Исходные данные'!AI76*SUM(Капзатраты_Выручка!AH58:AH61)/(1-'Исходные данные'!AI76/(1-Расчет_С_Фондом!AH24)) -> 0 | AI63: ='Исходные данные'!AJ76*SUM(Капзатраты_Выручка!AI58:AI61)/(1-'Исходные данные'!AJ76/(1-Расчет_С_Фондом!AI24)) -> 0 | AJ63: ='Исходные данные'!AK76*SUM(Капзатраты_Выручка!AJ58:AJ61)/(1-'Исходные данные'!AK76/(1-Расчет_С_Фондом!AJ24)) -> 0
A65: Предпринимательская прибыль | D65: 723501.8687 | E65: ='Исходные данные'!F78*(SUM(Капзатраты_Выручка!E58:E62)-Капзатраты_Выручка!E60) -> 22800 | F65: ='Исходные данные'!G78*(SUM(Капзатраты_Выручка!F58:F62)-Капзатраты_Выручка!F60) -> 23676.5185 | G65: ='Исходные данные'!H78*(SUM(Капзатраты_Выручка!G58:G62)-Капзатраты_Выручка!G60) -> 24668.07184 | H65: ='Исходные данные'!I78*(SUM(Капзатраты_Выручка!H58:H62)-Капзатраты_Выручка!H60) -> 25688.50906 | I65: ='Исходные данные'!J78*(SUM(Капзатраты_Выручка!I58:I62)-Капзатраты_Выручка!I60) -> 26739.28747 | J65: ='Исходные данные'!K78*(SUM(Капзатраты_Выручка!J58:J62)-Капзатраты_Выручка!J60) -> 27825.76951 | K65: ='Исходные данные'!L78*(SUM(Капзатраты_Выручка!K58:K62)-Капзатраты_Выручка!K60) -> 28948.73606 | L65: ='Исходные данные'!M78*(SUM(Капзатраты_Выручка!L58:L62)-Капзатраты_Выручка!L60) -> 30108.59438 | M65: ='Исходные данные'!N78*(SUM(Капзатраты_Выручка!M58:M62)-Капзатраты_Выручка!M60) -> 31305.86602 | N65: ='Исходные данные'!O78*(SUM(Капзатраты_Выручка!N58:N62)-Капзатраты_Выручка!N60) -> 32542.32601 | O65: ='Исходные данные'!P78*(SUM(Капзатраты_Выручка!O58:O62)-Капзатраты_Выручка!O60) -> 33820.61421 | P65: ='Исходные данные'!Q78*(SUM(Капзатраты_Выручка!P58:P62)-Капзатраты_Выручка!P60) -> 34363.63417 | Q65: ='Исходные данные'!R78*(SUM(Капзатраты_Выручка!Q58:Q62)-Капзатраты_Выручка!Q60) -> 34939.4447 | R65: ='Исходные данные'!S78*(SUM(Капзатраты_Выручка!R58:R62)-Капзатраты_Выручка!R60) -> 35549.95365 | S65: ='Исходные данные'!T78*(SUM(Капзатраты_Выручка!S58:S62)-Капзатраты_Выручка!S60) -> 36197.18984 | T65: ='Исходные данные'!U78*(SUM(Капзатраты_Выручка!T58:T62)-Капзатраты_Выручка!T60) -> 36883.31061 | U65: ='Исходные данные'!V78*(SUM(Капзатраты_Выручка!U58:U62)-Капзатраты_Выручка!U60) -> 37610.60991 | V65: ='Исходные данные'!W78*(SUM(Капзатраты_Выручка!V58:V62)-Капзатраты_Выручка!V60) -> 38381.52679 | W65: ='Исходные данные'!X78*(SUM(Капзатраты_Выручка!W58:W62)-Капзатраты_Выручка!W60) -> 39198.65452 | X65: ='Исходные данные'!Y78*(SUM(Капзатраты_Выручка!X58:X62)-Капзатраты_Выручка!X60) -> 40064.75026 | Y65: ='Исходные данные'!Z78*(SUM(Капзатраты_Выручка!Y58:Y62)-Капзатраты_Выручка!Y60) -> 40732.74528 | Z65: ='Исходные данные'!AA78*(SUM(Капзатраты_Выручка!Z58:Z62)-Капзатраты_Выручка!Z60) -> 41455.75588 | AA65: ='Исходные данные'!AB78*(SUM(Капзатраты_Выручка!AA58:AA62)-Капзатраты_Выручка!AA60) -> 0 | AB65: ='Исходные данные'!AC78*(SUM(Капзатраты_Выручка!AB58:AB62)-Капзатраты_Выручка!AB60) -> 0 | AC65: ='Исходные данные'!AD78*(SUM(Капзатраты_Выручка!AC58:AC62)-Капзатраты_Выручка!AC60) -> 0 | AD65: ='Исходные данные'!AE78*(SUM(Капзатраты_Выручка!AD58:AD62)-Капзатраты_Выручка!AD60) -> 0 | AE65: ='Исходные данные'!AF78*(SUM(Капзатраты_Выручка!AE58:AE62)-Капзатраты_Выручка!AE60) -> 0 | AF65: ='Исходные данные'!AG78*(SUM(Капзатраты_Выручка!AF58:AF62)-Капзатраты_Выручка!AF60) -> 0 | AG65: ='Исходные данные'!AH78*(SUM(Капзатраты_Выручка!AG58:AG62)-Капзатраты_Выручка!AG60) -> 0 | AH65: ='Исходные данные'!AI78*(SUM(Капзатраты_Выручка!AH58:AH62)-Капзатраты_Выручка!AH60) -> 0 | AI65: ='Исходные данные'!AJ78*(SUM(Капзатраты_Выручка!AI58:AI62)-Капзатраты_Выручка!AI60) -> 0 | AJ65: ='Исходные данные'!AK78*(SUM(Капзатраты_Выручка!AJ58:AJ62)-Капзатраты_Выручка!AJ60) -> 0
A67: ИТОГО НВВ | D67: =SUM(E67:DT67) -> 33347976.53 | E67: =SUM(E58:E66) -> 794307.6923 | F67: 833280.332 | G67: 876049.5032 | H67: 920858.71 | I67: 967832.9807 | J67: 1017187.146 | K67: 1069044.547 | L67: 1123527.56 | M67: 1180768.512 | N67: 1240934.562 | O67: 1304219.912 | P67: 1354133.493 | Q67: 1407276.096 | R67: 1463855.349 | S67: 1524092.476 | T67: 1588223.187 | U67: 1656498.627 | V67: 1729186.379 | W67: 1806571.545 | X67: 1888957.884 | Y67: 1971316.475 | Z67: 2059344.703 | AA67: 357050.8859 | AB67: 357050.8859 | AC67: 357050.8859 | AD67: 357050.8859 | AE67: 357050.8859 | AF67: 357050.8859 | AG67: 357050.8859 | AH67: 357050.8859 | AI67: 357050.8859 | AJ67: 357050.8859
A68: темп роста | F68: =IFERROR(F67/E67-1,0) -> 0.04906491534 | G68: =IFERROR(G67/F67-1,0) -> 0.05132626983 | H68: 0.05114917216 | I68: 0.05101137689 | J68: 0.05099450688 | K68: 0.05098117969 | L68: 0.05096421232 | M68: 0.05094752811 | N68: 0.05095499213 | O68: 0.05099813593 | P68: 0.03827083206 | Q68: 0.03924472991 | R68: 0.04020479896 | S68: 0.04114964411 | T68: 0.04207796607 | U68: 0.0429885675 | V68: 0.04388035782 | W68: 0.04475235667 | X68: 0.04560369608 | Y68: 0.04360001438 | Z68: 0.04465453849 | AA68: -0.8266191739 | AB68: 0 | AC68: 0 | AD68: 0 | AE68: 0 | AF68: 0 | AG68: 0 | AH68: 0 | AI68: 0 | AJ68: 0
A70: Текущие расходы | E70: =SUM(E58:E61) -> 756000 | F70: 793330.37 | G70: 834268.2367 | H70: 877176.8301 | I70: 922177.2371 | J70: 969474.716 | K70: 1019189.362 | L70: 1071440.695 | M70: 1126357.869 | N70: 1184102.945 | O70: 1244863.634 | P70: 1293241.822 | Q70: 1344751.995 | R70: 1399595.739 | S70: 1457987.843 | T70: 1520157.165 | U70: 1586347.554 | V70: 1656818.825 | W70: 1731847.807 | X70: 1811729.453 | Y70: 1891778.027 | Z70: 1977328.365 | AA70: 357050.8859 | AB70: 357050.8859 | AC70: 357050.8859 | AD70: 357050.8859 | AE70: 357050.8859 | AF70: 357050.8859 | AG70: 357050.8859 | AH70: 357050.8859 | AI70: 357050.8859 | AJ70: 357050.8859
A74: Расчет - Текущие расходы
A75: =A58 -> Операционные расходы | E75: =E58 -> 300000 | F75: =F58 -> 307160.37 | G75: 316285.7667 | H75: 325632.1693 | I75: 335206.4063 | J75: 345092.012 | K75: 355279.4042 | L75: 365749.9501 | M75: 376485.6255 | N75: 387491.6934 | O75: 398788.8199 | P75: 394800.9317 | Q75: 390852.9224 | R75: 386944.3932 | S75: 383074.9493 | T75: 379244.1998 | U75: 375451.7578 | V75: 371697.2402 | W75: 367980.2678 | X75: 364300.4651 | Y75: 360657.4605 | Z75: 357050.8859 | AA75: 357050.8859 | AB75: 357050.8859 | AC75: 357050.8859 | AD75: 357050.8859 | AE75: 357050.8859 | AF75: 357050.8859 | AG75: 357050.8859 | AH75: 357050.8859 | AI75: 357050.8859 | AJ75: 357050.8859
A76: =A59 -> Неподконтрольные расходы | E76: =E59 -> 70000 | F76: =F59 -> 75000 | G76: 80000 | H76: 85000 | I76: 90000 | J76: 95000 | K76: 100000 | L76: 105000 | M76: 110000 | N76: 115000 | O76: 120000 | P76: 125000 | Q76: 130000 | R76: 135000 | S76: 140000 | T76: 145000 | U76: 150000 | V76: 155000 | W76: 160000 | X76: 165000 | Y76: 165000 | Z76: 165000 | AA76: 0 | AB76: 0 | AC76: 0 | AD76: 0 | AE76: 0 | AF76: 0 | AG76: 0 | AH76: 0 | AI76: 0 | AJ76: 0
A77: =A60 -> Расходы на топливо | E77: =E60 -> 300000 | F77: =F60 -> 319800 | G77: 340906.8 | H77: 363406.6488 | I77: 387391.4876 | J77: 412959.3258 | K77: 440214.6413 | L77: 469268.8076 | M77: 500240.5489 | N77: 533256.4252 | O77: 568451.3492 | P77: 605969.1383 | Q77: 645963.1014 | R77: 688596.6661 | S77: 734044.0461 | T77: 782490.9531 | U77: 834135.356 | V77: 889188.2895 | W77: 947874.7166 | X77: 1010434.448 | Y77: 1077123.121 | Z77: 1148213.247 | AA77: 0 | AB77: 0 | AC77: 0 | AD77: 0 | AE77: 0 | AF77: 0 | AG77: 0 | AH77: 0 | AI77: 0 | AJ77: 0
A78: =A61 -> Расходы на электроэнергию и воду | E78: =E61 -> 86000 | F78: =F61 -> 91370 | G78: 97075.67 | H78: 103138.012 | I78: 109579.3432 | J78: 116423.3782 | K78: 123695.317 | L78: 131421.9375 | M78: 139631.6949 | N78: 148354.8268 | O78: 157623.4643 | P78: 167471.7516 | Q78: 177935.9716 | R78: 189054.6798 | S78: 200868.8475 | T78: 213422.0125 | U78: 226760.4404 | V78: 240933.2956 | W78: 255992.8227 | X78: 271994.5401 | Y78: 288997.4451 | Z78: 307064.2318 | AA78: 0 | AB78: 0 | AC78: 0 | AD78: 0 | AE78: 0 | AF78: 0 | AG78: 0 | AH78: 0 | AI78: 0 | AJ78: 0
A80: ='Исходные данные'!A90 -> статья 1 прочих расходов - указать наименование | E80: ='Исходные данные'!$E90 -> 0 | F80: ='Исходные данные'!$E90 -> 0 | G80: ='Исходные данные'!$E90 -> 0 | H80: ='Исходные данные'!$E90 -> 0 | I80: ='Исходные данные'!$E90 -> 0 | J80: ='Исходные данные'!$E90 -> 0 | K80: ='Исходные данные'!$E90 -> 0 | L80: ='Исходные данные'!$E90 -> 0 | M80: ='Исходные данные'!$E90 -> 0 | N80: ='Исходные данные'!$E90 -> 0 | O80: ='Исходные данные'!$E90 -> 0 | P80: ='Исходные данные'!$E90 -> 0 | Q80: ='Исходные данные'!$E90 -> 0 | R80: ='Исходные данные'!$E90 -> 0 | S80: ='Исходные данные'!$E90 -> 0 | T80: ='Исходные данные'!$E90 -> 0 | U80: ='Исходные данные'!$E90 -> 0 | V80: ='Исходные данные'!$E90 -> 0 | W80: ='Исходные данные'!$E90 -> 0 | X80: ='Исходные данные'!$E90 -> 0 | Y80: ='Исходные данные'!$E90 -> 0 | Z80: ='Исходные данные'!$E90 -> 0 | AA80: ='Исходные данные'!$E90 -> 0 | AB80: ='Исходные данные'!$E90 -> 0 | AC80: ='Исходные данные'!$E90 -> 0 | AD80: ='Исходные данные'!$E90 -> 0 | AE80: ='Исходные данные'!$E90 -> 0 | AF80: ='Исходные данные'!$E90 -> 0 | AG80: ='Исходные данные'!$E90 -> 0 | AH80: ='Исходные данные'!$E90 -> 0 | AI80: ='Исходные данные'!$E90 -> 0 | AJ80: ='Исходные данные'!$E90 -> 0
A81: ='Исходные данные'!A91 -> статья 2 прочих расходов | E81: ='Исходные данные'!$E91 -> 0 | F81: ='Исходные данные'!$E91 -> 0 | G81: ='Исходные данные'!$E91 -> 0 | H81: ='Исходные данные'!$E91 -> 0 | I81: ='Исходные данные'!$E91 -> 0 | J81: ='Исходные данные'!$E91 -> 0 | K81: ='Исходные данные'!$E91 -> 0 | L81: ='Исходные данные'!$E91 -> 0 | M81: ='Исходные данные'!$E91 -> 0 | N81: ='Исходные данные'!$E91 -> 0 | O81: ='Исходные данные'!$E91 -> 0 | P81: ='Исходные данные'!$E91 -> 0 | Q81: ='Исходные данные'!$E91 -> 0 | R81: ='Исходные данные'!$E91 -> 0 | S81: ='Исходные данные'!$E91 -> 0 | T81: ='Исходные данные'!$E91 -> 0 | U81: ='Исходные данные'!$E91 -> 0 | V81: ='Исходные данные'!$E91 -> 0 | W81: ='Исходные данные'!$E91 -> 0 | X81: ='Исходные данные'!$E91 -> 0 | Y81: ='Исходные данные'!$E91 -> 0 | Z81: ='Исходные данные'!$E91 -> 0 | AA81: ='Исходные данные'!$E91 -> 0 | AB81: ='Исходные данные'!$E91 -> 0 | AC81: ='Исходные данные'!$E91 -> 0 | AD81: ='Исходные данные'!$E91 -> 0 | AE81: ='Исходные данные'!$E91 -> 0 | AF81: ='Исходные данные'!$E91 -> 0 | AG81: ='Исходные данные'!$E91 -> 0 | AH81: ='Исходные данные'!$E91 -> 0 | AI81: ='Исходные данные'!$E91 -> 0 | AJ81: ='Исходные данные'!$E91 -> 0
A82: ='Исходные данные'!A92 -> статья 3 прочих расходов | E82: ='Исходные данные'!$E92 -> 0 | F82: ='Исходные данные'!$E92 -> 0 | G82: ='Исходные данные'!$E92 -> 0 | H82: ='Исходные данные'!$E92 -> 0 | I82: ='Исходные данные'!$E92 -> 0 | J82: ='Исходные данные'!$E92 -> 0 | K82: ='Исходные данные'!$E92 -> 0 | L82: ='Исходные данные'!$E92 -> 0 | M82: ='Исходные данные'!$E92 -> 0 | N82: ='Исходные данные'!$E92 -> 0 | O82: ='Исходные данные'!$E92 -> 0 | P82: ='Исходные данные'!$E92 -> 0 | Q82: ='Исходные данные'!$E92 -> 0 | R82: ='Исходные данные'!$E92 -> 0 | S82: ='Исходные данные'!$E92 -> 0 | T82: ='Исходные данные'!$E92 -> 0 | U82: ='Исходные данные'!$E92 -> 0 | V82: ='Исходные данные'!$E92 -> 0 | W82: ='Исходные данные'!$E92 -> 0 | X82: ='Исходные данные'!$E92 -> 0 | Y82: ='Исходные данные'!$E92 -> 0 | Z82: ='Исходные данные'!$E92 -> 0 | AA82: ='Исходные данные'!$E92 -> 0 | AB82: ='Исходные данные'!$E92 -> 0 | AC82: ='Исходные данные'!$E92 -> 0 | AD82: ='Исходные данные'!$E92 -> 0 | AE82: ='Исходные данные'!$E92 -> 0 | AF82: ='Исходные данные'!$E92 -> 0 | AG82: ='Исходные данные'!$E92 -> 0 | AH82: ='Исходные данные'!$E92 -> 0 | AI82: ='Исходные данные'!$E92 -> 0 | AJ82: ='Исходные данные'!$E92 -> 0
A83: ='Исходные данные'!A93 -> статья 4 прочих расходов | E83: ='Исходные данные'!$E93 -> 0 | F83: ='Исходные данные'!$E93 -> 0 | G83: ='Исходные данные'!$E93 -> 0 | H83: ='Исходные данные'!$E93 -> 0 | I83: ='Исходные данные'!$E93 -> 0 | J83: ='Исходные данные'!$E93 -> 0 | K83: ='Исходные данные'!$E93 -> 0 | L83: ='Исходные данные'!$E93 -> 0 | M83: ='Исходные данные'!$E93 -> 0 | N83: ='Исходные данные'!$E93 -> 0 | O83: ='Исходные данные'!$E93 -> 0 | P83: ='Исходные данные'!$E93 -> 0 | Q83: ='Исходные данные'!$E93 -> 0 | R83: ='Исходные данные'!$E93 -> 0 | S83: ='Исходные данные'!$E93 -> 0 | T83: ='Исходные данные'!$E93 -> 0 | U83: ='Исходные данные'!$E93 -> 0 | V83: ='Исходные данные'!$E93 -> 0 | W83: ='Исходные данные'!$E93 -> 0 | X83: ='Исходные данные'!$E93 -> 0 | Y83: ='Исходные данные'!$E93 -> 0 | Z83: ='Исходные данные'!$E93 -> 0 | AA83: ='Исходные данные'!$E93 -> 0 | AB83: ='Исходные данные'!$E93 -> 0 | AC83: ='Исходные данные'!$E93 -> 0 | AD83: ='Исходные данные'!$E93 -> 0 | AE83: ='Исходные данные'!$E93 -> 0 | AF83: ='Исходные данные'!$E93 -> 0 | AG83: ='Исходные данные'!$E93 -> 0 | AH83: ='Исходные данные'!$E93 -> 0 | AI83: ='Исходные данные'!$E93 -> 0 | AJ83: ='Исходные данные'!$E93 -> 0
A84: ='Исходные данные'!A94 -> статья 5 прочих расходов | E84: ='Исходные данные'!$E94 -> 0 | F84: ='Исходные данные'!$E94 -> 0 | G84: ='Исходные данные'!$E94 -> 0 | H84: ='Исходные данные'!$E94 -> 0 | I84: ='Исходные данные'!$E94 -> 0 | J84: ='Исходные данные'!$E94 -> 0 | K84: ='Исходные данные'!$E94 -> 0 | L84: ='Исходные данные'!$E94 -> 0 | M84: ='Исходные данные'!$E94 -> 0 | N84: ='Исходные данные'!$E94 -> 0 | O84: ='Исходные данные'!$E94 -> 0 | P84: ='Исходные данные'!$E94 -> 0 | Q84: ='Исходные данные'!$E94 -> 0 | R84: ='Исходные данные'!$E94 -> 0 | S84: ='Исходные данные'!$E94 -> 0 | T84: ='Исходные данные'!$E94 -> 0 | U84: ='Исходные данные'!$E94 -> 0 | V84: ='Исходные данные'!$E94 -> 0 | W84: ='Исходные данные'!$E94 -> 0 | X84: ='Исходные данные'!$E94 -> 0 | Y84: ='Исходные данные'!$E94 -> 0 | Z84: ='Исходные данные'!$E94 -> 0 | AA84: ='Исходные данные'!$E94 -> 0 | AB84: ='Исходные данные'!$E94 -> 0 | AC84: ='Исходные данные'!$E94 -> 0 | AD84: ='Исходные данные'!$E94 -> 0 | AE84: ='Исходные данные'!$E94 -> 0 | AF84: ='Исходные данные'!$E94 -> 0 | AG84: ='Исходные данные'!$E94 -> 0 | AH84: ='Исходные данные'!$E94 -> 0 | AI84: ='Исходные данные'!$E94 -> 0 | AJ84: ='Исходные данные'!$E94 -> 0
A86: Сравнение тарифов
A87: ='Исходные данные'!A37 -> Объем полезного отпуска тепловой энергии | E87: ='Исходные данные'!F37 -> 400000 | F87: ='Исходные данные'!G37 -> 400000 | G87: ='Исходные данные'!H37 -> 400000 | H87: ='Исходные данные'!I37 -> 400000 | I87: ='Исходные данные'!J37 -> 400000 | J87: ='Исходные данные'!K37 -> 400000 | K87: ='Исходные данные'!L37 -> 400000 | L87: ='Исходные данные'!M37 -> 400000 | M87: ='Исходные данные'!N37 -> 400000 | N87: ='Исходные данные'!O37 -> 400000 | O87: ='Исходные данные'!P37 -> 400000 | P87: ='Исходные данные'!Q37 -> 400000 | Q87: ='Исходные данные'!R37 -> 400000 | R87: ='Исходные данные'!S37 -> 400000 | S87: ='Исходные данные'!T37 -> 400000 | T87: ='Исходные данные'!U37 -> 400000 | U87: ='Исходные данные'!V37 -> 400000 | V87: ='Исходные данные'!W37 -> 400000 | W87: ='Исходные данные'!X37 -> 400000 | X87: ='Исходные данные'!Y37 -> 400000 | Y87: ='Исходные данные'!Z37 -> 400000 | Z87: ='Исходные данные'!AA37 -> 400000 | AA87: ='Исходные данные'!AB37 -> 0 | AB87: ='Исходные данные'!AC37 -> 0 | AC87: ='Исходные данные'!AD37 -> 0 | AD87: ='Исходные данные'!AE37 -> 0 | AE87: ='Исходные данные'!AF37 -> 0 | AF87: ='Исходные данные'!AG37 -> 0 | AG87: ='Исходные данные'!AH37 -> 0 | AH87: ='Исходные данные'!AI37 -> 0 | AI87: ='Исходные данные'!AJ37 -> 0 | AJ87: ='Исходные данные'!AK37 -> 0
A89: Экономически обоснованный тариф | D89: тыс. руб./Гкал | E89: =IFERROR(E67/E87,0) -> 1.985769231 | F89: =IFERROR(F67/F87,0) -> 2.08320083 | G89: 2.190123758 | H89: 2.302146775 | I89: 2.419582452 | J89: 2.542967866 | K89: 2.672611368 | L89: 2.808818901 | M89: 2.951921281 | N89: 3.102336406 | O89: 3.26054978 | P89: 3.385333733 | Q89: 3.518190241 | R89: 3.659638372 | S89: 3.810231189 | T89: 3.970557968 | U89: 4.141246567 | V89: 4.322965948 | W89: 4.516428862 | X89: 4.722394711 | Y89: 4.928291189 | Z89: 5.148361757 | AA89: 0 | AB89: 0 | AC89: 0 | AD89: 0 | AE89: 0 | AF89: 0 | AG89: 0 | AH89: 0 | AI89: 0 | AJ89: 0
A90: темп роста | D90: % | F90: =IFERROR(F89/E89-1,0) -> 0.04906491534 | G90: =IFERROR(G89/F89-1,0) -> 0.05132626983 | H90: 0.05114917216 | I90: 0.05101137689 | J90: 0.05099450688 | K90: 0.05098117969 | L90: 0.05096421232 | M90: 0.05094752811 | N90: 0.05095499213 | O90: 0.05099813593 | P90: 0.03827083206 | Q90: 0.03924472991 | R90: 0.04020479896 | S90: 0.04114964411 | T90: 0.04207796607 | U90: 0.0429885675 | V90: 0.04388035782 | W90: 0.04475235667 | X90: 0.04560369608 | Y90: 0.04360001438 | Z90: 0.04465453849 | AA90: -1 | AB90: 0 | AC90: 0 | AD90: 0 | AE90: 0 | AF90: 0 | AG90: 0 | AH90: 0 | AI90: 0 | AJ90: 0
A91: ='Исходные данные'!A84 -> Согласованный тариф | D91: тыс. руб./Гкал | E91: ='Исходные данные'!F84 -> 1.9 | F91: ='Исходные данные'!G84 -> 2 | G91: ='Исходные данные'!H84 -> 2.1 | H91: ='Исходные данные'!I84 -> 2.2 | I91: ='Исходные данные'!J84 -> 2.3 | J91: ='Исходные данные'!K84 -> 2.4 | K91: ='Исходные данные'!L84 -> 2.5 | L91: ='Исходные данные'!M84 -> 2.6 | M91: ='Исходные данные'!N84 -> 2.7 | N91: ='Исходные данные'!O84 -> 2.8 | O91: ='Исходные данные'!P84 -> 2.9 | P91: ='Исходные данные'!Q84 -> 3 | Q91: ='Исходные данные'!R84 -> 3.1 | R91: ='Исходные данные'!S84 -> 3.2 | S91: ='Исходные данные'!T84 -> 3.3 | T91: ='Исходные данные'!U84 -> 3.4 | U91: ='Исходные данные'!V84 -> 3.5 | V91: ='Исходные данные'!W84 -> 3.6 | W91: ='Исходные данные'!X84 -> 3.7 | X91: ='Исходные данные'!Y84 -> 3.8 | Y91: ='Исходные данные'!Z84 -> 3.9 | Z91: ='Исходные данные'!AA84 -> 4 | AA91: ='Исходные данные'!AB84 -> 0 | AB91: ='Исходные данные'!AC84 -> 0 | AC91: ='Исходные данные'!AD84 -> 0 | AD91: ='Исходные данные'!AE84 -> 0 | AE91: ='Исходные данные'!AF84 -> 0 | AF91: ='Исходные данные'!AG84 -> 0 | AG91: ='Исходные данные'!AH84 -> 0 | AH91: ='Исходные данные'!AI84 -> 0 | AI91: ='Исходные данные'!AJ84 -> 0 | AJ91: ='Исходные данные'!AK84 -> 0
A92: темп роста | D92: % | F92: =IFERROR(F91/E91-1,0) -> 0.05263157895 | G92: =IFERROR(G91/F91-1,0) -> 0.05 | H92: =IFERROR(H91/G91-1,0) -> 0.04761904762 | I92: =IFERROR(I91/H91-1,0) -> 0.04545454545 | J92: =IFERROR(J91/I91-1,0) -> 0.04347826087 | K92: =IFERROR(K91/J91-1,0) -> 0.04166666667 | L92: =IFERROR(L91/K91-1,0) -> 0.04 | M92: =IFERROR(M91/L91-1,0) -> 0.03846153846 | N92: =IFERROR(N91/M91-1,0) -> 0.03703703704 | O92: =IFERROR(O91/N91-1,0) -> 0.03571428571 | P92: =IFERROR(P91/O91-1,0) -> 0.03448275862 | Q92: =IFERROR(Q91/P91-1,0) -> 0.03333333333 | R92: =IFERROR(R91/Q91-1,0) -> 0.03225806452 | S92: =IFERROR(S91/R91-1,0) -> 0.03125 | T92: =IFERROR(T91/S91-1,0) -> 0.0303030303 | U92: =IFERROR(U91/T91-1,0) -> 0.02941176471 | V92: =IFERROR(V91/U91-1,0) -> 0.02857142857 | W92: =IFERROR(W91/V91-1,0) -> 0.02777777778 | X92: =IFERROR(X91/W91-1,0) -> 0.02702702703 | Y92: =IFERROR(Y91/X91-1,0) -> 0.02631578947 | Z92: =IFERROR(Z91/Y91-1,0) -> 0.02564102564 | AA92: =IFERROR(AA91/Z91-1,0) -> -1 | AB92: =IFERROR(AB91/AA91-1,0) -> 0 | AC92: =IFERROR(AC91/AB91-1,0) -> 0 | AD92: =IFERROR(AD91/AC91-1,0) -> 0 | AE92: =IFERROR(AE91/AD91-1,0) -> 0 | AF92: =IFERROR(AF91/AE91-1,0) -> 0 | AG92: =IFERROR(AG91/AF91-1,0) -> 0 | AH92: =IFERROR(AH91/AG91-1,0) -> 0 | AI92: =IFERROR(AI91/AH91-1,0) -> 0 | AJ92: =IFERROR(AJ91/AI91-1,0) -> 0
A94: Разница между экономически обоснованным и согласованным тарифом | D94: тыс. руб./Гкал | E94: =E89-E91 -> 0.08576923077 | F94: =F89-F91 -> 0.08320082997 | G94: 0.09012375788 | H94: 0.102146775 | I94: 0.1195824518 | J94: 0.1429678658 | K94: 0.1726113675 | L94: 0.2088189007 | M94: 0.2519212806 | N94: 0.3023364062 | O94: 0.36054978 | P94: 0.385333733 | Q94: 0.418190241 | R94: 0.4596383724 | S94: 0.510231189 | T94: 0.5705579677 | U94: 0.6412465669 | V94: 0.7229659481 | W94: 0.8164288621 | X94: 0.9223947112 | Y94: 1.028291189 | Z94: 1.148361757 | AA94: 0 | AB94: 0 | AC94: 0 | AD94: 0 | AE94: 0 | AF94: 0 | AG94: 0 | AH94: 0 | AI94: 0 | AJ94: 0
A96: Тариф для окупаемости без Фонда | D96: тыс. руб./Гкал | E96: ='Исходные данные'!F87 -> 2.052463251 | F96: ='Исходные данные'!G87 -> 2.153167187 | G96: ='Исходные данные'!H87 -> 2.263681227 | H96: ='Исходные данные'!I87 -> 2.379466647 | I96: ='Исходные данные'!J87 -> 2.500846517 | J96: ='Исходные данные'!K87 -> 2.628375952 | K96: ='Исходные данные'!L87 -> 2.762373659 | L96: ='Исходные данные'!M87 -> 2.903155857 | M96: ='Исходные данные'!N87 -> 3.051064471 | N96: ='Исходные данные'!O87 -> 3.206531438 | O96: ='Исходные данные'!P87 -> 3.370058564 | P96: ='Исходные данные'!Q87 -> 3.542181809 | Q96: ='Исходные данные'!R87 -> 3.723518465 | R96: ='Исходные данные'!S87 -> 3.914695124 | S96: ='Исходные данные'!T87 -> 4.116286056 | T96: ='Исходные данные'!U87 -> 4.280216723 | U96: ='Исходные данные'!V87 -> 4.454875031 | V96: ='Исходные данные'!W87 -> 4.640952231 | W96: ='Исходные данные'!X87 -> 4.839184836 | X96: ='Исходные данные'!Y87 -> 5.050357579 | Y96: ='Исходные данные'!Z87 -> 5.261475727 | Z96: ='Исходные данные'!AA87 -> 5.487260953 | AA96: ='Исходные данные'!AB87 -> 0 | AB96: ='Исходные данные'!AC87 -> 0 | AC96: ='Исходные данные'!AD87 -> 0 | AD96: ='Исходные данные'!AE87 -> 0 | AE96: ='Исходные данные'!AF87 -> 0 | AF96: ='Исходные данные'!AG87 -> 0 | AG96: ='Исходные данные'!AH87 -> 0 | AH96: ='Исходные данные'!AI87 -> 0 | AI96: ='Исходные данные'!AJ87 -> 0 | AJ96: ='Исходные данные'!AK87 -> 0
A98: Выручка в зависимости от тарифа
A100: =A89 -> Экономически обоснованный тариф | E100: =Капзатраты_Выручка!E67 -> 794307.6923 | F100: =Капзатраты_Выручка!F67 -> 833280.332 | G100: =Капзатраты_Выручка!G67 -> 876049.5032 | H100: =Капзатраты_Выручка!H67 -> 920858.71 | I100: =Капзатраты_Выручка!I67 -> 967832.9807 | J100: =Капзатраты_Выручка!J67 -> 1017187.146 | K100: =Капзатраты_Выручка!K67 -> 1069044.547 | L100: =Капзатраты_Выручка!L67 -> 1123527.56 | M100: =Капзатраты_Выручка!M67 -> 1180768.512 | N100: =Капзатраты_Выручка!N67 -> 1240934.562 | O100: =Капзатраты_Выручка!O67 -> 1304219.912 | P100: =Капзатраты_Выручка!P67 -> 1354133.493 | Q100: =Капзатраты_Выручка!Q67 -> 1407276.096 | R100: =Капзатраты_Выручка!R67 -> 1463855.349 | S100: =Капзатраты_Выручка!S67 -> 1524092.476 | T100: =Капзатраты_Выручка!T67 -> 1588223.187 | U100: =Капзатраты_Выручка!U67 -> 1656498.627 | V100: =Капзатраты_Выручка!V67 -> 1729186.379 | W100: =Капзатраты_Выручка!W67 -> 1806571.545 | X100: =Капзатраты_Выручка!X67 -> 1888957.884 | Y100: =Капзатраты_Выручка!Y67 -> 1971316.475 | Z100: =Капзатраты_Выручка!Z67 -> 2059344.703 | AA100: =Капзатраты_Выручка!AA67 -> 357050.8859 | AB100: =Капзатраты_Выручка!AB67 -> 357050.8859 | AC100: =Капзатраты_Выручка!AC67 -> 357050.8859 | AD100: =Капзатраты_Выручка!AD67 -> 357050.8859 | AE100: =Капзатраты_Выручка!AE67 -> 357050.8859 | AF100: =Капзатраты_Выручка!AF67 -> 357050.8859 | AG100: =Капзатраты_Выручка!AG67 -> 357050.8859 | AH100: =Капзатраты_Выручка!AH67 -> 357050.8859 | AI100: =Капзатраты_Выручка!AI67 -> 357050.8859 | AJ100: =Капзатраты_Выручка!AJ67 -> 357050.8859
A101: =A91 -> Согласованный тариф | E101: =Капзатраты_Выручка!E91*Капзатраты_Выручка!E87+'Исходные данные'!F85 -> 787000 | F101: =Капзатраты_Выручка!F91*Капзатраты_Выручка!F87+'Исходные данные'!G85 -> 832000 | G101: =Капзатраты_Выручка!G91*Капзатраты_Выручка!G87+'Исходные данные'!H85 -> 877000 | H101: =Капзатраты_Выручка!H91*Капзатраты_Выручка!H87+'Исходные данные'!I85 -> 922000 | I101: =Капзатраты_Выручка!I91*Капзатраты_Выручка!I87+'Исходные данные'!J85 -> 967000 | J101: =Капзатраты_Выручка!J91*Капзатраты_Выручка!J87+'Исходные данные'!K85 -> 1012000 | K101: =Капзатраты_Выручка!K91*Капзатраты_Выручка!K87+'Исходные данные'!L85 -> 1057000 | L101: =Капзатраты_Выручка!L91*Капзатраты_Выручка!L87+'Исходные данные'!M85 -> 1102000 | M101: =Капзатраты_Выручка!M91*Капзатраты_Выручка!M87+'Исходные данные'!N85 -> 1147000 | N101: =Капзатраты_Выручка!N91*Капзатраты_Выручка!N87+'Исходные данные'!O85 -> 1192000 | O101: =Капзатраты_Выручка!O91*Капзатраты_Выручка!O87+'Исходные данные'!P85 -> 1237000 | P101: =Капзатраты_Выручка!P91*Капзатраты_Выручка!P87+'Исходные данные'!Q85 -> 1282000 | Q101: =Капзатраты_Выручка!Q91*Капзатраты_Выручка!Q87+'Исходные данные'!R85 -> 1327000 | R101: =Капзатраты_Выручка!R91*Капзатраты_Выручка!R87+'Исходные данные'!S85 -> 1372000 | S101: =Капзатраты_Выручка!S91*Капзатраты_Выручка!S87+'Исходные данные'!T85 -> 1417000 | T101: =Капзатраты_Выручка!T91*Капзатраты_Выручка!T87+'Исходные данные'!U85 -> 1462000 | U101: =Капзатраты_Выручка!U91*Капзатраты_Выручка!U87+'Исходные данные'!V85 -> 1507000 | V101: =Капзатраты_Выручка!V91*Капзатраты_Выручка!V87+'Исходные данные'!W85 -> 1552000 | W101: =Капзатраты_Выручка!W91*Капзатраты_Выручка!W87+'Исходные данные'!X85 -> 1597000 | X101: =Капзатраты_Выручка!X91*Капзатраты_Выручка!X87+'Исходные данные'!Y85 -> 1642000 | Y101: =Капзатраты_Выручка!Y91*Капзатраты_Выручка!Y87+'Исходные данные'!Z85 -> 1687000 | Z101: =Капзатраты_Выручка!Z91*Капзатраты_Выручка!Z87+'Исходные данные'!AA85 -> 1732000 | AA101: =Капзатраты_Выручка!AA91*Капзатраты_Выручка!AA87+'Исходные данные'!AB85 -> 0 | AB101: =Капзатраты_Выручка!AB91*Капзатраты_Выручка!AB87+'Исходные данные'!AC85 -> 0 | AC101: =Капзатраты_Выручка!AC91*Капзатраты_Выручка!AC87+'Исходные данные'!AD85 -> 0 | AD101: =Капзатраты_Выручка!AD91*Капзатраты_Выручка!AD87+'Исходные данные'!AE85 -> 0 | AE101: =Капзатраты_Выручка!AE91*Капзатраты_Выручка!AE87+'Исходные данные'!AF85 -> 0 | AF101: =Капзатраты_Выручка!AF91*Капзатраты_Выручка!AF87+'Исходные данные'!AG85 -> 0 | AG101: =Капзатраты_Выручка!AG91*Капзатраты_Выручка!AG87+'Исходные данные'!AH85 -> 0 | AH101: =Капзатраты_Выручка!AH91*Капзатраты_Выручка!AH87+'Исходные данные'!AI85 -> 0 | AI101: =Капзатраты_Выручка!AI91*Капзатраты_Выручка!AI87+'Исходные данные'!AJ85 -> 0 | AJ101: =Капзатраты_Выручка!AJ91*Капзатраты_Выручка!AJ87+'Исходные данные'!AK85 -> 0
A102: =A96 -> Тариф для окупаемости без Фонда | E102: =E96*E87 -> 820985.3004 | F102: =F96*F87 -> 861266.8747 | G102: 905472.4907 | H102: 951786.659 | I102: 1000338.607 | J102: 1051350.381 | K102: =K96*K87 -> 1104949.464 | L102: 1161262.343 | M102: 1220425.789 | N102: 1282612.575 | O102: 1348023.425 | P102: 1416872.724 | Q102: 1489407.386 | R102: 1565878.05 | S102: 1646514.423 | T102: 1712086.689 | U102: 1781950.012 | V102: 1856380.892 | W102: 1935673.934 | X102: 2020143.032 | Y102: 2104590.291 | Z102: 2194904.381 | AA102: 0 | AB102: 0 | AC102: 0 | AD102: 0 | AE102: 0 | AF102: 0 | AG102: 0 | AH102: 0 | AI102: 0 | AJ102: 0
A104: Выбранный тариф для расчетов | D104: =MATCH('Исходные данные'!$C$82,Капзатраты_Выручка!$A$100:$A$102,0) -> 1
D105: =INDEX(A100:A102,$D$104) -> Экономически обоснованный тариф
A106: ="Выручка для расчетов ("&D105&")" -> Выручка для расчетов (Экономически обоснованный тариф) | E106: =INDEX(E100:E102,$D$104) -> 794307.6923 | F106: =INDEX(F100:F102,$D$104) -> 833280.332 | G106: 876049.5032 | H106: 920858.71 | I106: 967832.9807 | J106: 1017187.146 | K106: 1069044.547 | L106: 1123527.56 | M106: 1180768.512 | N106: 1240934.562 | O106: 1304219.912 | P106: 1354133.493 | Q106: 1407276.096 | R106: 1463855.349 | S106: 1524092.476 | T106: 1588223.187 | U106: 1656498.627 | V106: 1729186.379 | W106: 1806571.545 | X106: 1888957.884 | Y106: 1971316.475 | Z106: 2059344.703 | AA106: 357050.8859 | AB106: 357050.8859 | AC106: 357050.8859 | AD106: 357050.8859 | AE106: 357050.8859 | AF106: 357050.8859 | AG106: 357050.8859 | AH106: 357050.8859 | AI106: 357050.8859 | AJ106: 357050.8859
A108: Справочно - Оценка тарифа для окупаемости без средств Фонда
A110: NPV (T3) - без средств Фонда | D110: =Расчет_БЕЗ_Фонда!D535 -> -167899.4396
A111: Дисконт-фактор (без средств Фонда) | E111: =Расчет_БЕЗ_Фонда!E527 -> 1 | F111: =Расчет_БЕЗ_Фонда!F527 -> 0.9164616725 | G111: =Расчет_БЕЗ_Фонда!G527 -> 0.838971692 | H111: =Расчет_БЕЗ_Фонда!H527 -> 0.7678862467 | I111: =Расчет_БЕЗ_Фонда!I527 -> 0.702657962 | J111: =Расчет_БЕЗ_Фонда!J527 -> 0.6427807641 | K111: =Расчет_БЕЗ_Фонда!K527 -> 0.5877841761 | L111: =Расчет_БЕЗ_Фонда!L527 -> 0.5372264273 | M111: =Расчет_БЕЗ_Фонда!M527 -> 0.4906847434 | N111: =Расчет_БЕЗ_Фонда!N527 -> 0.4477387814 | O111: =Расчет_БЕЗ_Фонда!O527 -> 0.4079355503 | P111: =Расчет_БЕЗ_Фонда!P527 -> 0.3706940704 | Q111: =Расчет_БЕЗ_Фонда!Q527 -> 0.3368524605 | R111: =Расчет_БЕЗ_Фонда!R527 -> 0.3061003377 | S111: =Расчет_БЕЗ_Фонда!S527 -> 0.2781556549 | T111: =Расчет_БЕЗ_Фонда!T527 -> 0.2527621136 | U111: =Расчет_БЕЗ_Фонда!U527 -> 0.2296868137 | V111: =Расчет_БЕЗ_Фонда!V527 -> 0.208718117 | W111: =Расчет_БЕЗ_Фонда!W527 -> 0.1896637062 | X111: =Расчет_БЕЗ_Фонда!X527 -> 0.1723488213 | Y111: =Расчет_БЕЗ_Фонда!Y527 -> 0.1566146565 | Z111: =Расчет_БЕЗ_Фонда!Z527 -> 0.1423169039 | AA111: =Расчет_БЕЗ_Фонда!AA527 -> 0.1293244297 | AB111: =Расчет_БЕЗ_Фонда!AB527 -> 0.1175180717 | AC111: =Расчет_БЕЗ_Фонда!AC527 -> 0.1067895463 | AD111: =Расчет_БЕЗ_Фонда!AD527 -> 0.09704045546 | AE111: =Расчет_БЕЗ_Фонда!AE527 -> 0.08818138405 | AF111: =Расчет_БЕЗ_Фонда!AF527 -> 0 | AG111: =Расчет_БЕЗ_Фонда!AG527 -> 0 | AH111: =Расчет_БЕЗ_Фонда!AH527 -> 0 | AI111: =Расчет_БЕЗ_Фонда!AI527 -> 0 | AJ111: =Расчет_БЕЗ_Фонда!AJ527 -> 0
A112: Налогооблагаемая прибыль | E112: =Расчет_БЕЗ_Фонда!E338 -> 0 | F112: =Расчет_БЕЗ_Фонда!F338 -> 0 | G112: =Расчет_БЕЗ_Фонда!G338 -> -14582.73356 | H112: =Расчет_БЕЗ_Фонда!H338 -> -8702.727853 | I112: =Расчет_БЕЗ_Фонда!I338 -> -2311.738816 | J112: =Расчет_БЕЗ_Фонда!J338 -> 4647.957055 | K112: =Расчет_БЕЗ_Фонда!K338 -> 12233.05137 | L112: =Расчет_БЕЗ_Фонда!L338 -> 20505.72947 | M112: =Расчет_БЕЗ_Фонда!M338 -> 29535.01455 | N112: =Расчет_БЕЗ_Фонда!N338 -> 39399.102 | O112: =Расчет_БЕЗ_Фонда!O338 -> 50185.61884 | P112: =Расчет_БЕЗ_Фонда!P338 -> 0 | Q112: =Расчет_БЕЗ_Фонда!Q338 -> 0 | R112: =Расчет_БЕЗ_Фонда!R338 -> 0 | S112: =Расчет_БЕЗ_Фонда!S338 -> 0 | T112: =Расчет_БЕЗ_Фонда!T338 -> 0 | U112: =Расчет_БЕЗ_Фонда!U338 -> 0 | V112: =Расчет_БЕЗ_Фонда!V338 -> 0 | W112: =Расчет_БЕЗ_Фонда!W338 -> 0 | X112: =Расчет_БЕЗ_Фонда!X338 -> 0 | Y112: =Расчет_БЕЗ_Фонда!Y338 -> 0 | Z112: =Расчет_БЕЗ_Фонда!Z338 -> 0 | AA112: =Расчет_БЕЗ_Фонда!AA338 -> 0 | AB112: =Расчет_БЕЗ_Фонда!AB338 -> 0 | AC112: =Расчет_БЕЗ_Фонда!AC338 -> 0 | AD112: =Расчет_БЕЗ_Фонда!AD338 -> 0 | AE112: =Расчет_БЕЗ_Фонда!AE338 -> 0 | AF112: =Расчет_БЕЗ_Фонда!AF338 -> 0 | AG112: =Расчет_БЕЗ_Фонда!AG338 -> 0 | AH112: =Расчет_БЕЗ_Фонда!AH338 -> 0 | AI112: =Расчет_БЕЗ_Фонда!AI338 -> 0 | AJ112: =Расчет_БЕЗ_Фонда!AJ338 -> 0
A114: Выручка | E114: =E106*E22 -> 0 | F114: 0 | G114: 876049.5032 | H114: 920858.71 | I114: 967832.9807 | J114: 1017187.146 | K114: 1069044.547 | L114: 1123527.56 | M114: 1180768.512 | N114: 1240934.562 | O114: 1304219.912 | P114: 0 | Q114: 0 | R114: 0 | S114: 0 | T114: 0 | U114: 0 | V114: 0 | W114: 0 | X114: 0 | Y114: 0 | Z114: 0 | AA114: 0 | AB114: 0 | AC114: 0 | AD114: 0 | AE114: 0 | AF114: 0 | AG114: 0 | AH114: 0 | AI114: 0 | AJ114: 0
A115: =Макро!A19 -> Налог на прибыль | E115: =VLOOKUP($A115,Макро!$A$17:$AJ$28,MATCH(E$4,Макро!$A$3:$AJ$3,0),FALSE) -> 0.2 | F115: =VLOOKUP($A115,Макро!$A$17:$AJ$28,MATCH(F$4,Макро!$A$3:$AJ$3,0),FALSE) -> 0.2 | G115: =VLOOKUP($A115,Макро!$A$17:$AJ$28,MATCH(G$4,Макро!$A$3:$AJ$3,0),FALSE) -> 0.2 | H115: =VLOOKUP($A115,Макро!$A$17:$AJ$28,MATCH(H$4,Макро!$A$3:$AJ$3,0),FALSE) -> 0.2 | I115: =VLOOKUP($A115,Макро!$A$17:$AJ$28,MATCH(I$4,Макро!$A$3:$AJ$3,0),FALSE) -> 0.2 | J115: =VLOOKUP($A115,Макро!$A$17:$AJ$28,MATCH(J$4,Макро!$A$3:$AJ$3,0),FALSE) -> 0.2 | K115: =VLOOKUP($A115,Макро!$A$17:$AJ$28,MATCH(K$4,Макро!$A$3:$AJ$3,0),FALSE) -> 0.2 | L115: =VLOOKUP($A115,Макро!$A$17:$AJ$28,MATCH(L$4,Макро!$A$3:$AJ$3,0),FALSE) -> 0.2 | M115: =VLOOKUP($A115,Макро!$A$17:$AJ$28,MATCH(M$4,Макро!$A$3:$AJ$3,0),FALSE) -> 0.2 | N115: =VLOOKUP($A115,Макро!$A$17:$AJ$28,MATCH(N$4,Макро!$A$3:$AJ$3,0),FALSE) -> 0.2 | O115: =VLOOKUP($A115,Макро!$A$17:$AJ$28,MATCH(O$4,Макро!$A$3:$AJ$3,0),FALSE) -> 0.2 | P115: =VLOOKUP($A115,Макро!$A$17:$AJ$28,MATCH(P$4,Макро!$A$3:$AJ$3,0),FALSE) -> 0.2 | Q115: =VLOOKUP($A115,Макро!$A$17:$AJ$28,MATCH(Q$4,Макро!$A$3:$AJ$3,0),FALSE) -> 0.2 | R115: =VLOOKUP($A115,Макро!$A$17:$AJ$28,MATCH(R$4,Макро!$A$3:$AJ$3,0),FALSE) -> 0.2 | S115: =VLOOKUP($A115,Макро!$A$17:$AJ$28,MATCH(S$4,Макро!$A$3:$AJ$3,0),FALSE) -> 0.2 | T115: =VLOOKUP($A115,Макро!$A$17:$AJ$28,MATCH(T$4,Макро!$A$3:$AJ$3,0),FALSE) -> 0.2 | U115: =VLOOKUP($A115,Макро!$A$17:$AJ$28,MATCH(U$4,Макро!$A$3:$AJ$3,0),FALSE) -> 0.2 | V115: =VLOOKUP($A115,Макро!$A$17:$AJ$28,MATCH(V$4,Макро!$A$3:$AJ$3,0),FALSE) -> 0.2 | W115: =VLOOKUP($A115,Макро!$A$17:$AJ$28,MATCH(W$4,Макро!$A$3:$AJ$3,0),FALSE) -> 0.2 | X115: =VLOOKUP($A115,Макро!$A$17:$AJ$28,MATCH(X$4,Макро!$A$3:$AJ$3,0),FALSE) -> 0.2 | Y115: =VLOOKUP($A115,Макро!$A$17:$AJ$28,MATCH(Y$4,Макро!$A$3:$AJ$3,0),FALSE) -> 0.2 | Z115: =VLOOKUP($A115,Макро!$A$17:$AJ$28,MATCH(Z$4,Макро!$A$3:$AJ$3,0),FALSE) -> 0.2 | AA115: =VLOOKUP($A115,Макро!$A$17:$AJ$28,MATCH(AA$4,Макро!$A$3:$AJ$3,0),FALSE) -> 0.2 | AB115: =VLOOKUP($A115,Макро!$A$17:$AJ$28,MATCH(AB$4,Макро!$A$3:$AJ$3,0),FALSE) -> 0.2 | AC115: =VLOOKUP($A115,Макро!$A$17:$AJ$28,MATCH(AC$4,Макро!$A$3:$AJ$3,0),FALSE) -> 0.2 | AD115: =VLOOKUP($A115,Макро!$A$17:$AJ$28,MATCH(AD$4,Макро!$A$3:$AJ$3,0),FALSE) -> 0.2 | AE115: =VLOOKUP($A115,Макро!$A$17:$AJ$28,MATCH(AE$4,Макро!$A$3:$AJ$3,0),FALSE) -> 0.2 | AF115: =VLOOKUP($A115,Макро!$A$17:$AJ$28,MATCH(AF$4,Макро!$A$3:$AJ$3,0),FALSE) -> 0.2 | AG115: =VLOOKUP($A115,Макро!$A$17:$AJ$28,MATCH(AG$4,Макро!$A$3:$AJ$3,0),FALSE) -> 0.2 | AH115: =VLOOKUP($A115,Макро!$A$17:$AJ$28,MATCH(AH$4,Макро!$A$3:$AJ$3,0),FALSE) -> 0.2 | AI115: =VLOOKUP($A115,Макро!$A$17:$AJ$28,MATCH(AI$4,Макро!$A$3:$AJ$3,0),FALSE) -> 0.2 | AJ115: =VLOOKUP($A115,Макро!$A$17:$AJ$28,MATCH(AJ$4,Макро!$A$3:$AJ$3,0),FALSE) -> 0.2
A116: Вспомогательный расчет 1 | D116: =SUM(E116:O116) -> 4734920.811 | E116: =(E114-D114*D115)*E111 -> 0 | F116: 0 | G116: 734980.7339 | H116: 572573.4656 | I116: 550645.8089 | J116: 529407.4465 | K116: 508790.1665 | L116: 488724.9006 | M116: 469125.528 | N116: 449879.3579 | O116: 430793.4028 | P116: -96693.31759 | Q116: 0 | R116: 0 | S116: 0 | T116: 0 | U116: 0 | V116: 0 | W116: 0 | X116: 0 | Y116: 0 | Z116: 0 | AA116: 0 | AB116: 0 | AC116: 0 | AD116: 0 | AE116: 0 | AF116: 0 | AG116: 0 | AH116: 0 | AI116: 0 | AJ116: 0
A117: Вспомогательный расчет 2 | D117: =SUM(E117:O117) -> 4108.313473 | E117: =IF(E112<0,-E112*E115*E111,0) -> 0 | F117: 0 | G117: 2446.900131 | H117: 1336.541005 | I117: 324.8723371 | J117: 0 | K117: 0 | L117: 0 | M117: 0 | N117: 0 | O117: 0 | P117: 0 | Q117: 0 | R117: 0 | S117: 0 | T117: 0 | U117: 0 | V117: 0 | W117: 0 | X117: 0 | Y117: 0 | Z117: 0 | AA117: 0 | AB117: 0 | AC117: 0 | AD117: 0 | AE117: 0 | AF117: 0 | AG117: 0 | AH117: 0 | AI117: 0 | AJ117: 0
A119: коэффициент необходимого увеличения выручки | D119: =IF(D110<0,-(D110+D117)/D116,0) -> 0.03459215744
A121: Требуемая выручка для окупаемости без средств Фонда(ориентировочная оценка) | E121: =E106*(1+$D$119) -> 821784.5091 | F121: 862105.2964 | G121: 906353.9455 | H121: 952713.1995 | I121: 1001312.412 | J121: 1052373.844 | K121: 1106025.104 | L121: 1162392.803 | M121: 1221613.843 | N121: 1283861.166 | O121: 1349335.693 | P121: 1400975.892 | Q121: 1455956.813 | R121: 1514493.264 | S121: 1576814.122 | T121: 1643163.254 | U121: 1713800.488 | V121: 1789002.667 | W121: 1869064.752 | X121: 1954301.013 | Y121: 2039508.565 | Z121: 2130581.879 | AA121: 369402.0463 | AB121: 369402.0463 | AC121: 369402.0463 | AD121: 369402.0463 | AE121: 369402.0463 | AF121: 369402.0463 | AG121: 369402.0463 | AH121: 369402.0463 | AI121: 369402.0463 | AJ121: 369402.0463
A122: Тариф для окупаемости без средств Фонда (ориентировочная оценка) | D122: тыс. руб./Гкал | E122: =IFERROR(E121/E87,0) -> 2.054461273 | F122: 2.155263241 | G122: 2.265884864 | H122: 2.381782999 | I122: 2.503281029 | J122: 2.630934611 | K122: 2.765062761 | L122: 2.905982006 | M122: 3.054034606 | N122: 3.209652916 | O122: 3.373339231 | P122: 3.50243973 | Q122: 3.639892032 | R122: 3.786233159 | S122: 3.942035306 | T122: 4.107908134 | U122: 4.28450122 | V122: 4.472506667 | W122: 4.67266188 | X122: 4.885752533 | Y122: 5.098771413 | Z122: 5.326454698 | AA122: 0 | AB122: 0 | AC122: 0 | AD122: 0 | AE122: 0 | AF122: 0 | AG122: 0 | AH122: 0 | AI122: 0 | AJ122: 0

Sheet Расчет_С_Фондом
A1: Содержание | E1: =DATE(YEAR('Исходные данные'!$E$10),1,1) -> 2019-01-01 | F1: =E$2+1 -> 2020-01-01 | G1: =F$2+1 -> 2021-01-01 | H1: 2022-01-01 | I1: 2023-01-01 | J1: 2024-01-01 | K1: 2025-01-01 | L1: 2026-01-01 | M1: 2027-01-01 | N1: 2028-01-01 | O1: 2029-01-01 | P1: 2030-01-01 | Q1: 2031-01-01 | R1: 2032-01-01 | S1: 2033-01-01 | T1: 2034-01-01 | U1: 2035-01-01 | V1: 2036-01-01 | W1: 2037-01-01 | X1: 2038-01-01 | Y1: 2039-01-01 | Z1: 2040-01-01 | AA1: 2041-01-01 | AB1: 2042-01-01 | AC1: 2043-01-01 | AD1: =AC$2+1 -> 2044-01-01 | AE1: 2045-01-01 | AF1: 2046-01-01 | AG1: 2047-01-01 | AH1: 2048-01-01 | AI1: 2049-01-01 | AJ1: 2050-01-01
A2: ЗАПОЛНЕНИЕ НЕ ТРЕБУЕТСЯ. АВТОМАТИЧЕСКИЙ РАСЧЕТ | E2: =EDATE(E$1,12)-1 -> 2019-12-31 | F2: =EDATE(F$1,12)-1 -> 2020-12-31 | G2: 2021-12-31 | H2: 2022-12-31 | I2: 2023-12-31 | J2: 2024-12-31 | K2: 2025-12-31 | L2: 2026-12-31 | M2: 2027-12-31 | N2: 2028-12-31 | O2: 2029-12-31 | P2: 2030-12-31 | Q2: 2031-12-31 | R2: 2032-12-31 | S2: 2033-12-31 | T2: 2034-12-31 | U2: 2035-12-31 | V2: 2036-12-31 | W2: 2037-12-31 | X2: 2038-12-31 | Y2: 2039-12-31 | Z2: 2040-12-31 | AA2: 2041-12-31 | AB2: 2042-12-31 | AC2: 2043-12-31 | AD2: 2044-12-31 | AE2: 2045-12-31 | AF2: 2046-12-31 | AG2: 2047-12-31 | AH2: 2048-12-31 | AI2: 2049-12-31 | AJ2: 2050-12-31
A3: Проверка корректности модели | B3: =Результаты!$C$27 -> OK | E3: =MONTH(E$2)/3 -> 4 | F3: =MONTH(F$2)/3 -> 4 | G3: =MONTH(G$2)/3 -> 4 | H3: 4 | I3: 4 | J3: 4 | K3: 4 | L3: 4 | M3: 4 | N3: 4 | O3: 4 | P3: 4 | Q3: 4 | R3: 4 | S3: 4 | T3: 4 | U3: 4 | V3: 4 | W3: 4 | X3: 4 | Y3: 4 | Z3: 4 | AA3: 4 | AB3: 4 | AC3: 4 | AD3: 4 | AE3: 4 | AF3: 4 | AG3: 4 | AH3: 4 | AI3: 4 | AJ3: 4
A4: 0 | E4: =YEAR(E$1) -> 2019 | F4: =YEAR(F$1) -> 2020 | G4: =YEAR(G$1) -> 2021 | H4: 2022 | I4: 2023 | J4: 2024 | K4: 2025 | L4: 2026 | M4: 2027 | N4: 2028 | O4: 2029 | P4: 2030 | Q4: 2031 | R4: 2032 | S4: 2033 | T4: 2034 | U4: 2035 | V4: 2036 | W4: 2037 | X4: 2038 | Y4: 2039 | Z4: 2040 | AA4: 2041 | AB4: 2042 | AC4: 2043 | AD4: 2044 | AE4: 2045 | AF4: 2046 | AG4: 2047 | AH4: 2048 | AI4: 2049 | AJ4: 2050
A5: ИНФЛЯЦИЯ, НАЛОГИ
A6: Инфляция
A7: Инфляция
A8: =Макро!A6 -> Индекс реальных цен | B8: =Макро!B6 -> ИРЦ | E8: =(1+SUMIF(Макро!$C$3:$AJ$3,E$4,Макро!$C6:$AJ6))^(MAX(0,1+MIN(E$2,$C$36)-MAX(E$1,$B$36))/IF(MOD(E$4,4)=0,366,365))-1 -> 0 | F8: =(1+SUMIF(Макро!$C$3:$AJ$3,F$4,Макро!$C6:$AJ6))^(MAX(0,1+MIN(F$2,$C$36)-MAX(F$1,$B$36))/IF(MOD(F$4,4)=0,366,365))-1 -> 0 | G8: =(1+SUMIF(Макро!$C$3:$AJ$3,G$4,Макро!$C6:$AJ6))^(MAX(0,1+MIN(G$2,$C$36)-MAX(G$1,$B$36))/IF(MOD(G$4,4)=0,366,365))-1 -> 0 | H8: =(1+SUMIF(Макро!$C$3:$AJ$3,H$4,Макро!$C6:$AJ6))^(MAX(0,1+MIN(H$2,$C$36)-MAX(H$1,$B$36))/IF(MOD(H$4,4)=0,366,365))-1 -> 0 | I8: =(1+SUMIF(Макро!$C$3:$AJ$3,I$4,Макро!$C6:$AJ6))^(MAX(0,1+MIN(I$2,$C$36)-MAX(I$1,$B$36))/IF(MOD(I$4,4)=0,366,365))-1 -> 0 | J8: =(1+SUMIF(Макро!$C$3:$AJ$3,J$4,Макро!$C6:$AJ6))^(MAX(0,1+MIN(J$2,$C$36)-MAX(J$1,$B$36))/IF(MOD(J$4,4)=0,366,365))-1 -> 0 | K8: =(1+SUMIF(Макро!$C$3:$AJ$3,K$4,Макро!$C6:$AJ6))^(MAX(0,1+MIN(K$2,$C$36)-MAX(K$1,$B$36))/IF(MOD(K$4,4)=0,366,365))-1 -> 0 | L8: =(1+SUMIF(Макро!$C$3:$AJ$3,L$4,Макро!$C6:$AJ6))^(MAX(0,1+MIN(L$2,$C$36)-MAX(L$1,$B$36))/IF(MOD(L$4,4)=0,366,365))-1 -> 0 | M8: =(1+SUMIF(Макро!$C$3:$AJ$3,M$4,Макро!$C6:$AJ6))^(MAX(0,1+MIN(M$2,$C$36)-MAX(M$1,$B$36))/IF(MOD(M$4,4)=0,366,365))-1 -> 0 | N8: =(1+SUMIF(Макро!$C$3:$AJ$3,N$4,Макро!$C6:$AJ6))^(MAX(0,1+MIN(N$2,$C$36)-MAX(N$1,$B$36))/IF(MOD(N$4,4)=0,366,365))-1 -> 0 | O8: =(1+SUMIF(Макро!$C$3:$AJ$3,O$4,Макро!$C6:$AJ6))^(MAX(0,1+MIN(O$2,$C$36)-MAX(O$1,$B$36))/IF(MOD(O$4,4)=0,366,365))-1 -> 0 | P8: =(1+SUMIF(Макро!$C$3:$AJ$3,P$4,Макро!$C6:$AJ6))^(MAX(0,1+MIN(P$2,$C$36)-MAX(P$1,$B$36))/IF(MOD(P$4,4)=0,366,365))-1 -> 0 | Q8: =(1+SUMIF(Макро!$C$3:$AJ$3,Q$4,Макро!$C6:$AJ6))^(MAX(0,1+MIN(Q$2,$C$36)-MAX(Q$1,$B$36))/IF(MOD(Q$4,4)=0,366,365))-1 -> 0 | R8: =(1+SUMIF(Макро!$C$3:$AJ$3,R$4,Макро!$C6:$AJ6))^(MAX(0,1+MIN(R$2,$C$36)-MAX(R$1,$B$36))/IF(MOD(R$4,4)=0,366,365))-1 -> 0 | S8: =(1+SUMIF(Макро!$C$3:$AJ$3,S$4,Макро!$C6:$AJ6))^(MAX(0,1+MIN(S$2,$C$36)-MAX(S$1,$B$36))/IF(MOD(S$4,4)=0,366,365))-1 -> 0 | T8: =(1+SUMIF(Макро!$C$3:$AJ$3,T$4,Макро!$C6:$AJ6))^(MAX(0,1+MIN(T$2,$C$36)-MAX(T$1,$B$36))/IF(MOD(T$4,4)=0,366,365))-1 -> 0 | U8: =(1+SUMIF(Макро!$C$3:$AJ$3,U$4,Макро!$C6:$AJ6))^(MAX(0,1+MIN(U$2,$C$36)-MAX(U$1,$B$36))/IF(MOD(U$4,4)=0,366,365))-1 -> 0 | V8: =(1+SUMIF(Макро!$C$3:$AJ$3,V$4,Макро!$C6:$AJ6))^(MAX(0,1+MIN(V$2,$C$36)-MAX(V$1,$B$36))/IF(MOD(V$4,4)=0,366,365))-1 -> 0 | W8: =(1+SUMIF(Макро!$C$3:$AJ$3,W$4,Макро!$C6:$AJ6))^(MAX(0,1+MIN(W$2,$C$36)-MAX(W$1,$B$36))/IF(MOD(W$4,4)=0,366,365))-1 -> 0 | X8: =(1+SUMIF(Макро!$C$3:$AJ$3,X$4,Макро!$C6:$AJ6))^(MAX(0,1+MIN(X$2,$C$36)-MAX(X$1,$B$36))/IF(MOD(X$4,4)=0,366,365))-1 -> 0 | Y8: =(1+SUMIF(Макро!$C$3:$AJ$3,Y$4,Макро!$C6:$AJ6))^(MAX(0,1+MIN(Y$2,$C$36)-MAX(Y$1,$B$36))/IF(MOD(Y$4,4)=0,366,365))-1 -> 0 | Z8: =(1+SUMIF(Макро!$C$3:$AJ$3,Z$4,Макро!$C6:$AJ6))^(MAX(0,1+MIN(Z$2,$C$36)-MAX(Z$1,$B$36))/IF(MOD(Z$4,4)=0,366,365))-1 -> 0 | AA8: =(1+SUMIF(Макро!$C$3:$AJ$3,AA$4,Макро!$C6:$AJ6))^(MAX(0,1+MIN(AA$2,$C$36)-MAX(AA$1,$B$36))/IF(MOD(AA$4,4)=0,366,365))-1 -> 0 | AB8: =(1+SUMIF(Макро!$C$3:$AJ$3,AB$4,Макро!$C6:$AJ6))^(MAX(0,1+MIN(AB$2,$C$36)-MAX(AB$1,$B$36))/IF(MOD(AB$4,4)=0,366,365))-1 -> 0 | AC8: =(1+SUMIF(Макро!$C$3:$AJ$3,AC$4,Макро!$C6:$AJ6))^(MAX(0,1+MIN(AC$2,$C$36)-MAX(AC$1,$B$36))/IF(MOD(AC$4,4)=0,366,365))-1 -> 0 | AD8: =(1+SUMIF(Макро!$C$3:$AJ$3,AD$4,Макро!$C6:$AJ6))^(MAX(0,1+MIN(AD$2,$C$36)-MAX(AD$1,$B$36))/IF(MOD(AD$4,4)=0,366,365))-1 -> 0 | AE8: =(1+SUMIF(Макро!$C$3:$AJ$3,AE$4,Макро!$C6:$AJ6))^(MAX(0,1+MIN(AE$2,$C$36)-MAX(AE$1,$B$36))/IF(MOD(AE$4,4)=0,366,365))-1 -> 0 | AF8: =(1+SUMIF(Макро!$C$3:$AJ$3,AF$4,Макро!$C6:$AJ6))^(MAX(0,1+MIN(AF$2,$C$36)-MAX(AF$1,$B$36))/IF(MOD(AF$4,4)=0,366,365))-1 -> 0 | AG8: =(1+SUMIF(Макро!$C$3:$AJ$3,AG$4,Макро!$C6:$AJ6))^(MAX(0,1+MIN(AG$2,$C$36)-MAX(AG$1,$B$36))/IF(MOD(AG$4,4)=0,366,365))-1 -> 0 | AH8: =(1+SUMIF(Макро!$C$3:$AJ$3,AH$4,Макро!$C6:$AJ6))^(MAX(0,1+MIN(AH$2,$C$36)-MAX(AH$1,$B$36))/IF(MOD(AH$4,4)=0,366,365))-1 -> 0 | AI8: =(1+SUMIF(Макро!$C$3:$AJ$3,AI$4,Макро!$C6:$AJ6))^(MAX(0,1+MIN(AI$2,$C$36)-MAX(AI$1,$B$36))/IF(MOD(AI$4,4)=0,366,365))-1 -> 0 | AJ8: =(1+SUMIF(Макро!$C$3:$AJ$3,AJ$4,Макро!$C6:$AJ6))^(MAX(0,1+MIN(AJ$2,$C$36)-MAX(AJ$1,$B$36))/IF(MOD(AJ$4,4)=0,366,365))-1 -> 0
A9: =Макро!A7 -> ИПЦ | B9: =Макро!B7 -> ИПЦ | E9: =(1+SUMIF(Макро!$C$3:$AJ$3,E$4,Макро!$C7:$AJ7)+Чувствительность!$B$9)^(MAX(0,1+MIN(E$2,$C$36)-MAX(E$1,$B$36))/IF(MOD(E$4,4)=0,366,365))-1 -> 0.04645 | F9: =(1+SUMIF(Макро!$C$3:$AJ$3,F$4,Макро!$C7:$AJ7)+Чувствительность!$B$9)^(MAX(0,1+MIN(F$2,$C$36)-MAX(F$1,$B$36))/IF(MOD(F$4,4)=0,366,365))-1 -> 0.03421 | G9: =(1+SUMIF(Макро!$C$3:$AJ$3,G$4,Макро!$C7:$AJ7)+Чувствительность!$B$9)^(MAX(0,1+MIN(G$2,$C$36)-MAX(G$1,$B$36))/IF(MOD(G$4,4)=0,366,365))-1 -> 0.04011 | H9: =(1+SUMIF(Макро!$C$3:$AJ$3,H$4,Макро!$C7:$AJ7)+Чувствительность!$B$9)^(MAX(0,1+MIN(H$2,$C$36)-MAX(H$1,$B$36))/IF(MOD(H$4,4)=0,366,365))-1 -> 0.03995 | I9: =(1+SUMIF(Макро!$C$3:$AJ$3,I$4,Макро!$C7:$AJ7)+Чувствительность!$B$9)^(MAX(0,1+MIN(I$2,$C$36)-MAX(I$1,$B$36))/IF(MOD(I$4,4)=0,366,365))-1 -> 0.0398 | J9: =(1+SUMIF(Макро!$C$3:$AJ$3,J$4,Макро!$C7:$AJ7)+Чувствительность!$B$9)^(MAX(0,1+MIN(J$2,$C$36)-MAX(J$1,$B$36))/IF(MOD(J$4,4)=0,366,365))-1 -> 0.03989 | K9: =(1+SUMIF(Макро!$C$3:$AJ$3,K$4,Макро!$C7:$AJ7)+Чувствительность!$B$9)^(MAX(0,1+MIN(K$2,$C$36)-MAX(K$1,$B$36))/IF(MOD(K$4,4)=0,366,365))-1 -> 0.03992 | L9: =(1+SUMIF(Макро!$C$3:$AJ$3,L$4,Макро!$C7:$AJ7)+Чувствительность!$B$9)^(MAX(0,1+MIN(L$2,$C$36)-MAX(L$1,$B$36))/IF(MOD(L$4,4)=0,366,365))-1 -> 0.03987 | M9: =(1+SUMIF(Макро!$C$3:$AJ$3,M$4,Макро!$C7:$AJ7)+Чувствительность!$B$9)^(MAX(0,1+MIN(M$2,$C$36)-MAX(M$1,$B$36))/IF(MOD(M$4,4)=0,366,365))-1 -> 0.03975 | N9: =(1+SUMIF(Макро!$C$3:$AJ$3,N$4,Макро!$C7:$AJ7)+Чувствительность!$B$9)^(MAX(0,1+MIN(N$2,$C$36)-MAX(N$1,$B$36))/IF(MOD(N$4,4)=0,366,365))-1 -> 0.03963 | O9: =(1+SUMIF(Макро!$C$3:$AJ$3,O$4,Макро!$C7:$AJ7)+Чувствительность!$B$9)^(MAX(0,1+MIN(O$2,$C$36)-MAX(O$1,$B$36))/IF(MOD(O$4,4)=0,366,365))-1 -> 0.03955 | P9: =(1+SUMIF(Макро!$C$3:$AJ$3,P$4,Макро!$C7:$AJ7)+Чувствительность!$B$9)^(MAX(0,1+MIN(P$2,$C$36)-MAX(P$1,$B$36))/IF(MOD(P$4,4)=0,366,365))-1 -> 0 | Q9: =(1+SUMIF(Макро!$C$3:$AJ$3,Q$4,Макро!$C7:$AJ7)+Чувствительность!$B$9)^(MAX(0,1+MIN(Q$2,$C$36)-MAX(Q$1,$B$36))/IF(MOD(Q$4,4)=0,366,365))-1 -> 0 | R9: =(1+SUMIF(Макро!$C$3:$AJ$3,R$4,Макро!$C7:$AJ7)+Чувствительность!$B$9)^(MAX(0,1+MIN(R$2,$C$36)-MAX(R$1,$B$36))/IF(MOD(R$4,4)=0,366,365))-1 -> 0 | S9: =(1+SUMIF(Макро!$C$3:$AJ$3,S$4,Макро!$C7:$AJ7)+Чувствительность!$B$9)^(MAX(0,1+MIN(S$2,$C$36)-MAX(S$1,$B$36))/IF(MOD(S$4,4)=0,366,365))-1 -> 0 | T9: =(1+SUMIF(Макро!$C$3:$AJ$3,T$4,Макро!$C7:$AJ7)+Чувствительность!$B$9)^(MAX(0,1+MIN(T$2,$C$36)-MAX(T$1,$B$36))/IF(MOD(T$4,4)=0,366,365))-1 -> 0 | U9: =(1+SUMIF(Макро!$C$3:$AJ$3,U$4,Макро!$C7:$AJ7)+Чувствительность!$B$9)^(MAX(0,1+MIN(U$2,$C$36)-MAX(U$1,$B$36))/IF(MOD(U$4,4)=0,366,365))-1 -> 0 | V9: =(1+SUMIF(Макро!$C$3:$AJ$3,V$4,Макро!$C7:$AJ7)+Чувствительность!$B$9)^(MAX(0,1+MIN(V$2,$C$36)-MAX(V$1,$B$36))/IF(MOD(V$4,4)=0,366,365))-1 -> 0 | W9: =(1+SUMIF(Макро!$C$3:$AJ$3,W$4,Макро!$C7:$AJ7)+Чувствительность!$B$9)^(MAX(0,1+MIN(W$2,$C$36)-MAX(W$1,$B$36))/IF(MOD(W$4,4)=0,366,365))-1 -> 0 | X9: =(1+SUMIF(Макро!$C$3:$AJ$3,X$4,Макро!$C7:$AJ7)+Чувствительность!$B$9)^(MAX(0,1+MIN(X$2,$C$36)-MAX(X$1,$B$36))/IF(MOD(X$4,4)=0,366,365))-1 -> 0 | Y9: =(1+SUMIF(Макро!$C$3:$AJ$3,Y$4,Макро!$C7:$AJ7)+Чувствительность!$B$9)^(MAX(0,1+MIN(Y$2,$C$36)-MAX(Y$1,$B$36))/IF(MOD(Y$4,4)=0,366,365))-1 -> 0 | Z9: =(1+SUMIF(Макро!$C$3:$AJ$3,Z$4,Макро!$C7:$AJ7)+Чувствительность!$B$9)^(MAX(0,1+MIN(Z$2,$C$36)-MAX(Z$1,$B$36))/IF(MOD(Z$4,4)=0,366,365))-1 -> 0 | AA9: =(1+SUMIF(Макро!$C$3:$AJ$3,AA$4,Макро!$C7:$AJ7)+Чувствительность!$B$9)^(MAX(0,1+MIN(AA$2,$C$36)-MAX(AA$1,$B$36))/IF(MOD(AA$4,4)=0,366,365))-1 -> 0 | AB9: =(1+SUMIF(Макро!$C$3:$AJ$3,AB$4,Макро!$C7:$AJ7)+Чувствительность!$B$9)^(MAX(0,1+MIN(AB$2,$C$36)-MAX(AB$1,$B$36))/IF(MOD(AB$4,4)=0,366,365))-1 -> 0 | AC9: =(1+SUMIF(Макро!$C$3:$AJ$3,AC$4,Макро!$C7:$AJ7)+Чувствительность!$B$9)^(MAX(0,1+MIN(AC$2,$C$36)-MAX(AC$1,$B$36))/IF(MOD(AC$4,4)=0,366,365))-1 -> 0 | AD9: =(1+SUMIF(Макро!$C$3:$AJ$3,AD$4,Макро!$C7:$AJ7)+Чувствительность!$B$9)^(MAX(0,1+MIN(AD$2,$C$36)-MAX(AD$1,$B$36))/IF(MOD(AD$4,4)=0,366,365))-1 -> 0 | AE9: =(1+SUMIF(Макро!$C$3:$AJ$3,AE$4,Макро!$C7:$AJ7)+Чувствительность!$B$9)^(MAX(0,1+MIN(AE$2,$C$36)-MAX(AE$1,$B$36))/IF(MOD(AE$4,4)=0,366,365))-1 -> 0 | AF9: =(1+SUMIF(Макро!$C$3:$AJ$3,AF$4,Макро!$C7:$AJ7)+Чувствительность!$B$9)^(MAX(0,1+MIN(AF$2,$C$36)-MAX(AF$1,$B$36))/IF(MOD(AF$4,4)=0,366,365))-1 -> 0 | AG9: =(1+SUMIF(Макро!$C$3:$AJ$3,AG$4,Макро!$C7:$AJ7)+Чувствительность!$B$9)^(MAX(0,1+MIN(AG$2,$C$36)-MAX(AG$1,$B$36))/IF(MOD(AG$4,4)=0,366,365))-1 -> 0 | AH9: =(1+SUMIF(Макро!$C$3:$AJ$3,AH$4,Макро!$C7:$AJ7)+Чувствительность!$B$9)^(MAX(0,1+MIN(AH$2,$C$36)-MAX(AH$1,$B$36))/IF(MOD(AH$4,4)=0,366,365))-1 -> 0 | AI9: =(1+SUMIF(Макро!$C$3:$AJ$3,AI$4,Макро!$C7:$AJ7)+Чувствительность!$B$9)^(MAX(0,1+MIN(AI$2,$C$36)-MAX(AI$1,$B$36))/IF(MOD(AI$4,4)=0,366,365))-1 -> 0 | AJ9: =(1+SUMIF(Макро!$C$3:$AJ$3,AJ$4,Макро!$C7:$AJ7)+Чувствительность!$B$9)^(MAX(0,1+MIN(AJ$2,$C$36)-MAX(AJ$1,$B$36))/IF(MOD(AJ$4,4)=0,366,365))-1 -> 0
A10: =Макро!A8 -> Индекс цен на водоснабжение и водоотведение | B10: =Макро!B8 -> ИЦП | E10: =(1+SUMIF(Макро!$C$3:$AJ$3,E$4,Макро!$C8:$AJ8)+Чувствительность!$B$9)^(MAX(0,1+MIN(E$2,$C$36)-MAX(E$1,$B$36))/IF(MOD(E$4,4)=0,366,365))-1 -> 0.04948252121 | F10: =(1+SUMIF(Макро!$C$3:$AJ$3,F$4,Макро!$C8:$AJ8)+Чувствительность!$B$9)^(MAX(0,1+MIN(F$2,$C$36)-MAX(F$1,$B$36))/IF(MOD(F$4,4)=0,366,365))-1 -> 0.0400647154 | G10: =(1+SUMIF(Макро!$C$3:$AJ$3,G$4,Макро!$C8:$AJ8)+Чувствительность!$B$9)^(MAX(0,1+MIN(G$2,$C$36)-MAX(G$1,$B$36))/IF(MOD(G$4,4)=0,366,365))-1 -> 0.04044080266 | H10: =(1+SUMIF(Макро!$C$3:$AJ$3,H$4,Макро!$C8:$AJ8)+Чувствительность!$B$9)^(MAX(0,1+MIN(H$2,$C$36)-MAX(H$1,$B$36))/IF(MOD(H$4,4)=0,366,365))-1 -> 0.04044179109 | I10: =(1+SUMIF(Макро!$C$3:$AJ$3,I$4,Макро!$C8:$AJ8)+Чувствительность!$B$9)^(MAX(0,1+MIN(I$2,$C$36)-MAX(I$1,$B$36))/IF(MOD(I$4,4)=0,366,365))-1 -> 0.0397920104 | J10: =(1+SUMIF(Макро!$C$3:$AJ$3,J$4,Макро!$C8:$AJ8)+Чувствительность!$B$9)^(MAX(0,1+MIN(J$2,$C$36)-MAX(J$1,$B$36))/IF(MOD(J$4,4)=0,366,365))-1 -> 0.04046754156 | K10: =(1+SUMIF(Макро!$C$3:$AJ$3,K$4,Макро!$C8:$AJ8)+Чувствительность!$B$9)^(MAX(0,1+MIN(K$2,$C$36)-MAX(K$1,$B$36))/IF(MOD(K$4,4)=0,366,365))-1 -> 0.03992389066 | L10: =(1+SUMIF(Макро!$C$3:$AJ$3,L$4,Макро!$C8:$AJ8)+Чувствительность!$B$9)^(MAX(0,1+MIN(L$2,$C$36)-MAX(L$1,$B$36))/IF(MOD(L$4,4)=0,366,365))-1 -> 0.03987173858 | M10: =(1+SUMIF(Макро!$C$3:$AJ$3,M$4,Макро!$C8:$AJ8)+Чувствительность!$B$9)^(MAX(0,1+MIN(M$2,$C$36)-MAX(M$1,$B$36))/IF(MOD(M$4,4)=0,366,365))-1 -> 0.03975186753 | N10: =(1+SUMIF(Макро!$C$3:$AJ$3,N$4,Макро!$C8:$AJ8)+Чувствительность!$B$9)^(MAX(0,1+MIN(N$2,$C$36)-MAX(N$1,$B$36))/IF(MOD(N$4,4)=0,366,365))-1 -> 0.03963190179 | O10: =(1+SUMIF(Макро!$C$3:$AJ$3,O$4,Макро!$C8:$AJ8)+Чувствительность!$B$9)^(MAX(0,1+MIN(O$2,$C$36)-MAX(O$1,$B$36))/IF(MOD(O$4,4)=0,366,365))-1 -> 0.03954386209 | P10: =(1+SUMIF(Макро!$C$3:$AJ$3,P$4,Макро!$C8:$AJ8)+Чувствительность!$B$9)^(MAX(0,1+MIN(P$2,$C$36)-MAX(P$1,$B$36))/IF(MOD(P$4,4)=0,366,365))-1 -> 0 | Q10: =(1+SUMIF(Макро!$C$3:$AJ$3,Q$4,Макро!$C8:$AJ8)+Чувствительность!$B$9)^(MAX(0,1+MIN(Q$2,$C$36)-MAX(Q$1,$B$36))/IF(MOD(Q$4,4)=0,366,365))-1 -> 0 | R10: =(1+SUMIF(Макро!$C$3:$AJ$3,R$4,Макро!$C8:$AJ8)+Чувствительность!$B$9)^(MAX(0,1+MIN(R$2,$C$36)-MAX(R$1,$B$36))/IF(MOD(R$4,4)=0,366,365))-1 -> 0 | S10: =(1+SUMIF(Макро!$C$3:$AJ$3,S$4,Макро!$C8:$AJ8)+Чувствительность!$B$9)^(MAX(0,1+MIN(S$2,$C$36)-MAX(S$1,$B$36))/IF(MOD(S$4,4)=0,366,365))-1 -> 0 | T10: =(1+SUMIF(Макро!$C$3:$AJ$3,T$4,Макро!$C8:$AJ8)+Чувствительность!$B$9)^(MAX(0,1+MIN(T$2,$C$36)-MAX(T$1,$B$36))/IF(MOD(T$4,4)=0,366,365))-1 -> 0 | U10: =(1+SUMIF(Макро!$C$3:$AJ$3,U$4,Макро!$C8:$AJ8)+Чувствительность!$B$9)^(MAX(0,1+MIN(U$2,$C$36)-MAX(U$1,$B$36))/IF(MOD(U$4,4)=0,366,365))-1 -> 0 | V10: =(1+SUMIF(Макро!$C$3:$AJ$3,V$4,Макро!$C8:$AJ8)+Чувствительность!$B$9)^(MAX(0,1+MIN(V$2,$C$36)-MAX(V$1,$B$36))/IF(MOD(V$4,4)=0,366,365))-1 -> 0 | W10: =(1+SUMIF(Макро!$C$3:$AJ$3,W$4,Макро!$C8:$AJ8)+Чувствительность!$B$9)^(MAX(0,1+MIN(W$2,$C$36)-MAX(W$1,$B$36))/IF(MOD(W$4,4)=0,366,365))-1 -> 0 | X10: =(1+SUMIF(Макро!$C$3:$AJ$3,X$4,Макро!$C8:$AJ8)+Чувствительность!$B$9)^(MAX(0,1+MIN(X$2,$C$36)-MAX(X$1,$B$36))/IF(MOD(X$4,4)=0,366,365))-1 -> 0 | Y10: =(1+SUMIF(Макро!$C$3:$AJ$3,Y$4,Макро!$C8:$AJ8)+Чувствительность!$B$9)^(MAX(0,1+MIN(Y$2,$C$36)-MAX(Y$1,$B$36))/IF(MOD(Y$4,4)=0,366,365))-1 -> 0 | Z10: =(1+SUMIF(Макро!$C$3:$AJ$3,Z$4,Макро!$C8:$AJ8)+Чувствительность!$B$9)^(MAX(0,1+MIN(Z$2,$C$36)-MAX(Z$1,$B$36))/IF(MOD(Z$4,4)=0,366,365))-1 -> 0 | AA10: =(1+SUMIF(Макро!$C$3:$AJ$3,AA$4,Макро!$C8:$AJ8)+Чувствительность!$B$9)^(MAX(0,1+MIN(AA$2,$C$36)-MAX(AA$1,$B$36))/IF(MOD(AA$4,4)=0,366,365))-1 -> 0 | AB10: =(1+SUMIF(Макро!$C$3:$AJ$3,AB$4,Макро!$C8:$AJ8)+Чувствительность!$B$9)^(MAX(0,1+MIN(AB$2,$C$36)-MAX(AB$1,$B$36))/IF(MOD(AB$4,4)=0,366,365))-1 -> 0 | AC10: =(1+SUMIF(Макро!$C$3:$AJ$3,AC$4,Макро!$C8:$AJ8)+Чувствительность!$B$9)^(MAX(0,1+MIN(AC$2,$C$36)-MAX(AC$1,$B$36))/IF(MOD(AC$4,4)=0,366,365))-1 -> 0 | AD10: =(1+SUMIF(Макро!$C$3:$AJ$3,AD$4,Макро!$C8:$AJ8)+Чувствительность!$B$9)^(MAX(0,1+MIN(AD$2,$C$36)-MAX(AD$1,$B$36))/IF(MOD(AD$4,4)=0,366,365))-1 -> 0 | AE10: =(1+SUMIF(Макро!$C$3:$AJ$3,AE$4,Макро!$C8:$AJ8)+Чувствительность!$B$9)^(MAX(0,1+MIN(AE$2,$C$36)-MAX(AE$1,$B$36))/IF(MOD(AE$4,4)=0,366,365))-1 -> 0 | AF10: =(1+SUMIF(Макро!$C$3:$AJ$3,AF$4,Макро!$C8:$AJ8)+Чувствительность!$B$9)^(MAX(0,1+MIN(AF$2,$C$36)-MAX(AF$1,$B$36))/IF(MOD(AF$4,4)=0,366,365))-1 -> 0 | AG10: =(1+SUMIF(Макро!$C$3:$AJ$3,AG$4,Макро!$C8:$AJ8)+Чувствительность!$B$9)^(MAX(0,1+MIN(AG$2,$C$36)-MAX(AG$1,$B$36))/IF(MOD(AG$4,4)=0,366,365))-1 -> 0 | AH10: =(1+SUMIF(Макро!$C$3:$AJ$3,AH$4,Макро!$C8:$AJ8)+Чувствительность!$B$9)^(MAX(0,1+MIN(AH$2,$C$36)-MAX(AH$1,$B$36))/IF(MOD(AH$4,4)=0,366,365))-1 -> 0 | AI10: =(1+SUMIF(Макро!$C$3:$AJ$3,AI$4,Макро!$C8:$AJ8)+Чувствительность!$B$9)^(MAX(0,1+MIN(AI$2,$C$36)-MAX(AI$1,$B$36))/IF(MOD(AI$4,4)=0,366,365))-1 -> 0 | AJ10: =(1+SUMIF(Макро!$C$3:$AJ$3,AJ$4,Макро!$C8:$AJ8)+Чувствительность!$B$9)^(MAX(0,1+MIN(AJ$2,$C$36)-MAX(AJ$1,$B$36))/IF(MOD(AJ$4,4)=0,366,365))-1 -> 0
A11: =Макро!A9 -> Индекс цен на электрическую энергию, газ и пар | B11: =Макро!B9 -> ИКУ | E11: =(1+SUMIF(Макро!$C$3:$AJ$3,E$4,Макро!$C9:$AJ9)+Чувствительность!$B$9)^(MAX(0,1+MIN(E$2,$C$36)-MAX(E$1,$B$36))/IF(MOD(E$4,4)=0,366,365))-1 -> 0.06146391418 | F11: =(1+SUMIF(Макро!$C$3:$AJ$3,F$4,Макро!$C9:$AJ9)+Чувствительность!$B$9)^(MAX(0,1+MIN(F$2,$C$36)-MAX(F$1,$B$36))/IF(MOD(F$4,4)=0,366,365))-1 -> 0.04210858844 | G11: =(1+SUMIF(Макро!$C$3:$AJ$3,G$4,Макро!$C9:$AJ9)+Чувствительность!$B$9)^(MAX(0,1+MIN(G$2,$C$36)-MAX(G$1,$B$36))/IF(MOD(G$4,4)=0,366,365))-1 -> 0.04033685761 | H11: =(1+SUMIF(Макро!$C$3:$AJ$3,H$4,Макро!$C9:$AJ9)+Чувствительность!$B$9)^(MAX(0,1+MIN(H$2,$C$36)-MAX(H$1,$B$36))/IF(MOD(H$4,4)=0,366,365))-1 -> 0.04033221352 | I11: =(1+SUMIF(Макро!$C$3:$AJ$3,I$4,Макро!$C9:$AJ9)+Чувствительность!$B$9)^(MAX(0,1+MIN(I$2,$C$36)-MAX(I$1,$B$36))/IF(MOD(I$4,4)=0,366,365))-1 -> 0.03931432038 | J11: =(1+SUMIF(Макро!$C$3:$AJ$3,J$4,Макро!$C9:$AJ9)+Чувствительность!$B$9)^(MAX(0,1+MIN(J$2,$C$36)-MAX(J$1,$B$36))/IF(MOD(J$4,4)=0,366,365))-1 -> 0.03945998815 | K11: =(1+SUMIF(Макро!$C$3:$AJ$3,K$4,Макро!$C9:$AJ9)+Чувствительность!$B$9)^(MAX(0,1+MIN(K$2,$C$36)-MAX(K$1,$B$36))/IF(MOD(K$4,4)=0,366,365))-1 -> 0.0395001512 | L11: =(1+SUMIF(Макро!$C$3:$AJ$3,L$4,Макро!$C9:$AJ9)+Чувствительность!$B$9)^(MAX(0,1+MIN(L$2,$C$36)-MAX(L$1,$B$36))/IF(MOD(L$4,4)=0,366,365))-1 -> 0.03952271564 | M11: =(1+SUMIF(Макро!$C$3:$AJ$3,M$4,Макро!$C9:$AJ9)+Чувствительность!$B$9)^(MAX(0,1+MIN(M$2,$C$36)-MAX(M$1,$B$36))/IF(MOD(M$4,4)=0,366,365))-1 -> 0.03948833652 | N11: =(1+SUMIF(Макро!$C$3:$AJ$3,N$4,Макро!$C9:$AJ9)+Чувствительность!$B$9)^(MAX(0,1+MIN(N$2,$C$36)-MAX(N$1,$B$36))/IF(MOD(N$4,4)=0,366,365))-1 -> 0.03940931646 | O11: =(1+SUMIF(Макро!$C$3:$AJ$3,O$4,Макро!$C9:$AJ9)+Чувствительность!$B$9)^(MAX(0,1+MIN(O$2,$C$36)-MAX(O$1,$B$36))/IF(MOD(O$4,4)=0,366,365))-1 -> 0.03933023397 | P11: =(1+SUMIF(Макро!$C$3:$AJ$3,P$4,Макро!$C9:$AJ9)+Чувствительность!$B$9)^(MAX(0,1+MIN(P$2,$C$36)-MAX(P$1,$B$36))/IF(MOD(P$4,4)=0,366,365))-1 -> 0 | Q11: =(1+SUMIF(Макро!$C$3:$AJ$3,Q$4,Макро!$C9:$AJ9)+Чувствительность!$B$9)^(MAX(0,1+MIN(Q$2,$C$36)-MAX(Q$1,$B$36))/IF(MOD(Q$4,4)=0,366,365))-1 -> 0 | R11: =(1+SUMIF(Макро!$C$3:$AJ$3,R$4,Макро!$C9:$AJ9)+Чувствительность!$B$9)^(MAX(0,1+MIN(R$2,$C$36)-MAX(R$1,$B$36))/IF(MOD(R$4,4)=0,366,365))-1 -> 0 | S11: =(1+SUMIF(Макро!$C$3:$AJ$3,S$4,Макро!$C9:$AJ9)+Чувствительность!$B$9)^(MAX(0,1+MIN(S$2,$C$36)-MAX(S$1,$B$36))/IF(MOD(S$4,4)=0,366,365))-1 -> 0 | T11: =(1+SUMIF(Макро!$C$3:$AJ$3,T$4,Макро!$C9:$AJ9)+Чувствительность!$B$9)^(MAX(0,1+MIN(T$2,$C$36)-MAX(T$1,$B$36))/IF(MOD(T$4,4)=0,366,365))-1 -> 0 | U11: =(1+SUMIF(Макро!$C$3:$AJ$3,U$4,Макро!$C9:$AJ9)+Чувствительность!$B$9)^(MAX(0,1+MIN(U$2,$C$36)-MAX(U$1,$B$36))/IF(MOD(U$4,4)=0,366,365))-1 -> 0 | V11: =(1+SUMIF(Макро!$C$3:$AJ$3,V$4,Макро!$C9:$AJ9)+Чувствительность!$B$9)^(MAX(0,1+MIN(V$2,$C$36)-MAX(V$1,$B$36))/IF(MOD(V$4,4)=0,366,365))-1 -> 0 | W11: =(1+SUMIF(Макро!$C$3:$AJ$3,W$4,Макро!$C9:$AJ9)+Чувствительность!$B$9)^(MAX(0,1+MIN(W$2,$C$36)-MAX(W$1,$B$36))/IF(MOD(W$4,4)=0,366,365))-1 -> 0 | X11: =(1+SUMIF(Макро!$C$3:$AJ$3,X$4,Макро!$C9:$AJ9)+Чувствительность!$B$9)^(MAX(0,1+MIN(X$2,$C$36)-MAX(X$1,$B$36))/IF(MOD(X$4,4)=0,366,365))-1 -> 0 | Y11: =(1+SUMIF(Макро!$C$3:$AJ$3,Y$4,Макро!$C9:$AJ9)+Чувствительность!$B$9)^(MAX(0,1+MIN(Y$2,$C$36)-MAX(Y$1,$B$36))/IF(MOD(Y$4,4)=0,366,365))-1 -> 0 | Z11: =(1+SUMIF(Макро!$C$3:$AJ$3,Z$4,Макро!$C9:$AJ9)+Чувствительность!$B$9)^(MAX(0,1+MIN(Z$2,$C$36)-MAX(Z$1,$B$36))/IF(MOD(Z$4,4)=0,366,365))-1 -> 0 | AA11: =(1+SUMIF(Макро!$C$3:$AJ$3,AA$4,Макро!$C9:$AJ9)+Чувствительность!$B$9)^(MAX(0,1+MIN(AA$2,$C$36)-MAX(AA$1,$B$36))/IF(MOD(AA$4,4)=0,366,365))-1 -> 0 | AB11: =(1+SUMIF(Макро!$C$3:$AJ$3,AB$4,Макро!$C9:$AJ9)+Чувствительность!$B$9)^(MAX(0,1+MIN(AB$2,$C$36)-MAX(AB$1,$B$36))/IF(MOD(AB$4,4)=0,366,365))-1 -> 0 | AC11: =(1+SUMIF(Макро!$C$3:$AJ$3,AC$4,Макро!$C9:$AJ9)+Чувствительность!$B$9)^(MAX(0,1+MIN(AC$2,$C$36)-MAX(AC$1,$B$36))/IF(MOD(AC$4,4)=0,366,365))-1 -> 0 | AD11: =(1+SUMIF(Макро!$C$3:$AJ$3,AD$4,Макро!$C9:$AJ9)+Чувствительность!$B$9)^(MAX(0,1+MIN(AD$2,$C$36)-MAX(AD$1,$B$36))/IF(MOD(AD$4,4)=0,366,365))-1 -> 0 | AE11: =(1+SUMIF(Макро!$C$3:$AJ$3,AE$4,Макро!$C9:$AJ9)+Чувствительность!$B$9)^(MAX(0,1+MIN(AE$2,$C$36)-MAX(AE$1,$B$36))/IF(MOD(AE$4,4)=0,366,365))-1 -> 0 | AF11: =(1+SUMIF(Макро!$C$3:$AJ$3,AF$4,Макро!$C9:$AJ9)+Чувствительность!$B$9)^(MAX(0,1+MIN(AF$2,$C$36)-MAX(AF$1,$B$36))/IF(MOD(AF$4,4)=0,366,365))-1 -> 0 | AG11: =(1+SUMIF(Макро!$C$3:$AJ$3,AG$4,Макро!$C9:$AJ9)+Чувствительность!$B$9)^(MAX(0,1+MIN(AG$2,$C$36)-MAX(AG$1,$B$36))/IF(MOD(AG$4,4)=0,366,365))-1 -> 0 | AH11: =(1+SUMIF(Макро!$C$3:$AJ$3,AH$4,Макро!$C9:$AJ9)+Чувствительность!$B$9)^(MAX(0,1+MIN(AH$2,$C$36)-MAX(AH$1,$B$36))/IF(MOD(AH$4,4)=0,366,365))-1 -> 0 | AI11: =(1+SUMIF(Макро!$C$3:$AJ$3,AI$4,Макро!$C9:$AJ9)+Чувствительность!$B$9)^(MAX(0,1+MIN(AI$2,$C$36)-MAX(AI$1,$B$36))/IF(MOD(AI$4,4)=0,366,365))-1 -> 0 | AJ11: =(1+SUMIF(Макро!$C$3:$AJ$3,AJ$4,Макро!$C9:$AJ9)+Чувствительность!$B$9)^(MAX(0,1+MIN(AJ$2,$C$36)-MAX(AJ$1,$B$36))/IF(MOD(AJ$4,4)=0,366,365))-1 -> 0
A12: =Макро!A10 -> Индекс-дефлятор инвестиций | B12: =Макро!B10 -> ИКВ | E12: =(1+SUMIF(Макро!$C$3:$AJ$3,E$4,Макро!$C10:$AJ10)+Чувствительность!$B$9)^(MAX(0,1+MIN(E$2,$C$36)-MAX(E$1,$B$36))/IF(MOD(E$4,4)=0,366,365))-1 -> 0.05042905387 | F12: =(1+SUMIF(Макро!$C$3:$AJ$3,F$4,Макро!$C10:$AJ10)+Чувствительность!$B$9)^(MAX(0,1+MIN(F$2,$C$36)-MAX(F$1,$B$36))/IF(MOD(F$4,4)=0,366,365))-1 -> 0.04355921585 | G12: =(1+SUMIF(Макро!$C$3:$AJ$3,G$4,Макро!$C10:$AJ10)+Чувствительность!$B$9)^(MAX(0,1+MIN(G$2,$C$36)-MAX(G$1,$B$36))/IF(MOD(G$4,4)=0,366,365))-1 -> 0.04237711683 | H12: =(1+SUMIF(Макро!$C$3:$AJ$3,H$4,Макро!$C10:$AJ10)+Чувствительность!$B$9)^(MAX(0,1+MIN(H$2,$C$36)-MAX(H$1,$B$36))/IF(MOD(H$4,4)=0,366,365))-1 -> 0.04320055155 | I12: =(1+SUMIF(Макро!$C$3:$AJ$3,I$4,Макро!$C10:$AJ10)+Чувствительность!$B$9)^(MAX(0,1+MIN(I$2,$C$36)-MAX(I$1,$B$36))/IF(MOD(I$4,4)=0,366,365))-1 -> 0.04390092185 | J12: =(1+SUMIF(Макро!$C$3:$AJ$3,J$4,Макро!$C10:$AJ10)+Чувствительность!$B$9)^(MAX(0,1+MIN(J$2,$C$36)-MAX(J$1,$B$36))/IF(MOD(J$4,4)=0,366,365))-1 -> 0.04430064627 | K12: =(1+SUMIF(Макро!$C$3:$AJ$3,K$4,Макро!$C10:$AJ10)+Чувствительность!$B$9)^(MAX(0,1+MIN(K$2,$C$36)-MAX(K$1,$B$36))/IF(MOD(K$4,4)=0,366,365))-1 -> 0.04330064627 | L12: =(1+SUMIF(Макро!$C$3:$AJ$3,L$4,Макро!$C10:$AJ10)+Чувствительность!$B$9)^(MAX(0,1+MIN(L$2,$C$36)-MAX(L$1,$B$36))/IF(MOD(L$4,4)=0,366,365))-1 -> 0.04230064627 | M12: =(1+SUMIF(Макро!$C$3:$AJ$3,M$4,Макро!$C10:$AJ10)+Чувствительность!$B$9)^(MAX(0,1+MIN(M$2,$C$36)-MAX(M$1,$B$36))/IF(MOD(M$4,4)=0,366,365))-1 -> 0.04130064627 | N12: =(1+SUMIF(Макро!$C$3:$AJ$3,N$4,Макро!$C10:$AJ10)+Чувствительность!$B$9)^(MAX(0,1+MIN(N$2,$C$36)-MAX(N$1,$B$36))/IF(MOD(N$4,4)=0,366,365))-1 -> 0.04030064627 | O12: =(1+SUMIF(Макро!$C$3:$AJ$3,O$4,Макро!$C10:$AJ10)+Чувствительность!$B$9)^(MAX(0,1+MIN(O$2,$C$36)-MAX(O$1,$B$36))/IF(MOD(O$4,4)=0,366,365))-1 -> 0.04030064627 | P12: =(1+SUMIF(Макро!$C$3:$AJ$3,P$4,Макро!$C10:$AJ10)+Чувствительность!$B$9)^(MAX(0,1+MIN(P$2,$C$36)-MAX(P$1,$B$36))/IF(MOD(P$4,4)=0,366,365))-1 -> 0 | Q12: =(1+SUMIF(Макро!$C$3:$AJ$3,Q$4,Макро!$C10:$AJ10)+Чувствительность!$B$9)^(MAX(0,1+MIN(Q$2,$C$36)-MAX(Q$1,$B$36))/IF(MOD(Q$4,4)=0,366,365))-1 -> 0 | R12: =(1+SUMIF(Макро!$C$3:$AJ$3,R$4,Макро!$C10:$AJ10)+Чувствительность!$B$9)^(MAX(0,1+MIN(R$2,$C$36)-MAX(R$1,$B$36))/IF(MOD(R$4,4)=0,366,365))-1 -> 0 | S12: =(1+SUMIF(Макро!$C$3:$AJ$3,S$4,Макро!$C10:$AJ10)+Чувствительность!$B$9)^(MAX(0,1+MIN(S$2,$C$36)-MAX(S$1,$B$36))/IF(MOD(S$4,4)=0,366,365))-1 -> 0 | T12: =(1+SUMIF(Макро!$C$3:$AJ$3,T$4,Макро!$C10:$AJ10)+Чувствительность!$B$9)^(MAX(0,1+MIN(T$2,$C$36)-MAX(T$1,$B$36))/IF(MOD(T$4,4)=0,366,365))-1 -> 0 | U12: =(1+SUMIF(Макро!$C$3:$AJ$3,U$4,Макро!$C10:$AJ10)+Чувствительность!$B$9)^(MAX(0,1+MIN(U$2,$C$36)-MAX(U$1,$B$36))/IF(MOD(U$4,4)=0,366,365))-1 -> 0 | V12: =(1+SUMIF(Макро!$C$3:$AJ$3,V$4,Макро!$C10:$AJ10)+Чувствительность!$B$9)^(MAX(0,1+MIN(V$2,$C$36)-MAX(V$1,$B$36))/IF(MOD(V$4,4)=0,366,365))-1 -> 0 | W12: =(1+SUMIF(Макро!$C$3:$AJ$3,W$4,Макро!$C10:$AJ10)+Чувствительность!$B$9)^(MAX(0,1+MIN(W$2,$C$36)-MAX(W$1,$B$36))/IF(MOD(W$4,4)=0,366,365))-1 -> 0 | X12: =(1+SUMIF(Макро!$C$3:$AJ$3,X$4,Макро!$C10:$AJ10)+Чувствительность!$B$9)^(MAX(0,1+MIN(X$2,$C$36)-MAX(X$1,$B$36))/IF(MOD(X$4,4)=0,366,365))-1 -> 0 | Y12: =(1+SUMIF(Макро!$C$3:$AJ$3,Y$4,Макро!$C10:$AJ10)+Чувствительность!$B$9)^(MAX(0,1+MIN(Y$2,$C$36)-MAX(Y$1,$B$36))/IF(MOD(Y$4,4)=0,366,365))-1 -> 0 | Z12: =(1+SUMIF(Макро!$C$3:$AJ$3,Z$4,Макро!$C10:$AJ10)+Чувствительность!$B$9)^(MAX(0,1+MIN(Z$2,$C$36)-MAX(Z$1,$B$36))/IF(MOD(Z$4,4)=0,366,365))-1 -> 0 | AA12: =(1+SUMIF(Макро!$C$3:$AJ$3,AA$4,Макро!$C10:$AJ10)+Чувствительность!$B$9)^(MAX(0,1+MIN(AA$2,$C$36)-MAX(AA$1,$B$36))/IF(MOD(AA$4,4)=0,366,365))-1 -> 0 | AB12: =(1+SUMIF(Макро!$C$3:$AJ$3,AB$4,Макро!$C10:$AJ10)+Чувствительность!$B$9)^(MAX(0,1+MIN(AB$2,$C$36)-MAX(AB$1,$B$36))/IF(MOD(AB$4,4)=0,366,365))-1 -> 0 | AC12: =(1+SUMIF(Макро!$C$3:$AJ$3,AC$4,Макро!$C10:$AJ10)+Чувствительность!$B$9)^(MAX(0,1+MIN(AC$2,$C$36)-MAX(AC$1,$B$36))/IF(MOD(AC$4,4)=0,366,365))-1 -> 0 | AD12: =(1+SUMIF(Макро!$C$3:$AJ$3,AD$4,Макро!$C10:$AJ10)+Чувствительность!$B$9)^(MAX(0,1+MIN(AD$2,$C$36)-MAX(AD$1,$B$36))/IF(MOD(AD$4,4)=0,366,365))-1 -> 0 | AE12: =(1+SUMIF(Макро!$C$3:$AJ$3,AE$4,Макро!$C10:$AJ10)+Чувствительность!$B$9)^(MAX(0,1+MIN(AE$2,$C$36)-MAX(AE$1,$B$36))/IF(MOD(AE$4,4)=0,366,365))-1 -> 0 | AF12: =(1+SUMIF(Макро!$C$3:$AJ$3,AF$4,Макро!$C10:$AJ10)+Чувствительность!$B$9)^(MAX(0,1+MIN(AF$2,$C$36)-MAX(AF$1,$B$36))/IF(MOD(AF$4,4)=0,366,365))-1 -> 0 | AG12: =(1+SUMIF(Макро!$C$3:$AJ$3,AG$4,Макро!$C10:$AJ10)+Чувствительность!$B$9)^(MAX(0,1+MIN(AG$2,$C$36)-MAX(AG$1,$B$36))/IF(MOD(AG$4,4)=0,366,365))-1 -> 0 | AH12: =(1+SUMIF(Макро!$C$3:$AJ$3,AH$4,Макро!$C10:$AJ10)+Чувствительность!$B$9)^(MAX(0,1+MIN(AH$2,$C$36)-MAX(AH$1,$B$36))/IF(MOD(AH$4,4)=0,366,365))-1 -> 0 | AI12: =(1+SUMIF(Макро!$C$3:$AJ$3,AI$4,Макро!$C10:$AJ10)+Чувствительность!$B$9)^(MAX(0,1+MIN(AI$2,$C$36)-MAX(AI$1,$B$36))/IF(MOD(AI$4,4)=0,366,365))-1 -> 0 | AJ12: =(1+SUMIF(Макро!$C$3:$AJ$3,AJ$4,Макро!$C10:$AJ10)+Чувствительность!$B$9)^(MAX(0,1+MIN(AJ$2,$C$36)-MAX(AJ$1,$B$36))/IF(MOD(AJ$4,4)=0,366,365))-1 -> 0
A13: Индексы пересчета
A14: =Макро!A6 -> Индекс реальных цен | B14: =Макро!B6 -> ИРЦ | D14: 1 | E14: =D14 -> 1 | F14: =E14*(1+F8) -> 1 | G14: 1 | H14: 1 | I14: 1 | J14: 1 | K14: 1 | L14: 1 | M14: 1 | N14: 1 | O14: 1 | P14: 1 | Q14: 1 | R14: 1 | S14: 1 | T14: 1 | U14: =T14*(1+U8) -> 1 | V14: 1 | W14: 1 | X14: 1 | Y14: 1 | Z14: 1 | AA14: 1 | AB14: 1 | AC14: 1 | AD14: 1 | AE14: 1 | AF14: 1 | AG14: 1 | AH14: 1 | AI14: 1 | AJ14: 1
A15: =Макро!A7 -> ИПЦ | B15: =Макро!B7 -> ИПЦ | D15: 1 | E15: =D15 -> 1 | F15: =E15*(1+F9) -> 1.03421 | G15: 1.075692163 | H15: 1.118666065 | I15: 1.163188974 | J15: 1.209588583 | K15: 1.257875359 | L15: 1.308026849 | M15: 1.360020917 | N15: 1.413918546 | O15: 1.469839024 | P15: 1.469839024 | Q15: 1.469839024 | R15: 1.469839024 | S15: 1.469839024 | T15: 1.469839024 | U15: 1.469839024 | V15: 1.469839024 | W15: 1.469839024 | X15: 1.469839024 | Y15: 1.469839024 | Z15: 1.469839024 | AA15: 1.469839024 | AB15: 1.469839024 | AC15: 1.469839024 | AD15: 1.469839024 | AE15: 1.469839024 | AF15: 1.469839024 | AG15: 1.469839024 | AH15: 1.469839024 | AI15: 1.469839024 | AJ15: 1.469839024
A16: =Макро!A8 -> Индекс цен на водоснабжение и водоотведение | B16: =Макро!B8 -> ИЦП | D16: 1 | E16: 1 | F16: 1.040064715 | G16: 1.082125767 | H16: 1.125888872 | I16: 1.170690253 | J16: 1.21806521 | K16: 1.266695112 | L16: 1.317200448 | M16: 1.369561626 | N16: 1.423839958 | O16: 1.480144089 | P16: 1.480144089 | Q16: 1.480144089 | R16: 1.480144089 | S16: 1.480144089 | T16: 1.480144089 | U16: 1.480144089 | V16: 1.480144089 | W16: 1.480144089 | X16: 1.480144089 | Y16: 1.480144089 | Z16: 1.480144089 | AA16: 1.480144089 | AB16: 1.480144089 | AC16: 1.480144089 | AD16: 1.480144089 | AE16: 1.480144089 | AF16: 1.480144089 | AG16: 1.480144089 | AH16: 1.480144089 | AI16: 1.480144089 | AJ16: 1.480144089
A17: =Макро!A9 -> Индекс цен на электрическую энергию, газ и пар | B17: =Макро!B9 -> ИКУ | D17: 1 | E17: 1 | F17: 1.042108588 | G17: 1.084143974 | H17: 1.1278699 | I17: 1.172211339 | J17: 1.218466785 | K17: 1.266596407 | L17: 1.316655736 | M17: 1.368648281 | N17: 1.422585774 | O17: 1.478536406 | P17: 1.478536406 | Q17: 1.478536406 | R17: 1.478536406 | S17: 1.478536406 | T17: 1.478536406 | U17: 1.478536406 | V17: 1.478536406 | W17: 1.478536406 | X17: 1.478536406 | Y17: 1.478536406 | Z17: 1.478536406 | AA17: 1.478536406 | AB17: 1.478536406 | AC17: 1.478536406 | AD17: 1.478536406 | AE17: 1.478536406 | AF17: 1.478536406 | AG17: 1.478536406 | AH17: 1.478536406 | AI17: 1.478536406 | AJ17: 1.478536406
A18: =Макро!A10 -> Индекс-дефлятор инвестиций | B18: =Макро!B10 -> ИКВ | D18: 1 | E18: 1 | F18: =E18*(1+F12) -> 1.043559216 | G18: 1.087782247 | H18: 1.13477504 | I18: 1.18459271 | J18: 1.237070933 | K18: 1.290636904 | L18: 1.345231679 | M18: 1.400790616 | N18: 1.457243383 | O18: 1.515971234 | P18: 1.515971234 | Q18: 1.515971234 | R18: 1.515971234 | S18: 1.515971234 | T18: 1.515971234 | U18: 1.515971234 | V18: 1.515971234 | W18: 1.515971234 | X18: 1.515971234 | Y18: 1.515971234 | Z18: 1.515971234 | AA18: 1.515971234 | AB18: 1.515971234 | AC18: 1.515971234 | AD18: 1.515971234 | AE18: 1.515971234 | AF18: 1.515971234 | AG18: 1.515971234 | AH18: 1.515971234 | AI18: 1.515971234 | AJ18: 1.515971234
A20: Ставки налогов
A21: Ставки налогов | B21: Бюджет
A22: =Макро!A17 -> Налог на имущество | B22: =Макро!B17 -> РБ | E22: =IFERROR(VLOOKUP($A22,Макро!$A$17:$AJ$28,MATCH(Расчет_С_Фондом!E$4,Макро!$A$3:$AJ$3,0),FALSE),D22) -> 0.022 | F22: =IFERROR(VLOOKUP($A22,Макро!$A$17:$AJ$28,MATCH(Расчет_С_Фондом!F$4,Макро!$A$3:$AJ$3,0),FALSE),E22) -> 0.022 | G22: =IFERROR(VLOOKUP($A22,Макро!$A$17:$AJ$28,MATCH(Расчет_С_Фондом!G$4,Макро!$A$3:$AJ$3,0),FALSE),F22) -> 0.022 | H22: =IFERROR(VLOOKUP($A22,Макро!$A$17:$AJ$28,MATCH(Расчет_С_Фондом!H$4,Макро!$A$3:$AJ$3,0),FALSE),G22) -> 0.022 | I22: =IFERROR(VLOOKUP($A22,Макро!$A$17:$AJ$28,MATCH(Расчет_С_Фондом!I$4,Макро!$A$3:$AJ$3,0),FALSE),H22) -> 0.022 | J22: =IFERROR(VLOOKUP($A22,Макро!$A$17:$AJ$28,MATCH(Расчет_С_Фондом!J$4,Макро!$A$3:$AJ$3,0),FALSE),I22) -> 0.022 | K22: =IFERROR(VLOOKUP($A22,Макро!$A$17:$AJ$28,MATCH(Расчет_С_Фондом!K$4,Макро!$A$3:$AJ$3,0),FALSE),J22) -> 0.022 | L22: =IFERROR(VLOOKUP($A22,Макро!$A$17:$AJ$28,MATCH(Расчет_С_Фондом!L$4,Макро!$A$3:$AJ$3,0),FALSE),K22) -> 0.022 | M22: =IFERROR(VLOOKUP($A22,Макро!$A$17:$AJ$28,MATCH(Расчет_С_Фондом!M$4,Макро!$A$3:$AJ$3,0),FALSE),L22) -> 0.022 | N22: =IFERROR(VLOOKUP($A22,Макро!$A$17:$AJ$28,MATCH(Расчет_С_Фондом!N$4,Макро!$A$3:$AJ$3,0),FALSE),M22) -> 0.022 | O22: =IFERROR(VLOOKUP($A22,Макро!$A$17:$AJ$28,MATCH(Расчет_С_Фондом!O$4,Макро!$A$3:$AJ$3,0),FALSE),N22) -> 0.022 | P22: =IFERROR(VLOOKUP($A22,Макро!$A$17:$AJ$28,MATCH(Расчет_С_Фондом!P$4,Макро!$A$3:$AJ$3,0),FALSE),O22) -> 0.022 | Q22: =IFERROR(VLOOKUP($A22,Макро!$A$17:$AJ$28,MATCH(Расчет_С_Фондом!Q$4,Макро!$A$3:$AJ$3,0),FALSE),P22) -> 0.022 | R22: =IFERROR(VLOOKUP($A22,Макро!$A$17:$AJ$28,MATCH(Расчет_С_Фондом!R$4,Макро!$A$3:$AJ$3,0),FALSE),Q22) -> 0.022 | S22: =IFERROR(VLOOKUP($A22,Макро!$A$17:$AJ$28,MATCH(Расчет_С_Фондом!S$4,Макро!$A$3:$AJ$3,0),FALSE),R22) -> 0.022 | T22: =IFERROR(VLOOKUP($A22,Макро!$A$17:$AJ$28,MATCH(Расчет_С_Фондом!T$4,Макро!$A$3:$AJ$3,0),FALSE),S22) -> 0.022 | U22: =IFERROR(VLOOKUP($A22,Макро!$A$17:$AJ$28,MATCH(Расчет_С_Фондом!U$4,Макро!$A$3:$AJ$3,0),FALSE),T22) -> 0.022 | V22: =IFERROR(VLOOKUP($A22,Макро!$A$17:$AJ$28,MATCH(Расчет_С_Фондом!V$4,Макро!$A$3:$AJ$3,0),FALSE),U22) -> 0.022 | W22: =IFERROR(VLOOKUP($A22,Макро!$A$17:$AJ$28,MATCH(Расчет_С_Фондом!W$4,Макро!$A$3:$AJ$3,0),FALSE),V22) -> 0.022 | X22: =IFERROR(VLOOKUP($A22,Макро!$A$17:$AJ$28,MATCH(Расчет_С_Фондом!X$4,Макро!$A$3:$AJ$3,0),FALSE),W22) -> 0.022 | Y22: =IFERROR(VLOOKUP($A22,Макро!$A$17:$AJ$28,MATCH(Расчет_С_Фондом!Y$4,Макро!$A$3:$AJ$3,0),FALSE),X22) -> 0.022 | Z22: =IFERROR(VLOOKUP($A22,Макро!$A$17:$AJ$28,MATCH(Расчет_С_Фондом!Z$4,Макро!$A$3:$AJ$3,0),FALSE),Y22) -> 0.022 | AA22: =IFERROR(VLOOKUP($A22,Макро!$A$17:$AJ$28,MATCH(Расчет_С_Фондом!AA$4,Макро!$A$3:$AJ$3,0),FALSE),Z22) -> 0.022 | AB22: =IFERROR(VLOOKUP($A22,Макро!$A$17:$AJ$28,MATCH(Расчет_С_Фондом!AB$4,Макро!$A$3:$AJ$3,0),FALSE),AA22) -> 0.022 | AC22: =IFERROR(VLOOKUP($A22,Макро!$A$17:$AJ$28,MATCH(Расчет_С_Фондом!AC$4,Макро!$A$3:$AJ$3,0),FALSE),AB22) -> 0.022 | AD22: =IFERROR(VLOOKUP($A22,Макро!$A$17:$AJ$28,MATCH(Расчет_С_Фондом!AD$4,Макро!$A$3:$AJ$3,0),FALSE),AC22) -> 0.022 | AE22: =IFERROR(VLOOKUP($A22,Макро!$A$17:$AJ$28,MATCH(Расчет_С_Фондом!AE$4,Макро!$A$3:$AJ$3,0),FALSE),AD22) -> 0.022 | AF22: =IFERROR(VLOOKUP($A22,Макро!$A$17:$AJ$28,MATCH(Расчет_С_Фондом!AF$4,Макро!$A$3:$AJ$3,0),FALSE),AE22) -> 0.022 | AG22: =IFERROR(VLOOKUP($A22,Макро!$A$17:$AJ$28,MATCH(Расчет_С_Фондом!AG$4,Макро!$A$3:$AJ$3,0),FALSE),AF22) -> 0.022 | AH22: =IFERROR(VLOOKUP($A22,Макро!$A$17:$AJ$28,MATCH(Расчет_С_Фондом!AH$4,Макро!$A$3:$AJ$3,0),FALSE),AG22) -> 0.022 | AI22: =IFERROR(VLOOKUP($A22,Макро!$A$17:$AJ$28,MATCH(Расчет_С_Фондом!AI$4,Макро!$A$3:$AJ$3,0),FALSE),AH22) -> 0.022 | AJ22: =IFERROR(VLOOKUP($A22,Макро!$A$17:$AJ$28,MATCH(Расчет_С_Фондом!AJ$4,Макро!$A$3:$AJ$3,0),FALSE),AI22) -> 0.022
A23: =Макро!A18 -> НДС | B23: =Макро!B18 -> ФБ | E23: =IFERROR(VLOOKUP($A23,Макро!$A$17:$AJ$28,MATCH(Расчет_С_Фондом!E$4,Макро!$A$3:$AJ$3,0),FALSE),D23) -> 0.2 | F23: =IFERROR(VLOOKUP($A23,Макро!$A$17:$AJ$28,MATCH(Расчет_С_Фондом!F$4,Макро!$A$3:$AJ$3,0),FALSE),E23) -> 0.2 | G23: =IFERROR(VLOOKUP($A23,Макро!$A$17:$AJ$28,MATCH(Расчет_С_Фондом!G$4,Макро!$A$3:$AJ$3,0),FALSE),F23) -> 0.2 | H23: =IFERROR(VLOOKUP($A23,Макро!$A$17:$AJ$28,MATCH(Расчет_С_Фондом!H$4,Макро!$A$3:$AJ$3,0),FALSE),G23) -> 0.2 | I23: =IFERROR(VLOOKUP($A23,Макро!$A$17:$AJ$28,MATCH(Расчет_С_Фондом!I$4,Макро!$A$3:$AJ$3,0),FALSE),H23) -> 0.2 | J23: =IFERROR(VLOOKUP($A23,Макро!$A$17:$AJ$28,MATCH(Расчет_С_Фондом!J$4,Макро!$A$3:$AJ$3,0),FALSE),I23) -> 0.2 | K23: =IFERROR(VLOOKUP($A23,Макро!$A$17:$AJ$28,MATCH(Расчет_С_Фондом!K$4,Макро!$A$3:$AJ$3,0),FALSE),J23) -> 0.2 | L23: =IFERROR(VLOOKUP($A23,Макро!$A$17:$AJ$28,MATCH(Расчет_С_Фондом!L$4,Макро!$A$3:$AJ$3,0),FALSE),K23) -> 0.2 | M23: =IFERROR(VLOOKUP($A23,Макро!$A$17:$AJ$28,MATCH(Расчет_С_Фондом!M$4,Макро!$A$3:$AJ$3,0),FALSE),L23) -> 0.2 | N23: =IFERROR(VLOOKUP($A23,Макро!$A$17:$AJ$28,MATCH(Расчет_С_Фондом!N$4,Макро!$A$3:$AJ$3,0),FALSE),M23) -> 0.2 | O23: =IFERROR(VLOOKUP($A23,Макро!$A$17:$AJ$28,MATCH(Расчет_С_Фондом!O$4,Макро!$A$3:$AJ$3,0),FALSE),N23) -> 0.2 | P23: =IFERROR(VLOOKUP($A23,Макро!$A$17:$AJ$28,MATCH(Расчет_С_Фондом!P$4,Макро!$A$3:$AJ$3,0),FALSE),O23) -> 0.2 | Q23: =IFERROR(VLOOKUP($A23,Макро!$A$17:$AJ$28,MATCH(Расчет_С_Фондом!Q$4,Макро!$A$3:$AJ$3,0),FALSE),P23) -> 0.2 | R23: =IFERROR(VLOOKUP($A23,Макро!$A$17:$AJ$28,MATCH(Расчет_С_Фондом!R$4,Макро!$A$3:$AJ$3,0),FALSE),Q23) -> 0.2 | S23: =IFERROR(VLOOKUP($A23,Макро!$A$17:$AJ$28,MATCH(Расчет_С_Фондом!S$4,Макро!$A$3:$AJ$3,0),FALSE),R23) -> 0.2 | T23: =IFERROR(VLOOKUP($A23,Макро!$A$17:$AJ$28,MATCH(Расчет_С_Фондом!T$4,Макро!$A$3:$AJ$3,0),FALSE),S23) -> 0.2 | U23: =IFERROR(VLOOKUP($A23,Макро!$A$17:$AJ$28,MATCH(Расчет_С_Фондом!U$4,Макро!$A$3:$AJ$3,0),FALSE),T23) -> 0.2 | V23: =IFERROR(VLOOKUP($A23,Макро!$A$17:$AJ$28,MATCH(Расчет_С_Фондом!V$4,Макро!$A$3:$AJ$3,0),FALSE),U23) -> 0.2 | W23: =IFERROR(VLOOKUP($A23,Макро!$A$17:$AJ$28,MATCH(Расчет_С_Фондом!W$4,Макро!$A$3:$AJ$3,0),FALSE),V23) -> 0.2 | X23: =IFERROR(VLOOKUP($A23,Макро!$A$17:$AJ$28,MATCH(Расчет_С_Фондом!X$4,Макро!$A$3:$AJ$3,0),FALSE),W23) -> 0.2 | Y23: =IFERROR(VLOOKUP($A23,Макро!$A$17:$AJ$28,MATCH(Расчет_С_Фондом!Y$4,Макро!$A$3:$AJ$3,0),FALSE),X23) -> 0.2 | Z23: =IFERROR(VLOOKUP($A23,Макро!$A$17:$AJ$28,MATCH(Расчет_С_Фондом!Z$4,Макро!$A$3:$AJ$3,0),FALSE),Y23) -> 0.2 | AA23: =IFERROR(VLOOKUP($A23,Макро!$A$17:$AJ$28,MATCH(Расчет_С_Фондом!AA$4,Макро!$A$3:$AJ$3,0),FALSE),Z23) -> 0.2 | AB23: =IFERROR(VLOOKUP($A23,Макро!$A$17:$AJ$28,MATCH(Расчет_С_Фондом!AB$4,Макро!$A$3:$AJ$3,0),FALSE),AA23) -> 0.2 | AC23: =IFERROR(VLOOKUP($A23,Макро!$A$17:$AJ$28,MATCH(Расчет_С_Фондом!AC$4,Макро!$A$3:$AJ$3,0),FALSE),AB23) -> 0.2 | AD23: =IFERROR(VLOOKUP($A23,Макро!$A$17:$AJ$28,MATCH(Расчет_С_Фондом!AD$4,Макро!$A$3:$AJ$3,0),FALSE),AC23) -> 0.2 | AE23: =IFERROR(VLOOKUP($A23,Макро!$A$17:$AJ$28,MATCH(Расчет_С_Фондом!AE$4,Макро!$A$3:$AJ$3,0),FALSE),AD23) -> 0.2 | AF23: =IFERROR(VLOOKUP($A23,Макро!$A$17:$AJ$28,MATCH(Расчет_С_Фондом!AF$4,Макро!$A$3:$AJ$3,0),FALSE),AE23) -> 0.2 | AG23: =IFERROR(VLOOKUP($A23,Макро!$A$17:$AJ$28,MATCH(Расчет_С_Фондом!AG$4,Макро!$A$3:$AJ$3,0),FALSE),AF23) -> 0.2 | AH23: =IFERROR(VLOOKUP($A23,Макро!$A$17:$AJ$28,MATCH(Расчет_С_Фондом!AH$4,Макро!$A$3:$AJ$3,0),FALSE),AG23) -> 0.2 | AI23: =IFERROR(VLOOKUP($A23,Макро!$A$17:$AJ$28,MATCH(Расчет_С_Фондом!AI$4,Макро!$A$3:$AJ$3,0),FALSE),AH23) -> 0.2 | AJ23: =IFERROR(VLOOKUP($A23,Макро!$A$17:$AJ$28,MATCH(Расчет_С_Фондом!AJ$4,Макро!$A$3:$AJ$3,0),FALSE),AI23) -> 0.2
A24: =Макро!A19 -> Налог на прибыль | E24: =IFERROR(VLOOKUP($A24,Макро!$A$17:$AJ$28,MATCH(Расчет_С_Фондом!E$4,Макро!$A$3:$AJ$3,0),FALSE),D24) -> 0.2 | F24: =IFERROR(VLOOKUP($A24,Макро!$A$17:$AJ$28,MATCH(Расчет_С_Фондом!F$4,Макро!$A$3:$AJ$3,0),FALSE),E24) -> 0.2 | G24: =IFERROR(VLOOKUP($A24,Макро!$A$17:$AJ$28,MATCH(Расчет_С_Фондом!G$4,Макро!$A$3:$AJ$3,0),FALSE),F24) -> 0.2 | H24: =IFERROR(VLOOKUP($A24,Макро!$A$17:$AJ$28,MATCH(Расчет_С_Фондом!H$4,Макро!$A$3:$AJ$3,0),FALSE),G24) -> 0.2 | I24: =IFERROR(VLOOKUP($A24,Макро!$A$17:$AJ$28,MATCH(Расчет_С_Фондом!I$4,Макро!$A$3:$AJ$3,0),FALSE),H24) -> 0.2 | J24: =IFERROR(VLOOKUP($A24,Макро!$A$17:$AJ$28,MATCH(Расчет_С_Фондом!J$4,Макро!$A$3:$AJ$3,0),FALSE),I24) -> 0.2 | K24: =IFERROR(VLOOKUP($A24,Макро!$A$17:$AJ$28,MATCH(Расчет_С_Фондом!K$4,Макро!$A$3:$AJ$3,0),FALSE),J24) -> 0.2 | L24: =IFERROR(VLOOKUP($A24,Макро!$A$17:$AJ$28,MATCH(Расчет_С_Фондом!L$4,Макро!$A$3:$AJ$3,0),FALSE),K24) -> 0.2 | M24: =IFERROR(VLOOKUP($A24,Макро!$A$17:$AJ$28,MATCH(Расчет_С_Фондом!M$4,Макро!$A$3:$AJ$3,0),FALSE),L24) -> 0.2 | N24: =IFERROR(VLOOKUP($A24,Макро!$A$17:$AJ$28,MATCH(Расчет_С_Фондом!N$4,Макро!$A$3:$AJ$3,0),FALSE),M24) -> 0.2 | O24: =IFERROR(VLOOKUP($A24,Макро!$A$17:$AJ$28,MATCH(Расчет_С_Фондом!O$4,Макро!$A$3:$AJ$3,0),FALSE),N24) -> 0.2 | P24: =IFERROR(VLOOKUP($A24,Макро!$A$17:$AJ$28,MATCH(Расчет_С_Фондом!P$4,Макро!$A$3:$AJ$3,0),FALSE),O24) -> 0.2 | Q24: =IFERROR(VLOOKUP($A24,Макро!$A$17:$AJ$28,MATCH(Расчет_С_Фондом!Q$4,Макро!$A$3:$AJ$3,0),FALSE),P24) -> 0.2 | R24: =IFERROR(VLOOKUP($A24,Макро!$A$17:$AJ$28,MATCH(Расчет_С_Фондом!R$4,Макро!$A$3:$AJ$3,0),FALSE),Q24) -> 0.2 | S24: =IFERROR(VLOOKUP($A24,Макро!$A$17:$AJ$28,MATCH(Расчет_С_Фондом!S$4,Макро!$A$3:$AJ$3,0),FALSE),R24) -> 0.2 | T24: =IFERROR(VLOOKUP($A24,Макро!$A$17:$AJ$28,MATCH(Расчет_С_Фондом!T$4,Макро!$A$3:$AJ$3,0),FALSE),S24) -> 0.2 | U24: =IFERROR(VLOOKUP($A24,Макро!$A$17:$AJ$28,MATCH(Расчет_С_Фондом!U$4,Макро!$A$3:$AJ$3,0),FALSE),T24) -> 0.2 | V24: =IFERROR(VLOOKUP($A24,Макро!$A$17:$AJ$28,MATCH(Расчет_С_Фондом!V$4,Макро!$A$3:$AJ$3,0),FALSE),U24) -> 0.2 | W24: =IFERROR(VLOOKUP($A24,Макро!$A$17:$AJ$28,MATCH(Расчет_С_Фондом!W$4,Макро!$A$3:$AJ$3,0),FALSE),V24) -> 0.2 | X24: =IFERROR(VLOOKUP($A24,Макро!$A$17:$AJ$28,MATCH(Расчет_С_Фондом!X$4,Макро!$A$3:$AJ$3,0),FALSE),W24) -> 0.2 | Y24: =IFERROR(VLOOKUP($A24,Макро!$A$17:$AJ$28,MATCH(Расчет_С_Фондом!Y$4,Макро!$A$3:$AJ$3,0),FALSE),X24) -> 0.2 | Z24: =IFERROR(VLOOKUP($A24,Макро!$A$17:$AJ$28,MATCH(Расчет_С_Фондом!Z$4,Макро!$A$3:$AJ$3,0),FALSE),Y24) -> 0.2 | AA24: =IFERROR(VLOOKUP($A24,Макро!$A$17:$AJ$28,MATCH(Расчет_С_Фондом!AA$4,Макро!$A$3:$AJ$3,0),FALSE),Z24) -> 0.2 | AB24: =IFERROR(VLOOKUP($A24,Макро!$A$17:$AJ$28,MATCH(Расчет_С_Фондом!AB$4,Макро!$A$3:$AJ$3,0),FALSE),AA24) -> 0.2 | AC24: =IFERROR(VLOOKUP($A24,Макро!$A$17:$AJ$28,MATCH(Расчет_С_Фондом!AC$4,Макро!$A$3:$AJ$3,0),FALSE),AB24) -> 0.2 | AD24: =IFERROR(VLOOKUP($A24,Макро!$A$17:$AJ$28,MATCH(Расчет_С_Фондом!AD$4,Макро!$A$3:$AJ$3,0),FALSE),AC24) -> 0.2 | AE24: =IFERROR(VLOOKUP($A24,Макро!$A$17:$AJ$28,MATCH(Расчет_С_Фондом!AE$4,Макро!$A$3:$AJ$3,0),FALSE),AD24) -> 0.2 | AF24: =IFERROR(VLOOKUP($A24,Макро!$A$17:$AJ$28,MATCH(Расчет_С_Фондом!AF$4,Макро!$A$3:$AJ$3,0),FALSE),AE24) -> 0.2 | AG24: =IFERROR(VLOOKUP($A24,Макро!$A$17:$AJ$28,MATCH(Расчет_С_Фондом!AG$4,Макро!$A$3:$AJ$3,0),FALSE),AF24) -> 0.2 | AH24: =IFERROR(VLOOKUP($A24,Макро!$A$17:$AJ$28,MATCH(Расчет_С_Фондом!AH$4,Макро!$A$3:$AJ$3,0),FALSE),AG24) -> 0.2 | AI24: =IFERROR(VLOOKUP($A24,Макро!$A$17:$AJ$28,MATCH(Расчет_С_Фондом!AI$4,Макро!$A$3:$AJ$3,0),FALSE),AH24) -> 0.2 | AJ24: =IFERROR(VLOOKUP($A24,Макро!$A$17:$AJ$28,MATCH(Расчет_С_Фондом!AJ$4,Макро!$A$3:$AJ$3,0),FALSE),AI24) -> 0.2
A25: =Макро!A20 -> Часть бюджета Субъекта РФ | B25: =Макро!B20 -> РБ | E25: =IFERROR(VLOOKUP($A25,Макро!$A$17:$AJ$28,MATCH(Расчет_С_Фондом!E$4,Макро!$A$3:$AJ$3,0),FALSE),D25) -> 0.18 | F25: =IFERROR(VLOOKUP($A25,Макро!$A$17:$AJ$28,MATCH(Расчет_С_Фондом!F$4,Макро!$A$3:$AJ$3,0),FALSE),E25) -> 0.18 | G25: =IFERROR(VLOOKUP($A25,Макро!$A$17:$AJ$28,MATCH(Расчет_С_Фондом!G$4,Макро!$A$3:$AJ$3,0),FALSE),F25) -> 0.18 | H25: =IFERROR(VLOOKUP($A25,Макро!$A$17:$AJ$28,MATCH(Расчет_С_Фондом!H$4,Макро!$A$3:$AJ$3,0),FALSE),G25) -> 0.18 | I25: =IFERROR(VLOOKUP($A25,Макро!$A$17:$AJ$28,MATCH(Расчет_С_Фондом!I$4,Макро!$A$3:$AJ$3,0),FALSE),H25) -> 0.18 | J25: =IFERROR(VLOOKUP($A25,Макро!$A$17:$AJ$28,MATCH(Расчет_С_Фондом!J$4,Макро!$A$3:$AJ$3,0),FALSE),I25) -> 0.18 | K25: =IFERROR(VLOOKUP($A25,Макро!$A$17:$AJ$28,MATCH(Расчет_С_Фондом!K$4,Макро!$A$3:$AJ$3,0),FALSE),J25) -> 0.18 | L25: =IFERROR(VLOOKUP($A25,Макро!$A$17:$AJ$28,MATCH(Расчет_С_Фондом!L$4,Макро!$A$3:$AJ$3,0),FALSE),K25) -> 0.18 | M25: =IFERROR(VLOOKUP($A25,Макро!$A$17:$AJ$28,MATCH(Расчет_С_Фондом!M$4,Макро!$A$3:$AJ$3,0),FALSE),L25) -> 0.18 | N25: =IFERROR(VLOOKUP($A25,Макро!$A$17:$AJ$28,MATCH(Расчет_С_Фондом!N$4,Макро!$A$3:$AJ$3,0),FALSE),M25) -> 0.18 | O25: =IFERROR(VLOOKUP($A25,Макро!$A$17:$AJ$28,MATCH(Расчет_С_Фондом!O$4,Макро!$A$3:$AJ$3,0),FALSE),N25) -> 0.18 | P25: =IFERROR(VLOOKUP($A25,Макро!$A$17:$AJ$28,MATCH(Расчет_С_Фондом!P$4,Макро!$A$3:$AJ$3,0),FALSE),O25) -> 0.18 | Q25: =IFERROR(VLOOKUP($A25,Макро!$A$17:$AJ$28,MATCH(Расчет_С_Фондом!Q$4,Макро!$A$3:$AJ$3,0),FALSE),P25) -> 0.18 | R25: =IFERROR(VLOOKUP($A25,Макро!$A$17:$AJ$28,MATCH(Расчет_С_Фондом!R$4,Макро!$A$3:$AJ$3,0),FALSE),Q25) -> 0.18 | S25: =IFERROR(VLOOKUP($A25,Макро!$A$17:$AJ$28,MATCH(Расчет_С_Фондом!S$4,Макро!$A$3:$AJ$3,0),FALSE),R25) -> 0.18 | T25: =IFERROR(VLOOKUP($A25,Макро!$A$17:$AJ$28,MATCH(Расчет_С_Фондом!T$4,Макро!$A$3:$AJ$3,0),FALSE),S25) -> 0.18 | U25: =IFERROR(VLOOKUP($A25,Макро!$A$17:$AJ$28,MATCH(Расчет_С_Фондом!U$4,Макро!$A$3:$AJ$3,0),FALSE),T25) -> 0.18 | V25: =IFERROR(VLOOKUP($A25,Макро!$A$17:$AJ$28,MATCH(Расчет_С_Фондом!V$4,Макро!$A$3:$AJ$3,0),FALSE),U25) -> 0.18 | W25: =IFERROR(VLOOKUP($A25,Макро!$A$17:$AJ$28,MATCH(Расчет_С_Фондом!W$4,Макро!$A$3:$AJ$3,0),FALSE),V25) -> 0.18 | X25: =IFERROR(VLOOKUP($A25,Макро!$A$17:$AJ$28,MATCH(Расчет_С_Фондом!X$4,Макро!$A$3:$AJ$3,0),FALSE),W25) -> 0.18 | Y25: =IFERROR(VLOOKUP($A25,Макро!$A$17:$AJ$28,MATCH(Расчет_С_Фондом!Y$4,Макро!$A$3:$AJ$3,0),FALSE),X25) -> 0.18 | Z25: =IFERROR(VLOOKUP($A25,Макро!$A$17:$AJ$28,MATCH(Расчет_С_Фондом!Z$4,Макро!$A$3:$AJ$3,0),FALSE),Y25) -> 0.18 | AA25: =IFERROR(VLOOKUP($A25,Макро!$A$17:$AJ$28,MATCH(Расчет_С_Фондом!AA$4,Макро!$A$3:$AJ$3,0),FALSE),Z25) -> 0.18 | AB25: =IFERROR(VLOOKUP($A25,Макро!$A$17:$AJ$28,MATCH(Расчет_С_Фондом!AB$4,Макро!$A$3:$AJ$3,0),FALSE),AA25) -> 0.18 | AC25: =IFERROR(VLOOKUP($A25,Макро!$A$17:$AJ$28,MATCH(Расчет_С_Фондом!AC$4,Макро!$A$3:$AJ$3,0),FALSE),AB25) -> 0.18 | AD25: =IFERROR(VLOOKUP($A25,Макро!$A$17:$AJ$28,MATCH(Расчет_С_Фондом!AD$4,Макро!$A$3:$AJ$3,0),FALSE),AC25) -> 0.18 | AE25: =IFERROR(VLOOKUP($A25,Макро!$A$17:$AJ$28,MATCH(Расчет_С_Фондом!AE$4,Макро!$A$3:$AJ$3,0),FALSE),AD25) -> 0.18 | AF25: =IFERROR(VLOOKUP($A25,Макро!$A$17:$AJ$28,MATCH(Расчет_С_Фондом!AF$4,Макро!$A$3:$AJ$3,0),FALSE),AE25) -> 0.18 | AG25: =IFERROR(VLOOKUP($A25,Макро!$A$17:$AJ$28,MATCH(Расчет_С_Фондом!AG$4,Макро!$A$3:$AJ$3,0),FALSE),AF25) -> 0.18 | AH25: =IFERROR(VLOOKUP($A25,Макро!$A$17:$AJ$28,MATCH(Расчет_С_Фондом!AH$4,Макро!$A$3:$AJ$3,0),FALSE),AG25) -> 0.18 | AI25: =IFERROR(VLOOKUP($A25,Макро!$A$17:$AJ$28,MATCH(Расчет_С_Фондом!AI$4,Макро!$A$3:$AJ$3,0),FALSE),AH25) -> 0.18 | AJ25: =IFERROR(VLOOKUP($A25,Макро!$A$17:$AJ$28,MATCH(Расчет_С_Фондом!AJ$4,Макро!$A$3:$AJ$3,0),FALSE),AI25) -> 0.18
A26: =Макро!A21 -> Часть федерального бюджета | B26: =Макро!B21 -> ФБ | E26: =IFERROR(VLOOKUP($A26,Макро!$A$17:$AJ$28,MATCH(Расчет_С_Фондом!E$4,Макро!$A$3:$AJ$3,0),FALSE),D26) -> 0.02 | F26: =IFERROR(VLOOKUP($A26,Макро!$A$17:$AJ$28,MATCH(Расчет_С_Фондом!F$4,Макро!$A$3:$AJ$3,0),FALSE),E26) -> 0.02 | G26: =IFERROR(VLOOKUP($A26,Макро!$A$17:$AJ$28,MATCH(Расчет_С_Фондом!G$4,Макро!$A$3:$AJ$3,0),FALSE),F26) -> 0.02 | H26: =IFERROR(VLOOKUP($A26,Макро!$A$17:$AJ$28,MATCH(Расчет_С_Фондом!H$4,Макро!$A$3:$AJ$3,0),FALSE),G26) -> 0.02 | I26: =IFERROR(VLOOKUP($A26,Макро!$A$17:$AJ$28,MATCH(Расчет_С_Фондом!I$4,Макро!$A$3:$AJ$3,0),FALSE),H26) -> 0.02 | J26: =IFERROR(VLOOKUP($A26,Макро!$A$17:$AJ$28,MATCH(Расчет_С_Фондом!J$4,Макро!$A$3:$AJ$3,0),FALSE),I26) -> 0.02 | K26: =IFERROR(VLOOKUP($A26,Макро!$A$17:$AJ$28,MATCH(Расчет_С_Фондом!K$4,Макро!$A$3:$AJ$3,0),FALSE),J26) -> 0.02 | L26: =IFERROR(VLOOKUP($A26,Макро!$A$17:$AJ$28,MATCH(Расчет_С_Фондом!L$4,Макро!$A$3:$AJ$3,0),FALSE),K26) -> 0.02 | M26: =IFERROR(VLOOKUP($A26,Макро!$A$17:$AJ$28,MATCH(Расчет_С_Фондом!M$4,Макро!$A$3:$AJ$3,0),FALSE),L26) -> 0.02 | N26: =IFERROR(VLOOKUP($A26,Макро!$A$17:$AJ$28,MATCH(Расчет_С_Фондом!N$4,Макро!$A$3:$AJ$3,0),FALSE),M26) -> 0.02 | O26: =IFERROR(VLOOKUP($A26,Макро!$A$17:$AJ$28,MATCH(Расчет_С_Фондом!O$4,Макро!$A$3:$AJ$3,0),FALSE),N26) -> 0.02 | P26: =IFERROR(VLOOKUP($A26,Макро!$A$17:$AJ$28,MATCH(Расчет_С_Фондом!P$4,Макро!$A$3:$AJ$3,0),FALSE),O26) -> 0.02 | Q26: =IFERROR(VLOOKUP($A26,Макро!$A$17:$AJ$28,MATCH(Расчет_С_Фондом!Q$4,Макро!$A$3:$AJ$3,0),FALSE),P26) -> 0.02 | R26: =IFERROR(VLOOKUP($A26,Макро!$A$17:$AJ$28,MATCH(Расчет_С_Фондом!R$4,Макро!$A$3:$AJ$3,0),FALSE),Q26) -> 0.02 | S26: =IFERROR(VLOOKUP($A26,Макро!$A$17:$AJ$28,MATCH(Расчет_С_Фондом!S$4,Макро!$A$3:$AJ$3,0),FALSE),R26) -> 0.02 | T26: =IFERROR(VLOOKUP($A26,Макро!$A$17:$AJ$28,MATCH(Расчет_С_Фондом!T$4,Макро!$A$3:$AJ$3,0),FALSE),S26) -> 0.02 | U26: =IFERROR(VLOOKUP($A26,Макро!$A$17:$AJ$28,MATCH(Расчет_С_Фондом!U$4,Макро!$A$3:$AJ$3,0),FALSE),T26) -> 0.02 | V26: =IFERROR(VLOOKUP($A26,Макро!$A$17:$AJ$28,MATCH(Расчет_С_Фондом!V$4,Макро!$A$3:$AJ$3,0),FALSE),U26) -> 0.02 | W26: =IFERROR(VLOOKUP($A26,Макро!$A$17:$AJ$28,MATCH(Расчет_С_Фондом!W$4,Макро!$A$3:$AJ$3,0),FALSE),V26) -> 0.02 | X26: =IFERROR(VLOOKUP($A26,Макро!$A$17:$AJ$28,MATCH(Расчет_С_Фондом!X$4,Макро!$A$3:$AJ$3,0),FALSE),W26) -> 0.02 | Y26: =IFERROR(VLOOKUP($A26,Макро!$A$17:$AJ$28,MATCH(Расчет_С_Фондом!Y$4,Макро!$A$3:$AJ$3,0),FALSE),X26) -> 0.02 | Z26: =IFERROR(VLOOKUP($A26,Макро!$A$17:$AJ$28,MATCH(Расчет_С_Фондом!Z$4,Макро!$A$3:$AJ$3,0),FALSE),Y26) -> 0.02 | AA26: =IFERROR(VLOOKUP($A26,Макро!$A$17:$AJ$28,MATCH(Расчет_С_Фондом!AA$4,Макро!$A$3:$AJ$3,0),FALSE),Z26) -> 0.02 | AB26: =IFERROR(VLOOKUP($A26,Макро!$A$17:$AJ$28,MATCH(Расчет_С_Фондом!AB$4,Макро!$A$3:$AJ$3,0),FALSE),AA26) -> 0.02 | AC26: =IFERROR(VLOOKUP($A26,Макро!$A$17:$AJ$28,MATCH(Расчет_С_Фондом!AC$4,Макро!$A$3:$AJ$3,0),FALSE),AB26) -> 0.02 | AD26: =IFERROR(VLOOKUP($A26,Макро!$A$17:$AJ$28,MATCH(Расчет_С_Фондом!AD$4,Макро!$A$3:$AJ$3,0),FALSE),AC26) -> 0.02 | AE26: =IFERROR(VLOOKUP($A26,Макро!$A$17:$AJ$28,MATCH(Расчет_С_Фондом!AE$4,Макро!$A$3:$AJ$3,0),FALSE),AD26) -> 0.02 | AF26: =IFERROR(VLOOKUP($A26,Макро!$A$17:$AJ$28,MATCH(Расчет_С_Фондом!AF$4,Макро!$A$3:$AJ$3,0),FALSE),AE26) -> 0.02 | AG26: =IFERROR(VLOOKUP($A26,Макро!$A$17:$AJ$28,MATCH(Расчет_С_Фондом!AG$4,Макро!$A$3:$AJ$3,0),FALSE),AF26) -> 0.02 | AH26: =IFERROR(VLOOKUP($A26,Макро!$A$17:$AJ$28,MATCH(Расчет_С_Фондом!AH$4,Макро!$A$3:$AJ$3,0),FALSE),AG26) -> 0.02 | AI26: =IFERROR(VLOOKUP($A26,Макро!$A$17:$AJ$28,MATCH(Расчет_С_Фондом!AI$4,Макро!$A$3:$AJ$3,0),FALSE),AH26) -> 0.02 | AJ26: =IFERROR(VLOOKUP($A26,Макро!$A$17:$AJ$28,MATCH(Расчет_С_Фондом!AJ$4,Макро!$A$3:$AJ$3,0),FALSE),AI26) -> 0.02
A27: =Макро!A22 -> НДФЛ | B27: =Макро!B22 -> РБ | E27: =IFERROR(VLOOKUP($A27,Макро!$A$17:$AJ$28,MATCH(Расчет_С_Фондом!E$4,Макро!$A$3:$AJ$3,0),FALSE),D27) -> 0.13 | F27: =IFERROR(VLOOKUP($A27,Макро!$A$17:$AJ$28,MATCH(Расчет_С_Фондом!F$4,Макро!$A$3:$AJ$3,0),FALSE),E27) -> 0.13 | G27: =IFERROR(VLOOKUP($A27,Макро!$A$17:$AJ$28,MATCH(Расчет_С_Фондом!G$4,Макро!$A$3:$AJ$3,0),FALSE),F27) -> 0.13 | H27: =IFERROR(VLOOKUP($A27,Макро!$A$17:$AJ$28,MATCH(Расчет_С_Фондом!H$4,Макро!$A$3:$AJ$3,0),FALSE),G27) -> 0.13 | I27: =IFERROR(VLOOKUP($A27,Макро!$A$17:$AJ$28,MATCH(Расчет_С_Фондом!I$4,Макро!$A$3:$AJ$3,0),FALSE),H27) -> 0.13 | J27: =IFERROR(VLOOKUP($A27,Макро!$A$17:$AJ$28,MATCH(Расчет_С_Фондом!J$4,Макро!$A$3:$AJ$3,0),FALSE),I27) -> 0.13 | K27: =IFERROR(VLOOKUP($A27,Макро!$A$17:$AJ$28,MATCH(Расчет_С_Фондом!K$4,Макро!$A$3:$AJ$3,0),FALSE),J27) -> 0.13 | L27: =IFERROR(VLOOKUP($A27,Макро!$A$17:$AJ$28,MATCH(Расчет_С_Фондом!L$4,Макро!$A$3:$AJ$3,0),FALSE),K27) -> 0.13 | M27: =IFERROR(VLOOKUP($A27,Макро!$A$17:$AJ$28,MATCH(Расчет_С_Фондом!M$4,Макро!$A$3:$AJ$3,0),FALSE),L27) -> 0.13 | N27: =IFERROR(VLOOKUP($A27,Макро!$A$17:$AJ$28,MATCH(Расчет_С_Фондом!N$4,Макро!$A$3:$AJ$3,0),FALSE),M27) -> 0.13 | O27: =IFERROR(VLOOKUP($A27,Макро!$A$17:$AJ$28,MATCH(Расчет_С_Фондом!O$4,Макро!$A$3:$AJ$3,0),FALSE),N27) -> 0.13 | P27: =IFERROR(VLOOKUP($A27,Макро!$A$17:$AJ$28,MATCH(Расчет_С_Фондом!P$4,Макро!$A$3:$AJ$3,0),FALSE),O27) -> 0.13 | Q27: =IFERROR(VLOOKUP($A27,Макро!$A$17:$AJ$28,MATCH(Расчет_С_Фондом!Q$4,Макро!$A$3:$AJ$3,0),FALSE),P27) -> 0.13 | R27: =IFERROR(VLOOKUP($A27,Макро!$A$17:$AJ$28,MATCH(Расчет_С_Фондом!R$4,Макро!$A$3:$AJ$3,0),FALSE),Q27) -> 0.13 | S27: =IFERROR(VLOOKUP($A27,Макро!$A$17:$AJ$28,MATCH(Расчет_С_Фондом!S$4,Макро!$A$3:$AJ$3,0),FALSE),R27) -> 0.13 | T27: =IFERROR(VLOOKUP($A27,Макро!$A$17:$AJ$28,MATCH(Расчет_С_Фондом!T$4,Макро!$A$3:$AJ$3,0),FALSE),S27) -> 0.13 | U27: =IFERROR(VLOOKUP($A27,Макро!$A$17:$AJ$28,MATCH(Расчет_С_Фондом!U$4,Макро!$A$3:$AJ$3,0),FALSE),T27) -> 0.13 | V27: =IFERROR(VLOOKUP($A27,Макро!$A$17:$AJ$28,MATCH(Расчет_С_Фондом!V$4,Макро!$A$3:$AJ$3,0),FALSE),U27) -> 0.13 | W27: =IFERROR(VLOOKUP($A27,Макро!$A$17:$AJ$28,MATCH(Расчет_С_Фондом!W$4,Макро!$A$3:$AJ$3,0),FALSE),V27) -> 0.13 | X27: =IFERROR(VLOOKUP($A27,Макро!$A$17:$AJ$28,MATCH(Расчет_С_Фондом!X$4,Макро!$A$3:$AJ$3,0),FALSE),W27) -> 0.13 | Y27: =IFERROR(VLOOKUP($A27,Макро!$A$17:$AJ$28,MATCH(Расчет_С_Фондом!Y$4,Макро!$A$3:$AJ$3,0),FALSE),X27) -> 0.13 | Z27: =IFERROR(VLOOKUP($A27,Макро!$A$17:$AJ$28,MATCH(Расчет_С_Фондом!Z$4,Макро!$A$3:$AJ$3,0),FALSE),Y27) -> 0.13 | AA27: =IFERROR(VLOOKUP($A27,Макро!$A$17:$AJ$28,MATCH(Расчет_С_Фондом!AA$4,Макро!$A$3:$AJ$3,0),FALSE),Z27) -> 0.13 | AB27: =IFERROR(VLOOKUP($A27,Макро!$A$17:$AJ$28,MATCH(Расчет_С_Фондом!AB$4,Макро!$A$3:$AJ$3,0),FALSE),AA27) -> 0.13 | AC27: =IFERROR(VLOOKUP($A27,Макро!$A$17:$AJ$28,MATCH(Расчет_С_Фондом!AC$4,Макро!$A$3:$AJ$3,0),FALSE),AB27) -> 0.13 | AD27: =IFERROR(VLOOKUP($A27,Макро!$A$17:$AJ$28,MATCH(Расчет_С_Фондом!AD$4,Макро!$A$3:$AJ$3,0),FALSE),AC27) -> 0.13 | AE27: =IFERROR(VLOOKUP($A27,Макро!$A$17:$AJ$28,MATCH(Расчет_С_Фондом!AE$4,Макро!$A$3:$AJ$3,0),FALSE),AD27) -> 0.13 | AF27: =IFERROR(VLOOKUP($A27,Макро!$A$17:$AJ$28,MATCH(Расчет_С_Фондом!AF$4,Макро!$A$3:$AJ$3,0),FALSE),AE27) -> 0.13 | AG27: =IFERROR(VLOOKUP($A27,Макро!$A$17:$AJ$28,MATCH(Расчет_С_Фондом!AG$4,Макро!$A$3:$AJ$3,0),FALSE),AF27) -> 0.13 | AH27: =IFERROR(VLOOKUP($A27,Макро!$A$17:$AJ$28,MATCH(Расчет_С_Фондом!AH$4,Макро!$A$3:$AJ$3,0),FALSE),AG27) -> 0.13 | AI27: =IFERROR(VLOOKUP($A27,Макро!$A$17:$AJ$28,MATCH(Расчет_С_Фондом!AI$4,Макро!$A$3:$AJ$3,0),FALSE),AH27) -> 0.13 | AJ27: =IFERROR(VLOOKUP($A27,Макро!$A$17:$AJ$28,MATCH(Расчет_С_Фондом!AJ$4,Макро!$A$3:$AJ$3,0),FALSE),AI27) -> 0.13
A28: Страховые взносы
A29: =Макро!A25 -> Пенсионный фонд РФ | E29: =IFERROR(VLOOKUP($A29,Макро!$A$17:$AJ$28,MATCH(Расчет_С_Фондом!E$4,Макро!$A$3:$AJ$3,0),FALSE),D29) -> 0.22 | F29: =IFERROR(VLOOKUP($A29,Макро!$A$17:$AJ$28,MATCH(Расчет_С_Фондом!F$4,Макро!$A$3:$AJ$3,0),FALSE),E29) -> 0.22 | G29: =IFERROR(VLOOKUP($A29,Макро!$A$17:$AJ$28,MATCH(Расчет_С_Фондом!G$4,Макро!$A$3:$AJ$3,0),FALSE),F29) -> 0.22 | H29: =IFERROR(VLOOKUP($A29,Макро!$A$17:$AJ$28,MATCH(Расчет_С_Фондом!H$4,Макро!$A$3:$AJ$3,0),FALSE),G29) -> 0.22 | I29: =IFERROR(VLOOKUP($A29,Макро!$A$17:$AJ$28,MATCH(Расчет_С_Фондом!I$4,Макро!$A$3:$AJ$3,0),FALSE),H29) -> 0.22 | J29: =IFERROR(VLOOKUP($A29,Макро!$A$17:$AJ$28,MATCH(Расчет_С_Фондом!J$4,Макро!$A$3:$AJ$3,0),FALSE),I29) -> 0.22 | K29: =IFERROR(VLOOKUP($A29,Макро!$A$17:$AJ$28,MATCH(Расчет_С_Фондом!K$4,Макро!$A$3:$AJ$3,0),FALSE),J29) -> 0.22 | L29: =IFERROR(VLOOKUP($A29,Макро!$A$17:$AJ$28,MATCH(Расчет_С_Фондом!L$4,Макро!$A$3:$AJ$3,0),FALSE),K29) -> 0.22 | M29: =IFERROR(VLOOKUP($A29,Макро!$A$17:$AJ$28,MATCH(Расчет_С_Фондом!M$4,Макро!$A$3:$AJ$3,0),FALSE),L29) -> 0.22 | N29: =IFERROR(VLOOKUP($A29,Макро!$A$17:$AJ$28,MATCH(Расчет_С_Фондом!N$4,Макро!$A$3:$AJ$3,0),FALSE),M29) -> 0.22 | O29: =IFERROR(VLOOKUP($A29,Макро!$A$17:$AJ$28,MATCH(Расчет_С_Фондом!O$4,Макро!$A$3:$AJ$3,0),FALSE),N29) -> 0.22 | P29: =IFERROR(VLOOKUP($A29,Макро!$A$17:$AJ$28,MATCH(Расчет_С_Фондом!P$4,Макро!$A$3:$AJ$3,0),FALSE),O29) -> 0.22 | Q29: =IFERROR(VLOOKUP($A29,Макро!$A$17:$AJ$28,MATCH(Расчет_С_Фондом!Q$4,Макро!$A$3:$AJ$3,0),FALSE),P29) -> 0.22 | R29: =IFERROR(VLOOKUP($A29,Макро!$A$17:$AJ$28,MATCH(Расчет_С_Фондом!R$4,Макро!$A$3:$AJ$3,0),FALSE),Q29) -> 0.22 | S29: =IFERROR(VLOOKUP($A29,Макро!$A$17:$AJ$28,MATCH(Расчет_С_Фондом!S$4,Макро!$A$3:$AJ$3,0),FALSE),R29) -> 0.22 | T29: =IFERROR(VLOOKUP($A29,Макро!$A$17:$AJ$28,MATCH(Расчет_С_Фондом!T$4,Макро!$A$3:$AJ$3,0),FALSE),S29) -> 0.22 | U29: =IFERROR(VLOOKUP($A29,Макро!$A$17:$AJ$28,MATCH(Расчет_С_Фондом!U$4,Макро!$A$3:$AJ$3,0),FALSE),T29) -> 0.22 | V29: =IFERROR(VLOOKUP($A29,Макро!$A$17:$AJ$28,MATCH(Расчет_С_Фондом!V$4,Макро!$A$3:$AJ$3,0),FALSE),U29) -> 0.22 | W29: =IFERROR(VLOOKUP($A29,Макро!$A$17:$AJ$28,MATCH(Расчет_С_Фондом!W$4,Макро!$A$3:$AJ$3,0),FALSE),V29) -> 0.22 | X29: =IFERROR(VLOOKUP($A29,Макро!$A$17:$AJ$28,MATCH(Расчет_С_Фондом!X$4,Макро!$A$3:$AJ$3,0),FALSE),W29) -> 0.22 | Y29: =IFERROR(VLOOKUP($A29,Макро!$A$17:$AJ$28,MATCH(Расчет_С_Фондом!Y$4,Макро!$A$3:$AJ$3,0),FALSE),X29) -> 0.22 | Z29: =IFERROR(VLOOKUP($A29,Макро!$A$17:$AJ$28,MATCH(Расчет_С_Фондом!Z$4,Макро!$A$3:$AJ$3,0),FALSE),Y29) -> 0.22 | AA29: =IFERROR(VLOOKUP($A29,Макро!$A$17:$AJ$28,MATCH(Расчет_С_Фондом!AA$4,Макро!$A$3:$AJ$3,0),FALSE),Z29) -> 0.22 | AB29: =IFERROR(VLOOKUP($A29,Макро!$A$17:$AJ$28,MATCH(Расчет_С_Фондом!AB$4,Макро!$A$3:$AJ$3,0),FALSE),AA29) -> 0.22 | AC29: =IFERROR(VLOOKUP($A29,Макро!$A$17:$AJ$28,MATCH(Расчет_С_Фондом!AC$4,Макро!$A$3:$AJ$3,0),FALSE),AB29) -> 0.22 | AD29: =IFERROR(VLOOKUP($A29,Макро!$A$17:$AJ$28,MATCH(Расчет_С_Фондом!AD$4,Макро!$A$3:$AJ$3,0),FALSE),AC29) -> 0.22 | AE29: =IFERROR(VLOOKUP($A29,Макро!$A$17:$AJ$28,MATCH(Расчет_С_Фондом!AE$4,Макро!$A$3:$AJ$3,0),FALSE),AD29) -> 0.22 | AF29: =IFERROR(VLOOKUP($A29,Макро!$A$17:$AJ$28,MATCH(Расчет_С_Фондом!AF$4,Макро!$A$3:$AJ$3,0),FALSE),AE29) -> 0.22 | AG29: =IFERROR(VLOOKUP($A29,Макро!$A$17:$AJ$28,MATCH(Расчет_С_Фондом!AG$4,Макро!$A$3:$AJ$3,0),FALSE),AF29) -> 0.22 | AH29: =IFERROR(VLOOKUP($A29,Макро!$A$17:$AJ$28,MATCH(Расчет_С_Фондом!AH$4,Макро!$A$3:$AJ$3,0),FALSE),AG29) -> 0.22 | AI29: =IFERROR(VLOOKUP($A29,Макро!$A$17:$AJ$28,MATCH(Расчет_С_Фондом!AI$4,Макро!$A$3:$AJ$3,0),FALSE),AH29) -> 0.22 | AJ29: =IFERROR(VLOOKUP($A29,Макро!$A$17:$AJ$28,MATCH(Расчет_С_Фондом!AJ$4,Макро!$A$3:$AJ$3,0),FALSE),AI29) -> 0.22
A30: =Макро!A26 -> Фонд социального страхования РФ | E30: =IFERROR(VLOOKUP($A30,Макро!$A$17:$AJ$28,MATCH(Расчет_С_Фондом!E$4,Макро!$A$3:$AJ$3,0),FALSE),D30) -> 0.029 | F30: =IFERROR(VLOOKUP($A30,Макро!$A$17:$AJ$28,MATCH(Расчет_С_Фондом!F$4,Макро!$A$3:$AJ$3,0),FALSE),E30) -> 0.029 | G30: =IFERROR(VLOOKUP($A30,Макро!$A$17:$AJ$28,MATCH(Расчет_С_Фондом!G$4,Макро!$A$3:$AJ$3,0),FALSE),F30) -> 0.029 | H30: =IFERROR(VLOOKUP($A30,Макро!$A$17:$AJ$28,MATCH(Расчет_С_Фондом!H$4,Макро!$A$3:$AJ$3,0),FALSE),G30) -> 0.029 | I30: =IFERROR(VLOOKUP($A30,Макро!$A$17:$AJ$28,MATCH(Расчет_С_Фондом!I$4,Макро!$A$3:$AJ$3,0),FALSE),H30) -> 0.029 | J30: =IFERROR(VLOOKUP($A30,Макро!$A$17:$AJ$28,MATCH(Расчет_С_Фондом!J$4,Макро!$A$3:$AJ$3,0),FALSE),I30) -> 0.029 | K30: =IFERROR(VLOOKUP($A30,Макро!$A$17:$AJ$28,MATCH(Расчет_С_Фондом!K$4,Макро!$A$3:$AJ$3,0),FALSE),J30) -> 0.029 | L30: =IFERROR(VLOOKUP($A30,Макро!$A$17:$AJ$28,MATCH(Расчет_С_Фондом!L$4,Макро!$A$3:$AJ$3,0),FALSE),K30) -> 0.029 | M30: =IFERROR(VLOOKUP($A30,Макро!$A$17:$AJ$28,MATCH(Расчет_С_Фондом!M$4,Макро!$A$3:$AJ$3,0),FALSE),L30) -> 0.029 | N30: =IFERROR(VLOOKUP($A30,Макро!$A$17:$AJ$28,MATCH(Расчет_С_Фондом!N$4,Макро!$A$3:$AJ$3,0),FALSE),M30) -> 0.029 | O30: =IFERROR(VLOOKUP($A30,Макро!$A$17:$AJ$28,MATCH(Расчет_С_Фондом!O$4,Макро!$A$3:$AJ$3,0),FALSE),N30) -> 0.029 | P30: =IFERROR(VLOOKUP($A30,Макро!$A$17:$AJ$28,MATCH(Расчет_С_Фондом!P$4,Макро!$A$3:$AJ$3,0),FALSE),O30) -> 0.029 | Q30: =IFERROR(VLOOKUP($A30,Макро!$A$17:$AJ$28,MATCH(Расчет_С_Фондом!Q$4,Макро!$A$3:$AJ$3,0),FALSE),P30) -> 0.029 | R30: =IFERROR(VLOOKUP($A30,Макро!$A$17:$AJ$28,MATCH(Расчет_С_Фондом!R$4,Макро!$A$3:$AJ$3,0),FALSE),Q30) -> 0.029 | S30: =IFERROR(VLOOKUP($A30,Макро!$A$17:$AJ$28,MATCH(Расчет_С_Фондом!S$4,Макро!$A$3:$AJ$3,0),FALSE),R30) -> 0.029 | T30: =IFERROR(VLOOKUP($A30,Макро!$A$17:$AJ$28,MATCH(Расчет_С_Фондом!T$4,Макро!$A$3:$AJ$3,0),FALSE),S30) -> 0.029 | U30: =IFERROR(VLOOKUP($A30,Макро!$A$17:$AJ$28,MATCH(Расчет_С_Фондом!U$4,Макро!$A$3:$AJ$3,0),FALSE),T30) -> 0.029 | V30: =IFERROR(VLOOKUP($A30,Макро!$A$17:$AJ$28,MATCH(Расчет_С_Фондом!V$4,Макро!$A$3:$AJ$3,0),FALSE),U30) -> 0.029 | W30: =IFERROR(VLOOKUP($A30,Макро!$A$17:$AJ$28,MATCH(Расчет_С_Фондом!W$4,Макро!$A$3:$AJ$3,0),FALSE),V30) -> 0.029 | X30: =IFERROR(VLOOKUP($A30,Макро!$A$17:$AJ$28,MATCH(Расчет_С_Фондом!X$4,Макро!$A$3:$AJ$3,0),FALSE),W30) -> 0.029 | Y30: =IFERROR(VLOOKUP($A30,Макро!$A$17:$AJ$28,MATCH(Расчет_С_Фондом!Y$4,Макро!$A$3:$AJ$3,0),FALSE),X30) -> 0.029 | Z30: =IFERROR(VLOOKUP($A30,Макро!$A$17:$AJ$28,MATCH(Расчет_С_Фондом!Z$4,Макро!$A$3:$AJ$3,0),FALSE),Y30) -> 0.029 | AA30: =IFERROR(VLOOKUP($A30,Макро!$A$17:$AJ$28,MATCH(Расчет_С_Фондом!AA$4,Макро!$A$3:$AJ$3,0),FALSE),Z30) -> 0.029 | AB30: =IFERROR(VLOOKUP($A30,Макро!$A$17:$AJ$28,MATCH(Расчет_С_Фондом!AB$4,Макро!$A$3:$AJ$3,0),FALSE),AA30) -> 0.029 | AC30: =IFERROR(VLOOKUP($A30,Макро!$A$17:$AJ$28,MATCH(Расчет_С_Фондом!AC$4,Макро!$A$3:$AJ$3,0),FALSE),AB30) -> 0.029 | AD30: =IFERROR(VLOOKUP($A30,Макро!$A$17:$AJ$28,MATCH(Расчет_С_Фондом!AD$4,Макро!$A$3:$AJ$3,0),FALSE),AC30) -> 0.029 | AE30: =IFERROR(VLOOKUP($A30,Макро!$A$17:$AJ$28,MATCH(Расчет_С_Фондом!AE$4,Макро!$A$3:$AJ$3,0),FALSE),AD30) -> 0.029 | AF30: =IFERROR(VLOOKUP($A30,Макро!$A$17:$AJ$28,MATCH(Расчет_С_Фондом!AF$4,Макро!$A$3:$AJ$3,0),FALSE),AE30) -> 0.029 | AG30: =IFERROR(VLOOKUP($A30,Макро!$A$17:$AJ$28,MATCH(Расчет_С_Фондом!AG$4,Макро!$A$3:$AJ$3,0),FALSE),AF30) -> 0.029 | AH30: =IFERROR(VLOOKUP($A30,Макро!$A$17:$AJ$28,MATCH(Расчет_С_Фондом!AH$4,Макро!$A$3:$AJ$3,0),FALSE),AG30) -> 0.029 | AI30: =IFERROR(VLOOKUP($A30,Макро!$A$17:$AJ$28,MATCH(Расчет_С_Фондом!AI$4,Макро!$A$3:$AJ$3,0),FALSE),AH30) -> 0.029 | AJ30: =IFERROR(VLOOKUP($A30,Макро!$A$17:$AJ$28,MATCH(Расчет_С_Фондом!AJ$4,Макро!$A$3:$AJ$3,0),FALSE),AI30) -> 0.029
A31: =Макро!A27 -> Федеральный фонд ОМС | E31: =IFERROR(VLOOKUP($A31,Макро!$A$17:$AJ$28,MATCH(Расчет_С_Фондом!E$4,Макро!$A$3:$AJ$3,0),FALSE),D31) -> 0.051 | F31: =IFERROR(VLOOKUP($A31,Макро!$A$17:$AJ$28,MATCH(Расчет_С_Фондом!F$4,Макро!$A$3:$AJ$3,0),FALSE),E31) -> 0.051 | G31: =IFERROR(VLOOKUP($A31,Макро!$A$17:$AJ$28,MATCH(Расчет_С_Фондом!G$4,Макро!$A$3:$AJ$3,0),FALSE),F31) -> 0.051 | H31: =IFERROR(VLOOKUP($A31,Макро!$A$17:$AJ$28,MATCH(Расчет_С_Фондом!H$4,Макро!$A$3:$AJ$3,0),FALSE),G31) -> 0.051 | I31: =IFERROR(VLOOKUP($A31,Макро!$A$17:$AJ$28,MATCH(Расчет_С_Фондом!I$4,Макро!$A$3:$AJ$3,0),FALSE),H31) -> 0.051 | J31: =IFERROR(VLOOKUP($A31,Макро!$A$17:$AJ$28,MATCH(Расчет_С_Фондом!J$4,Макро!$A$3:$AJ$3,0),FALSE),I31) -> 0.051 | K31: =IFERROR(VLOOKUP($A31,Макро!$A$17:$AJ$28,MATCH(Расчет_С_Фондом!K$4,Макро!$A$3:$AJ$3,0),FALSE),J31) -> 0.051 | L31: =IFERROR(VLOOKUP($A31,Макро!$A$17:$AJ$28,MATCH(Расчет_С_Фондом!L$4,Макро!$A$3:$AJ$3,0),FALSE),K31) -> 0.051 | M31: =IFERROR(VLOOKUP($A31,Макро!$A$17:$AJ$28,MATCH(Расчет_С_Фондом!M$4,Макро!$A$3:$AJ$3,0),FALSE),L31) -> 0.051 | N31: =IFERROR(VLOOKUP($A31,Макро!$A$17:$AJ$28,MATCH(Расчет_С_Фондом!N$4,Макро!$A$3:$AJ$3,0),FALSE),M31) -> 0.051 | O31: =IFERROR(VLOOKUP($A31,Макро!$A$17:$AJ$28,MATCH(Расчет_С_Фондом!O$4,Макро!$A$3:$AJ$3,0),FALSE),N31) -> 0.051 | P31: =IFERROR(VLOOKUP($A31,Макро!$A$17:$AJ$28,MATCH(Расчет_С_Фондом!P$4,Макро!$A$3:$AJ$3,0),FALSE),O31) -> 0.051 | Q31: =IFERROR(VLOOKUP($A31,Макро!$A$17:$AJ$28,MATCH(Расчет_С_Фондом!Q$4,Макро!$A$3:$AJ$3,0),FALSE),P31) -> 0.051 | R31: =IFERROR(VLOOKUP($A31,Макро!$A$17:$AJ$28,MATCH(Расчет_С_Фондом!R$4,Макро!$A$3:$AJ$3,0),FALSE),Q31) -> 0.051 | S31: =IFERROR(VLOOKUP($A31,Макро!$A$17:$AJ$28,MATCH(Расчет_С_Фондом!S$4,Макро!$A$3:$AJ$3,0),FALSE),R31) -> 0.051 | T31: =IFERROR(VLOOKUP($A31,Макро!$A$17:$AJ$28,MATCH(Расчет_С_Фондом!T$4,Макро!$A$3:$AJ$3,0),FALSE),S31) -> 0.051 | U31: =IFERROR(VLOOKUP($A31,Макро!$A$17:$AJ$28,MATCH(Расчет_С_Фондом!U$4,Макро!$A$3:$AJ$3,0),FALSE),T31) -> 0.051 | V31: =IFERROR(VLOOKUP($A31,Макро!$A$17:$AJ$28,MATCH(Расчет_С_Фондом!V$4,Макро!$A$3:$AJ$3,0),FALSE),U31) -> 0.051 | W31: =IFERROR(VLOOKUP($A31,Макро!$A$17:$AJ$28,MATCH(Расчет_С_Фондом!W$4,Макро!$A$3:$AJ$3,0),FALSE),V31) -> 0.051 | X31: =IFERROR(VLOOKUP($A31,Макро!$A$17:$AJ$28,MATCH(Расчет_С_Фондом!X$4,Макро!$A$3:$AJ$3,0),FALSE),W31) -> 0.051 | Y31: =IFERROR(VLOOKUP($A31,Макро!$A$17:$AJ$28,MATCH(Расчет_С_Фондом!Y$4,Макро!$A$3:$AJ$3,0),FALSE),X31) -> 0.051 | Z31: =IFERROR(VLOOKUP($A31,Макро!$A$17:$AJ$28,MATCH(Расчет_С_Фондом!Z$4,Макро!$A$3:$AJ$3,0),FALSE),Y31) -> 0.051 | AA31: =IFERROR(VLOOKUP($A31,Макро!$A$17:$AJ$28,MATCH(Расчет_С_Фондом!AA$4,Макро!$A$3:$AJ$3,0),FALSE),Z31) -> 0.051 | AB31: =IFERROR(VLOOKUP($A31,Макро!$A$17:$AJ$28,MATCH(Расчет_С_Фондом!AB$4,Макро!$A$3:$AJ$3,0),FALSE),AA31) -> 0.051 | AC31: =IFERROR(VLOOKUP($A31,Макро!$A$17:$AJ$28,MATCH(Расчет_С_Фондом!AC$4,Макро!$A$3:$AJ$3,0),FALSE),AB31) -> 0.051 | AD31: =IFERROR(VLOOKUP($A31,Макро!$A$17:$AJ$28,MATCH(Расчет_С_Фондом!AD$4,Макро!$A$3:$AJ$3,0),FALSE),AC31) -> 0.051 | AE31: =IFERROR(VLOOKUP($A31,Макро!$A$17:$AJ$28,MATCH(Расчет_С_Фондом!AE$4,Макро!$A$3:$AJ$3,0),FALSE),AD31) -> 0.051 | AF31: =IFERROR(VLOOKUP($A31,Макро!$A$17:$AJ$28,MATCH(Расчет_С_Фондом!AF$4,Макро!$A$3:$AJ$3,0),FALSE),AE31) -> 0.051 | AG31: =IFERROR(VLOOKUP($A31,Макро!$A$17:$AJ$28,MATCH(Расчет_С_Фондом!AG$4,Макро!$A$3:$AJ$3,0),FALSE),AF31) -> 0.051 | AH31: =IFERROR(VLOOKUP($A31,Макро!$A$17:$AJ$28,MATCH(Расчет_С_Фондом!AH$4,Макро!$A$3:$AJ$3,0),FALSE),AG31) -> 0.051 | AI31: =IFERROR(VLOOKUP($A31,Макро!$A$17:$AJ$28,MATCH(Расчет_С_Фондом!AI$4,Макро!$A$3:$AJ$3,0),FALSE),AH31) -> 0.051 | AJ31: =IFERROR(VLOOKUP($A31,Макро!$A$17:$AJ$28,MATCH(Расчет_С_Фондом!AJ$4,Макро!$A$3:$AJ$3,0),FALSE),AI31) -> 0.051
A35: СРОКИ
A36: Расчетный период | B36: ='Исходные данные'!E10 -> 2019-01-01 | C36: ='Исходные данные'!E14 -> 2029-12-31 | E36: =MAX(0,1+MIN(E$2,$C36)-MAX(E$1,$B36))/(1+E$2-E$1) -> 1 | F36: =MAX(0,1+MIN(F$2,$C36)-MAX(F$1,$B36))/(1+F$2-F$1) -> 1 | G36: 1 | H36: 1 | I36: 1 | J36: 1 | K36: 1 | L36: 1 | M36: 1 | N36: 1 | O36: 1 | P36: 0 | Q36: 0 | R36: 0 | S36: 0 | T36: 0 | U36: 0 | V36: 0 | W36: 0 | X36: 0 | Y36: 0 | Z36: 0 | AA36: 0 | AB36: 0 | AC36: 0 | AD36: 0 | AE36: 0 | AF36: 0 | AG36: 0 | AH36: 0 | AI36: 0 | AJ36: 0
A37: Инвестиционная стадия | B37: ='Исходные данные'!E11 -> 2019-01-01 | C37: ='Исходные данные'!E12 -> 2020-12-31 | E37: =MAX(0,1+MIN(E$2,$C37)-MAX(E$1,$B37))/(1+E$2-E$1) -> 1 | F37: 1 | G37: 0 | H37: 0 | I37: 0 | J37: 0 | K37: 0 | L37: 0 | M37: 0 | N37: 0 | O37: 0 | P37: 0 | Q37: 0 | R37: 0 | S37: 0 | T37: 0 | U37: 0 | V37: 0 | W37: 0 | X37: 0 | Y37: 0 | Z37: 0 | AA37: 0 | AB37: 0 | AC37: 0 | AD37: 0 | AE37: 0 | AF37: 0 | AG37: 0 | AH37: 0 | AI37: 0 | AJ37: 0
A38: Эксплуатационная стадия | B38: ='Исходные данные'!E13 -> 2021-01-01 | C38: ='Исходные данные'!E14 -> 2029-12-31 | E38: 0 | F38: =MAX(0,1+MIN(F$2,$C38)-MAX(F$1,$B38))/(1+F$2-F$1) -> 0 | G38: 1 | H38: 1 | I38: 1 | J38: 1 | K38: 1 | L38: 1 | M38: 1 | N38: 1 | O38: 1 | P38: 0 | Q38: 0 | R38: 0 | S38: 0 | T38: 0 | U38: 0 | V38: 0 | W38: 0 | X38: 0 | Y38: 0 | Z38: 0 | AA38: 0 | AB38: 0 | AC38: 0 | AD38: 0 | AE38: 0 | AF38: 0 | AG38: 0 | AH38: 0 | AI38: 0 | AJ38: 0
A39: Флаг окончания Инвестиционной стадии | C39: ='Исходные данные'!E12 -> 2020-12-31 | E39: =AND($C39>=E$1,$C39<=E$2)*1 -> 0 | F39: =AND($C39>=F$1,$C39<=F$2)*1 -> 1 | G39: 0 | H39: 0 | I39: 0 | J39: 0 | K39: 0 | L39: 0 | M39: 0 | N39: 0 | O39: 0 | P39: 0 | Q39: 0 | R39: 0 | S39: 0 | T39: 0 | U39: 0 | V39: 0 | W39: 0 | X39: 0 | Y39: 0 | Z39: 0 | AA39: 0 | AB39: 0 | AC39: 0 | AD39: 0 | AE39: 0 | AF39: 0 | AG39: 0 | AH39: 0 | AI39: 0 | AJ39: 0
A41: ФИНАНСИРОВАНИЕ
A43: Объем финансирования
A44: Потребность в финансировании
A47: Капитальные затраты, с НДС | D47: =SUM(E47:DT47) -> 732000 | E47: =Расчет_С_Фондом!E171+Расчет_С_Фондом!E172 -> 366000 | F47: =Расчет_С_Фондом!F171+Расчет_С_Фондом!F172 -> 366000 | G47: =Расчет_С_Фондом!G171+Расчет_С_Фондом!G172 -> 0 | H47: =Расчет_С_Фондом!H171+Расчет_С_Фондом!H172 -> 0 | I47: =Расчет_С_Фондом!I171+Расчет_С_Фондом!I172 -> 0 | J47: =Расчет_С_Фондом!J171+Расчет_С_Фондом!J172 -> 0 | K47: =Расчет_С_Фондом!K171+Расчет_С_Фондом!K172 -> 0 | L47: =Расчет_С_Фондом!L171+Расчет_С_Фондом!L172 -> 0 | M47: =Расчет_С_Фондом!M171+Расчет_С_Фондом!M172 -> 0 | N47: =Расчет_С_Фондом!N171+Расчет_С_Фондом!N172 -> 0 | O47: =Расчет_С_Фондом!O171+Расчет_С_Фондом!O172 -> 0 | P47: =Расчет_С_Фондом!P171+Расчет_С_Фондом!P172 -> 0 | Q47: =Расчет_С_Фондом!Q171+Расчет_С_Фондом!Q172 -> 0 | R47: =Расчет_С_Фондом!R171+Расчет_С_Фондом!R172 -> 0 | S47: =Расчет_С_Фондом!S171+Расчет_С_Фондом!S172 -> 0 | T47: =Расчет_С_Фондом!T171+Расчет_С_Фондом!T172 -> 0 | U47: =Расчет_С_Фондом!U171+Расчет_С_Фондом!U172 -> 0 | V47: =Расчет_С_Фондом!V171+Расчет_С_Фондом!V172 -> 0 | W47: =Расчет_С_Фондом!W171+Расчет_С_Фондом!W172 -> 0 | X47: =Расчет_С_Фондом!X171+Расчет_С_Фондом!X172 -> 0 | Y47: =Расчет_С_Фондом!Y171+Расчет_С_Фондом!Y172 -> 0 | Z47: =Расчет_С_Фондом!Z171+Расчет_С_Фондом!Z172 -> 0 | AA47: =Расчет_С_Фондом!AA171+Расчет_С_Фондом!AA172 -> 0 | AB47: =Расчет_С_Фондом!AB171+Расчет_С_Фондом!AB172 -> 0 | AC47: =Расчет_С_Фондом!AC171+Расчет_С_Фондом!AC172 -> 0 | AD47: =Расчет_С_Фондом!AD171+Расчет_С_Фондом!AD172 -> 0 | AE47: =Расчет_С_Фондом!AE171+Расчет_С_Фондом!AE172 -> 0 | AF47: =Расчет_С_Фондом!AF171+Расчет_С_Фондом!AF172 -> 0 | AG47: =Расчет_С_Фондом!AG171+Расчет_С_Фондом!AG172 -> 0 | AH47: =Расчет_С_Фондом!AH171+Расчет_С_Фондом!AH172 -> 0 | AI47: =Расчет_С_Фондом!AI171+Расчет_С_Фондом!AI172 -> 0 | AJ47: =Расчет_С_Фондом!AJ171+Расчет_С_Фондом!AJ172 -> 0
A48: ='Исходные данные'!A133 -> Прочие затраты на Инвестиционной стадии | D48: =SUM(E48:DT48) -> 0 | E48: =Расчет_С_Фондом!E183+Расчет_С_Фондом!E184 -> 0 | F48: =Расчет_С_Фондом!F183+Расчет_С_Фондом!F184 -> 0 | G48: =Расчет_С_Фондом!G183+Расчет_С_Фондом!G184 -> 0 | H48: =Расчет_С_Фондом!H183+Расчет_С_Фондом!H184 -> 0 | I48: =Расчет_С_Фондом!I183+Расчет_С_Фондом!I184 -> 0 | J48: =Расчет_С_Фондом!J183+Расчет_С_Фондом!J184 -> 0 | K48: =Расчет_С_Фондом!K183+Расчет_С_Фондом!K184 -> 0 | L48: =Расчет_С_Фондом!L183+Расчет_С_Фондом!L184 -> 0 | M48: =Расчет_С_Фондом!M183+Расчет_С_Фондом!M184 -> 0 | N48: =Расчет_С_Фондом!N183+Расчет_С_Фондом!N184 -> 0 | O48: =Расчет_С_Фондом!O183+Расчет_С_Фондом!O184 -> 0 | P48: =Расчет_С_Фондом!P183+Расчет_С_Фондом!P184 -> 0 | Q48: =Расчет_С_Фондом!Q183+Расчет_С_Фондом!Q184 -> 0 | R48: =Расчет_С_Фондом!R183+Расчет_С_Фондом!R184 -> 0 | S48: =Расчет_С_Фондом!S183+Расчет_С_Фондом!S184 -> 0 | T48: =Расчет_С_Фондом!T183+Расчет_С_Фондом!T184 -> 0 | U48: =Расчет_С_Фондом!U183+Расчет_С_Фондом!U184 -> 0 | V48: =Расчет_С_Фондом!V183+Расчет_С_Фондом!V184 -> 0 | W48: =Расчет_С_Фондом!W183+Расчет_С_Фондом!W184 -> 0 | X48: =Расчет_С_Фондом!X183+Расчет_С_Фондом!X184 -> 0 | Y48: =Расчет_С_Фондом!Y183+Расчет_С_Фондом!Y184 -> 0 | Z48: =Расчет_С_Фондом!Z183+Расчет_С_Фондом!Z184 -> 0 | AA48: =Расчет_С_Фондом!AA183+Расчет_С_Фондом!AA184 -> 0 | AB48: =Расчет_С_Фондом!AB183+Расчет_С_Фондом!AB184 -> 0 | AC48: =Расчет_С_Фондом!AC183+Расчет_С_Фондом!AC184 -> 0 | AD48: =Расчет_С_Фондом!AD183+Расчет_С_Фондом!AD184 -> 0 | AE48: =Расчет_С_Фондом!AE183+Расчет_С_Фондом!AE184 -> 0 | AF48: =Расчет_С_Фондом!AF183+Расчет_С_Фондом!AF184 -> 0 | AG48: =Расчет_С_Фондом!AG183+Расчет_С_Фондом!AG184 -> 0 | AH48: =Расчет_С_Фондом!AH183+Расчет_С_Фондом!AH184 -> 0 | AI48: =Расчет_С_Фондом!AI183+Расчет_С_Фондом!AI184 -> 0 | AJ48: =Расчет_С_Фондом!AJ183+Расчет_С_Фондом!AJ184 -> 0
A50: Проценты на инвестиционной стадии | D50: =SUM(E50:DT50) -> 16104 | E50: =(Расчет_С_Фондом!E37>0)*E104 -> 4026 | F50: =(Расчет_С_Фондом!F37>0)*F104 -> 12078 | G50: =(Расчет_С_Фондом!G37>0)*G104 -> 0 | H50: =(Расчет_С_Фондом!H37>0)*H104 -> 0 | I50: =(Расчет_С_Фондом!I37>0)*I104 -> 0 | J50: =(Расчет_С_Фондом!J37>0)*J104 -> 0 | K50: =(Расчет_С_Фондом!K37>0)*K104 -> 0 | L50: =(Расчет_С_Фондом!L37>0)*L104 -> 0 | M50: =(Расчет_С_Фондом!M37>0)*M104 -> 0 | N50: =(Расчет_С_Фондом!N37>0)*N104 -> 0 | O50: =(Расчет_С_Фондом!O37>0)*O104 -> 0 | P50: =(Расчет_С_Фондом!P37>0)*P104 -> 0 | Q50: =(Расчет_С_Фондом!Q37>0)*Q104 -> 0 | R50: =(Расчет_С_Фондом!R37>0)*R104 -> 0 | S50: =(Расчет_С_Фондом!S37>0)*S104 -> 0 | T50: =(Расчет_С_Фондом!T37>0)*T104 -> 0 | U50: =(Расчет_С_Фондом!U37>0)*U104 -> 0 | V50: =(Расчет_С_Фондом!V37>0)*V104 -> 0 | W50: =(Расчет_С_Фондом!W37>0)*W104 -> 0 | X50: =(Расчет_С_Фондом!X37>0)*X104 -> 0 | Y50: =(Расчет_С_Фондом!Y37>0)*Y104 -> 0 | Z50: =(Расчет_С_Фондом!Z37>0)*Z104 -> 0 | AA50: =(Расчет_С_Фондом!AA37>0)*AA104 -> 0 | AB50: =(Расчет_С_Фондом!AB37>0)*AB104 -> 0 | AC50: =(Расчет_С_Фондом!AC37>0)*AC104 -> 0 | AD50: =(Расчет_С_Фондом!AD37>0)*AD104 -> 0 | AE50: =(Расчет_С_Фондом!AE37>0)*AE104 -> 0 | AF50: =(Расчет_С_Фондом!AF37>0)*AF104 -> 0 | AG50: =(Расчет_С_Фондом!AG37>0)*AG104 -> 0 | AH50: =(Расчет_С_Фондом!AH37>0)*AH104 -> 0 | AI50: =(Расчет_С_Фондом!AI37>0)*AI104 -> 0 | AJ50: =(Расчет_С_Фондом!AJ37>0)*AJ104 -> 0
A51: Банковские комиссии | D51: =SUM(E51:DT51) -> 0 | E51: =E118 -> 0 | F51: 0 | G51: 0 | H51: 0 | I51: 0 | J51: 0 | K51: 0 | L51: 0 | M51: 0 | N51: 0 | O51: 0 | P51: 0 | Q51: 0 | R51: 0 | S51: 0 | T51: 0 | U51: 0 | V51: 0 | W51: 0 | X51: 0 | Y51: 0 | Z51: 0 | AA51: 0 | AB51: 0 | AC51: 0 | AD51: 0 | AE51: 0 | AF51: 0 | AG51: 0 | AH51: 0 | AI51: 0 | AJ51: 0
A54: ИТОГО объем финансирования | D54: =SUM(E54:DT54) -> 748104 | E54: =SUM(E45:E53) -> 370026 | F54: 378078 | G54: 0 | H54: 0 | I54: 0 | J54: 0 | K54: 0 | L54: 0 | M54: 0 | N54: 0 | O54: 0 | P54: 0 | Q54: 0 | R54: 0 | S54: 0 | T54: 0 | U54: 0 | V54: 0 | W54: 0 | X54: 0 | Y54: 0 | Z54: 0 | AA54: 0 | AB54: 0 | AC54: 0 | AD54: 0 | AE54: 0 | AF54: 0 | AG54: 0 | AH54: 0 | AI54: 0 | AJ54: 0
A57: доля возмещаемого НДС (не за счет бюджетных субсидий) | E57: =1-IFERROR(SUM(Расчет_С_Фондом!E64:E66)/Расчет_С_Фондом!E47,1) -> 0.4 | F57: =1-IFERROR(SUM(Расчет_С_Фондом!F64:F66)/Расчет_С_Фондом!F47,1) -> 0.4 | G57: =1-IFERROR(SUM(Расчет_С_Фондом!G64:G66)/Расчет_С_Фондом!G47,1) -> 0 | H57: =1-IFERROR(SUM(Расчет_С_Фондом!H64:H66)/Расчет_С_Фондом!H47,1) -> 0 | I57: =1-IFERROR(SUM(Расчет_С_Фондом!I64:I66)/Расчет_С_Фондом!I47,1) -> 0 | J57: =1-IFERROR(SUM(Расчет_С_Фондом!J64:J66)/Расчет_С_Фондом!J47,1) -> 0 | K57: =1-IFERROR(SUM(Расчет_С_Фондом!K64:K66)/Расчет_С_Фондом!K47,1) -> 0 | L57: =1-IFERROR(SUM(Расчет_С_Фондом!L64:L66)/Расчет_С_Фондом!L47,1) -> 0 | M57: =1-IFERROR(SUM(Расчет_С_Фондом!M64:M66)/Расчет_С_Фондом!M47,1) -> 0 | N57: =1-IFERROR(SUM(Расчет_С_Фондом!N64:N66)/Расчет_С_Фондом!N47,1) -> 0 | O57: =1-IFERROR(SUM(Расчет_С_Фондом!O64:O66)/Расчет_С_Фондом!O47,1) -> 0 | P57: =1-IFERROR(SUM(Расчет_С_Фондом!P64:P66)/Расчет_С_Фондом!P47,1) -> 0 | Q57: =1-IFERROR(SUM(Расчет_С_Фондом!Q64:Q66)/Расчет_С_Фондом!Q47,1) -> 0 | R57: =1-IFERROR(SUM(Расчет_С_Фондом!R64:R66)/Расчет_С_Фондом!R47,1) -> 0 | S57: =1-IFERROR(SUM(Расчет_С_Фондом!S64:S66)/Расчет_С_Фондом!S47,1) -> 0 | T57: =1-IFERROR(SUM(Расчет_С_Фондом!T64:T66)/Расчет_С_Фондом!T47,1) -> 0 | U57: =1-IFERROR(SUM(Расчет_С_Фондом!U64:U66)/Расчет_С_Фондом!U47,1) -> 0 | V57: =1-IFERROR(SUM(Расчет_С_Фондом!V64:V66)/Расчет_С_Фондом!V47,1) -> 0 | W57: =1-IFERROR(SUM(Расчет_С_Фондом!W64:W66)/Расчет_С_Фондом!W47,1) -> 0 | X57: =1-IFERROR(SUM(Расчет_С_Фондом!X64:X66)/Расчет_С_Фондом!X47,1) -> 0 | Y57: =1-IFERROR(SUM(Расчет_С_Фондом!Y64:Y66)/Расчет_С_Фондом!Y47,1) -> 0 | Z57: =1-IFERROR(SUM(Расчет_С_Фондом!Z64:Z66)/Расчет_С_Фондом!Z47,1) -> 0 | AA57: =1-IFERROR(SUM(Расчет_С_Фондом!AA64:AA66)/Расчет_С_Фондом!AA47,1) -> 0 | AB57: =1-IFERROR(SUM(Расчет_С_Фондом!AB64:AB66)/Расчет_С_Фондом!AB47,1) -> 0 | AC57: =1-IFERROR(SUM(Расчет_С_Фондом!AC64:AC66)/Расчет_С_Фондом!AC47,1) -> 0 | AD57: =1-IFERROR(SUM(Расчет_С_Фондом!AD64:AD66)/Расчет_С_Фондом!AD47,1) -> 0 | AE57: =1-IFERROR(SUM(Расчет_С_Фондом!AE64:AE66)/Расчет_С_Фондом!AE47,1) -> 0 | AF57: =1-IFERROR(SUM(Расчет_С_Фондом!AF64:AF66)/Расчет_С_Фондом!AF47,1) -> 0 | AG57: =1-IFERROR(SUM(Расчет_С_Фондом!AG64:AG66)/Расчет_С_Фондом!AG47,1) -> 0 | AH57: =1-IFERROR(SUM(Расчет_С_Фондом!AH64:AH66)/Расчет_С_Фондом!AH47,1) -> 0 | AI57: =1-IFERROR(SUM(Расчет_С_Фондом!AI64:AI66)/Расчет_С_Фондом!AI47,1) -> 0 | AJ57: =1-IFERROR(SUM(Расчет_С_Фондом!AJ64:AJ66)/Расчет_С_Фондом!AJ47,1) -> 0
A60: Источники финансирования
A62: Собственные средства | D62: =SUM(E62:DT62) -> 162504 | E62: =E$47*E82+SUM(E48:E53) -> 77226 | F62: 85278 | G62: 0 | H62: 0 | I62: 0 | J62: 0 | K62: 0 | L62: 0 | M62: 0 | N62: 0 | O62: 0 | P62: 0 | Q62: 0 | R62: 0 | S62: 0 | T62: 0 | U62: 0 | V62: 0 | W62: 0 | X62: 0 | Y62: 0 | Z62: 0 | AA62: 0 | AB62: 0 | AC62: 0 | AD62: 0 | AE62: 0 | AF62: 0 | AG62: 0 | AH62: 0 | AI62: 0 | AJ62: 0
A63: Заемные средства | D63: =SUM(E63:DT63) -> 146400 | E63: =E$47*E83 -> 73200 | F63: 73200 | G63: 0 | H63: 0 | I63: 0 | J63: 0 | K63: 0 | L63: 0 | M63: 0 | N63: 0 | O63: 0 | P63: 0 | Q63: 0 | R63: 0 | S63: 0 | T63: 0 | U63: 0 | V63: 0 | W63: 0 | X63: 0 | Y63: 0 | Z63: 0 | AA63: 0 | AB63: 0 | AC63: 0 | AD63: 0 | AE63: 0 | AF63: 0 | AG63: 0 | AH63: 0 | AI63: 0 | AJ63: 0
A64: ='Исходные данные'!A121 -> Средства бюджета субъекта РФ | D64: =SUM(E64:DT64) -> 73200 | E64: =E$47*E84 -> 36600 | F64: 36600 | G64: 0 | H64: 0 | I64: 0 | J64: 0 | K64: 0 | L64: 0 | M64: 0 | N64: 0 | O64: 0 | P64: 0 | Q64: 0 | R64: 0 | S64: 0 | T64: 0 | U64: 0 | V64: 0 | W64: 0 | X64: 0 | Y64: 0 | Z64: 0 | AA64: 0 | AB64: 0 | AC64: 0 | AD64: 0 | AE64: 0 | AF64: 0 | AG64: 0 | AH64: 0 | AI64: 0 | AJ64: 0
A65: ='Исходные данные'!A122 -> Средства местного бюджета | D65: =SUM(E65:DT65) -> 0 | E65: =E$47*E85 -> 0 | F65: 0 | G65: 0 | H65: 0 | I65: 0 | J65: 0 | K65: 0 | L65: 0 | M65: 0 | N65: 0 | O65: 0 | P65: 0 | Q65: 0 | R65: 0 | S65: 0 | T65: 0 | U65: 0 | V65: 0 | W65: 0 | X65: 0 | Y65: 0 | Z65: 0 | AA65: 0 | AB65: 0 | AC65: 0 | AD65: 0 | AE65: 0 | AF65: 0 | AG65: 0 | AH65: 0 | AI65: 0 | AJ65: 0
A66: ='Исходные данные'!A123 -> Средства Фонда | D66: =SUM(E66:DT66) -> 366000 | E66: =E$47*E86 -> 183000 | F66: 183000 | G66: 0 | H66: 0 | I66: 0 | J66: 0 | K66: 0 | L66: 0 | M66: 0 | N66: 0 | O66: 0 | P66: 0 | Q66: 0 | R66: 0 | S66: 0 | T66: 0 | U66: 0 | V66: 0 | W66: 0 | X66: 0 | Y66: 0 | Z66: 0 | AA66: 0 | AB66: 0 | AC66: 0 | AD66: 0 | AE66: 0 | AF66: 0 | AG66: 0 | AH66: 0 | AI66: 0 | AJ66: 0
A73: ИТОГО Источники финансирования | D73: =SUM(E73:DT73) -> 748104 | E73: =SUM(E62:E72) -> 370026 | F73: 378078 | G73: 0 | H73: 0 | I73: 0 | J73: 0 | K73: 0 | L73: 0 | M73: 0 | N73: 0 | O73: 0 | P73: 0 | Q73: 0 | R73: 0 | S73: 0 | T73: 0 | U73: 0 | V73: 0 | W73: 0 | X73: 0 | Y73: 0 | Z73: 0 | AA73: 0 | AB73: 0 | AC73: 0 | AD73: 0 | AE73: 0 | AF73: 0 | AG73: 0 | AH73: 0 | AI73: 0 | AJ73: 0
A77: Проверка - совпадение источников и направления финансирования | B77: =IF(SUMPRODUCT(--(E77:AH77="ERROR"))=0,"OK","ERROR") -> OK | E77: =IF(ABS(SUM(E54)-SUM(E73))<0.01,"OK","ERROR") -> OK | F77: OK | G77: OK | H77: OK | I77: OK | J77: OK | K77: OK | L77: OK | M77: OK | N77: OK | O77: OK | P77: OK | Q77: OK | R77: OK | S77: OK | T77: OK | U77: OK | V77: OK | W77: OK | X77: OK | Y77: OK | Z77: OK | AA77: OK | AB77: OK | AC77: OK | AD77: OK | AE77: OK | AF77: OK | AG77: OK | AH77: OK | AI77: OK | AJ77: OK
A79: Средства Фонда и бюджетов субъекта РФ и местного | D79: =SUM(E79:DT79) -> 439200 | E79: =SUM(E64:E66) -> 219600 | F79: 219600 | G79: 0 | H79: 0 | I79: 0 | J79: 0 | K79: 0 | L79: 0 | M79: 0 | N79: 0 | O79: 0 | P79: 0 | Q79: 0 | R79: 0 | S79: 0 | T79: 0 | U79: 0 | V79: 0 | W79: 0 | X79: 0 | Y79: 0 | Z79: 0 | AA79: 0 | AB79: 0 | AC79: 0 | AD79: 0 | AE79: 0 | AF79: 0 | AG79: 0 | AH79: 0 | AI79: 0 | AJ79: 0
A81: Структура финансирования
A82: ='Исходные данные'!A119 -> Собственные средства | E82: =OFFSET('Исходные данные'!F119,$A$4*(ROW('Исходные данные'!F$126)-ROW('Исходные данные'!F$119)),0) -> 0.2 | F82: =OFFSET('Исходные данные'!G119,$A$4*(ROW('Исходные данные'!G$126)-ROW('Исходные данные'!G$119)),0) -> 0.2 | G82: =OFFSET('Исходные данные'!H119,$A$4*(ROW('Исходные данные'!H$126)-ROW('Исходные данные'!H$119)),0) -> 0 | H82: =OFFSET('Исходные данные'!I119,$A$4*(ROW('Исходные данные'!I$126)-ROW('Исходные данные'!I$119)),0) -> 0 | I82: =OFFSET('Исходные данные'!J119,$A$4*(ROW('Исходные данные'!J$126)-ROW('Исходные данные'!J$119)),0) -> 0 | J82: =OFFSET('Исходные данные'!K119,$A$4*(ROW('Исходные данные'!K$126)-ROW('Исходные данные'!K$119)),0) -> 0 | K82: =OFFSET('Исходные данные'!L119,$A$4*(ROW('Исходные данные'!L$126)-ROW('Исходные данные'!L$119)),0) -> 0 | L82: =OFFSET('Исходные данные'!M119,$A$4*(ROW('Исходные данные'!M$126)-ROW('Исходные данные'!M$119)),0) -> 0 | M82: =OFFSET('Исходные данные'!N119,$A$4*(ROW('Исходные данные'!N$126)-ROW('Исходные данные'!N$119)),0) -> 0 | N82: =OFFSET('Исходные данные'!O119,$A$4*(ROW('Исходные данные'!O$126)-ROW('Исходные данные'!O$119)),0) -> 0 | O82: =OFFSET('Исходные данные'!P119,$A$4*(ROW('Исходные данные'!P$126)-ROW('Исходные данные'!P$119)),0) -> 0 | P82: =OFFSET('Исходные данные'!Q119,$A$4*(ROW('Исходные данные'!Q$126)-ROW('Исходные данные'!Q$119)),0) -> 0 | Q82: =OFFSET('Исходные данные'!R119,$A$4*(ROW('Исходные данные'!R$126)-ROW('Исходные данные'!R$119)),0) -> 0 | R82: =OFFSET('Исходные данные'!S119,$A$4*(ROW('Исходные данные'!S$126)-ROW('Исходные данные'!S$119)),0) -> 0 | S82: =OFFSET('Исходные данные'!T119,$A$4*(ROW('Исходные данные'!T$126)-ROW('Исходные данные'!T$119)),0) -> 0 | T82: =OFFSET('Исходные данные'!U119,$A$4*(ROW('Исходные данные'!U$126)-ROW('Исходные данные'!U$119)),0) -> 0 | U82: =OFFSET('Исходные данные'!V119,$A$4*(ROW('Исходные данные'!V$126)-ROW('Исходные данные'!V$119)),0) -> 0 | V82: =OFFSET('Исходные данные'!W119,$A$4*(ROW('Исходные данные'!W$126)-ROW('Исходные данные'!W$119)),0) -> 0 | W82: =OFFSET('Исходные данные'!X119,$A$4*(ROW('Исходные данные'!X$126)-ROW('Исходные данные'!X$119)),0) -> 0 | X82: =OFFSET('Исходные данные'!Y119,$A$4*(ROW('Исходные данные'!Y$126)-ROW('Исходные данные'!Y$119)),0) -> 0 | Y82: =OFFSET('Исходные данные'!Z119,$A$4*(ROW('Исходные данные'!Z$126)-ROW('Исходные данные'!Z$119)),0) -> 0 | Z82: =OFFSET('Исходные данные'!AA119,$A$4*(ROW('Исходные данные'!AA$126)-ROW('Исходные данные'!AA$119)),0) -> 0 | AA82: =OFFSET('Исходные данные'!AB119,$A$4*(ROW('Исходные данные'!AB$126)-ROW('Исходные данные'!AB$119)),0) -> 0 | AB82: =OFFSET('Исходные данные'!AC119,$A$4*(ROW('Исходные данные'!AC$126)-ROW('Исходные данные'!AC$119)),0) -> 0 | AC82: =OFFSET('Исходные данные'!AD119,$A$4*(ROW('Исходные данные'!AD$126)-ROW('Исходные данные'!AD$119)),0) -> 0 | AD82: =OFFSET('Исходные данные'!AE119,$A$4*(ROW('Исходные данные'!AE$126)-ROW('Исходные данные'!AE$119)),0) -> 0 | AE82: =OFFSET('Исходные данные'!AF119,$A$4*(ROW('Исходные данные'!AF$126)-ROW('Исходные данные'!AF$119)),0) -> 0 | AF82: =OFFSET('Исходные данные'!AG119,$A$4*(ROW('Исходные данные'!AG$126)-ROW('Исходные данные'!AG$119)),0) -> 0 | AG82: =OFFSET('Исходные данные'!AH119,$A$4*(ROW('Исходные данные'!AH$126)-ROW('Исходные данные'!AH$119)),0) -> 0 | AH82: =OFFSET('Исходные данные'!AI119,$A$4*(ROW('Исходные данные'!AI$126)-ROW('Исходные данные'!AI$119)),0) -> 0 | AI82: =OFFSET('Исходные данные'!AJ119,$A$4*(ROW('Исходные данные'!AJ$126)-ROW('Исходные данные'!AJ$119)),0) -> 0 | AJ82: =OFFSET('Исходные данные'!AK119,$A$4*(ROW('Исходные данные'!AK$126)-ROW('Исходные данные'!AK$119)),0) -> 0
A83: ='Исходные данные'!A120 -> Заемные средства | E83: =OFFSET('Исходные данные'!F120,$A$4*(ROW('Исходные данные'!F$126)-ROW('Исходные данные'!F$119)),0) -> 0.2 | F83: =OFFSET('Исходные данные'!G120,$A$4*(ROW('Исходные данные'!G$126)-ROW('Исходные данные'!G$119)),0) -> 0.2 | G83: =OFFSET('Исходные данные'!H120,$A$4*(ROW('Исходные данные'!H$126)-ROW('Исходные данные'!H$119)),0) -> 0 | H83: =OFFSET('Исходные данные'!I120,$A$4*(ROW('Исходные данные'!I$126)-ROW('Исходные данные'!I$119)),0) -> 0 | I83: =OFFSET('Исходные данные'!J120,$A$4*(ROW('Исходные данные'!J$126)-ROW('Исходные данные'!J$119)),0) -> 0 | J83: =OFFSET('Исходные данные'!K120,$A$4*(ROW('Исходные данные'!K$126)-ROW('Исходные данные'!K$119)),0) -> 0 | K83: =OFFSET('Исходные данные'!L120,$A$4*(ROW('Исходные данные'!L$126)-ROW('Исходные данные'!L$119)),0) -> 0 | L83: =OFFSET('Исходные данные'!M120,$A$4*(ROW('Исходные данные'!M$126)-ROW('Исходные данные'!M$119)),0) -> 0 | M83: =OFFSET('Исходные данные'!N120,$A$4*(ROW('Исходные данные'!N$126)-ROW('Исходные данные'!N$119)),0) -> 0 | N83: =OFFSET('Исходные данные'!O120,$A$4*(ROW('Исходные данные'!O$126)-ROW('Исходные данные'!O$119)),0) -> 0 | O83: =OFFSET('Исходные данные'!P120,$A$4*(ROW('Исходные данные'!P$126)-ROW('Исходные данные'!P$119)),0) -> 0 | P83: =OFFSET('Исходные данные'!Q120,$A$4*(ROW('Исходные данные'!Q$126)-ROW('Исходные данные'!Q$119)),0) -> 0 | Q83: =OFFSET('Исходные данные'!R120,$A$4*(ROW('Исходные данные'!R$126)-ROW('Исходные данные'!R$119)),0) -> 0 | R83: =OFFSET('Исходные данные'!S120,$A$4*(ROW('Исходные данные'!S$126)-ROW('Исходные данные'!S$119)),0) -> 0 | S83: =OFFSET('Исходные данные'!T120,$A$4*(ROW('Исходные данные'!T$126)-ROW('Исходные данные'!T$119)),0) -> 0 | T83: =OFFSET('Исходные данные'!U120,$A$4*(ROW('Исходные данные'!U$126)-ROW('Исходные данные'!U$119)),0) -> 0 | U83: =OFFSET('Исходные данные'!V120,$A$4*(ROW('Исходные данные'!V$126)-ROW('Исходные данные'!V$119)),0) -> 0 | V83: =OFFSET('Исходные данные'!W120,$A$4*(ROW('Исходные данные'!W$126)-ROW('Исходные данные'!W$119)),0) -> 0 | W83: =OFFSET('Исходные данные'!X120,$A$4*(ROW('Исходные данные'!X$126)-ROW('Исходные данные'!X$119)),0) -> 0 | X83: =OFFSET('Исходные данные'!Y120,$A$4*(ROW('Исходные данные'!Y$126)-ROW('Исходные данные'!Y$119)),0) -> 0 | Y83: =OFFSET('Исходные данные'!Z120,$A$4*(ROW('Исходные данные'!Z$126)-ROW('Исходные данные'!Z$119)),0) -> 0 | Z83: =OFFSET('Исходные данные'!AA120,$A$4*(ROW('Исходные данные'!AA$126)-ROW('Исходные данные'!AA$119)),0) -> 0 | AA83: =OFFSET('Исходные данные'!AB120,$A$4*(ROW('Исходные данные'!AB$126)-ROW('Исходные данные'!AB$119)),0) -> 0 | AB83: =OFFSET('Исходные данные'!AC120,$A$4*(ROW('Исходные данные'!AC$126)-ROW('Исходные данные'!AC$119)),0) -> 0 | AC83: =OFFSET('Исходные данные'!AD120,$A$4*(ROW('Исходные данные'!AD$126)-ROW('Исходные данные'!AD$119)),0) -> 0 | AD83: =OFFSET('Исходные данные'!AE120,$A$4*(ROW('Исходные данные'!AE$126)-ROW('Исходные данные'!AE$119)),0) -> 0 | AE83: =OFFSET('Исходные данные'!AF120,$A$4*(ROW('Исходные данные'!AF$126)-ROW('Исходные данные'!AF$119)),0) -> 0 | AF83: =OFFSET('Исходные данные'!AG120,$A$4*(ROW('Исходные данные'!AG$126)-ROW('Исходные данные'!AG$119)),0) -> 0 | AG83: =OFFSET('Исходные данные'!AH120,$A$4*(ROW('Исходные данные'!AH$126)-ROW('Исходные данные'!AH$119)),0) -> 0 | AH83: =OFFSET('Исходные данные'!AI120,$A$4*(ROW('Исходные данные'!AI$126)-ROW('Исходные данные'!AI$119)),0) -> 0 | AI83: =OFFSET('Исходные данные'!AJ120,$A$4*(ROW('Исходные данные'!AJ$126)-ROW('Исходные данные'!AJ$119)),0) -> 0 | AJ83: =OFFSET('Исходные данные'!AK120,$A$4*(ROW('Исходные данные'!AK$126)-ROW('Исходные данные'!AK$119)),0) -> 0
A84: ='Исходные данные'!A121 -> Средства бюджета субъекта РФ | E84: =OFFSET('Исходные данные'!F121,$A$4*(ROW('Исходные данные'!F$126)-ROW('Исходные данные'!F$119)),0) -> 0.1 | F84: =OFFSET('Исходные данные'!G121,$A$4*(ROW('Исходные данные'!G$126)-ROW('Исходные данные'!G$119)),0) -> 0.1 | G84: =OFFSET('Исходные данные'!H121,$A$4*(ROW('Исходные данные'!H$126)-ROW('Исходные данные'!H$119)),0) -> 0 | H84: =OFFSET('Исходные данные'!I121,$A$4*(ROW('Исходные данные'!I$126)-ROW('Исходные данные'!I$119)),0) -> 0 | I84: =OFFSET('Исходные данные'!J121,$A$4*(ROW('Исходные данные'!J$126)-ROW('Исходные данные'!J$119)),0) -> 0 | J84: =OFFSET('Исходные данные'!K121,$A$4*(ROW('Исходные данные'!K$126)-ROW('Исходные данные'!K$119)),0) -> 0 | K84: =OFFSET('Исходные данные'!L121,$A$4*(ROW('Исходные данные'!L$126)-ROW('Исходные данные'!L$119)),0) -> 0 | L84: =OFFSET('Исходные данные'!M121,$A$4*(ROW('Исходные данные'!M$126)-ROW('Исходные данные'!M$119)),0) -> 0 | M84: =OFFSET('Исходные данные'!N121,$A$4*(ROW('Исходные данные'!N$126)-ROW('Исходные данные'!N$119)),0) -> 0 | N84: =OFFSET('Исходные данные'!O121,$A$4*(ROW('Исходные данные'!O$126)-ROW('Исходные данные'!O$119)),0) -> 0 | O84: =OFFSET('Исходные данные'!P121,$A$4*(ROW('Исходные данные'!P$126)-ROW('Исходные данные'!P$119)),0) -> 0 | P84: =OFFSET('Исходные данные'!Q121,$A$4*(ROW('Исходные данные'!Q$126)-ROW('Исходные данные'!Q$119)),0) -> 0 | Q84: =OFFSET('Исходные данные'!R121,$A$4*(ROW('Исходные данные'!R$126)-ROW('Исходные данные'!R$119)),0) -> 0 | R84: =OFFSET('Исходные данные'!S121,$A$4*(ROW('Исходные данные'!S$126)-ROW('Исходные данные'!S$119)),0) -> 0 | S84: =OFFSET('Исходные данные'!T121,$A$4*(ROW('Исходные данные'!T$126)-ROW('Исходные данные'!T$119)),0) -> 0 | T84: =OFFSET('Исходные данные'!U121,$A$4*(ROW('Исходные данные'!U$126)-ROW('Исходные данные'!U$119)),0) -> 0 | U84: =OFFSET('Исходные данные'!V121,$A$4*(ROW('Исходные данные'!V$126)-ROW('Исходные данные'!V$119)),0) -> 0 | V84: =OFFSET('Исходные данные'!W121,$A$4*(ROW('Исходные данные'!W$126)-ROW('Исходные данные'!W$119)),0) -> 0 | W84: =OFFSET('Исходные данные'!X121,$A$4*(ROW('Исходные данные'!X$126)-ROW('Исходные данные'!X$119)),0) -> 0 | X84: =OFFSET('Исходные данные'!Y121,$A$4*(ROW('Исходные данные'!Y$126)-ROW('Исходные данные'!Y$119)),0) -> 0 | Y84: =OFFSET('Исходные данные'!Z121,$A$4*(ROW('Исходные данные'!Z$126)-ROW('Исходные данные'!Z$119)),0) -> 0 | Z84: =OFFSET('Исходные данные'!AA121,$A$4*(ROW('Исходные данные'!AA$126)-ROW('Исходные данные'!AA$119)),0) -> 0 | AA84: =OFFSET('Исходные данные'!AB121,$A$4*(ROW('Исходные данные'!AB$126)-ROW('Исходные данные'!AB$119)),0) -> 0 | AB84: =OFFSET('Исходные данные'!AC121,$A$4*(ROW('Исходные данные'!AC$126)-ROW('Исходные данные'!AC$119)),0) -> 0 | AC84: =OFFSET('Исходные данные'!AD121,$A$4*(ROW('Исходные данные'!AD$126)-ROW('Исходные данные'!AD$119)),0) -> 0 | AD84: =OFFSET('Исходные данные'!AE121,$A$4*(ROW('Исходные данные'!AE$126)-ROW('Исходные данные'!AE$119)),0) -> 0 | AE84: =OFFSET('Исходные данные'!AF121,$A$4*(ROW('Исходные данные'!AF$126)-ROW('Исходные данные'!AF$119)),0) -> 0 | AF84: =OFFSET('Исходные данные'!AG121,$A$4*(ROW('Исходные данные'!AG$126)-ROW('Исходные данные'!AG$119)),0) -> 0 | AG84: =OFFSET('Исходные данные'!AH121,$A$4*(ROW('Исходные данные'!AH$126)-ROW('Исходные данные'!AH$119)),0) -> 0 | AH84: =OFFSET('Исходные данные'!AI121,$A$4*(ROW('Исходные данные'!AI$126)-ROW('Исходные данные'!AI$119)),0) -> 0 | AI84: =OFFSET('Исходные данные'!AJ121,$A$4*(ROW('Исходные данные'!AJ$126)-ROW('Исходные данные'!AJ$119)),0) -> 0 | AJ84: =OFFSET('Исходные данные'!AK121,$A$4*(ROW('Исходные данные'!AK$126)-ROW('Исходные данные'!AK$119)),0) -> 0
A85: ='Исходные данные'!A122 -> Средства местного бюджета | E85: =OFFSET('Исходные данные'!F122,$A$4*(ROW('Исходные данные'!F$126)-ROW('Исходные данные'!F$119)),0) -> 0 | F85: =OFFSET('Исходные данные'!G122,$A$4*(ROW('Исходные данные'!G$126)-ROW('Исходные данные'!G$119)),0) -> 0 | G85: =OFFSET('Исходные данные'!H122,$A$4*(ROW('Исходные данные'!H$126)-ROW('Исходные данные'!H$119)),0) -> 0 | H85: =OFFSET('Исходные данные'!I122,$A$4*(ROW('Исходные данные'!I$126)-ROW('Исходные данные'!I$119)),0) -> 0 | I85: =OFFSET('Исходные данные'!J122,$A$4*(ROW('Исходные данные'!J$126)-ROW('Исходные данные'!J$119)),0) -> 0 | J85: =OFFSET('Исходные данные'!K122,$A$4*(ROW('Исходные данные'!K$126)-ROW('Исходные данные'!K$119)),0) -> 0 | K85: =OFFSET('Исходные данные'!L122,$A$4*(ROW('Исходные данные'!L$126)-ROW('Исходные данные'!L$119)),0) -> 0 | L85: =OFFSET('Исходные данные'!M122,$A$4*(ROW('Исходные данные'!M$126)-ROW('Исходные данные'!M$119)),0) -> 0 | M85: =OFFSET('Исходные данные'!N122,$A$4*(ROW('Исходные данные'!N$126)-ROW('Исходные данные'!N$119)),0) -> 0 | N85: =OFFSET('Исходные данные'!O122,$A$4*(ROW('Исходные данные'!O$126)-ROW('Исходные данные'!O$119)),0) -> 0 | O85: =OFFSET('Исходные данные'!P122,$A$4*(ROW('Исходные данные'!P$126)-ROW('Исходные данные'!P$119)),0) -> 0 | P85: =OFFSET('Исходные данные'!Q122,$A$4*(ROW('Исходные данные'!Q$126)-ROW('Исходные данные'!Q$119)),0) -> 0 | Q85: =OFFSET('Исходные данные'!R122,$A$4*(ROW('Исходные данные'!R$126)-ROW('Исходные данные'!R$119)),0) -> 0 | R85: =OFFSET('Исходные данные'!S122,$A$4*(ROW('Исходные данные'!S$126)-ROW('Исходные данные'!S$119)),0) -> 0 | S85: =OFFSET('Исходные данные'!T122,$A$4*(ROW('Исходные данные'!T$126)-ROW('Исходные данные'!T$119)),0) -> 0 | T85: =OFFSET('Исходные данные'!U122,$A$4*(ROW('Исходные данные'!U$126)-ROW('Исходные данные'!U$119)),0) -> 0 | U85: =OFFSET('Исходные данные'!V122,$A$4*(ROW('Исходные данные'!V$126)-ROW('Исходные данные'!V$119)),0) -> 0 | V85: =OFFSET('Исходные данные'!W122,$A$4*(ROW('Исходные данные'!W$126)-ROW('Исходные данные'!W$119)),0) -> 0 | W85: =OFFSET('Исходные данные'!X122,$A$4*(ROW('Исходные данные'!X$126)-ROW('Исходные данные'!X$119)),0) -> 0 | X85: =OFFSET('Исходные данные'!Y122,$A$4*(ROW('Исходные данные'!Y$126)-ROW('Исходные данные'!Y$119)),0) -> 0 | Y85: =OFFSET('Исходные данные'!Z122,$A$4*(ROW('Исходные данные'!Z$126)-ROW('Исходные данные'!Z$119)),0) -> 0 | Z85: =OFFSET('Исходные данные'!AA122,$A$4*(ROW('Исходные данные'!AA$126)-ROW('Исходные данные'!AA$119)),0) -> 0 | AA85: =OFFSET('Исходные данные'!AB122,$A$4*(ROW('Исходные данные'!AB$126)-ROW('Исходные данные'!AB$119)),0) -> 0 | AB85: =OFFSET('Исходные данные'!AC122,$A$4*(ROW('Исходные данные'!AC$126)-ROW('Исходные данные'!AC$119)),0) -> 0 | AC85: =OFFSET('Исходные данные'!AD122,$A$4*(ROW('Исходные данные'!AD$126)-ROW('Исходные данные'!AD$119)),0) -> 0 | AD85: =OFFSET('Исходные данные'!AE122,$A$4*(ROW('Исходные данные'!AE$126)-ROW('Исходные данные'!AE$119)),0) -> 0 | AE85: =OFFSET('Исходные данные'!AF122,$A$4*(ROW('Исходные данные'!AF$126)-ROW('Исходные данные'!AF$119)),0) -> 0 | AF85: =OFFSET('Исходные данные'!AG122,$A$4*(ROW('Исходные данные'!AG$126)-ROW('Исходные данные'!AG$119)),0) -> 0 | AG85: =OFFSET('Исходные данные'!AH122,$A$4*(ROW('Исходные данные'!AH$126)-ROW('Исходные данные'!AH$119)),0) -> 0 | AH85: =OFFSET('Исходные данные'!AI122,$A$4*(ROW('Исходные данные'!AI$126)-ROW('Исходные данные'!AI$119)),0) -> 0 | AI85: =OFFSET('Исходные данные'!AJ122,$A$4*(ROW('Исходные данные'!AJ$126)-ROW('Исходные данные'!AJ$119)),0) -> 0 | AJ85: =OFFSET('Исходные данные'!AK122,$A$4*(ROW('Исходные данные'!AK$126)-ROW('Исходные данные'!AK$119)),0) -> 0
A86: ='Исходные данные'!A123 -> Средства Фонда | E86: =OFFSET('Исходные данные'!F123,$A$4*(ROW('Исходные данные'!F$126)-ROW('Исходные данные'!F$119)),0) -> 0.5 | F86: =OFFSET('Исходные данные'!G123,$A$4*(ROW('Исходные данные'!G$126)-ROW('Исходные данные'!G$119)),0) -> 0.5 | G86: =OFFSET('Исходные данные'!H123,$A$4*(ROW('Исходные данные'!H$126)-ROW('Исходные данные'!H$119)),0) -> 0 | H86: =OFFSET('Исходные данные'!I123,$A$4*(ROW('Исходные данные'!I$126)-ROW('Исходные данные'!I$119)),0) -> 0 | I86: =OFFSET('Исходные данные'!J123,$A$4*(ROW('Исходные данные'!J$126)-ROW('Исходные данные'!J$119)),0) -> 0 | J86: =OFFSET('Исходные данные'!K123,$A$4*(ROW('Исходные данные'!K$126)-ROW('Исходные данные'!K$119)),0) -> 0 | K86: =OFFSET('Исходные данные'!L123,$A$4*(ROW('Исходные данные'!L$126)-ROW('Исходные данные'!L$119)),0) -> 0 | L86: =OFFSET('Исходные данные'!M123,$A$4*(ROW('Исходные данные'!M$126)-ROW('Исходные данные'!M$119)),0) -> 0 | M86: =OFFSET('Исходные данные'!N123,$A$4*(ROW('Исходные данные'!N$126)-ROW('Исходные данные'!N$119)),0) -> 0 | N86: =OFFSET('Исходные данные'!O123,$A$4*(ROW('Исходные данные'!O$126)-ROW('Исходные данные'!O$119)),0) -> 0 | O86: =OFFSET('Исходные данные'!P123,$A$4*(ROW('Исходные данные'!P$126)-ROW('Исходные данные'!P$119)),0) -> 0 | P86: =OFFSET('Исходные данные'!Q123,$A$4*(ROW('Исходные данные'!Q$126)-ROW('Исходные данные'!Q$119)),0) -> 0 | Q86: =OFFSET('Исходные данные'!R123,$A$4*(ROW('Исходные данные'!R$126)-ROW('Исходные данные'!R$119)),0) -> 0 | R86: =OFFSET('Исходные данные'!S123,$A$4*(ROW('Исходные данные'!S$126)-ROW('Исходные данные'!S$119)),0) -> 0 | S86: =OFFSET('Исходные данные'!T123,$A$4*(ROW('Исходные данные'!T$126)-ROW('Исходные данные'!T$119)),0) -> 0 | T86: =OFFSET('Исходные данные'!U123,$A$4*(ROW('Исходные данные'!U$126)-ROW('Исходные данные'!U$119)),0) -> 0 | U86: =OFFSET('Исходные данные'!V123,$A$4*(ROW('Исходные данные'!V$126)-ROW('Исходные данные'!V$119)),0) -> 0 | V86: =OFFSET('Исходные данные'!W123,$A$4*(ROW('Исходные данные'!W$126)-ROW('Исходные данные'!W$119)),0) -> 0 | W86: =OFFSET('Исходные данные'!X123,$A$4*(ROW('Исходные данные'!X$126)-ROW('Исходные данные'!X$119)),0) -> 0 | X86: =OFFSET('Исходные данные'!Y123,$A$4*(ROW('Исходные данные'!Y$126)-ROW('Исходные данные'!Y$119)),0) -> 0 | Y86: =OFFSET('Исходные данные'!Z123,$A$4*(ROW('Исходные данные'!Z$126)-ROW('Исходные данные'!Z$119)),0) -> 0 | Z86: =OFFSET('Исходные данные'!AA123,$A$4*(ROW('Исходные данные'!AA$126)-ROW('Исходные данные'!AA$119)),0) -> 0 | AA86: =OFFSET('Исходные данные'!AB123,$A$4*(ROW('Исходные данные'!AB$126)-ROW('Исходные данные'!AB$119)),0) -> 0 | AB86: =OFFSET('Исходные данные'!AC123,$A$4*(ROW('Исходные данные'!AC$126)-ROW('Исходные данные'!AC$119)),0) -> 0 | AC86: =OFFSET('Исходные данные'!AD123,$A$4*(ROW('Исходные данные'!AD$126)-ROW('Исходные данные'!AD$119)),0) -> 0 | AD86: =OFFSET('Исходные данные'!AE123,$A$4*(ROW('Исходные данные'!AE$126)-ROW('Исходные данные'!AE$119)),0) -> 0 | AE86: =OFFSET('Исходные данные'!AF123,$A$4*(ROW('Исходные данные'!AF$126)-ROW('Исходные данные'!AF$119)),0) -> 0 | AF86: =OFFSET('Исходные данные'!AG123,$A$4*(ROW('Исходные данные'!AG$126)-ROW('Исходные данные'!AG$119)),0) -> 0 | AG86: =OFFSET('Исходные данные'!AH123,$A$4*(ROW('Исходные данные'!AH$126)-ROW('Исходные данные'!AH$119)),0) -> 0 | AH86: =OFFSET('Исходные данные'!AI123,$A$4*(ROW('Исходные данные'!AI$126)-ROW('Исходные данные'!AI$119)),0) -> 0 | AI86: =OFFSET('Исходные данные'!AJ123,$A$4*(ROW('Исходные данные'!AJ$126)-ROW('Исходные данные'!AJ$119)),0) -> 0 | AJ86: =OFFSET('Исходные данные'!AK123,$A$4*(ROW('Исходные данные'!AK$126)-ROW('Исходные данные'!AK$119)),0) -> 0
A88: Проверка - средства инвестора не менее 20% | B88: =IF(SUMPRODUCT(--(E88:AH88="ERROR"))=0,"OK","ERROR") -> OK | E88: =IF(OR(E47<=0,(E83+E82)>=20%),"OK","ERROR") -> OK | F88: =IF(OR(F47<=0,(F83+F82)>=20%),"OK","ERROR") -> OK | G88: OK | H88: OK | I88: OK | J88: OK | K88: OK | L88: OK | M88: OK | N88: OK | O88: OK | P88: OK | Q88: OK | R88: OK | S88: OK | T88: OK | U88: OK | V88: OK | W88: OK | X88: OK | Y88: OK | Z88: OK | AA88: OK | AB88: OK | AC88: OK | AD88: OK | AE88: OK | AF88: OK | AG88: OK | AH88: OK | AI88: OK | AJ88: OK
A89: Проверка - средства инвестора и бюджета (регионального/местного) не менее 40% | B89: =IF(SUMPRODUCT(--(E89:AH89="ERROR"))=0,"OK","ERROR") -> OK | E89: =IF(OR(E47<=0,SUM(E82:E85)>=40%),"OK","ERROR") -> OK | F89: =IF(OR(F47<=0,SUM(F82:F85)>=40%),"OK","ERROR") -> OK | G89: OK | H89: OK | I89: OK | J89: OK | K89: OK | L89: OK | M89: OK | N89: OK | O89: OK | P89: OK | Q89: OK | R89: OK | S89: OK | T89: OK | U89: OK | V89: OK | W89: OK | X89: OK | Y89: OK | Z89: OK | AA89: OK | AB89: OK | AC89: OK | AD89: OK | AE89: OK | AF89: OK | AG89: OK | AH89: OK | AI89: OK | AJ89: OK
A91: Кредит
B92: Начало | C92: Окончание
A93: Выборка кредита | B93: ='Исходные данные'!E19 -> 2019-01-01 | C93: ='Исходные данные'!J19 -> 2020-12-31 | E93: =(Расчет_С_Фондом!E$1<=$C93)*($B93<=Расчет_С_Фондом!E$2) -> 1 | F93: =(Расчет_С_Фондом!F$1<=$C93)*($B93<=Расчет_С_Фондом!F$2) -> 1 | G93: =(Расчет_С_Фондом!G$1<=$C93)*($B93<=Расчет_С_Фондом!G$2) -> 0 | H93: =(Расчет_С_Фондом!H$1<=$C93)*($B93<=Расчет_С_Фондом!H$2) -> 0 | I93: =(Расчет_С_Фондом!I$1<=$C93)*($B93<=Расчет_С_Фондом!I$2) -> 0 | J93: =(Расчет_С_Фондом!J$1<=$C93)*($B93<=Расчет_С_Фондом!J$2) -> 0 | K93: =(Расчет_С_Фондом!K$1<=$C93)*($B93<=Расчет_С_Фондом!K$2) -> 0 | L93: =(Расчет_С_Фондом!L$1<=$C93)*($B93<=Расчет_С_Фондом!L$2) -> 0 | M93: =(Расчет_С_Фондом!M$1<=$C93)*($B93<=Расчет_С_Фондом!M$2) -> 0 | N93: =(Расчет_С_Фондом!N$1<=$C93)*($B93<=Расчет_С_Фондом!N$2) -> 0 | O93: =(Расчет_С_Фондом!O$1<=$C93)*($B93<=Расчет_С_Фондом!O$2) -> 0 | P93: =(Расчет_С_Фондом!P$1<=$C93)*($B93<=Расчет_С_Фондом!P$2) -> 0 | Q93: =(Расчет_С_Фондом!Q$1<=$C93)*($B93<=Расчет_С_Фондом!Q$2) -> 0 | R93: =(Расчет_С_Фондом!R$1<=$C93)*($B93<=Расчет_С_Фондом!R$2) -> 0 | S93: =(Расчет_С_Фондом!S$1<=$C93)*($B93<=Расчет_С_Фондом!S$2) -> 0 | T93: =(Расчет_С_Фондом!T$1<=$C93)*($B93<=Расчет_С_Фондом!T$2) -> 0 | U93: =(Расчет_С_Фондом!U$1<=$C93)*($B93<=Расчет_С_Фондом!U$2) -> 0 | V93: =(Расчет_С_Фондом!V$1<=$C93)*($B93<=Расчет_С_Фондом!V$2) -> 0 | W93: =(Расчет_С_Фондом!W$1<=$C93)*($B93<=Расчет_С_Фондом!W$2) -> 0 | X93: =(Расчет_С_Фондом!X$1<=$C93)*($B93<=Расчет_С_Фондом!X$2) -> 0 | Y93: =(Расчет_С_Фондом!Y$1<=$C93)*($B93<=Расчет_С_Фондом!Y$2) -> 0 | Z93: =(Расчет_С_Фондом!Z$1<=$C93)*($B93<=Расчет_С_Фондом!Z$2) -> 0 | AA93: =(Расчет_С_Фондом!AA$1<=$C93)*($B93<=Расчет_С_Фондом!AA$2) -> 0 | AB93: =(Расчет_С_Фондом!AB$1<=$C93)*($B93<=Расчет_С_Фондом!AB$2) -> 0 | AC93: =(Расчет_С_Фондом!AC$1<=$C93)*($B93<=Расчет_С_Фондом!AC$2) -> 0 | AD93: =(Расчет_С_Фондом!AD$1<=$C93)*($B93<=Расчет_С_Фондом!AD$2) -> 0 | AE93: =(Расчет_С_Фондом!AE$1<=$C93)*($B93<=Расчет_С_Фондом!AE$2) -> 0 | AF93: =(Расчет_С_Фондом!AF$1<=$C93)*($B93<=Расчет_С_Фондом!AF$2) -> 0 | AG93: =(Расчет_С_Фондом!AG$1<=$C93)*($B93<=Расчет_С_Фондом!AG$2) -> 0 | AH93: =(Расчет_С_Фондом!AH$1<=$C93)*($B93<=Расчет_С_Фондом!AH$2) -> 0 | AI93: =(Расчет_С_Фондом!AI$1<=$C93)*($B93<=Расчет_С_Фондом!AI$2) -> 0 | AJ93: =(Расчет_С_Фондом!AJ$1<=$C93)*($B93<=Расчет_С_Фондом!AJ$2) -> 0
A94: Погашение кредита | B94: ='Исходные данные'!E20 -> 2021-01-01 | C94: ='Исходные данные'!J20 -> 2029-12-31 | E94: =MAX(0,(Расчет_С_Фондом!E$1<=$C94)*($B94<=Расчет_С_Фондом!E$2)) -> 0 | F94: =MAX(0,(Расчет_С_Фондом!F$1<=$C94)*($B94<=Расчет_С_Фондом!F$2)) -> 0 | G94: =MAX(0,(Расчет_С_Фондом!G$1<=$C94)*($B94<=Расчет_С_Фондом!G$2)) -> 1 | H94: =MAX(0,(Расчет_С_Фондом!H$1<=$C94)*($B94<=Расчет_С_Фондом!H$2)) -> 1 | I94: =MAX(0,(Расчет_С_Фондом!I$1<=$C94)*($B94<=Расчет_С_Фондом!I$2)) -> 1 | J94: =MAX(0,(Расчет_С_Фондом!J$1<=$C94)*($B94<=Расчет_С_Фондом!J$2)) -> 1 | K94: =MAX(0,(Расчет_С_Фондом!K$1<=$C94)*($B94<=Расчет_С_Фондом!K$2)) -> 1 | L94: =MAX(0,(Расчет_С_Фондом!L$1<=$C94)*($B94<=Расчет_С_Фондом!L$2)) -> 1 | M94: =MAX(0,(Расчет_С_Фондом!M$1<=$C94)*($B94<=Расчет_С_Фондом!M$2)) -> 1 | N94: =MAX(0,(Расчет_С_Фондом!N$1<=$C94)*($B94<=Расчет_С_Фондом!N$2)) -> 1 | O94: =MAX(0,(Расчет_С_Фондом!O$1<=$C94)*($B94<=Расчет_С_Фондом!O$2)) -> 1 | P94: =MAX(0,(Расчет_С_Фондом!P$1<=$C94)*($B94<=Расчет_С_Фондом!P$2)) -> 0 | Q94: =MAX(0,(Расчет_С_Фондом!Q$1<=$C94)*($B94<=Расчет_С_Фондом!Q$2)) -> 0 | R94: =MAX(0,(Расчет_С_Фондом!R$1<=$C94)*($B94<=Расчет_С_Фондом!R$2)) -> 0 | S94: =MAX(0,(Расчет_С_Фондом!S$1<=$C94)*($B94<=Расчет_С_Фондом!S$2)) -> 0 | T94: =MAX(0,(Расчет_С_Фондом!T$1<=$C94)*($B94<=Расчет_С_Фондом!T$2)) -> 0 | U94: =MAX(0,(Расчет_С_Фондом!U$1<=$C94)*($B94<=Расчет_С_Фондом!U$2)) -> 0 | V94: =MAX(0,(Расчет_С_Фондом!V$1<=$C94)*($B94<=Расчет_С_Фондом!V$2)) -> 0 | W94: =MAX(0,(Расчет_С_Фондом!W$1<=$C94)*($B94<=Расчет_С_Фондом!W$2)) -> 0 | X94: =MAX(0,(Расчет_С_Фондом!X$1<=$C94)*($B94<=Расчет_С_Фондом!X$2)) -> 0 | Y94: =MAX(0,(Расчет_С_Фондом!Y$1<=$C94)*($B94<=Расчет_С_Фондом!Y$2)) -> 0 | Z94: =MAX(0,(Расчет_С_Фондом!Z$1<=$C94)*($B94<=Расчет_С_Фондом!Z$2)) -> 0 | AA94: =MAX(0,(Расчет_С_Фондом!AA$1<=$C94)*($B94<=Расчет_С_Фондом!AA$2)) -> 0 | AB94: =MAX(0,(Расчет_С_Фондом!AB$1<=$C94)*($B94<=Расчет_С_Фондом!AB$2)) -> 0 | AC94: =MAX(0,(Расчет_С_Фондом!AC$1<=$C94)*($B94<=Расчет_С_Фондом!AC$2)) -> 0 | AD94: =MAX(0,(Расчет_С_Фондом!AD$1<=$C94)*($B94<=Расчет_С_Фондом!AD$2)) -> 0 | AE94: =MAX(0,(Расчет_С_Фондом!AE$1<=$C94)*($B94<=Расчет_С_Фондом!AE$2)) -> 0 | AF94: =MAX(0,(Расчет_С_Фондом!AF$1<=$C94)*($B94<=Расчет_С_Фондом!AF$2)) -> 0 | AG94: =MAX(0,(Расчет_С_Фондом!AG$1<=$C94)*($B94<=Расчет_С_Фондом!AG$2)) -> 0 | AH94: =MAX(0,(Расчет_С_Фондом!AH$1<=$C94)*($B94<=Расчет_С_Фондом!AH$2)) -> 0 | AI94: =MAX(0,(Расчет_С_Фондом!AI$1<=$C94)*($B94<=Расчет_С_Фондом!AI$2)) -> 0 | AJ94: =MAX(0,(Расчет_С_Фондом!AJ$1<=$C94)*($B94<=Расчет_С_Фондом!AJ$2)) -> 0
A95: Кредит
A96: Баланс на начало периода | E96: =D99 -> 0 | F96: 73200 | G96: 146400 | H96: 136063.9163 | I96: 124590.8635 | J96: 111855.7748 | K96: 97719.82636 | L96: 82028.92359 | M96: 64612.02152 | N96: 45279.26023 | O96: 23819.89519 | P96: 0 | Q96: 0 | R96: 0 | S96: 0 | T96: 0 | U96: 0 | V96: 0 | W96: 0 | X96: 0 | Y96: 0 | Z96: 0 | AA96: 0 | AB96: 0 | AC96: 0 | AD96: 0 | AE96: 0 | AF96: 0 | AG96: 0 | AH96: 0 | AI96: 0 | AJ96: 0
A97: Выборка кредита | E97: =E63 -> 73200 | F97: 73200 | G97: 0 | H97: 0 | I97: 0 | J97: 0 | K97: 0 | L97: 0 | M97: 0 | N97: 0 | O97: 0 | P97: 0 | Q97: 0 | R97: 0 | S97: 0 | T97: 0 | U97: 0 | V97: 0 | W97: 0 | X97: 0 | Y97: 0 | Z97: 0 | AA97: 0 | AB97: 0 | AC97: 0 | AD97: 0 | AE97: 0 | AF97: 0 | AG97: 0 | AH97: 0 | AI97: 0 | AJ97: 0
A98: Погашение кредита | E98: =CHOOSE('Исходные данные'!$E$21+1,IFERROR(PPMT(E103,E94,SUM(E94:$DT94),E96+E97),0),-IFERROR(E94*SUM($E$97:$DT$97)/SUM($E$94:$DT$94),0)) -> 0 | F98: =CHOOSE('Исходные данные'!$E$21+1,IFERROR(PPMT(F103,F94,SUM(F94:$DT94),F96+F97),0),-IFERROR(F94*SUM($E$97:$DT$97)/SUM($E$94:$DT$94),0)) -> 0 | G98: =CHOOSE('Исходные данные'!$E$21+1,IFERROR(PPMT(G103,G94,SUM(G94:$DT94),G96+G97),0),-IFERROR(G94*SUM($E$97:$DT$97)/SUM($E$94:$DT$94),0)) -> -10336.08366 | H98: =CHOOSE('Исходные данные'!$E$21+1,IFERROR(PPMT(H103,H94,SUM(H94:$DT94),H96+H97),0),-IFERROR(H94*SUM($E$97:$DT$97)/SUM($E$94:$DT$94),0)) -> -11473.05287 | I98: =CHOOSE('Исходные данные'!$E$21+1,IFERROR(PPMT(I103,I94,SUM(I94:$DT94),I96+I97),0),-IFERROR(I94*SUM($E$97:$DT$97)/SUM($E$94:$DT$94),0)) -> -12735.08868 | J98: =CHOOSE('Исходные данные'!$E$21+1,IFERROR(PPMT(J103,J94,SUM(J94:$DT94),J96+J97),0),-IFERROR(J94*SUM($E$97:$DT$97)/SUM($E$94:$DT$94),0)) -> -14135.94844 | K98: =CHOOSE('Исходные данные'!$E$21+1,IFERROR(PPMT(K103,K94,SUM(K94:$DT94),K96+K97),0),-IFERROR(K94*SUM($E$97:$DT$97)/SUM($E$94:$DT$94),0)) -> -15690.90276 | L98: =CHOOSE('Исходные данные'!$E$21+1,IFERROR(PPMT(L103,L94,SUM(L94:$DT94),L96+L97),0),-IFERROR(L94*SUM($E$97:$DT$97)/SUM($E$94:$DT$94),0)) -> -17416.90207 | M98: =CHOOSE('Исходные данные'!$E$21+1,IFERROR(PPMT(M103,M94,SUM(M94:$DT94),M96+M97),0),-IFERROR(M94*SUM($E$97:$DT$97)/SUM($E$94:$DT$94),0)) -> -19332.7613 | N98: =CHOOSE('Исходные данные'!$E$21+1,IFERROR(PPMT(N103,N94,SUM(N94:$DT94),N96+N97),0),-IFERROR(N94*SUM($E$97:$DT$97)/SUM($E$94:$DT$94),0)) -> -21459.36504 | O98: =CHOOSE('Исходные данные'!$E$21+1,IFERROR(PPMT(O103,O94,SUM(O94:$DT94),O96+O97),0),-IFERROR(O94*SUM($E$97:$DT$97)/SUM($E$94:$DT$94),0)) -> -23819.89519 | P98: =CHOOSE('Исходные данные'!$E$21+1,IFERROR(PPMT(P103,P94,SUM(P94:$DT94),P96+P97),0),-IFERROR(P94*SUM($E$97:$DT$97)/SUM($E$94:$DT$94),0)) -> 0 | Q98: =CHOOSE('Исходные данные'!$E$21+1,IFERROR(PPMT(Q103,Q94,SUM(Q94:$DT94),Q96+Q97),0),-IFERROR(Q94*SUM($E$97:$DT$97)/SUM($E$94:$DT$94),0)) -> 0 | R98: =CHOOSE('Исходные данные'!$E$21+1,IFERROR(PPMT(R103,R94,SUM(R94:$DT94),R96+R97),0),-IFERROR(R94*SUM($E$97:$DT$97)/SUM($E$94:$DT$94),0)) -> 0 | S98: =CHOOSE('Исходные данные'!$E$21+1,IFERROR(PPMT(S103,S94,SUM(S94:$DT94),S96+S97),0),-IFERROR(S94*SUM($E$97:$DT$97)/SUM($E$94:$DT$94),0)) -> 0 | T98: =CHOOSE('Исходные данные'!$E$21+1,IFERROR(PPMT(T103,T94,SUM(T94:$DT94),T96+T97),0),-IFERROR(T94*SUM($E$97:$DT$97)/SUM($E$94:$DT$94),0)) -> 0 | U98: =CHOOSE('Исходные данные'!$E$21+1,IFERROR(PPMT(U103,U94,SUM(U94:$DT94),U96+U97),0),-IFERROR(U94*SUM($E$97:$DT$97)/SUM($E$94:$DT$94),0)) -> 0 | V98: =CHOOSE('Исходные данные'!$E$21+1,IFERROR(PPMT(V103,V94,SUM(V94:$DT94),V96+V97),0),-IFERROR(V94*SUM($E$97:$DT$97)/SUM($E$94:$DT$94),0)) -> 0 | W98: =CHOOSE('Исходные данные'!$E$21+1,IFERROR(PPMT(W103,W94,SUM(W94:$DT94),W96+W97),0),-IFERROR(W94*SUM($E$97:$DT$97)/SUM($E$94:$DT$94),0)) -> 0 | X98: =CHOOSE('Исходные данные'!$E$21+1,IFERROR(PPMT(X103,X94,SUM(X94:$DT94),X96+X97),0),-IFERROR(X94*SUM($E$97:$DT$97)/SUM($E$94:$DT$94),0)) -> 0 | Y98: =CHOOSE('Исходные данные'!$E$21+1,IFERROR(PPMT(Y103,Y94,SUM(Y94:$DT94),Y96+Y97),0),-IFERROR(Y94*SUM($E$97:$DT$97)/SUM($E$94:$DT$94),0)) -> 0 | Z98: =CHOOSE('Исходные данные'!$E$21+1,IFERROR(PPMT(Z103,Z94,SUM(Z94:$DT94),Z96+Z97),0),-IFERROR(Z94*SUM($E$97:$DT$97)/SUM($E$94:$DT$94),0)) -> 0 | AA98: =CHOOSE('Исходные данные'!$E$21+1,IFERROR(PPMT(AA103,AA94,SUM(AA94:$DT94),AA96+AA97),0),-IFERROR(AA94*SUM($E$97:$DT$97)/SUM($E$94:$DT$94),0)) -> 0 | AB98: =CHOOSE('Исходные данные'!$E$21+1,IFERROR(PPMT(AB103,AB94,SUM(AB94:$DT94),AB96+AB97),0),-IFERROR(AB94*SUM($E$97:$DT$97)/SUM($E$94:$DT$94),0)) -> 0 | AC98: =CHOOSE('Исходные данные'!$E$21+1,IFERROR(PPMT(AC103,AC94,SUM(AC94:$DT94),AC96+AC97),0),-IFERROR(AC94*SUM($E$97:$DT$97)/SUM($E$94:$DT$94),0)) -> 0 | AD98: =CHOOSE('Исходные данные'!$E$21+1,IFERROR(PPMT(AD103,AD94,SUM(AD94:$DT94),AD96+AD97),0),-IFERROR(AD94*SUM($E$97:$DT$97)/SUM($E$94:$DT$94),0)) -> 0 | AE98: =CHOOSE('Исходные данные'!$E$21+1,IFERROR(PPMT(AE103,AE94,SUM(AE94:$DT94),AE96+AE97),0),-IFERROR(AE94*SUM($E$97:$DT$97)/SUM($E$94:$DT$94),0)) -> 0 | AF98: =CHOOSE('Исходные данные'!$E$21+1,IFERROR(PPMT(AF103,AF94,SUM(AF94:$DT94),AF96+AF97),0),-IFERROR(AF94*SUM($E$97:$DT$97)/SUM($E$94:$DT$94),0)) -> 0 | AG98: =CHOOSE('Исходные данные'!$E$21+1,IFERROR(PPMT(AG103,AG94,SUM(AG94:$DT94),AG96+AG97),0),-IFERROR(AG94*SUM($E$97:$DT$97)/SUM($E$94:$DT$94),0)) -> 0 | AH98: =CHOOSE('Исходные данные'!$E$21+1,IFERROR(PPMT(AH103,AH94,SUM(AH94:$DT94),AH96+AH97),0),-IFERROR(AH94*SUM($E$97:$DT$97)/SUM($E$94:$DT$94),0)) -> 0 | AI98: =CHOOSE('Исходные данные'!$E$21+1,IFERROR(PPMT(AI103,AI94,SUM(AI94:$DT94),AI96+AI97),0),-IFERROR(AI94*SUM($E$97:$DT$97)/SUM($E$94:$DT$94),0)) -> 0 | AJ98: =CHOOSE('Исходные данные'!$E$21+1,IFERROR(PPMT(AJ103,AJ94,SUM(AJ94:$DT94),AJ96+AJ97),0),-IFERROR(AJ94*SUM($E$97:$DT$97)/SUM($E$94:$DT$94),0)) -> 0
A99: Баланс на конец периода | E99: =SUM(E96:E98) -> 73200 | F99: 146400 | G99: 136063.9163 | H99: 124590.8635 | I99: 111855.7748 | J99: 97719.82636 | K99: 82028.92359 | L99: 64612.02152 | M99: 45279.26023 | N99: 23819.89519 | O99: 0 | P99: 0 | Q99: 0 | R99: 0 | S99: 0 | T99: 0 | U99: 0 | V99: 0 | W99: 0 | X99: 0 | Y99: 0 | Z99: 0 | AA99: 0 | AB99: 0 | AC99: 0 | AD99: 0 | AE99: 0 | AF99: 0 | AG99: 0 | AH99: 0 | AI99: 0 | AJ99: 0
A101: Проценты
A102: Ставка процента (годовая) | B102: ='Исходные данные'!C19+Чувствительность!$B$6 -> 0.11 | E102: =$B102 -> 0.11 | F102: 0.11 | G102: 0.11 | H102: 0.11 | I102: 0.11 | J102: 0.11 | K102: 0.11 | L102: 0.11 | M102: 0.11 | N102: 0.11 | O102: 0.11 | P102: 0.11 | Q102: 0.11 | R102: 0.11 | S102: 0.11 | T102: 0.11 | U102: 0.11 | V102: 0.11 | W102: 0.11 | X102: 0.11 | Y102: 0.11 | Z102: 0.11 | AA102: 0.11 | AB102: 0.11 | AC102: 0.11 | AD102: 0.11 | AE102: 0.11 | AF102: 0.11 | AG102: 0.11 | AH102: 0.11 | AI102: 0.11 | AJ102: 0.11
A103: Ставка процента (за период) | E103: =(1+E102)^(MAX(0,1+MIN(Расчет_С_Фондом!E$2,$C94)-MAX(Расчет_С_Фондом!E$1,$B93))/IF(MOD(Расчет_С_Фондом!E$4,4)=0,366,365))-1 -> 0.11 | F103: =(1+F102)^(MAX(0,1+MIN(Расчет_С_Фондом!F$2,$C94)-MAX(Расчет_С_Фондом!F$1,$B93))/IF(MOD(Расчет_С_Фондом!F$4,4)=0,366,365))-1 -> 0.11 | G103: =(1+G102)^(MAX(0,1+MIN(Расчет_С_Фондом!G$2,$C94)-MAX(Расчет_С_Фондом!G$1,$B93))/IF(MOD(Расчет_С_Фондом!G$4,4)=0,366,365))-1 -> 0.11 | H103: =(1+H102)^(MAX(0,1+MIN(Расчет_С_Фондом!H$2,$C94)-MAX(Расчет_С_Фондом!H$1,$B93))/IF(MOD(Расчет_С_Фондом!H$4,4)=0,366,365))-1 -> 0.11 | I103: =(1+I102)^(MAX(0,1+MIN(Расчет_С_Фондом!I$2,$C94)-MAX(Расчет_С_Фондом!I$1,$B93))/IF(MOD(Расчет_С_Фондом!I$4,4)=0,366,365))-1 -> 0.11 | J103: =(1+J102)^(MAX(0,1+MIN(Расчет_С_Фондом!J$2,$C94)-MAX(Расчет_С_Фондом!J$1,$B93))/IF(MOD(Расчет_С_Фондом!J$4,4)=0,366,365))-1 -> 0.11 | K103: =(1+K102)^(MAX(0,1+MIN(Расчет_С_Фондом!K$2,$C94)-MAX(Расчет_С_Фондом!K$1,$B93))/IF(MOD(Расчет_С_Фондом!K$4,4)=0,366,365))-1 -> 0.11 | L103: =(1+L102)^(MAX(0,1+MIN(Расчет_С_Фондом!L$2,$C94)-MAX(Расчет_С_Фондом!L$1,$B93))/IF(MOD(Расчет_С_Фондом!L$4,4)=0,366,365))-1 -> 0.11 | M103: =(1+M102)^(MAX(0,1+MIN(Расчет_С_Фондом!M$2,$C94)-MAX(Расчет_С_Фондом!M$1,$B93))/IF(MOD(Расчет_С_Фондом!M$4,4)=0,366,365))-1 -> 0.11 | N103: =(1+N102)^(MAX(0,1+MIN(Расчет_С_Фондом!N$2,$C94)-MAX(Расчет_С_Фондом!N$1,$B93))/IF(MOD(Расчет_С_Фондом!N$4,4)=0,366,365))-1 -> 0.11 | O103: =(1+O102)^(MAX(0,1+MIN(Расчет_С_Фондом!O$2,$C94)-MAX(Расчет_С_Фондом!O$1,$B93))/IF(MOD(Расчет_С_Фондом!O$4,4)=0,366,365))-1 -> 0.11 | P103: =(1+P102)^(MAX(0,1+MIN(Расчет_С_Фондом!P$2,$C94)-MAX(Расчет_С_Фондом!P$1,$B93))/IF(MOD(Расчет_С_Фондом!P$4,4)=0,366,365))-1 -> 0 | Q103: =(1+Q102)^(MAX(0,1+MIN(Расчет_С_Фондом!Q$2,$C94)-MAX(Расчет_С_Фондом!Q$1,$B93))/IF(MOD(Расчет_С_Фондом!Q$4,4)=0,366,365))-1 -> 0 | R103: =(1+R102)^(MAX(0,1+MIN(Расчет_С_Фондом!R$2,$C94)-MAX(Расчет_С_Фондом!R$1,$B93))/IF(MOD(Расчет_С_Фондом!R$4,4)=0,366,365))-1 -> 0 | S103: =(1+S102)^(MAX(0,1+MIN(Расчет_С_Фондом!S$2,$C94)-MAX(Расчет_С_Фондом!S$1,$B93))/IF(MOD(Расчет_С_Фондом!S$4,4)=0,366,365))-1 -> 0 | T103: =(1+T102)^(MAX(0,1+MIN(Расчет_С_Фондом!T$2,$C94)-MAX(Расчет_С_Фондом!T$1,$B93))/IF(MOD(Расчет_С_Фондом!T$4,4)=0,366,365))-1 -> 0 | U103: =(1+U102)^(MAX(0,1+MIN(Расчет_С_Фондом!U$2,$C94)-MAX(Расчет_С_Фондом!U$1,$B93))/IF(MOD(Расчет_С_Фондом!U$4,4)=0,366,365))-1 -> 0 | V103: =(1+V102)^(MAX(0,1+MIN(Расчет_С_Фондом!V$2,$C94)-MAX(Расчет_С_Фондом!V$1,$B93))/IF(MOD(Расчет_С_Фондом!V$4,4)=0,366,365))-1 -> 0 | W103: =(1+W102)^(MAX(0,1+MIN(Расчет_С_Фондом!W$2,$C94)-MAX(Расчет_С_Фондом!W$1,$B93))/IF(MOD(Расчет_С_Фондом!W$4,4)=0,366,365))-1 -> 0 | X103: =(1+X102)^(MAX(0,1+MIN(Расчет_С_Фондом!X$2,$C94)-MAX(Расчет_С_Фондом!X$1,$B93))/IF(MOD(Расчет_С_Фондом!X$4,4)=0,366,365))-1 -> 0 | Y103: =(1+Y102)^(MAX(0,1+MIN(Расчет_С_Фондом!Y$2,$C94)-MAX(Расчет_С_Фондом!Y$1,$B93))/IF(MOD(Расчет_С_Фондом!Y$4,4)=0,366,365))-1 -> 0 | Z103: =(1+Z102)^(MAX(0,1+MIN(Расчет_С_Фондом!Z$2,$C94)-MAX(Расчет_С_Фондом!Z$1,$B93))/IF(MOD(Расчет_С_Фондом!Z$4,4)=0,366,365))-1 -> 0 | AA103: =(1+AA102)^(MAX(0,1+MIN(Расчет_С_Фондом!AA$2,$C94)-MAX(Расчет_С_Фондом!AA$1,$B93))/IF(MOD(Расчет_С_Фондом!AA$4,4)=0,366,365))-1 -> 0 | AB103: =(1+AB102)^(MAX(0,1+MIN(Расчет_С_Фондом!AB$2,$C94)-MAX(Расчет_С_Фондом!AB$1,$B93))/IF(MOD(Расчет_С_Фондом!AB$4,4)=0,366,365))-1 -> 0 | AC103: =(1+AC102)^(MAX(0,1+MIN(Расчет_С_Фондом!AC$2,$C94)-MAX(Расчет_С_Фондом!AC$1,$B93))/IF(MOD(Расчет_С_Фондом!AC$4,4)=0,366,365))-1 -> 0 | AD103: =(1+AD102)^(MAX(0,1+MIN(Расчет_С_Фондом!AD$2,$C94)-MAX(Расчет_С_Фондом!AD$1,$B93))/IF(MOD(Расчет_С_Фондом!AD$4,4)=0,366,365))-1 -> 0 | AE103: =(1+AE102)^(MAX(0,1+MIN(Расчет_С_Фондом!AE$2,$C94)-MAX(Расчет_С_Фондом!AE$1,$B93))/IF(MOD(Расчет_С_Фондом!AE$4,4)=0,366,365))-1 -> 0 | AF103: =(1+AF102)^(MAX(0,1+MIN(Расчет_С_Фондом!AF$2,$C94)-MAX(Расчет_С_Фондом!AF$1,$B93))/IF(MOD(Расчет_С_Фондом!AF$4,4)=0,366,365))-1 -> 0 | AG103: =(1+AG102)^(MAX(0,1+MIN(Расчет_С_Фондом!AG$2,$C94)-MAX(Расчет_С_Фондом!AG$1,$B93))/IF(MOD(Расчет_С_Фондом!AG$4,4)=0,366,365))-1 -> 0 | AH103: =(1+AH102)^(MAX(0,1+MIN(Расчет_С_Фондом!AH$2,$C94)-MAX(Расчет_С_Фондом!AH$1,$B93))/IF(MOD(Расчет_С_Фондом!AH$4,4)=0,366,365))-1 -> 0 | AI103: =(1+AI102)^(MAX(0,1+MIN(Расчет_С_Фондом!AI$2,$C94)-MAX(Расчет_С_Фондом!AI$1,$B93))/IF(MOD(Расчет_С_Фондом!AI$4,4)=0,366,365))-1 -> 0 | AJ103: =(1+AJ102)^(MAX(0,1+MIN(Расчет_С_Фондом!AJ$2,$C94)-MAX(Расчет_С_Фондом!AJ$1,$B93))/IF(MOD(Расчет_С_Фондом!AJ$4,4)=0,366,365))-1 -> 0
A104: Проценты, начисленные | E104: =(E96+E97/2)*E103 -> 4026 | F104: 12078 | G104: 16104 | H104: 14967.0308 | I104: 13704.99498 | J104: 12304.13523 | K104: 10749.1809 | L104: 9023.181595 | M104: 7107.322368 | N104: 4980.718625 | O104: 2620.188471 | P104: 0 | Q104: 0 | R104: 0 | S104: 0 | T104: 0 | U104: 0 | V104: 0 | W104: 0 | X104: 0 | Y104: 0 | Z104: 0 | AA104: 0 | AB104: 0 | AC104: 0 | AD104: 0 | AE104: 0 | AF104: 0 | AG104: 0 | AH104: 0 | AI104: 0 | AJ104: 0
A105: Проценты, уплаченные | E105: =-E104 -> -4026 | F105: -12078 | G105: -16104 | H105: -14967.0308 | I105: -13704.99498 | J105: -12304.13523 | K105: -10749.1809 | L105: -9023.181595 | M105: -7107.322368 | N105: -4980.718625 | O105: -2620.188471 | P105: 0 | Q105: 0 | R105: 0 | S105: 0 | T105: 0 | U105: 0 | V105: 0 | W105: 0 | X105: 0 | Y105: 0 | Z105: 0 | AA105: 0 | AB105: 0 | AC105: 0 | AD105: 0 | AE105: 0 | AF105: 0 | AG105: 0 | AH105: 0 | AI105: 0 | AJ105: 0
A106: Задолженность по уплате процентов | E106: =D106+SUM(E104:E105) -> 0 | F106: 0 | G106: 0 | H106: 0 | I106: 0 | J106: 0 | K106: 0 | L106: 0 | M106: 0 | N106: 0 | O106: 0 | P106: 0 | Q106: 0 | R106: 0 | S106: 0 | T106: 0 | U106: 0 | V106: 0 | W106: 0 | X106: 0 | Y106: 0 | Z106: 0 | AA106: 0 | AB106: 0 | AC106: 0 | AD106: 0 | AE106: 0 | AF106: 0 | AG106: 0 | AH106: 0 | AI106: 0 | AJ106: 0
A108: Комиссии
A109: Ставка комиссии за предоставление кредита | B109: 0 | E109: =$B109 -> 0 | F109: 0 | G109: 0 | H109: 0 | I109: 0 | J109: 0 | K109: 0 | L109: 0 | M109: 0 | N109: 0 | O109: 0 | P109: 0 | Q109: 0 | R109: 0 | S109: 0 | T109: 0 | U109: 0 | V109: 0 | W109: 0 | X109: 0 | Y109: 0 | Z109: 0 | AA109: 0 | AB109: 0 | AC109: 0 | AD109: 0 | AE109: 0 | AF109: 0 | AG109: 0 | AH109: 0 | AI109: 0 | AJ109: 0
A110: База начисления комиссии | E110: =(Расчет_С_Фондом!E$1<=$B93)*($B93<=Расчет_С_Фондом!E$2)*SUM(E97:$DT97) -> 146400 | F110: =(Расчет_С_Фондом!F$1<=$B93)*($B93<=Расчет_С_Фондом!F$2)*SUM(F97:$DT97) -> 0 | G110: =(Расчет_С_Фондом!G$1<=$B93)*($B93<=Расчет_С_Фондом!G$2)*SUM(G97:$DT97) -> 0 | H110: =(Расчет_С_Фондом!H$1<=$B93)*($B93<=Расчет_С_Фондом!H$2)*SUM(H97:$DT97) -> 0 | I110: =(Расчет_С_Фондом!I$1<=$B93)*($B93<=Расчет_С_Фондом!I$2)*SUM(I97:$DT97) -> 0 | J110: =(Расчет_С_Фондом!J$1<=$B93)*($B93<=Расчет_С_Фондом!J$2)*SUM(J97:$DT97) -> 0 | K110: =(Расчет_С_Фондом!K$1<=$B93)*($B93<=Расчет_С_Фондом!K$2)*SUM(K97:$DT97) -> 0 | L110: =(Расчет_С_Фондом!L$1<=$B93)*($B93<=Расчет_С_Фондом!L$2)*SUM(L97:$DT97) -> 0 | M110: =(Расчет_С_Фондом!M$1<=$B93)*($B93<=Расчет_С_Фондом!M$2)*SUM(M97:$DT97) -> 0 | N110: =(Расчет_С_Фондом!N$1<=$B93)*($B93<=Расчет_С_Фондом!N$2)*SUM(N97:$DT97) -> 0 | O110: =(Расчет_С_Фондом!O$1<=$B93)*($B93<=Расчет_С_Фондом!O$2)*SUM(O97:$DT97) -> 0 | P110: =(Расчет_С_Фондом!P$1<=$B93)*($B93<=Расчет_С_Фондом!P$2)*SUM(P97:$DT97) -> 0 | Q110: =(Расчет_С_Фондом!Q$1<=$B93)*($B93<=Расчет_С_Фондом!Q$2)*SUM(Q97:$DT97) -> 0 | R110: =(Расчет_С_Фондом!R$1<=$B93)*($B93<=Расчет_С_Фондом!R$2)*SUM(R97:$DT97) -> 0 | S110: =(Расчет_С_Фондом!S$1<=$B93)*($B93<=Расчет_С_Фондом!S$2)*SUM(S97:$DT97) -> 0 | T110: =(Расчет_С_Фондом!T$1<=$B93)*($B93<=Расчет_С_Фондом!T$2)*SUM(T97:$DT97) -> 0 | U110: =(Расчет_С_Фондом!U$1<=$B93)*($B93<=Расчет_С_Фондом!U$2)*SUM(U97:$DT97) -> 0 | V110: =(Расчет_С_Фондом!V$1<=$B93)*($B93<=Расчет_С_Фондом!V$2)*SUM(V97:$DT97) -> 0 | W110: =(Расчет_С_Фондом!W$1<=$B93)*($B93<=Расчет_С_Фондом!W$2)*SUM(W97:$DT97) -> 0 | X110: =(Расчет_С_Фондом!X$1<=$B93)*($B93<=Расчет_С_Фондом!X$2)*SUM(X97:$DT97) -> 0 | Y110: =(Расчет_С_Фондом!Y$1<=$B93)*($B93<=Расчет_С_Фондом!Y$2)*SUM(Y97:$DT97) -> 0 | Z110: =(Расчет_С_Фондом!Z$1<=$B93)*($B93<=Расчет_С_Фондом!Z$2)*SUM(Z97:$DT97) -> 0 | AA110: =(Расчет_С_Фондом!AA$1<=$B93)*($B93<=Расчет_С_Фондом!AA$2)*SUM(AA97:$DT97) -> 0 | AB110: =(Расчет_С_Фондом!AB$1<=$B93)*($B93<=Расчет_С_Фондом!AB$2)*SUM(AB97:$DT97) -> 0 | AC110: =(Расчет_С_Фондом!AC$1<=$B93)*($B93<=Расчет_С_Фондом!AC$2)*SUM(AC97:$DT97) -> 0 | AD110: =(Расчет_С_Фондом!AD$1<=$B93)*($B93<=Расчет_С_Фондом!AD$2)*SUM(AD97:$DT97) -> 0 | AE110: =(Расчет_С_Фондом!AE$1<=$B93)*($B93<=Расчет_С_Фондом!AE$2)*SUM(AE97:$DT97) -> 0 | AF110: =(Расчет_С_Фондом!AF$1<=$B93)*($B93<=Расчет_С_Фондом!AF$2)*SUM(AF97:$DT97) -> 0 | AG110: =(Расчет_С_Фондом!AG$1<=$B93)*($B93<=Расчет_С_Фондом!AG$2)*SUM(AG97:$DT97) -> 0 | AH110: =(Расчет_С_Фондом!AH$1<=$B93)*($B93<=Расчет_С_Фондом!AH$2)*SUM(AH97:$DT97) -> 0 | AI110: =(Расчет_С_Фондом!AI$1<=$B93)*($B93<=Расчет_С_Фондом!AI$2)*SUM(AI97:$DT97) -> 0 | AJ110: =(Расчет_С_Фондом!AJ$1<=$B93)*($B93<=Расчет_С_Фондом!AJ$2)*SUM(AJ97:$DT97) -> 0
A111: Комиссия за предоставление кредита, начисленная | E111: =E110*E109 -> 0 | F111: 0 | G111: 0 | H111: 0 | I111: 0 | J111: 0 | K111: 0 | L111: 0 | M111: 0 | N111: 0 | O111: 0 | P111: 0 | Q111: 0 | R111: 0 | S111: 0 | T111: 0 | U111: 0 | V111: 0 | W111: 0 | X111: 0 | Y111: 0 | Z111: 0 | AA111: 0 | AB111: 0 | AC111: 0 | AD111: 0 | AE111: 0 | AF111: 0 | AG111: 0 | AH111: 0 | AI111: 0 | AJ111: 0
A113: Ставка комиссии за обязательство | B113: 0 | E113: =$B113 -> 0 | F113: 0 | G113: 0 | H113: 0 | I113: 0 | J113: 0 | K113: 0 | L113: 0 | M113: 0 | N113: 0 | O113: 0 | P113: 0 | Q113: 0 | R113: 0 | S113: 0 | T113: 0 | U113: 0 | V113: 0 | W113: 0 | X113: 0 | Y113: 0 | Z113: 0 | AA113: 0 | AB113: 0 | AC113: 0 | AD113: 0 | AE113: 0 | AF113: 0 | AG113: 0 | AH113: 0 | AI113: 0 | AJ113: 0
